Workbook

Sheet Simulación Cliente
D4: SIMULADOR LINEA DE CAPITAL DE TRABAJO PYME
V6: Porcentaje %
D7: Línea Solicitada/Aprobada | E7: 90000 | G7: Ingresa el importe total de la línea | V7: Valor
D8: % Desembolso | E8: =E9/E7 -> 1
D9: Monto a desembolsar | E9: 90000 | G9: Ingresa el monto de tu primer desembolso
D10: Monto a Financiar (Desembolso + Prima Seguro) | E10: =IF($E$16="Natural",'Simulador Cronograma'!$C$3,'Simulador para calculos'!$C$3) -> 90000 | W10: SD. Exonerado | X10: 0
D12: Fecha de Desembolso | E12: 2025-05-12 | G12: Ingresar Fecha de Desembolso y Primera fecha de pago
D13: Fecha Primer Pago | E13: 2025-06-16
Z14: =E17+AC23 -> 49
Q15: PN | R15: Tasa | W15: Columna1 | X15: Columna2 | Z15: Identificador | AA15: Plazo | AB15: TITULAR | AC15: TITULAR +CONYUGE
D16: Persona | E16: Jurídica | G16: Selecciona si eres Persona Natural o Persona Jurídica | Q16: Seguro Desgravamen sin devolución - Titular | R16: 0.2 | W16: SD. Exonerado | X16: 0 | Z16: =IF(Z14<13,1,0) -> 0 | AA16: 0-12 | AB16: 0.002195 | AC16: 0.00439
D17: Plazo (meses) | E17: 48 | G17: Ingresa el plazo en meses de tu préstamo | Q17: Seguro Desgravamen con devolución - Titular | R17: 0.26 | W17: Endosado | X17: 0 | Z17: =IF(AND(Z14>12,Z14<=36),1,0) -> 0 | AA17: 13-36 | AB17: 0.0014 | AC17: 0.0028
D18: Tipo de Seguro Desgravamen/Vida (%mensual) | E18: Exonerado | F18: =IFERROR(IF($E$16="Natural",VLOOKUP($E$18,$Q$15:$R$23,2,FALSE),VLOOKUP($E$18,$Q$26:$R$30,2,FALSE))/100,"No aplica este seguro en esta Persona Jurídica") -> 0 | G18: Selecciona el Seguro que deseas adquirir | Q18: Seguro Desgravamen sin devolución Titular + Cónyuge | R18: 0.4 | W18: SR Titular Premium | X18: 0.025 | Z18: =IF(AND(Z14>36,Z14<=60),1,0) -> 1 | AA18: 37-60 | AB18: 0.000975 | AC18: 0.00195
D19: Valor asegurable del bien/Seguro del bien | F19: 0.00028 | Q19: Seguro Desgravamen con devolución Titular + Cónyuge | R19: 0.52 | W19: CR Titular Premium | X19: 0.047 | Z19: =IF(AND(Z14>60,Z14<=84),1,0) -> 0 | AA19: 61-84 | AB19: 0.000575 | AC19: 0.00115
D20: TEA (Tasa efectiva anual) | E20: 0.154 | G20: Ingresa la Tasa Efectiva Anual | Q20: Seguro Vida Titular | R20: =_xlfn.XLOOKUP(1,Z16:Z21,AB16:AB21)*100 -> 0.0975 | W20: SR Titular + Cony. Premium | X20: 0.0425 | Z20: =IF(AND(Z14>84,Z14<=108),1,0) -> 0 | AA20: 85-108 | AB20: 0.00045 | AC20: 0.0009
D21: TCEA (Tasa de costo efectivo anual) | E21: 0.1539998486 | Q21: Seguro Vida Titular + Cónyuge | R21: =_xlfn.XLOOKUP(1,Z16:Z21,AC16:AC21)*100 -> 0.195 | W21: CR Titular + Cony. Premium | X21: 0.0799 | Z21: =IF(Z14>108,1,0) -> 0 | AA21: 109-más | AB21: 0.00035 | AC21: 0.0007
Q22: Exonerado | R22: 0 | W22: SR SD. Hipotecario CV/BF Titular CAMPAØA | X22: 0.0285
Q23: Endosado | R23: 0 | W23: CR SD. Hipotecario CV/BF Titular CAMPAØA | X23: 0.0485 | Z23: Identificador | AA23: Periodo Gracia | AB23: Meses | AC23: =SUMPRODUCT(Z24:Z30,AB24:AB30) -> 1
W24: SR SD. Hipotecario CV/BF Tit.+ Cony.CAMP | X24: 0.0546 | Z24: =IF($E$13-$E$12<31,1,0) -> 0 | AA24: 0-30 | AB24: 0
D25: Valor Cuota | E25: =IFERROR(IF($E$16="Natural",'Simulador Cronograma'!$C$17, 'Simulador para calculos'!$C$17),"NO APLICA") -> 2492.240871 | W25: CR SD. Hipotecario CV/BF Tit.+ Cony.CAMP | X25: 0.0928 | Z25: =IF(AND($E$13-$E$12>30,$E$13-$E$12<=60),1,0) -> 1 | AA25: 31-60 | AB25: 1
D26: =IF(E16="Natural","Prima total del seguros","Seguro de desgravamen total máximo a cobrar") -> Seguro de desgravamen total máximo a cobrar | E26: =IFERROR(IF(E16="Natural",E10-E9,'Simulador para calculos'!F5),"NO APLICA") -> 0 | Q26: PJ | R26: Tasa | W26: SR Desgravamen TIT Sobretasa (100%) | X26: 0.057 | Z26: =IF(AND($E$13-$E$12>60,$E$13-$E$12<=90),1,0) -> 0 | AA26: 61-90 | AB26: 2
Q27: Seguro Desgravamen sin devolución - Titular | R27: 0.0909 | W27: CR Desgravamen TIT Sobretasa (100%) | X27: 0.0969 | Z27: =IF(AND($E$13-$E$12>90,$E$13-$E$12<=120),1,0) -> 0 | AA27: 91-120 | AB27: 3
Q28: Seguro Desgravamen sin devolución Titular + Cónyuge | R28: 0.1591 | W28: SR Desgravamen TIT + CONY Sobretasa (100 | X28: 0.0819
G29: =+TODAY() -> 2025-05-12 | Q29: Exonerado | R29: 0 | W29: CR Desgravamen TIT + CONY Sobretasa (100 | X29: 0.1392 | Z29: =IF(AND($E$13-$E$12>120,$E$13-$E$12<=150),1,0) -> 0 | AA29: 121-150 | AB29: 4
Q30: Endosado | R30: 0 | W30: SR Degravamen TIT Sobretasa 50% | X30: 0.0428 | Z30: =IF(AND($E$13-$E$12>150,$E$13-$E$12<=180),1,0) -> 0 | AA30: 151-180 | AB30: 5
W31: CR Degravamen TIT Sobretasa 50% | X31: 0.0728
W32: SR Degravamen TIT Sobretasa(50%)+CONY | X32: 0.0683
W33: CR Degravamen TIT Sobretasa(50%)+CONY | X33: 0.1161
W34: SR Desgravamen TIT+ CONY Sobretasa (50%) | X34: 0.0683
W35: CR Desgravamen TIT+ CONY Sobretasa (50%) | X35: 0.11
W36: SR Desgravamen TIT Sobretasa(100%)+CONY | X36: 0.0819
W37: CR Desgravamen TIT Sobretasa(100%)+CONY | X37: 0.13
D38: Importante: | W38: SR Desgravamen (TIT+CONY)Sobretasa (50%) | X38: 0.0819
D39: - Cargos mensuales que se incluyen: Seguro de desgravamen individual CARDIF BNP PARIBAS (sobre el monto del crédito adeudado a la fecha) - Valores aproximados y referenciales. - Los términos y condiciones presentados son indicativos y vigentes en la medida que no ocurra cambios sustantivos en el mercado que afecten las condiciones existentes a la fecha de la presente propuesta. - Crédito sujeto a evaluación crediticia. | W39: CR Desgravamen (TIT+CONY)Sobretasa (50%) | X39: 0.1392
W40: SR Desgravamen (TIT+CONY ) Sobretasa (10 | X40: 0.1092
W41: CR Desgravamen (TIT+CONY ) Sobretasa (10 | X41: 0.1856
W42: SR SD Titul.Sobretasa100%+Cony.Sobretasa | X42: 0.0956
W43: CR SD Titul.Sobretasa100%+Cony.Sobretasa | X43: 0.1625
W44: SR SD Titul.Sobretasa50%+Cony.Sobretasa1 | X44: 0.0956
V45: Colaborador | W45: CR SD Titul.Sobretasa50%+Cony.Sobretasa1 | X45: 0.1625
V46: Colaborador | W46: CR Desgravamen TIT Sobretasa(100%)+CONY | X46: 0.13
V47: Colaborador | W47: CR Desgravamen (TIT+CONY)Sobretasa (50%) | X47: 0.1392
W48: CR SD. HIPOT. WP(Tit + Cony)Sobretasa (N | X48: 0.1392
W49: CR Desgravamen TIT + CONY Sobretasa (100 | X49: 0.1392
W50: CR SD Titul.Sobretasa50%+Cony.Sobretasa1 | X50: 0.1625
W51: CR SD Titul.Sobretasa100%+Cony.Sobretasa | X51: 0.1625
V52: CV | W52: CR Desgravamen (TIT+CONY ) Sobretasa (10 | X52: 0.18
V53: CV | W53: Seguro del Bien Hipotecario | X53: 0.028
V54: CV | W54: Seguro del Bien Lib.Disp. Garantía Hipotecaria | X54: 0.028
V55: LDGH | W55: Seguro del Bien Exonerado | X55: 0

Sheet datos (hidden)
A1: Tarifa | B1: Tipo de Seguro | C1: Nombre Seguro | D1: TASA | F1: Nombre Seguro | G1: TASA
A2: Exonerado | B2: Exonerado | C2: SD. Exonerado | D2: 0 | F2: SD. Exonerado | G2: 0
A3: Titular | B3: Sin Retorno | C3: SR Titular Premium | D3: 0.02 | F3: Endosado | G3: 0
A4: Titular | B4: Sin Retorno | C4: SR SD. Hipotecario CV/BF Titular CAMPAØA | D4: 0.0285 | F4: SR Titular Premium | G4: 0.025
A5: Titular | B5: Sin Retorno | C5: SR Degravamen TIT Sobretasa 50% | D5: 0.0428 | F5: CR Titular Premium | G5: 0.047
A6: Titular | B6: Sin Retorno | C6: SR SD. HIPOT. WP Tit Sobretasa (Nvo) | D6: 0.0428 | F6: SR Titular + Cony. Premium | G6: 0.0425
A7: Titular | B7: Sin Retorno | C7: SR Desgravamen TIT Sobretasa (100%) | D7: 0.057 | F7: CR Titular + Cony. Premium | G7: 0.0799
A8: Titular + Cónyuge | B8: Sin Retorno | C8: SR Titular + Cony. Premium | D8: 0.047 | F8: SR SD. Hipotecario CV/BF Titular CAMPAØA | G8: 0.0285
A9: Titular + Cónyuge | B9: Sin Retorno | C9: SR SD. HIPOT. WP Tit Sobretasa + Cony (N | D9: 0.05 | F9: CR SD. Hipotecario CV/BF Titular CAMPAØA | G9: 0.0485
A10: Titular + Cónyuge | B10: Sin Retorno | C10: SR SD. Hipotecario CV/BF Tit.+ Cony.CAMP | D10: 0.0546 | F10: SR SD. Hipotecario CV/BF Tit.+ Cony.CAMP | G10: 0.0546
A11: Titular + Cónyuge | B11: Sin Retorno | C11: SR Desgravamen TIT+ CONY Sobretasa (50%) | D11: 0.06 | F11: CR SD. Hipotecario CV/BF Tit.+ Cony.CAMP | G11: 0.0928
A12: Titular + Cónyuge | B12: Sin Retorno | C12: SR Degravamen TIT Sobretasa(50%)+CONY | D12: 0.0683 | F12: SR Desgravamen TIT Sobretasa (100%) | G12: 0.057
A13: Titular + Cónyuge | B13: Sin Retorno | C13: SR SD. HIPOT. WP Tit + Cony Sobretasa (N | D13: 0.0683 | F13: CR Desgravamen TIT Sobretasa (100%) | G13: 0.0969
A14: Titular + Cónyuge | B14: Sin Retorno | C14: SR Desgravamen TIT Sobretasa(100%)+CONY | D14: 0.08 | F14: SR Desgravamen TIT + CONY Sobretasa (100 | G14: 0.0819
A15: Titular + Cónyuge | B15: Sin Retorno | C15: SR Desgravamen (TIT+CONY)Sobretasa (50%) | D15: 0.0819 | F15: CR Desgravamen TIT + CONY Sobretasa (100 | G15: 0.1392
A16: Titular + Cónyuge | B16: Sin Retorno | C16: SR SD. HIPOT. WP(Tit + Cony)Sobretasa (N | D16: 0.0819 | F16: SR Degravamen TIT Sobretasa 50% | G16: 0.0428
A17: Titular + Cónyuge | B17: Sin Retorno | C17: SR Desgravamen TIT + CONY Sobretasa (100 | D17: 0.0819 | F17: CR Degravamen TIT Sobretasa 50% | G17: 0.0728
A18: Titular + Cónyuge | B18: Sin Retorno | C18: SR SD Titul.Sobretasa50%+Cony.Sobretasa1 | D18: 0.0956 | F18: SR Degravamen TIT Sobretasa(50%)+CONY | G18: 0.0683
A19: Titular + Cónyuge | B19: Sin Retorno | C19: SR SD Titul.Sobretasa100%+Cony.Sobretasa | D19: 0.0956 | F19: CR Degravamen TIT Sobretasa(50%)+CONY | G19: 0.1161
A20: Titular + Cónyuge | B20: Sin Retorno | C20: SR Desgravamen (TIT+CONY ) Sobretasa (10 | D20: 0.1 | F20: SR Desgravamen TIT+ CONY Sobretasa (50%) | G20: 0.0683
A21: Titular | B21: Con Retorno | C21: CR Titular Premium | D21: 0.04 | F21: CR Desgravamen TIT+ CONY Sobretasa (50%) | G21: 0.11
A22: Titular | B22: Con Retorno | C22: CR SD. Hipotecario CV/BF Titular CAMPAØA | D22: 0.0485 | F22: SR Desgravamen TIT Sobretasa(100%)+CONY | G22: 0.0819
A23: Titular | B23: Con Retorno | C23: CR Degravamen TIT Sobretasa 50% | D23: 0.0728 | F23: CR Desgravamen TIT Sobretasa(100%)+CONY | G23: 0.13
A24: Titular | B24: Con Retorno | C24: CR SD. HIPOT. WP Tit Sobretasa (Nvo) | D24: 0.0728 | F24: SR Desgravamen (TIT+CONY)Sobretasa (50%) | G24: 0.0819
A25: Titular | B25: Con Retorno | C25: CR Desgravamen TIT Sobretasa (100%) | D25: 0.0969 | F25: CR Desgravamen (TIT+CONY)Sobretasa (50%) | G25: 0.1392
A26: Titular + Cónyuge | B26: Con Retorno | C26: CR Titular + Cony. Premium | D26: 0.0799 | F26: SR Desgravamen (TIT+CONY ) Sobretasa (10 | G26: 0.1092
A27: Titular + Cónyuge | B27: Con Retorno | C27: CR SD. Hipotecario CV/BF Tit.+ Cony.CAMP | D27: 0.09 | F27: CR Desgravamen (TIT+CONY ) Sobretasa (10 | G27: 0.1856
A28: Titular + Cónyuge | B28: Con Retorno | C28: CR SD. HIPOT. WP Tit Sobretasa + Cony (N | D28: 0.09 | F28: SR SD Titul.Sobretasa100%+Cony.Sobretasa | G28: 0.0956
A29: Titular + Cónyuge | B29: Con Retorno | C29: CR Desgravamen TIT+ CONY Sobretasa (50%) | D29: 0.11 | F29: CR SD Titul.Sobretasa100%+Cony.Sobretasa | G29: 0.1625
A30: Titular + Cónyuge | B30: Con Retorno | C30: CR Degravamen TIT Sobretasa(50%)+CONY | D30: 0.1161 | F30: SR SD Titul.Sobretasa50%+Cony.Sobretasa1 | G30: 0.0956
A31: Titular + Cónyuge | B31: Con Retorno | C31: CR SD. HIPOT. WP Tit + Cony Sobretasa (N | D31: 0.1161 | F31: CR SD Titul.Sobretasa50%+Cony.Sobretasa1 | G31: 0.1625
A32: Titular + Cónyuge | B32: Con Retorno | C32: CR Desgravamen TIT Sobretasa(100%)+CONY | D32: 0.13
A33: Titular + Cónyuge | B33: Con Retorno | C33: CR Desgravamen (TIT+CONY)Sobretasa (50%) | D33: 0.1392
A34: Titular + Cónyuge | B34: Con Retorno | C34: CR SD. HIPOT. WP(Tit + Cony)Sobretasa (N | D34: 0.1392
A35: Titular + Cónyuge | B35: Con Retorno | C35: CR Desgravamen TIT + CONY Sobretasa (100 | D35: 0.1392
A36: Titular + Cónyuge | B36: Con Retorno | C36: CR SD Titul.Sobretasa50%+Cony.Sobretasa1 | D36: 0.1625
A37: Titular + Cónyuge | B37: Con Retorno | C37: CR SD Titul.Sobretasa100%+Cony.Sobretasa | D37: 0.1625
A38: Titular + Cónyuge | B38: Con Retorno | C38: CR Desgravamen (TIT+CONY ) Sobretasa (10 | D38: 0.18

Sheet Simulador Cronograma (hidden)
B1: simulacion con Cuota simple | AB1: simulacion con CD | AS1: simulacion a 180 | BJ1: simulacion a 180 con CD | CA1: simulacion a 240 | CR1: simulacion a 240 con CD
B3: MAF | C3: ='Simulación Cliente'!E9*(1+C12*I12*'Simulación Cliente'!$Z$14)+'Simulador para calculos'!$F$11+'Simulador para calculos'!I8 -> 90000 | AB3: MAF | AC3: =+'Simulación Cliente'!$E$10 -> 90000 | AS3: MAF | AT3: =+'Simulación Cliente'!$E$10 -> 90000 | BJ3: MAF | BK3: =+'Simulación Cliente'!$E$10 -> 90000 | CA3: MAF | CB3: =+'Simulación Cliente'!$E$10 -> 90000 | CR3: MAF | CS3: =+'Simulación Cliente'!$E$10 -> 90000
B4: Monto del Bien | C4: =+'Simulación Cliente'!$E$19 -> 0 | D4: =C4*'Simulador para calculos'!J12 -> 0 | AB4: Monto del Bien | AC4: =+'Simulación Cliente'!$E$7 -> 90000 | AS4: Monto del Bien | AT4: =+'Simulación Cliente'!$E$7 -> 90000 | BJ4: Monto del Bien | BK4: =+'Simulación Cliente'!$E$7 -> 90000 | CA4: Monto del Bien | CB4: =+'Simulación Cliente'!$E$7 -> 90000 | CR4: Monto del Bien | CS4: =+'Simulación Cliente'!$E$7 -> 90000
B5: Moneda | C5: Soles | AB5: Moneda | AC5: Soles | AS5: Moneda | AT5: Soles | BJ5: Moneda | BK5: Soles | CA5: Moneda | CB5: Soles | CR5: Moneda | CS5: Soles
B6: Plazo | C6: =+'Simulación Cliente'!$E$17 -> 48 | AB6: Plazo | AC6: =+'Simulación Cliente'!$E$17 -> 48 | AS6: Plazo | AT6: 180 | BJ6: Plazo | BK6: 180 | CA6: Plazo | CB6: 240 | CR6: Plazo | CS6: 240
B7: Fecha de Desembolso | C7: ='Simulación Cliente'!E12 -> 2025-05-12 | AB7: Fecha de Desembolso | AC7: 2022-09-01 | AS7: Fecha de Desembolso | AT7: 2022-09-01 | BJ7: Fecha de Desembolso | BK7: 2022-09-01 | CA7: Fecha de Desembolso | CB7: 2022-09-01 | CR7: Fecha de Desembolso | CS7: 2022-09-01
B8: Fecha de 1er Pago | C8: ='Simulación Cliente'!E13 -> 2025-06-16 | AB8: Fecha de 1er Pago | AC8: 2022-10-01 | AS8: Fecha de 1er Pago | AT8: 2022-10-01 | BJ8: Fecha de 1er Pago | BK8: 2022-10-01 | CA8: Fecha de 1er Pago | CB8: 2022-10-01 | CR8: Fecha de 1er Pago | CS8: 2022-10-01
B9: Cuota Julio | C9: 1 | AB9: Cuota Julio | AC9: 2 | AS9: Cuota Julio | AT9: 1 | BJ9: Cuota Julio | BK9: 2 | CA9: Cuota Julio | CB9: 1 | CR9: Cuota Julio | CS9: 2
B10: Cuota Diciembre | C10: 1 | AB10: Cuota Diciembre | AC10: 2 | AS10: Cuota Diciembre | AT10: 1 | BJ10: Cuota Diciembre | BK10: 2 | CA10: Cuota Diciembre | CB10: 1 | CR10: Cuota Diciembre | CS10: 2
B11: TEA | C11: =+'Simulación Cliente'!$E$20 -> 0.154 | H11: seg desg/exon/end | I11: seg vida | J11: Natural | AB11: TEA | AC11: =+'Simulación Cliente'!$E$20 -> 0.154 | AS11: TEA | AT11: =+'Simulación Cliente'!$E$20 -> 0.154 | BJ11: TEA | BK11: =+'Simulación Cliente'!$E$20 -> 0.154 | CA11: TEA | CB11: =+'Simulación Cliente'!$E$20 -> 0.154 | CR11: TEA | CS11: =+'Simulación Cliente'!$E$20 -> 0.154
B12: Seguro de Desgravamen/Vida | C12: =+'Simulación Cliente'!$F$18 -> 0 | H12: =NOT(OR('Simulación Cliente'!$E$18='Simulación Cliente'!$Q$20,'Simulación Cliente'!$E$18='Simulación Cliente'!$Q$21)) -> TRUE | I12: =OR('Simulación Cliente'!$E$18='Simulación Cliente'!$Q$20,'Simulación Cliente'!$E$18='Simulación Cliente'!$Q$21) -> FALSE | J12: =('Simulación Cliente'!$E$16="Natural") -> FALSE | AB12: Seguro de Desgravamen | AC12: =+'Simulación Cliente'!$F$18 -> 0 | AS12: Seguro de Desgravamen | AT12: =+'Simulación Cliente'!$F$18 -> 0 | BJ12: Seguro de Desgravamen | BK12: =+'Simulación Cliente'!$F$18 -> 0 | CA12: Seguro de Desgravamen | CB12: =+'Simulación Cliente'!$F$18 -> 0 | CR12: Seguro de Desgravamen | CS12: =+'Simulación Cliente'!$F$18 -> 0
B13: TEA Total | C13: =(1+(((1+C11)^(30/360)-1)+C12*H12+C16+C14))^12-1 -> 0.1578372691 | AB13: TCEA | AC13: =(1+(((1+AC11)^(30/360)-1)+AC12+AC16))^12-1 -> 0.154 | AS13: TCEA | AT13: =(1+(((1+AT11)^(30/360)-1)+AT12+AT16))^12-1 -> 0.154 | BJ13: TCEA | BK13: =(1+(((1+BK11)^(30/360)-1)+BK12+BK16))^12-1 -> 0.154 | CA13: TCEA | CB13: =(1+(((1+CB11)^(30/360)-1)+CB12+CB16))^12-1 -> 0.154 | CR13: TCEA | CS13: =(1+(((1+CS11)^(30/360)-1)+CS12+CS16))^12-1 -> 0.154
B14: Seguro del Bien | C14: =+'Simulación Cliente'!$F$19 -> 0.00028 | AB14: Seguro del Bien | AC14: =+'Simulación Cliente'!$F$19 -> 0.00028 | AS14: Seguro del Bien | AT14: =+'Simulación Cliente'!$F$19 -> 0.00028 | BJ14: Seguro del Bien | BK14: =+'Simulación Cliente'!$F$19 -> 0.00028 | CA14: Seguro del Bien | CB14: =+'Simulación Cliente'!$F$19 -> 0.00028 | CR14: Seguro del Bien | CS14: =+'Simulación Cliente'!$F$19 -> 0.00028
B15: Portes | U15: Seg desg | V15: ='Simulador para calculos'!$F$6*'Simulador Cronograma'!J12 -> 0 | AB15: Portes | AC15: =+'Simulación Cliente'!$E$19 -> 0 | AS15: Portes | AT15: =+'Simulación Cliente'!$E$19 -> 0 | BJ15: Portes | BK15: =+'Simulación Cliente'!$E$19 -> 0 | CA15: Portes | CB15: =+'Simulación Cliente'!$E$19 -> 0 | CR15: Portes | CS15: =+'Simulación Cliente'!$E$19 -> 0
B16: % Portes | C16: =C15/C3 -> 0 | U16: Seg vida | V16: ='Simulación Cliente'!$E$9*I12*C12*'Simulación Cliente'!$E$17 -> 0 | AB16: % Portes | AC16: =AC15/AC3 -> 0 | AS16: % Portes | AT16: =AT15/AT3 -> 0 | BJ16: % Portes | BK16: =BK15/BK3 -> 0 | CA16: % Portes | CB16: =CB15/CB3 -> 0 | CR16: % Portes | CS16: =CS15/CS3 -> 0
B17: VALOR CUOTA | C17: =(C3+(C14*D4)*Q20)/P20 -> 2492.240871 | U17: Seg bien | V17: ='Simulador para calculos'!I8 -> 0 | AB17: VALOR CUOTA | AC17: =(AC3+(AC14*AC4)*AO20)/AN20 -> 2153.416701 | AS17: VALOR CUOTA | AT17: =(AT3+(AT14*AT4)*BF20)/BE20 -> 1261.363224 | BJ17: VALOR CUOTA | BK17: =(BK3+(BK14*BK4)*BW20)/BV20 -> 1081.148484 | CA17: VALOR CUOTA | CB17: =(CB3+(CB14*CB4)*CN20)/CM20 -> 1185.009312 | CR17: VALOR CUOTA | CS17: =(CS3+(CS14*CS4)*DE20)/DD20 -> 1015.703507
V19: ='Simulación Cliente'!$E$10-V15-V16-V17-'Simulador Cronograma'!$V$20 -> 0
P20: =SUM(P22:P381) -> 36.11207931 | Q20: =SUM(Q22:Q381) -> 36.11207931 | V20: =SUM(V22:V381)+W20 -> 90000 | W20: =IF(SUM(V22:V381)<'Simulación Cliente'!E7,0.01,IF(SUM(V22:V381)>'Simulación Cliente'!E7,-0.01,IF(SUM(V22:V381)='Simulación Cliente'!E7,0,0))) -> 0 | AN20: =SUM(AN22:AN381) -> 42.21750543 | AO20: =SUM(AO22:AO381) -> 36.18576486 | BE20: =SUM(BE22:BE381) -> 72.80591934 | BF20: =SUM(BF22:BF381) -> 72.80591934 | BV20: =SUM(BV22:BV381) -> 84.94181002 | BW20: =SUM(BW22:BW381) -> 72.80591934 | CM20: =SUM(CM22:CM381) -> 77.59896309 | CN20: =SUM(CN22:CN381) -> 77.59896309 | DD20: =SUM(DD22:DD381) -> 90.53379577 | DE20: =SUM(DE22:DE381) -> 77.59896309
B21: N° Cuota | C21: Fecha de pago Simul | D21: Día | E21: Fecha Pago | F21: Días | G21: Dias Acumulados | H21: Saldo Inicial | I21: Amortización | J21: Interés | K21: Seguro Desgravamen | L21: Seguro del Bien | M21: Portes | N21: VALOR CUOTA | O21: Saldo Final | P21: Factor Cronograma | Q21: Factor Cronograma 2 | S21: Vector i,1 Cuota | T21: Vector i,2 Días Acum | U21: Vector i,3 Factor | V21: Vector i,4 Calculo VA | AB21: N° Cuota | AC21: Fecha de pago | AD21: Días | AE21: Dias Acumulados | AF21: Saldo Inicial | AG21: Amortización | AH21: Interés | AI21: Seguro Desgravamen | AJ21: Seguro del Bien | AK21: Portes | AL21: VALOR CUOTA | AM21: Saldo Final | AN21: Factor Cronograma | AO21: Factor Cronograma 2 | AS21: N° Cuota | AT21: Fecha de pago | AU21: Días | AV21: Dias Acumulados | AW21: Saldo Inicial | AX21: Amortización | AY21: Interés | AZ21: Seguro Desgravamen | BA21: Seguro del Bien | BB21: Portes | BC21: VALOR CUOTA | BD21: Saldo Final | BE21: Factor Cronograma | BF21: Factor Cronograma 2 | BJ21: N° Cuota | BK21: Fecha de pago | BL21: Días | BM21: Dias Acumulados | BN21: Saldo Inicial | BO21: Amortización | BP21: Interés | BQ21: Seguro Desgravamen | BR21: Seguro del Bien | BS21: Portes | BT21: VALOR CUOTA | BU21: Saldo Final | BV21: Factor Cronograma | BW21: Factor Cronograma 2 | CA21: N° Cuota | CB21: Fecha de pago | CC21: Días | CD21: Dias Acumulados | CE21: Saldo Inicial | CF21: Amortización | CG21: Interés | CH21: Seguro Desgravamen | CI21: Seguro del Bien | CJ21: Portes | CK21: VALOR CUOTA | CL21: Saldo Final | CM21: Factor Cronograma | CN21: Factor Cronograma 2 | CR21: N° Cuota | CS21: Fecha de pago | CT21: Días | CU21: Dias Acumulados | CV21: Saldo Inicial | CW21: Amortización | CX21: Interés | CY21: Seguro Desgravamen | CZ21: Seguro del Bien | DA21: Portes | DB21: VALOR CUOTA | DC21: Saldo Final | DD21: Factor Cronograma | DE21: Factor Cronograma 2
B22: 1 | C22: =C8 -> 2025-06-16 | D22: =IF(B22<=$C$6,WEEKDAY(C22,2),"") -> 1 | E22: =C8 -> 2025-06-16 | F22: =E22-C7 -> 35 | G22: =F22 -> 35 | H22: =C3 -> 90000 | I22: =IF(B22>C$6,"",N22-M22-L22-K22-J22) -> 1230.174817 | J22: =IF(B22>C$6,"",((1+C$11)^(F22/360)-1)*H22) -> 1262.066054 | K22: =IF(B22>C$6,"",0) -> 0 | L22: =IF(B22>C$6,"",D$4*C$14) -> 0 | M22: =IF(B22>C$6,"",C$15) -> 0 | N22: =IF(B22>C$6,"",IF(B22=C$6,H22+J22+K22+L22+M22,IF(AND(C$9=2,MONTH(C22)=7),2*C$17,IF(AND(C$10=2,MONTH(C22)=12),2*C$17,C$17)))) -> 2492.240871 | O22: =IF(B22>C$6,"",H22-I22) -> 88769.82518 | P22: =IFERROR(IF(AND(MONTH(C22)=7,C$9=2),2/(1+C$11)^(G22/360),IF(AND(MONTH(C22)=12,C$10=2),2/(1+C$11)^(G22/360),1/(1+C$11)^(G22/360))),"") -> 0.9861709678 | Q22: =IFERROR(1/(1+C$11)^(G22/360),"") -> 0.9861709678 | S22: =IFERROR((I22+J22+K22+L22+M22)*$J$12+('Simulador para calculos'!I22+'Simulador para calculos'!J22+'Simulador para calculos'!K22+'Simulador para calculos'!L22+'Simulador para calculos'!M22)*NOT($J$12),"") -> 2492.240871 | T22: =G22 -> 35 | U22: =IFERROR((1+'Simulación Cliente'!$E$21)^(T22/360),"") -> 1.014022943 | V22: =IFERROR(ROUND(S22/U22,2),"") -> 2457.78 | AB22: 1 | AC22: =AC8 -> 2022-10-01 | AD22: =AC22-AC7 -> 30 | AE22: =AD22 -> 30 | AF22: =AC3 -> 90000 | AG22: =IF(AB22>AC$6,"",AL22-AK22-AJ22-AI22-AH22) -> 1047.523597 | AH22: =IF(AB22>AC$6,"",((1+AC$11)^(AD22/360)-1)*AF22) -> 1080.693104 | AI22: =IF(AB22>AC$6,"",((1+AC$12)^(AD22/30)-1)*AF22) -> 0 | AJ22: =IF(AB22>AC$6,"",AC$4*AC$14) -> 25.2 | AK22: =IF(AB22>AC$6,"",AC$15) -> 0 | AL22: =IF(AB22>AC$6,"",IF(AB22=AC$6,AF22+AH22+AI22+AJ22+AK22,IF(AND(AC$9=2,MONTH(AC22)=7),2*AC$17,IF(AND(AC$10=2,MONTH(AC22)=12),2*AC$17,AC$17)))) -> 2153.416701 | AM22: =IF(AB22>AC$6,"",AF22-AG22) -> 88952.4764 | AN22: =IFERROR(IF(AND(MONTH(AC22)=7,AC$9=2),2/(1+AC$13)^(AE22/360),IF(AND(MONTH(AC22)=12,AC$10=2),2/(1+AC$13)^(AE22/360),1/(1+AC$13)^(AE22/360))),"") -> 0.9881347729 | AO22: =IFERROR(1/(1+AC$13)^(AE22/360),"") -> 0.9881347729 | AS22: 1 | AT22: =AT8 -> 2022-10-01 | AU22: =AT22-AT7 -> 30 | AV22: =AU22 -> 30 | AW22: =AT3 -> 90000 | AX22: =IF(AS22>AT$6,"",BC22-BB22-BA22-AZ22-AY22) -> 155.4701203 | AY22: =IF(AS22>AT$6,"",((1+AT$11)^(AU22/360)-1)*AW22) -> 1080.693104 | AZ22: =IF(AS22>AT$6,"",((1+AT$12)^(AU22/30)-1)*AW22) -> 0 | BA22: =IF(AS22>AT$6,"",AT$4*AT$14) -> 25.2 | BB22: =IF(AS22>AT$6,"",AT$15) -> 0 | BC22: =IF(AS22>AT$6,"",IF(AS22=AT$6,AW22+AY22+AZ22+BA22+BB22,IF(AND(AT$9=2,MONTH(AT22)=7),2*AT$17,IF(AND(AT$10=2,MONTH(AT22)=12),2*AT$17,AT$17)))) -> 1261.363224 | BD22: =IF(AS22>AT$6,"",AW22-AX22) -> 89844.52988 | BE22: =IFERROR(IF(AND(MONTH(AT22)=7,AT$9=2),2/(1+AT$13)^(AV22/360),IF(AND(MONTH(AT22)=12,AT$10=2),2/(1+AT$13)^(AV22/360),1/(1+AT$13)^(AV22/360))),"") -> 0.9881347729 | BF22: =IFERROR(1/(1+AT$13)^(AV22/360),"") -> 0.9881347729 | BJ22: 1 | BK22: =BK8 -> 2022-10-01 | BL22: =BK22-BK7 -> 30 | BM22: =BL22 -> 30 | BN22: =BK3 -> 90000 | BO22: =IF(BJ22>BK$6,"",BT22-BS22-BR22-BQ22-BP22) -> -24.74461961 | BP22: =IF(BJ22>BK$6,"",((1+BK$11)^(BL22/360)-1)*BN22) -> 1080.693104 | BQ22: =IF(BJ22>BK$6,"",((1+BK$12)^(BL22/30)-1)*BN22) -> 0 | BR22: =IF(BJ22>BK$6,"",BK$4*BK$14) -> 25.2 | BS22: =IF(BJ22>BK$6,"",BK$15) -> 0 | BT22: =IF(BJ22>BK$6,"",IF(BJ22=BK$6,BN22+BP22+BQ22+BR22+BS22,IF(AND(BK$9=2,MONTH(BK22)=7),2*BK$17,IF(AND(BK$10=2,MONTH(BK22)=12),2*BK$17,BK$17)))) -> 1081.148484 | BU22: =IF(BJ22>BK$6,"",BN22-BO22) -> 90024.74462 | BV22: =IFERROR(IF(AND(MONTH(BK22)=7,BK$9=2),2/(1+BK$13)^(BM22/360),IF(AND(MONTH(BK22)=12,BK$10=2),2/(1+BK$13)^(BM22/360),1/(1+BK$13)^(BM22/360))),"") -> 0.9881347729 | BW22: =IFERROR(1/(1+BK$13)^(BM22/360),"") -> 0.9881347729 | CA22: 1 | CB22: =CB8 -> 2022-10-01 | CC22: =CB22-CB7 -> 30 | CD22: =CC22 -> 30 | CE22: =CB3 -> 90000 | CF22: =IF(CA22>CB$6,"",CK22-CJ22-CI22-CH22-CG22) -> 79.11620807 | CG22: =IF(CA22>CB$6,"",((1+CB$11)^(CC22/360)-1)*CE22) -> 1080.693104 | CH22: =IF(CA22>CB$6,"",((1+CB$12)^(CC22/30)-1)*CE22) -> 0 | CI22: =IF(CA22>CB$6,"",CB$4*CB$14) -> 25.2 | CJ22: =IF(CA22>CB$6,"",CB$15) -> 0 | CK22: =IF(CA22>CB$6,"",IF(CA22=CB$6,CE22+CG22+CH22+CI22+CJ22,IF(AND(CB$9=2,MONTH(CB22)=7),2*CB$17,IF(AND(CB$10=2,MONTH(CB22)=12),2*CB$17,CB$17)))) -> 1185.009312 | CL22: =IF(CA22>CB$6,"",CE22-CF22) -> 89920.88379 | CM22: =IFERROR(IF(AND(MONTH(CB22)=7,CB$9=2),2/(1+CB$13)^(CD22/360),IF(AND(MONTH(CB22)=12,CB$10=2),2/(1+CB$13)^(CD22/360),1/(1+CB$13)^(CD22/360))),"") -> 0.9881347729 | CN22: =IFERROR(1/(1+CB$13)^(CD22/360),"") -> 0.9881347729 | CR22: 1 | CS22: =CS8 -> 2022-10-01 | CT22: =CS22-CS7 -> 30 | CU22: =CT22 -> 30 | CV22: =CS3 -> 90000 | CW22: =IF(CR22>CS$6,"",DB22-DA22-CZ22-CY22-CX22) -> -90.18959694 | CX22: =IF(CR22>CS$6,"",((1+CS$11)^(CT22/360)-1)*CV22) -> 1080.693104 | CY22: =IF(CR22>CS$6,"",((1+CS$12)^(CT22/30)-1)*CV22) -> 0 | CZ22: =IF(CR22>CS$6,"",CS$4*CS$14) -> 25.2 | DA22: =IF(CR22>CS$6,"",CS$15) -> 0 | DB22: =IF(CR22>CS$6,"",IF(CR22=CS$6,CV22+CX22+CY22+CZ22+DA22,IF(AND(CS$9=2,MONTH(CS22)=7),2*CS$17,IF(AND(CS$10=2,MONTH(CS22)=12),2*CS$17,CS$17)))) -> 1015.703507 | DC22: =IF(CR22>CS$6,"",CV22-CW22) -> 90090.1896 | DD22: =IFERROR(IF(AND(MONTH(CS22)=7,CS$9=2),2/(1+CS$13)^(CU22/360),IF(AND(MONTH(CS22)=12,CS$10=2),2/(1+CS$13)^(CU22/360),1/(1+CS$13)^(CU22/360))),"") -> 0.9881347729 | DE22: =IFERROR(1/(1+CS$13)^(CU22/360),"") -> 0.9881347729
B23: 2 | C23: =IF(B23>C$6,"",EDATE(C$22,B22)) -> 2025-07-16 | D23: =IF(B23<=$C$6,WEEKDAY(C23,2),"") -> 3 | E23: =IF(D23=7,C23+1,C23) -> 2025-07-16 | F23: =IF(B23>C$6,"",E23-E22) -> 30 | G23: =IFERROR(F23+G22,"") -> 65 | H23: =IF(B23>C$6,"",O22) -> 88769.82518 | I23: =IF(B23>C$6,"",N23-M23-L23-K23-J23) -> 1426.319339 | J23: =IF(B23>C$6,"",((1+C$11)^(F23/360)-1)*H23) -> 1065.921532 | K23: =IF(B23>C$6,"",0) -> 0 | L23: =IF(B23>C$6,"",D$4*C$14) -> 0 | M23: 0 | N23: =IF(B23>C$6,"",IF(B23=C$6,H23+J23+K23+L23+M23,IF(AND(C$9=2,MONTH(C23)=7),2*C$17,IF(AND(C$10=2,MONTH(C23)=12),2*C$17,C$17)))) -> 2492.240871 | O23: =IF(B23>C$6,"",H23-I23) -> 87343.50584 | P23: 0.9744698253 | Q23: 0.9744698253 | S23: =IFERROR((I23+J23+K23+L23+M23)*$J$12+('Simulador para calculos'!I23+'Simulador para calculos'!J23+'Simulador para calculos'!K23+'Simulador para calculos'!L23+'Simulador para calculos'!M23)*NOT($J$12),"") -> 2492.240871 | T23: 65 | U23: =IFERROR((1+'Simulación Cliente'!$E$21)^(T23/360),"") -> 1.026199016 | V23: =IFERROR(ROUND(S23/U23,2),"") -> 2428.61 | AB23: 2 | AC23: =IF(AB23>AC$6,"",EDATE(AC$22,AB22)) -> 2022-11-01 | AD23: =IF(AB23>AC$6,"",AC23-AC22) -> 31 | AE23: =IFERROR(AD23+AE22,"") -> 61 | AF23: =IF(AB23>AC$6,"",AM22) -> 88952.4764 | AG23: 1024.278086 | AH23: =IF(AB23>AC$6,"",((1+AC$11)^(AD23/360)-1)*AF23) -> 1103.938615 | AI23: 0 | AJ23: 25.2 | AK23: 0 | AL23: 2153.416701 | AM23: 87928.19832 | AN23: =IFERROR(IF(AND(MONTH(AC23)=7,AC$9=2),2/(1+AC$13)^(AE23/360),IF(AND(MONTH(AC23)=12,AC$10=2),2/(1+AC$13)^(AE23/360),1/(1+AC$13)^(AE23/360))),"") -> 0.9760219198 | AO23: =IFERROR(1/(1+AC$13)^(AE23/360),"") -> 0.9760219198 | AS23: 2 | AT23: =IF(AS23>AT$6,"",EDATE(AT$22,AS22)) -> 2022-11-01 | AU23: =IF(AS23>AT$6,"",AT23-AT22) -> 31 | AV23: =IFERROR(AU23+AV22,"") -> 61 | AW23: =IF(AS23>AT$6,"",BD22) -> 89844.52988 | AX23: 121.1538412 | AY23: =IF(AS23>AT$6,"",((1+AT$11)^(AU23/360)-1)*AW23) -> 1115.009383 | AZ23: 0 | BA23: 25.2 | BB23: 0 | BC23: 1261.363224 | BD23: 89723.37604 | BE23: =IFERROR(IF(AND(MONTH(AT23)=7,AT$9=2),2/(1+AT$13)^(AV23/360),IF(AND(MONTH(AT23)=12,AT$10=2),2/(1+AT$13)^(AV23/360),1/(1+AT$13)^(AV23/360))),"") -> 0.9760219198 | BF23: =IFERROR(1/(1+AT$13)^(AV23/360),"") -> 0.9760219198 | BJ23: 2 | BK23: =IF(BJ23>BK$6,"",EDATE(BK$22,BJ22)) -> 2022-11-01 | BL23: =IF(BJ23>BK$6,"",BK23-BK22) -> 31 | BM23: =IFERROR(BL23+BM22,"") -> 61 | BN23: =IF(BJ23>BK$6,"",BU22) -> 90024.74462 | BO23: -61.29744142 | BP23: =IF(BJ23>BK$6,"",((1+BK$11)^(BL23/360)-1)*BN23) -> 1117.245926 | BQ23: 0 | BR23: 25.2 | BS23: 0 | BT23: 1081.148484 | BU23: 90086.04206 | BV23: =IFERROR(IF(AND(MONTH(BK23)=7,BK$9=2),2/(1+BK$13)^(BM23/360),IF(AND(MONTH(BK23)=12,BK$10=2),2/(1+BK$13)^(BM23/360),1/(1+BK$13)^(BM23/360))),"") -> 0.9760219198 | BW23: =IFERROR(1/(1+BK$13)^(BM23/360),"") -> 0.9760219198 | CA23: 2 | CB23: =IF(CA23>CB$6,"",EDATE(CB$22,CA22)) -> 2022-11-01 | CC23: =IF(CA23>CB$6,"",CB23-CB22) -> 31 | CD23: =IFERROR(CC23+CD22,"") -> 61 | CE23: =IF(CA23>CB$6,"",CL22) -> 89920.88379 | CF23: 43.85234394 | CG23: =IF(CA23>CB$6,"",((1+CB$11)^(CC23/360)-1)*CE23) -> 1115.956968 | CH23: 0 | CI23: 25.2 | CJ23: 0 | CK23: 1185.009312 | CL23: 89877.03145 | CM23: =IFERROR(IF(AND(MONTH(CB23)=7,CB$9=2),2/(1+CB$13)^(CD23/360),IF(AND(MONTH(CB23)=12,CB$10=2),2/(1+CB$13)^(CD23/360),1/(1+CB$13)^(CD23/360))),"") -> 0.9760219198 | CN23: =IFERROR(1/(1+CB$13)^(CD23/360),"") -> 0.9760219198 | CR23: 2 | CS23: =IF(CR23>CS$6,"",EDATE(CS$22,CR22)) -> 2022-11-01 | CT23: =IF(CR23>CS$6,"",CS23-CS22) -> 31 | CU23: =IFERROR(CT23+CU22,"") -> 61 | CV23: =IF(CR23>CS$6,"",DC22) -> 90090.1896 | CW23: -127.5546192 | CX23: =IF(CR23>CS$6,"",((1+CS$11)^(CT23/360)-1)*CV23) -> 1118.058126 | CY23: 0 | CZ23: 25.2 | DA23: 0 | DB23: 1015.703507 | DC23: 90217.74422 | DD23: =IFERROR(IF(AND(MONTH(CS23)=7,CS$9=2),2/(1+CS$13)^(CU23/360),IF(AND(MONTH(CS23)=12,CS$10=2),2/(1+CS$13)^(CU23/360),1/(1+CS$13)^(CU23/360))),"") -> 0.9760219198 | DE23: =IFERROR(1/(1+CS$13)^(CU23/360),"") -> 0.9760219198
B24: 3 | C24: =IF(B24>C$6,"",EDATE(C$22,B23)) -> 2025-08-16 | D24: 6 | E24: 2025-08-16 | F24: =IF(B24>C$6,"",E24-E23) -> 31 | G24: 96 | H24: 87343.50584 | I24: =IF(B24>C$6,"",N24-M24-L24-K24-J24) -> 1408.270276 | J24: =IF(B24>C$6,"",((1+C$11)^(F24/360)-1)*H24) -> 1083.970596 | K24: 0 | L24: 0 | M24: 0 | N24: 2492.240871 | O24: 85935.23557 | P24: 0.9625244812 | Q24: 0.9625244812 | S24: =IFERROR((I24+J24+K24+L24+M24)*$J$12+('Simulador para calculos'!I24+'Simulador para calculos'!J24+'Simulador para calculos'!K24+'Simulador para calculos'!L24+'Simulador para calculos'!M24)*NOT($J$12),"") -> 2492.240871 | T24: 96 | U24: =IFERROR((1+'Simulación Cliente'!$E$21)^(T24/360),"") -> 1.038934577 | V24: 2398.84 | AB24: 3 | AC24: 2022-12-01 | AD24: =IF(AB24>AC$6,"",AC24-AC23) -> 30 | AE24: 91 | AF24: 87928.19832 | AG24: =IF(AB24>AC$6,"",AL24-AK24-AJ24-AI24-AH24) -> 3225.817874 | AH24: =IF(AB24>AC$6,"",((1+AC$11)^(AD24/360)-1)*AF24) -> 1055.815529 | AI24: 0 | AJ24: 25.2 | AK24: 0 | AL24: 4306.833402 | AM24: 84702.38044 | AN24: 1.928882396 | AO24: 0.9644411981 | AS24: 3 | AT24: 2022-12-01 | AU24: =IF(AS24>AT$6,"",AT24-AT23) -> 30 | AV24: 91 | AW24: 89723.37604 | AX24: =IF(AS24>AT$6,"",BC24-BB24-BA24-AZ24-AY24) -> 158.7917382 | AY24: =IF(AS24>AT$6,"",((1+AT$11)^(AU24/360)-1)*AW24) -> 1077.371486 | AZ24: 0 | BA24: 25.2 | BB24: 0 | BC24: 1261.363224 | BD24: 89564.5843 | BE24: 0.9644411981 | BF24: 0.9644411981 | BJ24: 3 | BK24: 2022-12-01 | BL24: =IF(BJ24>BK$6,"",BK24-BK23) -> 30 | BM24: 91 | BN24: 90086.04206 | BO24: =IF(BJ24>BK$6,"",BT24-BS24-BR24-BQ24-BP24) -> 1055.370697 | BP24: =IF(BJ24>BK$6,"",((1+BK$11)^(BL24/360)-1)*BN24) -> 1081.726271 | BQ24: 0 | BR24: 25.2 | BS24: 0 | BT24: 2162.296969 | BU24: 89030.67136 | BV24: 1.928882396 | BW24: 0.9644411981 | CA24: 3 | CB24: 2022-12-01 | CC24: =IF(CA24>CB$6,"",CB24-CB23) -> 30 | CD24: 91 | CE24: 89877.03145 | CF24: =IF(CA24>CB$6,"",CK24-CJ24-CI24-CH24-CG24) -> 80.59277769 | CG24: =IF(CA24>CB$6,"",((1+CB$11)^(CC24/360)-1)*CE24) -> 1079.216534 | CH24: 0 | CI24: 25.2 | CJ24: 0 | CK24: 1185.009312 | CL24: 89796.43867 | CM24: 0.9644411981 | CN24: 0.9644411981 | CR24: 3 | CS24: 2022-12-01 | CT24: =IF(CR24>CS$6,"",CS24-CS23) -> 30 | CU24: 91 | CV24: 90217.74422 | CW24: =IF(CR24>CS$6,"",DB24-DA24-CZ24-CY24-CX24) -> 922.8993027 | CX24: =IF(CR24>CS$6,"",((1+CS$11)^(CT24/360)-1)*CV24) -> 1083.307711 | CY24: 0 | CZ24: 25.2 | DA24: 0 | DB24: 2031.407014 | DC24: 89294.84491 | DD24: 1.928882396 | DE24: 0.9644411981
B25: 4 | C25: 2025-09-16 | D25: 2 | E25: 2025-09-16 | F25: 31 | G25: 127 | H25: 85935.23557 | I25: 1425.747517 | J25: 1066.493354 | K25: 0 | L25: 0 | M25: 0 | N25: 2492.240871 | O25: 84509.48805 | P25: 0.9507255667 | Q25: 0.9507255667 | S25: =IFERROR((I25+J25+K25+L25+M25)*$J$12+('Simulador para calculos'!I25+'Simulador para calculos'!J25+'Simulador para calculos'!K25+'Simulador para calculos'!L25+'Simulador para calculos'!M25)*NOT($J$12),"") -> 2492.240871 | T25: 127 | U25: =IFERROR((1+'Simulación Cliente'!$E$21)^(T25/360),"") -> 1.051828192 | V25: 2369.44 | AB25: 4 | AC25: 2023-01-01 | AD25: =IF(AB25>AC$6,"",AC25-AC24) -> 31 | AE25: 122 | AF25: 84702.38044 | AG25: =IF(AB25>AC$6,"",AL25-AK25-AJ25-AI25-AH25) -> 1077.023611 | AH25: 1051.19309 | AI25: 0 | AJ25: 25.2 | AK25: 0 | AL25: 2153.416701 | AM25: 83625.35683 | AN25: 0.9526187879 | AO25: 0.9526187879 | AS25: 4 | AT25: 2023-01-01 | AU25: =IF(AS25>AT$6,"",AT25-AT24) -> 31 | AV25: 122 | AW25: 89564.5843 | AX25: =IF(AS25>AT$6,"",BC25-BB25-BA25-AZ25-AY25) -> 124.6280867 | AY25: 1111.535138 | AZ25: 0 | BA25: 25.2 | BB25: 0 | BC25: 1261.363224 | BD25: 89439.95621 | BE25: 0.9526187879 | BF25: 0.9526187879 | BJ25: 4 | BK25: 2023-01-01 | BL25: =IF(BJ25>BK$6,"",BK25-BK24) -> 31 | BM25: 122 | BN25: 89030.67136 | BO25: =IF(BJ25>BK$6,"",BT25-BS25-BR25-BQ25-BP25) -> -48.96056338 | BP25: 1104.909048 | BQ25: 0 | BR25: 25.2 | BS25: 0 | BT25: 1081.148484 | BU25: 89079.63193 | BV25: 0.9526187879 | BW25: 0.9526187879 | CA25: 4 | CB25: 2023-01-01 | CC25: =IF(CA25>CB$6,"",CB25-CB24) -> 31 | CD25: 122 | CE25: 89796.43867 | CF25: =IF(CA25>CB$6,"",CK25-CJ25-CI25-CH25-CG25) -> 45.3967616 | CG25: 1114.41255 | CH25: 0 | CI25: 25.2 | CJ25: 0 | CK25: 1185.009312 | CL25: 89751.04191 | CM25: 0.9526187879 | CN25: 0.9526187879 | CR25: 4 | CS25: 2023-01-01 | CT25: =IF(CR25>CS$6,"",CS25-CS24) -> 31 | CU25: 122 | CV25: 89294.84491 | CW25: =IF(CR25>CS$6,"",DB25-DA25-CZ25-CY25-CX25) -> -117.6840485 | CX25: 1108.187556 | CY25: 0 | CZ25: 25.2 | DA25: 0 | DB25: 1015.703507 | DC25: 89412.52896 | DD25: 0.9526187879 | DE25: 0.9526187879
B26: 5 | C26: 2025-10-16 | D26: 4 | E26: 2025-10-16 | F26: 30 | G26: 157 | H26: 84509.48805 | I26: 1477.476194 | J26: 1014.764677 | K26: 0 | L26: 0 | M26: 0 | N26: 2492.240871 | O26: 83032.01186 | P26: 0.9394449919 | Q26: 0.9394449919 | S26: =IFERROR((I26+J26+K26+L26+M26)*$J$12+('Simulador para calculos'!I26+'Simulador para calculos'!J26+'Simulador para calculos'!K26+'Simulador para calculos'!L26+'Simulador para calculos'!M26)*NOT($J$12),"") -> 2492.240871 | T26: 157 | U26: =IFERROR((1+'Simulación Cliente'!$E$21)^(T26/360),"") -> 1.064458219 | V26: 2341.32 | AB26: 5 | AC26: 2023-02-01 | AD26: 31 | AE26: 153 | AF26: 83625.35683 | AG26: 1090.389939 | AH26: 1037.826762 | AI26: 0 | AJ26: 25.2 | AK26: 0 | AL26: 2153.416701 | AM26: 82534.96689 | AN26: 0.9409413003 | AO26: 0.9409413003 | AS26: 5 | AT26: 2023-02-01 | AU26: 31 | AV26: 153 | AW26: 89439.95621 | AX26: 126.174775 | AY26: 1109.988449 | AZ26: 0 | BA26: 25.2 | BB26: 0 | BC26: 1261.363224 | BD26: 89313.78144 | BE26: 0.9409413003 | BF26: 0.9409413003 | BJ26: 5 | BK26: 2023-02-01 | BL26: 31 | BM26: 153 | BN26: 89079.63193 | BO26: -49.5681851 | BP26: 1105.516669 | BQ26: 0 | BR26: 25.2 | BS26: 0 | BT26: 1081.148484 | BU26: 89129.20011 | BV26: 0.9409413003 | BW26: 0.9409413003 | CA26: 5 | CB26: 2023-02-01 | CC26: 31 | CD26: 153 | CE26: 89751.04191 | CF26: 45.960155 | CG26: 1113.849157 | CH26: 0 | CI26: 25.2 | CJ26: 0 | CK26: 1185.009312 | CL26: 89705.08175 | CM26: 0.9409413003 | CN26: 0.9409413003 | CR26: 5 | CS26: 2023-02-01 | CT26: 31 | CU26: 153 | CV26: 89412.52896 | CW26: -119.1445583 | CX26: 1109.648065 | CY26: 0 | CZ26: 25.2 | DA26: 0 | DB26: 1015.703507 | DC26: 89531.67352 | DD26: 0.9409413003 | DE26: 0.9409413003
B27: 6 | C27: 2025-11-16 | D27: 7 | E27: 2025-11-17 | F27: 32 | G27: 189 | H27: 83032.01186 | I27: 1428.324959 | J27: 1063.915912 | K27: 0 | L27: 0 | M27: 0 | N27: 2492.240871 | O27: 81603.6869 | P27: 0.9275598686 | Q27: 0.9275598686 | S27: =IFERROR((I27+J27+K27+L27+M27)*$J$12+('Simulador para calculos'!I27+'Simulador para calculos'!J27+'Simulador para calculos'!K27+'Simulador para calculos'!L27+'Simulador para calculos'!M27)*NOT($J$12),"") -> 2492.240871 | T27: 189 | U27: =IFERROR((1+'Simulación Cliente'!$E$21)^(T27/360),"") -> 1.078097452 | V27: 2311.7 | AB27: 6 | AC27: 2023-03-01 | AD27: 28 | AE27: 181 | AF27: 82534.96689 | AG27: 1203.600492 | AH27: 924.616209 | AI27: 0 | AJ27: 25.2 | AK27: 0 | AL27: 2153.416701 | AM27: 81331.3664 | AN27: 0.9305169782 | AO27: 0.9305169782 | AS27: 6 | AT27: 2023-03-01 | AU27: 28 | AV27: 181 | AW27: 89313.78144 | AX27: 235.6058471 | AY27: 1000.557377 | AZ27: 0 | BA27: 25.2 | BB27: 0 | BC27: 1261.363224 | BD27: 89078.17559 | BE27: 0.9305169782 | BF27: 0.9305169782 | BJ27: 6 | BK27: 2023-03-01 | BL27: 28 | BM27: 181 | BN27: 89129.20011 | BO27: 57.4589202 | BP27: 998.4895642 | BQ27: 0 | BR27: 25.2 | BS27: 0 | BT27: 1081.148484 | BU27: 89071.74119 | BV27: 0.9305169782 | BW27: 0.9305169782 | CA27: 6 | CB27: 2023-03-01 | CC27: 28 | CD27: 181 | CE27: 89705.08175 | CF27: 154.8683065 | CG27: 1004.941006 | CH27: 0 | CI27: 25.2 | CJ27: 0 | CK27: 1185.009312 | CL27: 89550.21345 | CM27: 0.9305169782 | CN27: 0.9305169782 | CR27: 6 | CS27: 2023-03-01 | CT27: 28 | CU27: 181 | CV27: 89531.67352 | CW27: -12.49485444 | CX27: 1002.998361 | CY27: 0 | CZ27: 25.2 | DA27: 0 | DB27: 1015.703507 | DC27: 89544.16837 | DD27: 0.9305169782 | DE27: 0.9305169782
B28: 7 | C28: 2025-12-16 | D28: 2 | E28: 2025-12-16 | F28: 29 | G28: 218 | H28: 81603.6869 | I28: 1545.219393 | J28: 947.0214783 | K28: 0 | L28: 0 | M28: 0 | N28: 2492.240871 | O28: 80058.4675 | P28: 0.9169189046 | Q28: 0.9169189046 | S28: =IFERROR((I28+J28+K28+L28+M28)*$J$12+('Simulador para calculos'!I28+'Simulador para calculos'!J28+'Simulador para calculos'!K28+'Simulador para calculos'!L28+'Simulador para calculos'!M28)*NOT($J$12),"") -> 2492.240871 | T28: 218 | U28: =IFERROR((1+'Simulación Cliente'!$E$21)^(T28/360),"") -> 1.090608903 | V28: 2285.18 | AB28: 7 | AC28: 2023-04-01 | AD28: 31 | AE28: 212 | AF28: 81331.3664 | AG28: 1118.85935 | AH28: 1009.357351 | AI28: 0 | AJ28: 25.2 | AK28: 0 | AL28: 2153.416701 | AM28: 80212.50705 | AN28: 0.9191104213 | AO28: 0.9191104213 | AS28: 7 | AT28: 2023-04-01 | AU28: 31 | AV28: 212 | AW28: 89078.17559 | AX28: 130.6646286 | AY28: 1105.498596 | AZ28: 0 | BA28: 25.2 | BB28: 0 | BC28: 1261.363224 | BD28: 88947.51096 | BE28: 0.9191104213 | BF28: 0.9191104213 | BJ28: 7 | BK28: 2023-04-01 | BL28: 31 | BM28: 212 | BN28: 89071.74119 | BO28: -49.47025767 | BP28: 1105.418742 | BQ28: 0 | BR28: 25.2 | BS28: 0 | BT28: 1081.148484 | BU28: 89121.21145 | BV28: 0.9191104213 | BW28: 0.9191104213 | CA28: 7 | CB28: 2023-04-01 | CC28: 31 | CD28: 212 | CE28: 89550.21345 | CF28: 48.45252286 | CG28: 1111.356789 | CH28: 0 | CI28: 25.2 | CJ28: 0 | CK28: 1185.009312 | CL28: 89501.76092 | CM28: 0.9191104213 | CN28: 0.9191104213 | CR28: 7 | CS28: 2023-04-01 | CT28: 31 | CU28: 212 | CV28: 89544.16837 | CW28: -120.7782602 | CX28: 1111.281767 | CY28: 0 | CZ28: 25.2 | DA28: 0 | DB28: 1015.703507 | DC28: 89664.94663 | DD28: 0.9191104213 | DE28: 0.9191104213
B29: 8 | C29: 2026-01-16 | D29: 5 | E29: 2026-01-16 | F29: 31 | G29: 249 | H29: 80058.4675 | I29: 1498.680745 | J29: 993.5601264 | K29: 0 | L29: 0 | M29: 0 | N29: 2492.240871 | O29: 78559.78676 | P29: 0.9056790369 | Q29: 0.9056790369 | S29: =IFERROR((I29+J29+K29+L29+M29)*$J$12+('Simulador para calculos'!I29+'Simulador para calculos'!J29+'Simulador para calculos'!K29+'Simulador para calculos'!L29+'Simulador para calculos'!M29)*NOT($J$12),"") -> 2492.240871 | T29: 249 | U29: =IFERROR((1+'Simulación Cliente'!$E$21)^(T29/360),"") -> 1.104143817 | V29: 2257.17 | AB29: 8 | AC29: 2023-05-01 | AD29: 30 | AE29: 242 | AF29: 80212.50705 | AG29: 1165.048887 | AH29: 963.1678136 | AI29: 0 | AJ29: 25.2 | AK29: 0 | AL29: 2153.416701 | AM29: 79047.45816 | AN29: 0.9082049675 | AO29: 0.9082049675 | AS29: 8 | AT29: 2023-05-01 | AU29: 30 | AV29: 242 | AW29: 88947.51096 | AX29: 168.1080942 | AY29: 1068.05513 | AZ29: 0 | BA29: 25.2 | BB29: 0 | BC29: 1261.363224 | BD29: 88779.40287 | BE29: 0.9082049675 | BF29: 0.9082049675 | BJ29: 8 | BK29: 2023-05-01 | BL29: 30 | BM29: 242 | BN29: 89121.21145 | BO29: -14.19238932 | BP29: 1070.140874 | BQ29: 0 | BR29: 25.2 | BS29: 0 | BT29: 1081.148484 | BU29: 89135.40384 | BV29: 0.9082049675 | BW29: 0.9082049675 | CA29: 8 | CB29: 2023-05-01 | CC29: 30 | CD29: 242 | CE29: 89501.76092 | CF29: 85.098914 | CG29: 1074.710398 | CH29: 0 | CI29: 25.2 | CJ29: 0 | CK29: 1185.009312 | CL29: 89416.66201 | CM29: 0.9082049675 | CN29: 0.9082049675 | CR29: 8 | CS29: 2023-05-01 | CT29: 30 | CU29: 242 | CV29: 89664.94663 | CW29: -86.16637626 | CX29: 1076.669883 | CY29: 0 | CZ29: 25.2 | DA29: 0 | DB29: 1015.703507 | DC29: 89751.11301 | DD29: 0.9082049675 | DE29: 0.9082049675
B30: 9 | C30: 2026-02-16 | D30: 1 | E30: 2026-02-16 | F30: 31 | G30: 280 | H30: 78559.78676 | I30: 1517.28002 | J30: 974.9608517 | K30: 0 | L30: 0 | M30: 0 | N30: 2492.240871 | O30: 77042.50674 | P30: 0.894576951 | Q30: 0.894576951 | S30: =IFERROR((I30+J30+K30+L30+M30)*$J$12+('Simulador para calculos'!I30+'Simulador para calculos'!J30+'Simulador para calculos'!K30+'Simulador para calculos'!L30+'Simulador para calculos'!M30)*NOT($J$12),"") -> 2492.240871 | T30: 280 | U30: =IFERROR((1+'Simulación Cliente'!$E$21)^(T30/360),"") -> 1.117846706 | V30: 2229.5 | AB30: 9 | AC30: 2023-06-01 | AD30: 31 | AE30: 273 | AF30: 79047.45816 | AG30: 1147.203637 | AH30: 981.0130643 | AI30: 0 | AJ30: 25.2 | AK30: 0 | AL30: 2153.416701 | AM30: 77900.25453 | AN30: 0.8970719179 | AO30: 0.8970719179 | AS30: 9 | AT30: 2023-06-01 | AU30: 31 | AV30: 273 | AW30: 88779.40287 | AX30: 134.372527 | AY30: 1101.790697 | AZ30: 0 | BA30: 25.2 | BB30: 0 | BC30: 1261.363224 | BD30: 88645.03034 | BE30: 0.8970719179 | BF30: 0.8970719179 | BJ30: 9 | BK30: 2023-06-01 | BL30: 31 | BM30: 273 | BN30: 89135.40384 | BO30: -50.26033859 | BP30: 1106.208823 | BQ30: 0 | BR30: 25.2 | BS30: 0 | BT30: 1081.148484 | BU30: 89185.66418 | BV30: 0.8970719179 | BW30: 0.8970719179 | CA30: 9 | CB30: 2023-06-01 | CC30: 31 | CD30: 273 | CE30: 89416.66201 | CF30: 50.10995382 | CG30: 1109.699358 | CH30: 0 | CI30: 25.2 | CJ30: 0 | CK30: 1185.009312 | CL30: 89366.55206 | CM30: 0.8970719179 | CN30: 0.8970719179 | CR30: 9 | CS30: 2023-06-01 | CT30: 31 | CU30: 273 | CV30: 89751.11301 | CW30: -123.3465324 | CX30: 1113.850039 | CY30: 0 | CZ30: 25.2 | DA30: 0 | DB30: 1015.703507 | DC30: 89874.45954 | DD30: 0.8970719179 | DE30: 0.8970719179
B31: 10 | C31: 2026-03-16 | D31: 1 | E31: 2026-03-16 | F31: 28 | G31: 308 | H31: 77042.50674 | I31: =IF(B31>C$6,"",N31-M31-L31-K31-J31) -> 1629.155161 | J31: 863.0857102 | K31: 0 | L31: 0 | M31: 0 | N31: 2492.240871 | O31: 75413.35158 | P31: 0.8846662814 | Q31: 0.8846662814 | S31: =IFERROR((I31+J31+K31+L31+M31)*$J$12+('Simulador para calculos'!I31+'Simulador para calculos'!J31+'Simulador para calculos'!K31+'Simulador para calculos'!L31+'Simulador para calculos'!M31)*NOT($J$12),"") -> 2492.240871 | T31: 308 | U31: =IFERROR((1+'Simulación Cliente'!$E$21)^(T31/360),"") -> 1.130369619 | V31: 2204.8 | AB31: 10 | AC31: 2023-07-01 | AD31: 30 | AE31: 303 | AF31: 77900.25453 | AG31: 3346.230426 | AH31: 935.4029763 | AI31: 0 | AJ31: 25.2 | AK31: 0 | AL31: 4306.833402 | AM31: 74554.0241 | AN31: 1.772855912 | AO31: 0.8864279559 | AS31: 10 | AT31: 2023-07-01 | AU31: 30 | AV31: 303 | AW31: 88645.03034 | AX31: 171.7401911 | AY31: 1064.423033 | AZ31: 0 | BA31: 25.2 | BB31: 0 | BC31: 1261.363224 | BD31: 88473.29015 | BE31: 0.8864279559 | BF31: 0.8864279559 | BJ31: 10 | BK31: 2023-07-01 | BL31: 30 | BM31: 303 | BN31: 89185.66418 | BO31: 1066.182166 | BP31: 1070.914803 | BQ31: 0 | BR31: 25.2 | BS31: 0 | BT31: 2162.296969 | BU31: 88119.48201 | BV31: 1.772855912 | BW31: 0.8864279559 | CA31: 10 | CB31: 2023-07-01 | CC31: 30 | CD31: 303 | CE31: 89366.55206 | CF31: 86.72246167 | CG31: 1073.08685 | CH31: 0 | CI31: 25.2 | CJ31: 0 | CK31: 1185.009312 | CL31: 89279.82959 | CM31: 0.8864279559 | CN31: 0.8864279559 | CR31: 10 | CS31: 2023-07-01 | CT31: 30 | CU31: 303 | CV31: 89874.45954 | CW31: 927.0213624 | CX31: 1079.185652 | CY31: 0 | CZ31: 25.2 | DA31: 0 | DB31: 2031.407014 | DC31: 88947.43818 | DD31: 1.772855912 | DE31: 0.8864279559
B32: 11 | C32: 2026-04-16 | D32: 4 | E32: 2026-04-16 | F32: 31 | G32: 339 | H32: 75413.35158 | I32: 1556.328638 | J32: 935.9122335 | K32: 0 | L32: 0 | M32: 0 | N32: 2492.240871 | O32: 73857.02294 | P32: 0.8738217761 | Q32: 0.8738217761 | S32: =IFERROR((I32+J32+K32+L32+M32)*$J$12+('Simulador para calculos'!I32+'Simulador para calculos'!J32+'Simulador para calculos'!K32+'Simulador para calculos'!L32+'Simulador para calculos'!M32)*NOT($J$12),"") -> 2492.240871 | T32: 339 | U32: =IFERROR((1+'Simulación Cliente'!$E$21)^(T32/360),"") -> 1.144397981 | V32: 2177.77 | AB32: 11 | AC32: 2023-08-01 | AD32: 31 | AE32: 334 | AF32: 74554.0241 | AG32: 1202.969092 | AH32: 925.2476087 | AI32: 0 | AJ32: 25.2 | AK32: 0 | AL32: 2153.416701 | AM32: 73351.05501 | AN32: 0.8755618555 | AO32: 0.8755618555 | AS32: 11 | AT32: 2023-08-01 | AU32: 31 | AV32: 334 | AW32: 88473.29015 | AX32: 138.1715179 | AY32: 1097.991706 | AZ32: 0 | BA32: 25.2 | BB32: 0 | BC32: 1261.363224 | BD32: 88335.11863 | BE32: 0.8755618555 | BF32: 0.8755618555 | BJ32: 11 | BK32: 2023-08-01 | BL32: 31 | BM32: 334 | BN32: 88119.48201 | BO32: -37.65231035 | BP32: 1093.600795 | BQ32: 0 | BR32: 25.2 | BS32: 0 | BT32: 1081.148484 | BU32: 88157.13432 | BV32: 0.8755618555 | BW32: 0.8755618555 | CA32: 11 | CB32: 2023-08-01 | CC32: 31 | CD32: 334 | CE32: 89279.82959 | CF32: 51.80810314 | CG32: 1108.001209 | CH32: 0 | CI32: 25.2 | CJ32: 0 | CK32: 1185.009312 | CL32: 89228.02149 | CM32: 0.8755618555 | CN32: 0.8755618555 | CR32: 11 | CS32: 2023-08-01 | CT32: 31 | CU32: 334 | CV32: 88947.43818 | CW32: -113.372581 | CX32: 1103.876088 | CY32: 0 | CZ32: 25.2 | DA32: 0 | DB32: 1015.703507 | DC32: 89060.81076 | DD32: 0.8755618555 | DE32: 0.8755618555
B33: 12 | C33: 2026-05-16 | D33: 6 | E33: 2026-05-16 | F33: 30 | G33: 369 | H33: 73857.02294 | I33: 1605.387812 | J33: 886.8530597 | K33: 0 | L33: 0 | M33: 0 | N33: =IF(B33>C$6,"",IF(B33=C$6,H33+J33+K33+L33+M33,IF(AND(C$9=2,MONTH(C33)=7),2*C$17,IF(AND(C$10=2,MONTH(C33)=12),2*C$17,C$17)))) -> 2492.240871 | O33: 72251.63513 | P33: 0.8634536823 | Q33: 0.8634536823 | S33: =IFERROR((I33+J33+K33+L33+M33)*$J$12+('Simulador para calculos'!I33+'Simulador para calculos'!J33+'Simulador para calculos'!K33+'Simulador para calculos'!L33+'Simulador para calculos'!M33)*NOT($J$12),"") -> 2492.240871 | T33: 369 | U33: =IFERROR((1+'Simulación Cliente'!$E$21)^(T33/360),"") -> 1.158139557 | V33: 2151.93 | AB33: 12 | AC33: 2023-09-01 | AD33: 31 | AE33: 365 | AF33: 73351.05501 | AG33: 1217.898458 | AH33: 910.3182432 | AI33: 0 | AJ33: 25.2 | AK33: 0 | AL33: 2153.416701 | AM33: 72133.15655 | AN33: 0.864828955 | AO33: 0.864828955 | AS33: 12 | AT33: 2023-09-01 | AU33: 31 | AV33: 365 | AW33: 88335.11863 | AX33: 139.8862861 | AY33: 1096.276938 | AZ33: 0 | BA33: 25.2 | BB33: 0 | BC33: 1261.363224 | BD33: 88195.23235 | BE33: 0.864828955 | BF33: 0.864828955 | BJ33: 12 | BK33: 2023-09-01 | BL33: 31 | BM33: 365 | BN33: 88157.13432 | BO33: -38.11959177 | BP33: 1094.068076 | BQ33: 0 | BR33: 25.2 | BS33: 0 | BT33: 1081.148484 | BU33: 88195.25391 | BV33: 0.864828955 | BW33: 0.864828955 | CA33: 12 | CB33: 2023-09-01 | CC33: 31 | CD33: 365 | CE33: 89228.02149 | CF33: 52.45106405 | CG33: 1107.358248 | CH33: 0 | CI33: 25.2 | CJ33: 0 | CK33: 1185.009312 | CL33: 89175.57043 | CM33: 0.864828955 | CN33: 0.864828955 | CR33: 12 | CS33: 2023-09-01 | CT33: 31 | CU33: 365 | CV33: 89060.81076 | CW33: -114.7795836 | CX33: 1105.283091 | CY33: 0 | CZ33: 25.2 | DA33: 0 | DB33: 1015.703507 | DC33: 89175.59035 | DD33: 0.864828955 | DE33: 0.864828955
B34: 13 | C34: 2026-06-16 | D34: 2 | E34: 2026-06-16 | F34: 31 | G34: 400 | H34: 72251.63513 | I34: 1595.566903 | J34: 896.6739681 | K34: 0 | L34: 0 | M34: 0 | N34: 2492.240871 | O34: 70656.06823 | P34: 0.8528692075 | Q34: 0.8528692075 | S34: =IFERROR((I34+J34+K34+L34+M34)*$J$12+('Simulador para calculos'!I34+'Simulador para calculos'!J34+'Simulador para calculos'!K34+'Simulador para calculos'!L34+'Simulador para calculos'!M34)*NOT($J$12),"") -> 2492.240871 | T34: 400 | U34: =IFERROR((1+'Simulación Cliente'!$E$21)^(T34/360),"") -> 1.172512556 | V34: 2125.56 | AB34: 13 | AC34: 2023-10-01 | AD34: 30 | AE34: 395 | AF34: 72133.15655 | AG34: 1262.063314 | AH34: 866.1533873 | AI34: 0 | AJ34: 25.2 | AK34: 0 | AL34: 2153.416701 | AM34: 70871.09324 | AN34: 0.854567563 | AO34: 0.854567563 | AS34: 13 | AT34: 2023-10-01 | AU34: 30 | AV34: 395 | AW34: 88195.23235 | AX34: 177.141231 | AY34: 1059.021993 | AZ34: 0 | BA34: 25.2 | BB34: 0 | BC34: 1261.363224 | BD34: 88018.09112 | BE34: 0.854567563 | BF34: 0.854567563 | BJ34: 13 | BK34: 2023-10-01 | BL34: 30 | BM34: 395 | BN34: 88195.25391 | BO34: -3.073767942 | BP34: 1059.022252 | BQ34: 0 | BR34: 25.2 | BS34: 0 | BT34: 1081.148484 | BU34: 88198.32768 | BV34: 0.854567563 | BW34: 0.854567563 | CA34: 13 | CB34: 2023-10-01 | CC34: 30 | CD34: 395 | CE34: 89175.57043 | CF34: 89.015712 | CG34: 1070.7936 | CH34: 0 | CI34: 25.2 | CJ34: 0 | CK34: 1185.009312 | CL34: 89086.55472 | CM34: 0.854567563 | CN34: 0.854567563 | CR34: 13 | CS34: 2023-10-01 | CT34: 30 | CU34: 395 | CV34: 89175.59035 | CW34: -80.29033218 | CX34: 1070.793839 | CY34: 0 | CZ34: 25.2 | DA34: 0 | DB34: 1015.703507 | DC34: 89255.88068 | DD34: 0.854567563 | DE34: 0.854567563
B35: 14 | C35: 2026-07-16 | D35: 4 | E35: 2026-07-16 | F35: 30 | G35: 430 | H35: 70656.06823 | I35: 1643.823919 | J35: 848.4169521 | K35: 0 | L35: 0 | M35: 0 | N35: 2492.240871 | O35: 69012.24431 | P35: 0.8427497207 | Q35: 0.8427497207 | S35: =IFERROR((I35+J35+K35+L35+M35)*$J$12+('Simulador para calculos'!I35+'Simulador para calculos'!J35+'Simulador para calculos'!K35+'Simulador para calculos'!L35+'Simulador para calculos'!M35)*NOT($J$12),"") -> 2492.240871 | T35: 430 | U35: =IFERROR((1+'Simulación Cliente'!$E$21)^(T35/360),"") -> 1.186591723 | V35: 2100.34 | AB35: 14 | AC35: 2023-11-01 | AD35: 31 | AE35: 426 | AF35: 70871.09324 | AG35: 1248.675854 | AH35: 879.5408475 | AI35: 0 | AJ35: 25.2 | AK35: 0 | AL35: 2153.416701 | AM35: 69622.41738 | AN35: 0.8440920169 | AO35: 0.8440920169 | AS35: 14 | AT35: 2023-11-01 | AU35: 31 | AV35: 426 | AW35: 88018.09112 | AX35: 143.8207344 | AY35: 1092.34249 | AZ35: 0 | BA35: 25.2 | BB35: 0 | BC35: 1261.363224 | BD35: 87874.27038 | BE35: 0.8440920169 | BF35: 0.8440920169 | BJ35: 14 | BK35: 2023-11-01 | BL35: 31 | BM35: 426 | BN35: 88198.32768 | BO35: -38.63081913 | BP35: 1094.579304 | BQ35: 0 | BR35: 25.2 | BS35: 0 | BT35: 1081.148484 | BU35: 88236.9585 | BV35: 0.8440920169 | BW35: 0.8440920169 | CA35: 14 | CB35: 2023-11-01 | CC35: 31 | CD35: 426 | CE35: 89086.55472 | CF35: 54.20672779 | CG35: 1105.602584 | CH35: 0 | CI35: 25.2 | CJ35: 0 | CK35: 1185.009312 | CL35: 89032.34799 | CM35: 0.8440920169 | CN35: 0.8440920169 | CR35: 14 | CS35: 2023-11-01 | CT35: 31 | CU35: 426 | CV35: 89255.88068 | CW35: -117.2004855 | CX35: 1107.703993 | CY35: 0 | CZ35: 25.2 | DA35: 0 | DB35: 1015.703507 | DC35: 89373.08116 | DD35: 0.8440920169 | DE35: 0.8440920169
B36: 15 | C36: 2026-08-16 | D36: 7 | E36: 2026-08-17 | F36: 32 | G36: 462 | H36: 69012.24431 | I36: 1607.964756 | J36: 884.2761151 | K36: 0 | L36: 0 | M36: 0 | N36: 2492.240871 | O36: 67404.27955 | P36: 0.8320879103 | Q36: 0.8320879103 | S36: =IFERROR((I36+J36+K36+L36+M36)*$J$12+('Simulador para calculos'!I36+'Simulador para calculos'!J36+'Simulador para calculos'!K36+'Simulador para calculos'!L36+'Simulador para calculos'!M36)*NOT($J$12),"") -> 2492.240871 | T36: 462 | U36: =IFERROR((1+'Simulación Cliente'!$E$21)^(T36/360),"") -> 1.201795891 | V36: 2073.76 | AB36: 15 | AC36: 2023-12-01 | AD36: 30 | AE36: 456 | AF36: 69622.41738 | AG36: 3445.62822 | AH36: 836.0051817 | AI36: 0 | AJ36: 25.2 | AK36: 0 | AL36: 4306.833402 | AM36: 66176.78916 | AN36: 1.668153347 | AO36: 0.8340766735 | AS36: 15 | AT36: 2023-12-01 | AU36: 30 | AV36: 456 | AW36: 87874.27038 | AX36: 180.9952463 | AY36: 1055.167978 | AZ36: 0 | BA36: 25.2 | BB36: 0 | BC36: 1261.363224 | BD36: 87693.27513 | BE36: 0.8340766735 | BF36: 0.8340766735 | BJ36: 15 | BK36: 2023-12-01 | BL36: 30 | BM36: 456 | BN36: 88236.9585 | BO36: 1077.57394 | BP36: 1059.523029 | BQ36: 0 | BR36: 25.2 | BS36: 0 | BT36: 2162.296969 | BU36: 87159.38456 | BV36: 1.668153347 | BW36: 0.8340766735 | CA36: 15 | CB36: 2023-12-01 | CC36: 30 | CD36: 456 | CE36: 89032.34799 | CF36: 90.73548426 | CG36: 1069.073828 | CH36: 0 | CI36: 25.2 | CJ36: 0 | CK36: 1185.009312 | CL36: 88941.6125 | CM36: 0.8340766735 | CN36: 0.8340766735 | CR36: 15 | CS36: 2023-12-01 | CT36: 30 | CU36: 456 | CV36: 89373.08116 | CW36: 933.0417642 | CX36: 1073.16525 | CY36: 0 | CZ36: 25.2 | DA36: 0 | DB36: 2031.407014 | DC36: 88440.0394 | DD36: 1.668153347 | DE36: 0.8340766735
B37: 16 | C37: 2026-09-16 | D37: 3 | E37: 2026-09-16 | F37: 30 | G37: 492 | H37: 67404.27955 | I37: 1682.870426 | J37: 809.3704455 | K37: 0 | L37: 0 | M37: 0 | N37: 2492.240871 | O37: 65721.40913 | P37: 0.8222149983 | Q37: 0.8222149983 | S37: =IFERROR((I37+J37+K37+L37+M37)*$J$12+('Simulador para calculos'!I37+'Simulador para calculos'!J37+'Simulador para calculos'!K37+'Simulador para calculos'!L37+'Simulador para calculos'!M37)*NOT($J$12),"") -> 2492.240871 | T37: 492 | U37: =IFERROR((1+'Simulación Cliente'!$E$21)^(T37/360),"") -> 1.216226684 | V37: 2049.16 | AB37: 16 | AC37: 2024-01-01 | AD37: 31 | AE37: 487 | AF37: 66176.78916 | AG37: 1306.934193 | AH37: 821.2825084 | AI37: 0 | AJ37: 25.2 | AK37: 0 | AL37: 2153.416701 | AM37: 64869.85497 | AN37: 0.8238523108 | AO37: 0.8238523108 | AS37: 16 | AT37: 2024-01-01 | AU37: 31 | AV37: 487 | AW37: 87693.27513 | AX37: 147.8518409 | AY37: 1088.311383 | AZ37: 0 | BA37: 25.2 | BB37: 0 | BC37: 1261.363224 | BD37: 87545.42329 | BE37: 0.8238523108 | BF37: 0.8238523108 | BJ37: 16 | BK37: 2024-01-01 | BL37: 31 | BM37: 487 | BN37: 87159.38456 | BO37: -25.7370867 | BP37: 1081.685571 | BQ37: 0 | BR37: 25.2 | BS37: 0 | BT37: 1081.148484 | BU37: 87185.12165 | BV37: 0.8238523108 | BW37: 0.8238523108 | CA37: 16 | CB37: 2024-01-01 | CC37: 31 | CD37: 487 | CE37: 88941.6125 | CF37: 56.00552318 | CG37: 1103.803789 | CH37: 0 | CI37: 25.2 | CJ37: 0 | CK37: 1185.009312 | CL37: 88885.60698 | CM37: 0.8238523108 | CN37: 0.8238523108 | CR37: 16 | CS37: 2024-01-01 | CT37: 31 | CU37: 487 | CV37: 88440.0394 | CW37: -107.0755432 | CX37: 1097.57905 | CY37: 0 | CZ37: 25.2 | DA37: 0 | DB37: 1015.703507 | DC37: 88547.11494 | DD37: 0.8238523108 | DE37: 0.8238523108
B38: 17 | C38: 2026-10-16 | D38: 5 | E38: 2026-10-16 | F38: 30 | G38: 522 | H38: 65721.40913 | I38: 1703.077831 | J38: 789.1630403 | K38: 0 | L38: 0 | M38: 0 | N38: 2492.240871 | O38: 64018.33129 | P38: 0.8124592306 | Q38: 0.8124592306 | S38: =IFERROR((I38+J38+K38+L38+M38)*$J$12+('Simulador para calculos'!I38+'Simulador para calculos'!J38+'Simulador para calculos'!K38+'Simulador para calculos'!L38+'Simulador para calculos'!M38)*NOT($J$12),"") -> 2492.240871 | T38: 522 | U38: =IFERROR((1+'Simulación Cliente'!$E$21)^(T38/360),"") -> 1.230830757 | V38: 2024.84 | AB38: 17 | AC38: 2024-02-01 | AD38: 31 | AE38: 518 | AF38: 64869.85497 | AG38: 1323.15381 | AH38: 805.0628911 | AI38: 0 | AJ38: 25.2 | AK38: 0 | AL38: 2153.416701 | AM38: 63546.70116 | AN38: 0.8137532814 | AO38: 0.8137532814 | AS38: 17 | AT38: 2024-02-01 | AU38: 31 | AV38: 518 | AW38: 87545.42329 | AX38: 149.686746 | AY38: 1086.476478 | AZ38: 0 | BA38: 25.2 | BB38: 0 | BC38: 1261.363224 | BD38: 87395.73655 | BE38: 0.8137532814 | BF38: 0.8137532814 | BJ38: 17 | BK38: 2024-02-01 | BL38: 31 | BM38: 518 | BN38: 87185.12165 | BO38: -26.05649506 | BP38: 1082.004979 | BQ38: 0 | BR38: 25.2 | BS38: 0 | BT38: 1081.148484 | BU38: 87211.17814 | BV38: 0.8137532814 | BW38: 0.8137532814 | CA38: 17 | CB38: 2024-02-01 | CC38: 31 | CD38: 518 | CE38: 88885.60698 | CF38: 56.70057589 | CG38: 1103.108736 | CH38: 0 | CI38: 25.2 | CJ38: 0 | CK38: 1185.009312 | CL38: 88828.9064 | CM38: 0.8137532814 | CN38: 0.8137532814 | CR38: 17 | CS38: 2024-02-01 | CT38: 31 | CU38: 518 | CV38: 88547.11494 | CW38: -108.4043969 | CX38: 1098.907904 | CY38: 0 | CZ38: 25.2 | DA38: 0 | DB38: 1015.703507 | DC38: 88655.51934 | DD38: 0.8137532814 | DE38: 0.8137532814
B39: 18 | C39: 2026-11-16 | D39: 1 | E39: 2026-11-16 | F39: 31 | G39: 553 | H39: 64018.33129 | I39: 1697.745756 | J39: 794.4951149 | K39: 0 | L39: 0 | M39: 0 | N39: =IF(B39>C$6,"",IF(B39=C$6,H39+J39+K39+L39+M39,IF(AND(C$9=2,MONTH(C39)=7),2*C$17,IF(AND(C$10=2,MONTH(C39)=12),2*C$17,C$17)))) -> 2492.240871 | O39: 62320.58554 | P39: 0.8024998611 | Q39: 0.8024998611 | S39: =IFERROR((I39+J39+K39+L39+M39)*$J$12+('Simulador para calculos'!I39+'Simulador para calculos'!J39+'Simulador para calculos'!K39+'Simulador para calculos'!L39+'Simulador para calculos'!M39)*NOT($J$12),"") -> 2492.240871 | T39: 553 | U39: =IFERROR((1+'Simulación Cliente'!$E$21)^(T39/360),"") -> 1.246105884 | V39: 2000.02 | AB39: 18 | AC39: 2024-03-01 | AD39: 29 | AE39: 547 | AF39: 63546.70116 | AG39: 1390.748908 | AH39: 737.4677929 | AI39: 0 | AJ39: 25.2 | AK39: 0 | AL39: 2153.416701 | AM39: 62155.95225 | AN39: 0.8044179062 | AO39: 0.8044179062 | AS39: 18 | AT39: 2024-03-01 | AU39: 29 | AV39: 547 | AW39: 87395.73655 | AX39: 221.924251 | AY39: 1014.238973 | AZ39: 0 | BA39: 25.2 | BB39: 0 | BC39: 1261.363224 | BD39: 87173.8123 | BE39: 0.8044179062 | BF39: 0.8044179062 | BJ39: 18 | BK39: 2024-03-01 | BL39: 29 | BM39: 547 | BN39: 87211.17814 | BO39: 43.85133554 | BP39: 1012.097149 | BQ39: 0 | BR39: 25.2 | BS39: 0 | BT39: 1081.148484 | BU39: 87167.32681 | BV39: 0.8044179062 | BW39: 0.8044179062 | CA39: 18 | CB39: 2024-03-01 | CC39: 29 | CD39: 547 | CE39: 88828.9064 | CF39: 128.9382148 | CG39: 1030.871097 | CH39: 0 | CI39: 25.2 | CJ39: 0 | CK39: 1185.009312 | CL39: 88699.96819 | CM39: 0.8044179062 | CN39: 0.8044179062 | CR39: 18 | CS39: 2024-03-01 | CT39: 29 | CU39: 547 | CV39: 88655.51934 | CW39: -38.35541062 | CX39: 1028.858918 | CY39: 0 | CZ39: 25.2 | DA39: 0 | DB39: 1015.703507 | DC39: 88693.87475 | DD39: 0.8044179062 | DE39: 0.8044179062
B40: 19 | C40: 2026-12-16 | D40: 3 | E40: 2026-12-16 | F40: 30 | G40: 583 | H40: 62320.58554 | I40: 1743.913904 | J40: 748.326967 | K40: 0 | L40: 0 | M40: 0 | N40: 2492.240871 | O40: =IF(B40>C$6,"",H40-I40) -> 60576.67163 | P40: 0.792978018 | Q40: 0.792978018 | S40: =IFERROR((I40+J40+K40+L40+M40)*$J$12+('Simulador para calculos'!I40+'Simulador para calculos'!J40+'Simulador para calculos'!K40+'Simulador para calculos'!L40+'Simulador para calculos'!M40)*NOT($J$12),"") -> 2492.240871 | T40: 583 | U40: =IFERROR((1+'Simulación Cliente'!$E$21)^(T40/360),"") -> 1.261068737 | V40: 1976.29 | AB40: 19 | AC40: 2024-04-01 | AD40: 31 | AE40: 578 | AF40: 62155.95225 | AG40: 1356.834514 | AH40: 771.3821873 | AI40: 0 | AJ40: 25.2 | AK40: 0 | AL40: 2153.416701 | AM40: 60799.11774 | AN40: 0.7945571097 | AO40: 0.7945571097 | AS40: 19 | AT40: 2024-04-01 | AU40: 31 | AV40: 578 | AW40: 87173.8123 | AX40: 154.2985988 | AY40: 1081.864626 | AZ40: 0 | BA40: 25.2 | BB40: 0 | BC40: 1261.363224 | BD40: 87019.5137 | BE40: 0.7945571097 | BF40: 0.7945571097 | BJ40: 19 | BK40: 2024-04-01 | BL40: 31 | BM40: 578 | BN40: 87167.32681 | BO40: -25.83565341 | BP40: 1081.784138 | BQ40: 0 | BR40: 25.2 | BS40: 0 | BT40: 1081.148484 | BU40: 87193.16246 | BV40: 0.7945571097 | BW40: 0.7945571097 | CA40: 19 | CB40: 2024-04-01 | CC40: 31 | CD40: 578 | CE40: 88699.96819 | CF40: 59.00443338 | CG40: 1100.804879 | CH40: 0 | CI40: 25.2 | CJ40: 0 | CK40: 1185.009312 | CL40: 88640.96376 | CM40: 0.7945571097 | CN40: 0.7945571097 | CR40: 19 | CS40: 2024-04-01 | CT40: 31 | CU40: 578 | CV40: 88693.87475 | CW40: -110.2257494 | CX40: 1100.729256 | CY40: 0 | CZ40: 25.2 | DA40: 0 | DB40: 1015.703507 | DC40: 88804.1005 | DD40: 0.7945571097 | DE40: 0.7945571097
B41: 20 | C41: 2027-01-16 | D41: 6 | E41: 2027-01-16 | F41: 31 | G41: 614 | H41: 60576.67163 | I41: 1740.458238 | J41: 751.7826334 | K41: 0 | L41: 0 | M41: 0 | N41: =IF(B41>C$6,"",IF(B41=C$6,H41+J41+K41+L41+M41,IF(AND(C$9=2,MONTH(C41)=7),2*C$17,IF(AND(C$10=2,MONTH(C41)=12),2*C$17,C$17)))) -> 2492.240871 | O41: =IF(B41>C$6,"",H41-I41) -> 58836.2134 | P41: 0.783257455 | Q41: 0.783257455 | S41: =IFERROR((I41+J41+K41+L41+M41)*$J$12+('Simulador para calculos'!I41+'Simulador para calculos'!J41+'Simulador para calculos'!K41+'Simulador para calculos'!L41+'Simulador para calculos'!M41)*NOT($J$12),"") -> 2492.240871 | T41: 614 | U41: =IFERROR((1+'Simulación Cliente'!$E$21)^(T41/360),"") -> 1.27671913 | V41: 1952.07 | AB41: 20 | AC41: 2024-05-01 | AD41: 30 | AE41: 608 | AF41: 60799.11774 | AG41: 1398.159065 | AH41: 730.0576363 | AI41: 0 | AJ41: 25.2 | AK41: 0 | AL41: 2153.416701 | AM41: 59400.95867 | AN41: 0.7851295092 | AO41: 0.7851295092 | AS41: 20 | AT41: 2024-05-01 | AU41: 30 | AV41: 608 | AW41: 87019.5137 | AX41: 191.2589092 | AY41: 1044.904315 | AZ41: 0 | BA41: 25.2 | BB41: 0 | BC41: 1261.363224 | BD41: 86828.25479 | BE41: 0.7851295092 | BF41: 0.7851295092 | BJ41: 20 | BK41: 2024-05-01 | BL41: 30 | BM41: 608 | BN41: 87193.16246 | BO41: 8.959046763 | BP41: 1046.989438 | BQ41: 0 | BR41: 25.2 | BS41: 0 | BT41: 1081.148484 | BU41: 87184.20341 | BV41: 0.7851295092 | BW41: 0.7851295092 | CA41: 20 | CB41: 2024-05-01 | CC41: 30 | CD41: 608 | CE41: 88640.96376 | CF41: 95.43510914 | CG41: 1064.374203 | CH41: 0 | CI41: 25.2 | CJ41: 0 | CK41: 1185.009312 | CL41: 88545.52865 | CM41: 0.7851295092 | CN41: 0.7851295092 | CR41: 20 | CS41: 2024-05-01 | CT41: 30 | CU41: 608 | CV41: 88804.1005 | CW41: -75.82959312 | CX41: 1066.3331 | CY41: 0 | CZ41: 25.2 | DA41: 0 | DB41: 1015.703507 | DC41: 88879.93009 | DD41: 0.7851295092 | DE41: 0.7851295092
B42: 21 | C42: 2027-02-16 | D42: 2 | E42: 2027-02-16 | F42: 31 | G42: 645 | H42: 58836.2134 | I42: 1762.058076 | J42: 730.1827957 | K42: 0 | L42: 0 | M42: 0 | N42: 2492.240871 | O42: 57074.15532 | P42: 0.7736560496 | Q42: 0.7736560496 | S42: =IFERROR((I42+J42+K42+L42+M42)*$J$12+('Simulador para calculos'!I42+'Simulador para calculos'!J42+'Simulador para calculos'!K42+'Simulador para calculos'!L42+'Simulador para calculos'!M42)*NOT($J$12),"") -> 2492.240871 | T42: 645 | U42: =IFERROR((1+'Simulación Cliente'!$E$21)^(T42/360),"") -> 1.29256375 | V42: 1928.14 | AB42: 21 | AC42: 2024-06-01 | AD42: 31 | AE42: 639 | AF42: 59400.95867 | AG42: 1391.025173 | AH42: 737.1915283 | AI42: 0 | AJ42: 25.2 | AK42: 0 | AL42: 2153.416701 | AM42: 58009.9335 | AN42: 0.7755051556 | AO42: 0.7755051556 | AS42: 21 | AT42: 2024-06-01 | AU42: 31 | AV42: 639 | AW42: 86828.25479 | AX42: 158.5871166 | AY42: 1077.576108 | AZ42: 0 | BA42: 25.2 | BB42: 0 | BC42: 1261.363224 | BD42: 86669.66767 | BE42: 0.7755051556 | BF42: 0.7755051556 | BJ42: 21 | BK42: 2024-06-01 | BL42: 31 | BM42: 639 | BN42: 87184.20341 | BO42: -26.04509938 | BP42: 1081.993584 | BQ42: 0 | BR42: 25.2 | BS42: 0 | BT42: 1081.148484 | BU42: 87210.24851 | BV42: 0.7755051556 | BW42: 0.7755051556 | CA42: 21 | CB42: 2024-06-01 | CC42: 31 | CD42: 639 | CE42: 88545.52865 | CF42: 60.92109475 | CG42: 1098.888217 | CH42: 0 | CI42: 25.2 | CJ42: 0 | CK42: 1185.009312 | CL42: 88484.60755 | CM42: 0.7755051556 | CN42: 0.7755051556 | CR42: 21 | CS42: 2024-06-01 | CT42: 31 | CU42: 639 | CV42: 88879.93009 | CW42: -112.5347765 | CX42: 1103.038284 | CY42: 0 | CZ42: 25.2 | DA42: 0 | DB42: 1015.703507 | DC42: 88992.46487 | DD42: 0.7755051556 | DE42: 0.7755051556
B43: 22 | C43: 2027-03-16 | D43: 2 | E43: 2027-03-16 | F43: 28 | G43: 673 | H43: 57074.15532 | I43: 1852.855031 | J43: 639.3858399 | K43: 0 | L43: 0 | M43: 0 | N43: 2492.240871 | O43: 55221.30029 | P43: 0.7650850156 | Q43: 0.7650850156 | S43: =IFERROR((I43+J43+K43+L43+M43)*$J$12+('Simulador para calculos'!I43+'Simulador para calculos'!J43+'Simulador para calculos'!K43+'Simulador para calculos'!L43+'Simulador para calculos'!M43)*NOT($J$12),"") -> 2492.240871 | T43: 673 | U43: =IFERROR((1+'Simulación Cliente'!$E$21)^(T43/360),"") -> 1.307043968 | V43: 1906.78 | AB43: 22 | AC43: 2024-07-01 | AD43: 30 | AE43: 669 | AF43: 58009.9335 | AG43: 3585.067457 | AH43: 696.5659455 | AI43: 0 | AJ43: 25.2 | AK43: 0 | AL43: 4306.833402 | AM43: 54424.86604 | AN43: 1.532607222 | AO43: 0.7663036108 | AS43: 22 | AT43: 2024-07-01 | AU43: 30 | AV43: 669 | AW43: 86669.66767 | AX43: 195.4597557 | AY43: 1040.703469 | AZ43: 0 | BA43: 25.2 | BB43: 0 | BC43: 1261.363224 | BD43: 86474.20792 | BE43: 0.7663036108 | BF43: 0.7663036108 | BJ43: 22 | BK43: 2024-07-01 | BL43: 30 | BM43: 669 | BN43: 87210.24851 | BO43: 1089.902367 | BP43: 1047.194602 | BQ43: 0 | BR43: 25.2 | BS43: 0 | BT43: 2162.296969 | BU43: 86120.34615 | BV43: 1.532607222 | BW43: 0.7663036108 | CA43: 22 | CB43: 2024-07-01 | CC43: 30 | CD43: 669 | CE43: 88484.60755 | CF43: 97.31258771 | CG43: 1062.496724 | CH43: 0 | CI43: 25.2 | CJ43: 0 | CK43: 1185.009312 | CL43: 88387.29496 | CM43: 0.7663036108 | CN43: 0.7663036108 | CR43: 22 | CS43: 2024-07-01 | CT43: 30 | CU43: 669 | CV43: 88992.46487 | CW43: 937.6120909 | CX43: 1068.594923 | CY43: 0 | CZ43: 25.2 | DA43: 0 | DB43: 2031.407014 | DC43: 88054.85278 | DD43: 1.532607222 | DE43: 0.7663036108
B44: 23 | C44: 2027-04-16 | D44: 5 | E44: 2027-04-16 | F44: 31 | G44: 704 | H44: 55221.30029 | I44: 1806.920707 | J44: 685.3201642 | K44: 0 | L44: 0 | M44: 0 | N44: 2492.240871 | O44: 53414.37958 | P44: 0.7557063735 | Q44: 0.7557063735 | S44: =IFERROR((I44+J44+K44+L44+M44)*$J$12+('Simulador para calculos'!I44+'Simulador para calculos'!J44+'Simulador para calculos'!K44+'Simulador para calculos'!L44+'Simulador para calculos'!M44)*NOT($J$12),"") -> 2492.240871 | T44: 704 | U44: =IFERROR((1+'Simulación Cliente'!$E$21)^(T44/360),"") -> 1.323264933 | V44: 1883.4 | AB44: 23 | AC44: 2024-08-01 | AD44: 31 | AE44: 700 | AF44: 54424.86604 | AG44: 1452.780629 | AH44: 675.4360716 | AI44: 0 | AJ44: 25.2 | AK44: 0 | AL44: 2153.416701 | AM44: 52972.08541 | AN44: 0.7569100307 | AO44: 0.7569100307 | AS44: 23 | AT44: 2024-08-01 | AU44: 31 | AV44: 700 | AW44: 86474.20792 | AX44: 162.980991 | AY44: 1073.182233 | AZ44: 0 | BA44: 25.2 | BB44: 0 | BC44: 1261.363224 | BD44: 86311.22693 | BE44: 0.7569100307 | BF44: 0.7569100307 | BJ44: 23 | BK44: 2024-08-01 | BL44: 31 | BM44: 700 | BN44: 86120.34615 | BO44: -12.84217164 | BP44: 1068.790656 | BQ44: 0 | BR44: 25.2 | BS44: 0 | BT44: 1081.148484 | BU44: 86133.18832 | BV44: 0.7569100307 | BW44: 0.7569100307 | CA44: 23 | CB44: 2024-08-01 | CC44: 31 | CD44: 700 | CE44: 88387.29496 | CF44: 62.88484302 | CG44: 1096.924469 | CH44: 0 | CI44: 25.2 | CJ44: 0 | CK44: 1185.009312 | CL44: 88324.41012 | CM44: 0.7569100307 | CN44: 0.7569100307 | CR44: 23 | CS44: 2024-08-01 | CT44: 31 | CU44: 700 | CV44: 88054.85278 | CW44: -102.295211 | CX44: 1092.798718 | CY44: 0 | CZ44: 25.2 | DA44: 0 | DB44: 1015.703507 | DC44: 88157.14799 | DD44: 0.7569100307 | DE44: 0.7569100307
B45: 24 | C45: 2027-05-16 | D45: 7 | E45: 2027-05-17 | F45: 31 | G45: 735 | H45: 53414.37958 | I45: 1829.345373 | J45: 662.8954986 | K45: 0 | L45: 0 | M45: 0 | N45: 2492.240871 | O45: 51585.03421 | P45: 0.7464426975 | Q45: 0.7464426975 | S45: =IFERROR((I45+J45+K45+L45+M45)*$J$12+('Simulador para calculos'!I45+'Simulador para calculos'!J45+'Simulador para calculos'!K45+'Simulador para calculos'!L45+'Simulador para calculos'!M45)*NOT($J$12),"") -> 2492.240871 | T45: 735 | U45: =IFERROR((1+'Simulación Cliente'!$E$21)^(T45/360),"") -> 1.339687206 | V45: 1860.32 | AB45: 24 | AC45: 2024-09-01 | AD45: 31 | AE45: 731 | AF45: 52972.08541 | AG45: 1470.810264 | AH45: 657.4064371 | AI45: 0 | AJ45: 25.2 | AK45: 0 | AL45: 2153.416701 | AM45: 51501.27515 | AN45: 0.7476316 | AO45: 0.7476316 | AS45: 24 | AT45: 2024-09-01 | AU45: 31 | AV45: 731 | AW45: 86311.22693 | AX45: 165.0036555 | AY45: 1071.159569 | AZ45: 0 | BA45: 25.2 | BB45: 0 | BC45: 1261.363224 | BD45: 86146.22327 | BE45: 0.7476316 | BF45: 0.7476316 | BJ45: 24 | BK45: 2024-09-01 | BL45: 31 | BM45: 731 | BN45: 86133.18832 | BO45: -13.00154853 | BP45: 1068.950033 | BQ45: 0 | BR45: 25.2 | BS45: 0 | BT45: 1081.148484 | BU45: 86146.18987 | BV45: 0.7476316 | BW45: 0.7476316 | CA45: 24 | CB45: 2024-09-01 | CC45: 31 | CD45: 731 | CE45: 88324.41012 | CF45: 63.66527106 | CG45: 1096.144041 | CH45: 0 | CI45: 25.2 | CJ45: 0 | CK45: 1185.009312 | CL45: 88260.74485 | CM45: 0.7476316 | CN45: 0.7476316 | CR45: 24 | CS45: 2024-09-01 | CT45: 31 | CU45: 731 | CV45: 88157.14799 | CW45: -103.5647387 | CX45: 1094.068246 | CY45: 0 | CZ45: 25.2 | DA45: 0 | DB45: 1015.703507 | DC45: 88260.71273 | DD45: 0.7476316 | DE45: 0.7476316
B46: 25 | C46: 2027-06-16 | D46: 3 | E46: 2027-06-16 | F46: 30 | G46: 765 | H46: 51585.03421 | I46: 1872.823196 | J46: 619.4176749 | K46: 0 | L46: 0 | M46: 0 | N46: 2492.240871 | O46: 49712.21101 | P46: 0.7375859854 | Q46: 0.7375859854 | S46: =IFERROR((I46+J46+K46+L46+M46)*$J$12+('Simulador para calculos'!I46+'Simulador para calculos'!J46+'Simulador para calculos'!K46+'Simulador para calculos'!L46+'Simulador para calculos'!M46)*NOT($J$12),"") -> 2492.240871 | T46: 765 | U46: =IFERROR((1+'Simulación Cliente'!$E$21)^(T46/360),"") -> 1.355773755 | V46: 1838.24 | AB46: 25 | AC46: 2024-10-01 | AD46: 30 | AE46: 761 | AF46: 51501.27515 | AG46: 1509.80478 | AH46: 618.4119211 | AI46: 0 | AJ46: 25.2 | AK46: 0 | AL46: 2153.416701 | AM46: 49991.47037 | AN46: 0.7387607813 | AO46: 0.7387607813 | AS46: 25 | AT46: 2024-10-01 | AU46: 30 | AV46: 761 | AW46: 86146.22327 | AX46: 201.7451196 | AY46: 1034.418105 | AZ46: 0 | BA46: 25.2 | BB46: 0 | BC46: 1261.363224 | BD46: 85944.47815 | BE46: 0.7387607813 | BF46: 0.7387607813 | BJ46: 25 | BK46: 2024-10-01 | BL46: 30 | BM46: 761 | BN46: 86146.18987 | BO46: 21.53078079 | BP46: 1034.417704 | BQ46: 0 | BR46: 25.2 | BS46: 0 | BT46: 1081.148484 | BU46: 86124.65909 | BV46: 0.7387607813 | BW46: 0.7387607813 | CA46: 25 | CB46: 2024-10-01 | CC46: 30 | CD46: 761 | CE46: 88260.74485 | CF46: 100.0006641 | CG46: 1059.808648 | CH46: 0 | CI46: 25.2 | CJ46: 0 | CK46: 1185.009312 | CL46: 88160.74419 | CM46: 0.7387607813 | CN46: 0.7387607813 | CR46: 25 | CS46: 2024-10-01 | CT46: 30 | CU46: 761 | CV46: 88260.71273 | CW46: -69.30475515 | CX46: 1059.808262 | CY46: 0 | CZ46: 25.2 | DA46: 0 | DB46: 1015.703507 | DC46: 88330.01748 | DD46: 0.7387607813 | DE46: 0.7387607813
B47: 26 | C47: 2027-07-16 | D47: 5 | E47: 2027-07-16 | F47: 30 | G47: 795 | H47: 49712.21101 | I47: 1895.311498 | J47: 596.9293736 | K47: 0 | L47: 0 | M47: 0 | N47: 2492.240871 | O47: 47816.89951 | P47: 0.7288343602 | Q47: 0.7288343602 | S47: =IFERROR((I47+J47+K47+L47+M47)*$J$12+('Simulador para calculos'!I47+'Simulador para calculos'!J47+'Simulador para calculos'!K47+'Simulador para calculos'!L47+'Simulador para calculos'!M47)*NOT($J$12),"") -> 2492.240871 | T47: 795 | U47: =IFERROR((1+'Simulación Cliente'!$E$21)^(T47/360),"") -> 1.372053466 | V47: 1816.43 | AB47: 26 | AC47: 2024-11-01 | AD47: 31 | AE47: 792 | AF47: 49991.47037 | AG47: 1507.800983 | AH47: 620.4157183 | AI47: 0 | AJ47: 25.2 | AK47: 0 | AL47: 2153.416701 | AM47: 48483.66939 | AN47: 0.7297048295 | AO47: 0.7297048295 | AS47: 26 | AT47: 2024-11-01 | AU47: 31 | AV47: 792 | AW47: 85944.47815 | AX47: 169.555166 | AY47: 1066.608058 | AZ47: 0 | BA47: 25.2 | BB47: 0 | BC47: 1261.363224 | BD47: 85774.92298 | BE47: 0.7297048295 | BF47: 0.7297048295 | BJ47: 26 | BK47: 2024-11-01 | BL47: 31 | BM47: 792 | BN47: 86124.65909 | BO47: -12.89569708 | BP47: 1068.844181 | BQ47: 0 | BR47: 25.2 | BS47: 0 | BT47: 1081.148484 | BU47: 86137.55478 | BV47: 0.7297048295 | BW47: 0.7297048295 | CA47: 26 | CB47: 2024-11-01 | CC47: 31 | CD47: 792 | CE47: 88160.74419 | CF47: 65.69643593 | CG47: 1094.112876 | CH47: 0 | CI47: 25.2 | CJ47: 0 | CK47: 1185.009312 | CL47: 88095.04775 | CM47: 0.7297048295 | CN47: 0.7297048295 | CR47: 26 | CS47: 2024-11-01 | CT47: 31 | CU47: 792 | CV47: 88330.01748 | CW47: -105.7101237 | CX47: 1096.213631 | CY47: 0 | CZ47: 25.2 | DA47: 0 | DB47: 1015.703507 | DC47: 88435.72761 | DD47: 0.7297048295 | DE47: 0.7297048295
B48: 27 | C48: 2027-08-16 | D48: 1 | E48: 2027-08-16 | F48: 31 | G48: 826 | H48: 47816.89951 | I48: 1898.812516 | J48: 593.4283557 | K48: 0 | L48: 0 | M48: 0 | N48: 2492.240871 | O48: 45918.087 | P48: 0.7199000895 | Q48: 0.7199000895 | S48: =IFERROR((I48+J48+K48+L48+M48)*$J$12+('Simulador para calculos'!I48+'Simulador para calculos'!J48+'Simulador para calculos'!K48+'Simulador para calculos'!L48+'Simulador para calculos'!M48)*NOT($J$12),"") -> 2492.240871 | T48: 826 | U48: =IFERROR((1+'Simulación Cliente'!$E$21)^(T48/360),"") -> 1.389081226 | V48: 1794.16 | AB48: 27 | AC48: 2024-12-01 | AD48: 30 | AE48: 822 | AF48: 48483.66939 | AG48: 3699.455989 | AH48: 582.1774129 | AI48: 0 | AJ48: 25.2 | AK48: 0 | AL48: 4306.833402 | AM48: 44784.2134 | AN48: 1.442093432 | AO48: 0.721046716 | AS48: 27 | AT48: 2024-12-01 | AU48: 30 | AV48: 822 | AW48: 85774.92298 | AX48: 206.2035825 | AY48: 1029.959642 | AZ48: 0 | BA48: 25.2 | BB48: 0 | BC48: 1261.363224 | BD48: 85568.7194 | BE48: 0.721046716 | BF48: 0.721046716 | BJ48: 27 | BK48: 2024-12-01 | BL48: 30 | BM48: 822 | BN48: 86137.55478 | BO48: 1102.782953 | BP48: 1034.314016 | BQ48: 0 | BR48: 25.2 | BS48: 0 | BT48: 2162.296969 | BU48: 85034.77183 | BV48: 1.442093432 | BW48: 0.721046716 | CA48: 27 | CB48: 2024-12-01 | CC48: 30 | CD48: 822 | CE48: 88095.04775 | CF48: 101.9903054 | CG48: 1057.819007 | CH48: 0 | CI48: 25.2 | CJ48: 0 | CK48: 1185.009312 | CL48: 87993.05745 | CM48: 0.721046716 | CN48: 0.721046716 | CR48: 27 | CS48: 2024-12-01 | CT48: 30 | CU48: 822 | CV48: 88435.72761 | CW48: 944.2972256 | CX48: 1061.909789 | CY48: 0 | CZ48: 25.2 | DA48: 0 | DB48: 2031.407014 | DC48: 87491.43038 | DD48: 1.442093432 | DE48: 0.721046716
B49: 28 | C49: 2027-09-16 | D49: 4 | E49: 2027-09-16 | F49: 31 | G49: 857 | H49: 45918.087 | I49: 1922.377598 | J49: 569.863273 | K49: 0 | L49: 0 | M49: 0 | N49: 2492.240871 | O49: 43995.7094 | P49: 0.7110753377 | Q49: 0.7110753377 | S49: =IFERROR((I49+J49+K49+L49+M49)*$J$12+('Simulador para calculos'!I49+'Simulador para calculos'!J49+'Simulador para calculos'!K49+'Simulador para calculos'!L49+'Simulador para calculos'!M49)*NOT($J$12),"") -> 2492.240871 | T49: 857 | U49: =IFERROR((1+'Simulación Cliente'!$E$21)^(T49/360),"") -> 1.406320308 | V49: 1772.17 | AB49: 28 | AC49: 2025-01-01 | AD49: 31 | AE49: 853 | AF49: 44784.2134 | AG49: 1572.425289 | AH49: 555.7914124 | AI49: 0 | AJ49: 25.2 | AK49: 0 | AL49: 2153.416701 | AM49: 43211.78811 | AN49: 0.7122079085 | AO49: 0.7122079085 | AS49: 28 | AT49: 2025-01-01 | AU49: 31 | AV49: 853 | AW49: 85568.7194 | AX49: 174.2184942 | AY49: 1061.94473 | AZ49: 0 | BA49: 25.2 | BB49: 0 | BC49: 1261.363224 | BD49: 85394.50091 | BE49: 0.7122079085 | BF49: 0.7122079085 | BJ49: 28 | BK49: 2025-01-01 | BL49: 31 | BM49: 853 | BN49: 85034.77183 | BO49: 0.6302740422 | BP49: 1055.31821 | BQ49: 0 | BR49: 25.2 | BS49: 0 | BT49: 1081.148484 | BU49: 85034.14156 | BV49: 0.7122079085 | BW49: 0.7122079085 | CA49: 28 | CB49: 2025-01-01 | CC49: 31 | CD49: 853 | CE49: 87993.05745 | CF49: 67.77750075 | CG49: 1092.031811 | CH49: 0 | CI49: 25.2 | CJ49: 0 | CK49: 1185.009312 | CL49: 87925.27994 | CM49: 0.7122079085 | CN49: 0.7122079085 | CR49: 28 | CS49: 2025-01-01 | CT49: 31 | CU49: 853 | CV49: 87491.43038 | CW49: -95.30289594 | CX49: 1085.806403 | CY49: 0 | CZ49: 25.2 | DA49: 0 | DB49: 1015.703507 | DC49: 87586.73328 | DD49: 0.7122079085 | DE49: 0.7122079085
B50: 29 | C50: 2027-10-16 | D50: 6 | E50: 2027-10-16 | F50: 30 | G50: 887 | H50: 43995.7094 | I50: 1963.953541 | J50: 528.2873306 | K50: 0 | L50: 0 | M50: 0 | N50: 2492.240871 | O50: 42031.75586 | P50: 0.7026382674 | Q50: 0.7026382674 | S50: =IFERROR((I50+J50+K50+L50+M50)*$J$12+('Simulador para calculos'!I50+'Simulador para calculos'!J50+'Simulador para calculos'!K50+'Simulador para calculos'!L50+'Simulador para calculos'!M50)*NOT($J$12),"") -> 2492.240871 | T50: 887 | U50: =IFERROR((1+'Simulación Cliente'!$E$21)^(T50/360),"") -> 1.423206966 | V50: 1751.14 | AB50: 29 | AC50: 2025-02-01 | AD50: 31 | AE50: 884 | AF50: 43211.78811 | AG50: 1591.939765 | AH50: 536.2769361 | AI50: 0 | AJ50: 25.2 | AK50: 0 | AL50: 2153.416701 | AM50: 41619.84835 | AN50: 0.7034774498 | AO50: 0.7034774498 | AS50: 29 | AT50: 2025-02-01 | AU50: 31 | AV50: 884 | AW50: 85394.50091 | AX50: 176.3806209 | AY50: 1059.782603 | AZ50: 0 | BA50: 25.2 | BB50: 0 | BC50: 1261.363224 | BD50: 85218.12029 | BE50: 0.7034774498 | BF50: 0.7034774498 | BJ50: 29 | BK50: 2025-02-01 | BL50: 31 | BM50: 884 | BN50: 85034.14156 | BO50: 0.638096015 | BP50: 1055.310388 | BQ50: 0 | BR50: 25.2 | BS50: 0 | BT50: 1081.148484 | BU50: 85033.50346 | BV50: 0.7034774498 | BW50: 0.7034774498 | CA50: 29 | CB50: 2025-02-01 | CC50: 31 | CD50: 884 | CE50: 87925.27994 | CF50: 68.61864878 | CG50: 1091.190663 | CH50: 0 | CI50: 25.2 | CJ50: 0 | CK50: 1185.009312 | CL50: 87856.6613 | CM50: 0.7034774498 | CN50: 0.7034774498 | CR50: 29 | CS50: 2025-02-01 | CT50: 31 | CU50: 884 | CV50: 87586.73328 | CW50: -96.485646 | CX50: 1086.989153 | CY50: 0 | CZ50: 25.2 | DA50: 0 | DB50: 1015.703507 | DC50: 87683.21892 | DD50: 0.7034774498 | DE50: 0.7034774498
B51: 30 | C51: 2027-11-16 | D51: 2 | E51: 2027-11-16 | F51: 31 | G51: 918 | H51: 42031.75586 | I51: 1970.608645 | J51: 521.6322266 | K51: 0 | L51: 0 | M51: 0 | N51: 2492.240871 | O51: 40061.14722 | P51: 0.6940251162 | Q51: 0.6940251162 | S51: =IFERROR((I51+J51+K51+L51+M51)*$J$12+('Simulador para calculos'!I51+'Simulador para calculos'!J51+'Simulador para calculos'!K51+'Simulador para calculos'!L51+'Simulador para calculos'!M51)*NOT($J$12),"") -> 2492.240871 | T51: 918 | U51: =IFERROR((1+'Simulación Cliente'!$E$21)^(T51/360),"") -> 1.440869562 | V51: 1729.68 | AB51: 30 | AC51: 2025-03-01 | AD51: 28 | AE51: 912 | AF51: 41619.84835 | AG51: 1661.961151 | AH51: 466.2555502 | AI51: 0 | AJ51: 25.2 | AK51: 0 | AL51: 2153.416701 | AM51: 39957.88719 | AN51: 0.6956838972 | AO51: 0.6956838972 | AS51: 30 | AT51: 2025-03-01 | AU51: 28 | AV51: 912 | AW51: 85218.12029 | AX51: 281.4883964 | AY51: 954.674828 | AZ51: 0 | BA51: 25.2 | BB51: 0 | BC51: 1261.363224 | BD51: 84936.63189 | BE51: 0.6956838972 | BF51: 0.6956838972 | BJ51: 30 | BK51: 2025-03-01 | BL51: 28 | BM51: 912 | BN51: 85033.50346 | BO51: 103.3418672 | BP51: 952.6066172 | BQ51: 0 | BR51: 25.2 | BS51: 0 | BT51: 1081.148484 | BU51: 84930.16159 | BV51: 0.6956838972 | BW51: 0.6956838972 | CA51: 30 | CB51: 2025-03-01 | CC51: 28 | CD51: 912 | CE51: 87856.6613 | CF51: 175.5756452 | CG51: 984.2336668 | CH51: 0 | CI51: 25.2 | CJ51: 0 | CK51: 1185.009312 | CL51: 87681.08565 | CM51: 0.6956838972 | CN51: 0.6956838972 | CR51: 30 | CS51: 2025-03-01 | CT51: 28 | CU51: 912 | CV51: 87683.21892 | CW51: 8.212866748 | CX51: 982.2906403 | CY51: 0 | CZ51: 25.2 | DA51: 0 | DB51: 1015.703507 | DC51: 87675.00606 | DD51: 0.6956838972 | DE51: 0.6956838972
B52: 31 | C52: 2027-12-16 | D52: 4 | E52: 2027-12-16 | F52: 30 | G52: 948 | H52: 40061.14722 | I52: 2011.198588 | J52: 481.0422837 | K52: 0 | L52: 0 | M52: 0 | N52: 2492.240871 | O52: 38049.94863 | P52: 0.6857903506 | Q52: 0.6857903506 | S52: =IFERROR((I52+J52+K52+L52+M52)*$J$12+('Simulador para calculos'!I52+'Simulador para calculos'!J52+'Simulador para calculos'!K52+'Simulador para calculos'!L52+'Simulador para calculos'!M52)*NOT($J$12),"") -> 2492.240871 | T52: 948 | U52: =IFERROR((1+'Simulación Cliente'!$E$21)^(T52/360),"") -> 1.458171077 | V52: 1709.16 | AB52: 31 | AC52: 2025-04-01 | AD52: 31 | AE52: 943 | AF52: 39957.88719 | AG52: 1632.322079 | AH52: 495.8946216 | AI52: 0 | AJ52: 25.2 | AK52: 0 | AL52: 2153.416701 | AM52: 38325.56511 | AN52: 0.6871559948 | AO52: 0.6871559948 | AS52: 31 | AT52: 2025-04-01 | AU52: 31 | AV52: 943 | AW52: 84936.63189 | AX52: 182.062973 | AY52: 1054.100251 | AZ52: 0 | BA52: 25.2 | BB52: 0 | BC52: 1261.363224 | BD52: 84754.56892 | BE52: 0.6871559948 | BF52: 0.6871559948 | BJ52: 31 | BK52: 2025-04-01 | BL52: 31 | BM52: 943 | BN52: 84930.16159 | BO52: 1.928532225 | BP52: 1054.019952 | BQ52: 0 | BR52: 25.2 | BS52: 0 | BT52: 1081.148484 | BU52: 84928.23306 | BV52: 0.6871559948 | BW52: 0.6871559948 | CA52: 31 | CB52: 2025-04-01 | CC52: 31 | CD52: 943 | CE52: 87681.08565 | CF52: 71.64920534 | CG52: 1088.160107 | CH52: 0 | CI52: 25.2 | CJ52: 0 | CK52: 1185.009312 | CL52: 87609.43645 | CM52: 0.6871559948 | CN52: 0.6871559948 | CR52: 31 | CS52: 2025-04-01 | CT52: 31 | CU52: 943 | CV52: 87675.00606 | CW52: -97.58114928 | CX52: 1088.084656 | CY52: 0 | CZ52: 25.2 | DA52: 0 | DB52: 1015.703507 | DC52: 87772.58721 | DD52: 0.6871559948 | DE52: 0.6871559948
B53: 32 | C53: 2028-01-16 | D53: 7 | E53: 2028-01-17 | F53: 32 | G53: 980 | H53: 38049.94863 | I53: 2004.694624 | J53: 487.5462476 | K53: 0 | L53: 0 | M53: 0 | N53: 2492.240871 | O53: 36045.254 | P53: 0.6771142674 | Q53: 0.6771142674 | S53: =IFERROR((I53+J53+K53+L53+M53)*$J$12+('Simulador para calculos'!I53+'Simulador para calculos'!J53+'Simulador para calculos'!K53+'Simulador para calculos'!L53+'Simulador para calculos'!M53)*NOT($J$12),"") -> 2492.240871 | T53: 980 | U53: =IFERROR((1+'Simulación Cliente'!$E$21)^(T53/360),"") -> 1.476855076 | V53: 1687.53 | AB53: 32 | AC53: 2025-05-01 | AD53: 30 | AE53: 973 | AF53: 38325.56511 | AG53: 1668.014769 | AH53: 460.2019325 | AI53: 0 | AJ53: 25.2 | AK53: 0 | AL53: 2153.416701 | AM53: 36657.55035 | AN53: 0.6790027329 | AO53: 0.6790027329 | AS53: 32 | AT53: 2025-05-01 | AU53: 30 | AV53: 973 | AW53: 84754.56892 | AX53: 218.4556892 | AY53: 1017.707535 | AZ53: 0 | BA53: 25.2 | BB53: 0 | BC53: 1261.363224 | BD53: 84536.11323 | BE53: 0.6790027329 | BF53: 0.6790027329 | BJ53: 32 | BK53: 2025-05-01 | BL53: 30 | BM53: 973 | BN53: 84928.23306 | BO53: 36.15564214 | BP53: 1019.792842 | BQ53: 0 | BR53: 25.2 | BS53: 0 | BT53: 1081.148484 | BU53: 84892.07742 | BV53: 0.6790027329 | BW53: 0.6790027329 | CA53: 32 | CB53: 2025-05-01 | CC53: 30 | CD53: 973 | CE53: 87609.43645 | CF53: 107.8213808 | CG53: 1051.987931 | CH53: 0 | CI53: 25.2 | CJ53: 0 | CK53: 1185.009312 | CL53: 87501.61506 | CM53: 0.6790027329 | CN53: 0.6790027329 | CR53: 32 | CS53: 2025-05-01 | CT53: 30 | CU53: 973 | CV53: 87772.58721 | CW53: -63.44348975 | CX53: 1053.946997 | CY53: 0 | CZ53: 25.2 | DA53: 0 | DB53: 1015.703507 | DC53: 87836.0307 | DD53: 0.6790027329 | DE53: 0.6790027329
B54: 33 | C54: 2028-02-16 | D54: 3 | E54: 2028-02-16 | F54: 30 | G54: 1010 | H54: 36045.254 | I54: 2059.420233 | J54: 432.8206382 | K54: 0 | L54: 0 | M54: 0 | N54: 2492.240871 | O54: 33985.83377 | P54: 0.6690801529 | Q54: 0.6690801529 | S54: =IFERROR((I54+J54+K54+L54+M54)*$J$12+('Simulador para calculos'!I54+'Simulador para calculos'!J54+'Simulador para calculos'!K54+'Simulador para calculos'!L54+'Simulador para calculos'!M54)*NOT($J$12),"") -> 2492.240871 | T54: 1010 | U54: =IFERROR((1+'Simulación Cliente'!$E$21)^(T54/360),"") -> 1.494588694 | V54: 1667.51 | AB54: 33 | AC54: 2025-06-01 | AD54: 31 | AE54: 1004 | AF54: 36657.55035 | AG54: 1673.280684 | AH54: 454.9360173 | AI54: 0 | AJ54: 25.2 | AK54: 0 | AL54: 2153.416701 | AM54: 34984.26966 | AN54: 0.6706793132 | AO54: 0.6706793132 | AS54: 33 | AT54: 2025-06-01 | AU54: 31 | AV54: 1004 | AW54: 84536.11323 | AX54: 187.0335824 | AY54: 1049.129642 | AZ54: 0 | BA54: 25.2 | BB54: 0 | BC54: 1261.363224 | BD54: 84349.07965 | BE54: 0.6706793132 | BF54: 0.6706793132 | BJ54: 33 | BK54: 2025-06-01 | BL54: 31 | BM54: 1004 | BN54: 84892.07742 | BO54: 2.401173262 | BP54: 1053.547311 | BQ54: 0 | BR54: 25.2 | BS54: 0 | BT54: 1081.148484 | BU54: 84889.67624 | BV54: 0.6706793132 | BW54: 0.6706793132 | CA54: 33 | CB54: 2025-06-01 | CC54: 31 | CD54: 1004 | CE54: 87501.61506 | CF54: 73.87651275 | CG54: 1085.932799 | CH54: 0 | CI54: 25.2 | CJ54: 0 | CK54: 1185.009312 | CL54: 87427.73855 | CM54: 0.6706793132 | CN54: 0.6706793132 | CR54: 33 | CS54: 2025-06-01 | CT54: 31 | CU54: 1004 | CV54: 87836.0307 | CW54: -99.57953453 | CX54: 1090.083042 | CY54: 0 | CZ54: 25.2 | DA54: 0 | DB54: 1015.703507 | DC54: 87935.61023 | DD54: 0.6706793132 | DE54: 0.6706793132
B55: 34 | C55: 2028-03-16 | D55: 4 | E55: 2028-03-16 | F55: 29 | G55: 1039 | H55: 33985.83377 | I55: 2097.830818 | J55: 394.4100538 | K55: 0 | L55: 0 | M55: 0 | N55: 2492.240871 | O55: 31888.00295 | P55: 0.6614044674 | Q55: 0.6614044674 | S55: =IFERROR((I55+J55+K55+L55+M55)*$J$12+('Simulador para calculos'!I55+'Simulador para calculos'!J55+'Simulador para calculos'!K55+'Simulador para calculos'!L55+'Simulador para calculos'!M55)*NOT($J$12),"") -> 2492.240871 | T55: 1039 | U55: =IFERROR((1+'Simulación Cliente'!$E$21)^(T55/360),"") -> 1.511933576 | V55: 1648.38 | AB55: 34 | AC55: 2025-07-01 | AD55: 30 | AE55: 1034 | AF55: 34984.26966 | AG55: 3861.552747 | AH55: 420.0806553 | AI55: 0 | AJ55: 25.2 | AK55: 0 | AL55: 4306.833402 | AM55: 31122.71692 | AN55: 1.325443102 | AO55: 0.6627215509 | AS55: 34 | AT55: 2025-07-01 | AU55: 30 | AV55: 1034 | AW55: 84349.07965 | AX55: 223.3246832 | AY55: 1012.838541 | AZ55: 0 | BA55: 25.2 | BB55: 0 | BC55: 1261.363224 | BD55: 84125.75496 | BE55: 0.6627215509 | BF55: 0.6627215509 | BJ55: 34 | BK55: 2025-07-01 | BL55: 30 | BM55: 1034 | BN55: 84889.67624 | BO55: 1117.767105 | BP55: 1019.329864 | BQ55: 0 | BR55: 25.2 | BS55: 0 | BT55: 2162.296969 | BU55: 83771.90914 | BV55: 1.325443102 | BW55: 0.6627215509 | CA55: 34 | CB55: 2025-07-01 | CC55: 30 | CD55: 1034 | CE55: 87427.73855 | CF55: 110.0031548 | CG55: 1049.806157 | CH55: 0 | CI55: 25.2 | CJ55: 0 | CK55: 1185.009312 | CL55: 87317.7354 | CM55: 0.6627215509 | CN55: 0.6627215509 | CR55: 34 | CS55: 2025-07-01 | CT55: 30 | CU55: 1034 | CV55: 87935.61023 | CW55: 950.3024856 | CX55: 1055.904529 | CY55: 0 | CZ55: 25.2 | DA55: 0 | DB55: 2031.407014 | DC55: 86985.30774 | DD55: 1.325443102 | DE55: 0.6627215509
B56: 35 | C56: 2028-04-16 | D56: 7 | E56: 2028-04-17 | F56: 32 | G56: 1071 | H56: 31888.00295 | I56: 2083.649618 | J56: 408.5912529 | K56: 0 | L56: 0 | M56: 0 | N56: 2492.240871 | O56: 29804.35333 | P56: 0.6530368953 | Q56: 0.6530368953 | S56: =IFERROR((I56+J56+K56+L56+M56)*$J$12+('Simulador para calculos'!I56+'Simulador para calculos'!J56+'Simulador para calculos'!K56+'Simulador para calculos'!L56+'Simulador para calculos'!M56)*NOT($J$12),"") -> 2492.240871 | T56: 1071 | U56: =IFERROR((1+'Simulación Cliente'!$E$21)^(T56/360),"") -> 1.53130645 | V56: 1627.53 | AB56: 35 | AC56: 2025-08-01 | AD56: 31 | AE56: 1065 | AF56: 31122.71692 | AG56: 1741.970355 | AH56: 386.2463462 | AI56: 0 | AJ56: 25.2 | AK56: 0 | AL56: 2153.416701 | AM56: 29380.74656 | AN56: 0.6545977109 | AO56: 0.6545977109 | AS56: 35 | AT56: 2025-08-01 | AU56: 31 | AV56: 1065 | AW56: 84125.75496 | AX56: 192.1263056 | AY56: 1044.036919 | AZ56: 0 | BA56: 25.2 | BB56: 0 | BC56: 1261.363224 | BD56: 83933.62866 | BE56: 0.6545977109 | BF56: 0.6545977109 | BJ56: 35 | BK56: 2025-08-01 | BL56: 31 | BM56: 1065 | BN56: 83771.90914 | BO56: 16.30294494 | BP56: 1039.645539 | BQ56: 0 | BR56: 25.2 | BS56: 0 | BT56: 1081.148484 | BU56: 83755.60619 | BV56: 0.6545977109 | BW56: 0.6545977109 | CA56: 35 | CB56: 2025-08-01 | CC56: 31 | CD56: 1065 | CE56: 87317.7354 | CF56: 76.15853877 | CG56: 1083.650773 | CH56: 0 | CI56: 25.2 | CJ56: 0 | CK56: 1185.009312 | CL56: 87241.57686 | CM56: 0.6545977109 | CN56: 0.6545977109 | CR56: 35 | CS56: 2025-08-01 | CT56: 31 | CU56: 1065 | CV56: 86985.30774 | CW56: -89.02169563 | CX56: 1079.525203 | CY56: 0 | CZ56: 25.2 | DA56: 0 | DB56: 1015.703507 | DC56: 87074.32944 | DD56: 0.6545977109 | DE56: 0.6545977109
B57: 36 | C57: 2028-05-16 | D57: 2 | E57: 2028-05-16 | F57: 29 | G57: 1100 | H57: 29804.35333 | I57: 2146.357446 | J57: 345.8834255 | K57: 0 | L57: 0 | M57: 0 | N57: 2492.240871 | O57: 27657.99589 | P57: 0.645545258 | Q57: 0.645545258 | S57: =IFERROR((I57+J57+K57+L57+M57)*$J$12+('Simulador para calculos'!I57+'Simulador para calculos'!J57+'Simulador para calculos'!K57+'Simulador para calculos'!L57+'Simulador para calculos'!M57)*NOT($J$12),"") -> 2492.240871 | T57: 1100 | U57: =IFERROR((1+'Simulación Cliente'!$E$21)^(T57/360),"") -> 1.549077445 | V57: 1608.85 | AB57: 36 | AC57: 2025-09-01 | AD57: 31 | AE57: 1096 | AF57: 29380.74656 | AG57: 1763.588959 | AH57: 364.6277424 | AI57: 0 | AJ57: 25.2 | AK57: 0 | AL57: 2153.416701 | AM57: 27617.1576 | AN57: 0.6465734553 | AO57: 0.6465734553 | AS57: 36 | AT57: 2025-09-01 | AU57: 31 | AV57: 1096 | AW57: 83933.62866 | AX57: 194.5106759 | AY57: 1041.652548 | AZ57: 0 | BA57: 25.2 | BB57: 0 | BC57: 1261.363224 | BD57: 83739.11798 | BE57: 0.6465734553 | BF57: 0.6465734553 | BJ57: 36 | BK57: 2025-09-01 | BL57: 31 | BM57: 1096 | BN57: 83755.60619 | BO57: 16.50527153 | BP57: 1039.443213 | BQ57: 0 | BR57: 25.2 | BS57: 0 | BT57: 1081.148484 | BU57: 83739.10092 | BV57: 0.6465734553 | BW57: 0.6465734553 | CA57: 36 | CB57: 2025-09-01 | CC57: 31 | CD57: 1096 | CE57: 87241.57686 | CF57: 77.1036991 | CG57: 1082.705613 | CH57: 0 | CI57: 25.2 | CJ57: 0 | CK57: 1185.009312 | CL57: 87164.47316 | CM57: 0.6465734553 | CN57: 0.6465734553 | CR57: 36 | CS57: 2025-09-01 | CT57: 31 | CU57: 1096 | CV57: 87074.32944 | CW57: -90.12649328 | CX57: 1080.63 | CY57: 0 | CZ57: 25.2 | DA57: 0 | DB57: 1015.703507 | DC57: 87164.45593 | DD57: 0.6465734553 | DE57: 0.6465734553
B58: 37 | C58: 2028-06-16 | D58: 5 | E58: 2028-06-16 | F58: 31 | G58: 1131 | H58: 27657.99589 | I58: 2148.993208 | J58: 343.2476632 | K58: 0 | L58: 0 | M58: 0 | N58: 2492.240871 | O58: 25509.00268 | P58: 0.6376319701 | Q58: 0.6376319701 | S58: =IFERROR((I58+J58+K58+L58+M58)*$J$12+('Simulador para calculos'!I58+'Simulador para calculos'!J58+'Simulador para calculos'!K58+'Simulador para calculos'!L58+'Simulador para calculos'!M58)*NOT($J$12),"") -> 2492.240871 | T58: 1131 | U58: =IFERROR((1+'Simulación Cliente'!$E$21)^(T58/360),"") -> 1.568302147 | V58: 1589.13 | AB58: 37 | AC58: 2025-10-01 | AD58: 30 | AE58: 1126 | AF58: 27617.1576 | AG58: 1796.598126 | AH58: 331.6185753 | AI58: 0 | AJ58: 25.2 | AK58: 0 | AL58: 2153.416701 | AM58: 25820.55948 | AN58: 0.6389017144 | AO58: 0.6389017144 | AS58: 37 | AT58: 2025-10-01 | AU58: 30 | AV58: 1126 | AW58: 83739.11798 | AX58: 230.6489206 | AY58: 1005.514304 | AZ58: 0 | BA58: 25.2 | BB58: 0 | BC58: 1261.363224 | BD58: 83508.46906 | BE58: 0.6389017144 | BF58: 0.6389017144 | BJ58: 37 | BK58: 2025-10-01 | BL58: 30 | BM58: 1126 | BN58: 83739.10092 | BO58: 50.43438547 | BP58: 1005.514099 | BQ58: 0 | BR58: 25.2 | BS58: 0 | BT58: 1081.148484 | BU58: 83688.66654 | BV58: 0.6389017144 | BW58: 0.6389017144 | CA58: 37 | CB58: 2025-10-01 | CC58: 30 | CD58: 1126 | CE58: 87164.47316 | CF58: 113.164367 | CG58: 1046.644945 | CH58: 0 | CI58: 25.2 | CJ58: 0 | CK58: 1185.009312 | CL58: 87051.30879 | CM58: 0.6389017144 | CN58: 0.6389017144 | CR58: 37 | CS58: 2025-10-01 | CT58: 30 | CU58: 1126 | CV58: 87164.45593 | CW58: -56.14123117 | CX58: 1046.644738 | CY58: 0 | CZ58: 25.2 | DA58: 0 | DB58: 1015.703507 | DC58: 87220.59716 | DD58: 0.6389017144 | DE58: 0.6389017144
B59: 38 | C59: 2028-07-16 | D59: 7 | E59: 2028-07-17 | F59: 31 | G59: 1162 | H59: 25509.00268 | I59: 2175.663141 | J59: 316.5777302 | K59: 0 | L59: 0 | M59: 0 | N59: 2492.240871 | O59: 23333.33954 | P59: 0.6298156857 | Q59: 0.6298156857 | S59: =IFERROR((I59+J59+K59+L59+M59)*$J$12+('Simulador para calculos'!I59+'Simulador para calculos'!J59+'Simulador para calculos'!K59+'Simulador para calculos'!L59+'Simulador para calculos'!M59)*NOT($J$12),"") -> 2492.240871 | T59: 1162 | U59: =IFERROR((1+'Simulación Cliente'!$E$21)^(T59/360),"") -> 1.587765435 | V59: 1569.65 | AB59: 38 | AC59: 2025-11-01 | AD59: 31 | AE59: 1157 | AF59: 25820.55948 | AG59: 1807.772417 | AH59: 320.4442845 | AI59: 0 | AJ59: 25.2 | AK59: 0 | AL59: 2153.416701 | AM59: 24012.78706 | AN59: 0.6310698651 | AO59: 0.6310698651 | AS59: 38 | AT59: 2025-11-01 | AU59: 31 | AV59: 1157 | AW59: 83508.46906 | AX59: 199.78709 | AY59: 1036.376134 | AZ59: 0 | BA59: 25.2 | BB59: 0 | BC59: 1261.363224 | BD59: 83308.68197 | BE59: 0.6310698651 | BF59: 0.6310698651 | BJ59: 38 | BK59: 2025-11-01 | BL59: 31 | BM59: 1157 | BN59: 83688.66654 | BO59: 17.33602155 | BP59: 1038.612463 | BQ59: 0 | BR59: 25.2 | BS59: 0 | BT59: 1081.148484 | BU59: 83671.33052 | BV59: 0.6310698651 | BW59: 0.6310698651 | CA59: 38 | CB59: 2025-11-01 | CC59: 31 | CD59: 1157 | CE59: 87051.30879 | CF59: 79.4650079 | CG59: 1080.344304 | CH59: 0 | CI59: 25.2 | CJ59: 0 | CK59: 1185.009312 | CL59: 86971.84378 | CM59: 0.6310698651 | CN59: 0.6310698651 | CR59: 38 | CS59: 2025-11-01 | CT59: 31 | CU59: 1157 | CV59: 87220.59716 | CW59: -91.94173886 | CX59: 1082.445246 | CY59: 0 | CZ59: 25.2 | DA59: 0 | DB59: 1015.703507 | DC59: 87312.5389 | DD59: 0.6310698651 | DE59: 0.6310698651
B60: 39 | C60: 2028-08-16 | D60: 3 | E60: 2028-08-16 | F60: 30 | G60: 1192 | H60: 23333.33954 | I60: 2212.061103 | J60: 280.1797682 | K60: 0 | L60: 0 | M60: 0 | N60: 2492.240871 | O60: 21121.27844 | P60: 0.6223427796 | Q60: 0.6223427796 | S60: =IFERROR((I60+J60+K60+L60+M60)*$J$12+('Simulador para calculos'!I60+'Simulador para calculos'!J60+'Simulador para calculos'!K60+'Simulador para calculos'!L60+'Simulador para calculos'!M60)*NOT($J$12),"") -> 2492.240871 | T60: 1192 | U60: =IFERROR((1+'Simulación Cliente'!$E$21)^(T60/360),"") -> 1.606830831 | V60: 1551.03 | AB60: 39 | AC60: 2025-12-01 | AD60: 30 | AE60: 1187 | AF60: 24012.78706 | AG60: 3993.295031 | AH60: 288.3383709 | AI60: 0 | AJ60: 25.2 | AK60: 0 | AL60: 4306.833402 | AM60: 20019.49203 | AN60: 1.247164156 | AO60: 0.6235820779 | AS60: 39 | AT60: 2025-12-01 | AU60: 30 | AV60: 1187 | AW60: 83308.68197 | AX60: 235.8174676 | AY60: 1000.345757 | AZ60: 0 | BA60: 25.2 | BB60: 0 | BC60: 1261.363224 | BD60: 83072.8645 | BE60: 0.6235820779 | BF60: 0.6235820779 | BJ60: 39 | BK60: 2025-12-01 | BL60: 30 | BM60: 1187 | BN60: 83671.33052 | BO60: 1132.396637 | BP60: 1004.700332 | BQ60: 0 | BR60: 25.2 | BS60: 0 | BT60: 2162.296969 | BU60: 82538.93388 | BV60: 1.247164156 | BW60: 0.6235820779 | CA60: 39 | CB60: 2025-12-01 | CC60: 30 | CD60: 1187 | CE60: 86971.84378 | CF60: 115.477403 | CG60: 1044.331909 | CH60: 0 | CI60: 25.2 | CJ60: 0 | CK60: 1185.009312 | CL60: 86856.36638 | CM60: 0.6235820779 | CN60: 0.6235820779 | CR60: 39 | CS60: 2025-12-01 | CT60: 30 | CU60: 1187 | CV60: 87312.5389 | CW60: 957.7841398 | CX60: 1048.422874 | CY60: 0 | CZ60: 25.2 | DA60: 0 | DB60: 2031.407014 | DC60: 86354.75476 | DD60: 1.247164156 | DE60: 0.6235820779
B61: 40 | C61: 2028-09-16 | D61: 6 | E61: 2028-09-16 | F61: 31 | G61: 1223 | H61: 21121.27844 | I61: 2230.116692 | J61: 262.1241791 | K61: 0 | L61: 0 | M61: 0 | N61: 2492.240871 | O61: 18891.16174 | P61: 0.6147139147 | Q61: 0.6147139147 | S61: =IFERROR((I61+J61+K61+L61+M61)*$J$12+('Simulador para calculos'!I61+'Simulador para calculos'!J61+'Simulador para calculos'!K61+'Simulador para calculos'!L61+'Simulador para calculos'!M61)*NOT($J$12),"") -> 2492.240871 | T61: 1223 | U61: =IFERROR((1+'Simulación Cliente'!$E$21)^(T61/360),"") -> 1.626772276 | V61: 1532.02 | AB61: 40 | AC61: 2026-01-01 | AD61: 31 | AE61: 1218 | AF61: 20019.49203 | AG61: 1879.766167 | AH61: 248.4505344 | AI61: 0 | AJ61: 25.2 | AK61: 0 | AL61: 2153.416701 | AM61: 18139.72586 | AN61: 0.6159380213 | AO61: 0.6159380213 | AS61: 40 | AT61: 2026-01-01 | AU61: 31 | AV61: 1218 | AW61: 83072.8645 | AX61: 205.1931305 | AY61: 1030.970094 | AZ61: 0 | BA61: 25.2 | BB61: 0 | BC61: 1261.363224 | BD61: 82867.67137 | BE61: 0.6159380213 | BF61: 0.6159380213 | BJ61: 40 | BK61: 2026-01-01 | BL61: 31 | BM61: 1218 | BN61: 82538.93388 | BO61: 31.60469994 | BP61: 1024.343784 | BQ61: 0 | BR61: 25.2 | BS61: 0 | BT61: 1081.148484 | BU61: 82507.32918 | BV61: 0.6159380213 | BW61: 0.6159380213 | CA61: 40 | CB61: 2026-01-01 | CC61: 31 | CD61: 1218 | CE61: 86856.36638 | CF61: 81.88432733 | CG61: 1077.924985 | CH61: 0 | CI61: 25.2 | CJ61: 0 | CK61: 1185.009312 | CL61: 86774.48205 | CM61: 0.6159380213 | CN61: 0.6159380213 | CR61: 40 | CS61: 2026-01-01 | CT61: 31 | CU61: 1218 | CV61: 86354.75476 | CW61: -81.19626106 | CX61: 1071.699768 | CY61: 0 | CZ61: 25.2 | DA61: 0 | DB61: 1015.703507 | DC61: 86435.95102 | DD61: 0.6159380213 | DE61: 0.6159380213
B62: 41 | C62: 2028-10-16 | D62: 1 | E62: 2028-10-16 | F62: 30 | G62: 1253 | H62: 18891.16174 | I62: 2265.401447 | J62: 226.8394247 | K62: 0 | L62: 0 | M62: 0 | N62: 2492.240871 | O62: 16625.7603 | P62: 0.6074201945 | Q62: 0.6074201945 | S62: =IFERROR((I62+J62+K62+L62+M62)*$J$12+('Simulador para calculos'!I62+'Simulador para calculos'!J62+'Simulador para calculos'!K62+'Simulador para calculos'!L62+'Simulador para calculos'!M62)*NOT($J$12),"") -> 2492.240871 | T62: 1253 | U62: =IFERROR((1+'Simulación Cliente'!$E$21)^(T62/360),"") -> 1.646306054 | V62: 1513.84 | AB62: 41 | AC62: 2026-02-01 | AD62: 31 | AE62: 1249 | AF62: 18139.72586 | AG62: 1903.094876 | AH62: 225.1218251 | AI62: 0 | AJ62: 25.2 | AK62: 0 | AL62: 2153.416701 | AM62: 16236.63099 | AN62: 0.6083876678 | AO62: 0.6083876678 | AS62: 41 | AT62: 2026-02-01 | AU62: 31 | AV62: 1249 | AW62: 82867.67137 | AX62: 207.7396658 | AY62: 1028.423559 | AZ62: 0 | BA62: 25.2 | BB62: 0 | BC62: 1261.363224 | BD62: 82659.93171 | BE62: 0.6083876678 | BF62: 0.6083876678 | BJ62: 41 | BK62: 2026-02-01 | BL62: 31 | BM62: 1249 | BN62: 82507.32918 | BO62: 31.99692791 | BP62: 1023.951556 | BQ62: 0 | BR62: 25.2 | BS62: 0 | BT62: 1081.148484 | BU62: 82475.33225 | BV62: 0.6083876678 | BW62: 0.6083876678 | CA62: 41 | CB62: 2026-02-01 | CC62: 31 | CD62: 1249 | CE62: 86774.48205 | CF62: 82.90054717 | CG62: 1076.908765 | CH62: 0 | CI62: 25.2 | CJ62: 0 | CK62: 1185.009312 | CL62: 86691.58151 | CM62: 0.6083876678 | CN62: 0.6083876678 | CR62: 41 | CS62: 2026-02-01 | CT62: 31 | CU62: 1249 | CV62: 86435.95102 | CW62: -82.20394169 | CX62: 1072.707449 | CY62: 0 | CZ62: 25.2 | DA62: 0 | DB62: 1015.703507 | DC62: 86518.15497 | DD62: 0.6083876678 | DE62: 0.6083876678
B63: 42 | C63: 2028-11-16 | D63: 4 | E63: 2028-11-16 | F63: 31 | G63: 1284 | H63: 16625.7603 | I63: 2285.908012 | J63: 206.3328592 | K63: 0 | L63: 0 | M63: 0 | N63: 2492.240871 | O63: 14339.85229 | P63: 0.5999742551 | Q63: 0.5999742551 | S63: =IFERROR((I63+J63+K63+L63+M63)*$J$12+('Simulador para calculos'!I63+'Simulador para calculos'!J63+'Simulador para calculos'!K63+'Simulador para calculos'!L63+'Simulador para calculos'!M63)*NOT($J$12),"") -> 2492.240871 | T63: 1284 | U63: =IFERROR((1+'Simulación Cliente'!$E$21)^(T63/360),"") -> 1.666737403 | V63: 1495.28 | AB63: 42 | AC63: 2026-03-01 | AD63: 28 | AE63: 1277 | AF63: 16236.63099 | AG63: 1946.322254 | AH63: 181.8944474 | AI63: 0 | AJ63: 25.2 | AK63: 0 | AL63: 2153.416701 | AM63: 14290.30873 | AN63: 0.6016475778 | AO63: 0.6016475778 | AS63: 42 | AT63: 2026-03-01 | AU63: 28 | AV63: 1277 | AW63: 82659.93171 | AX63: 310.1470694 | AY63: 926.016155 | AZ63: 0 | BA63: 25.2 | BB63: 0 | BC63: 1261.363224 | BD63: 82349.78464 | BE63: 0.6016475778 | BF63: 0.6016475778 | BJ63: 42 | BK63: 2026-03-01 | BL63: 28 | BM63: 1277 | BN63: 82475.33225 | BO63: 132.0003456 | BP63: 923.9481388 | BQ63: 0 | BR63: 25.2 | BS63: 0 | BT63: 1081.148484 | BU63: 82343.33191 | BV63: 0.6016475778 | BW63: 0.6016475778 | CA63: 42 | CB63: 2026-03-01 | CC63: 28 | CD63: 1277 | CE63: 86691.58151 | CF63: 188.6277091 | CG63: 971.181603 | CH63: 0 | CI63: 25.2 | CJ63: 0 | CK63: 1185.009312 | CL63: 86502.9538 | CM63: 0.6016475778 | CN63: 0.6016475778 | CR63: 42 | CS63: 2026-03-01 | CT63: 28 | CU63: 1277 | CV63: 86518.15497 | CW63: 21.26475324 | CX63: 969.2387538 | CY63: 0 | CZ63: 25.2 | DA63: 0 | DB63: 1015.703507 | DC63: 86496.89021 | DD63: 0.6016475778 | DE63: 0.6016475778
B64: 43 | C64: 2028-12-16 | D64: 6 | E64: 2028-12-16 | F64: 30 | G64: 1314 | H64: 14339.85229 | I64: 2320.05221 | J64: 172.1886609 | K64: 0 | L64: 0 | M64: 0 | N64: 2492.240871 | O64: 12019.80008 | P64: 0.5928554243 | Q64: 0.5928554243 | S64: =IFERROR((I64+J64+K64+L64+M64)*$J$12+('Simulador para calculos'!I64+'Simulador para calculos'!J64+'Simulador para calculos'!K64+'Simulador para calculos'!L64+'Simulador para calculos'!M64)*NOT($J$12),"") -> 2492.240871 | T64: 1314 | U64: =IFERROR((1+'Simulación Cliente'!$E$21)^(T64/360),"") -> 1.686751069 | V64: 1477.54 | AB64: 43 | AC64: 2026-04-01 | AD64: 31 | AE64: 1308 | AF64: 14290.30873 | AG64: 1950.867803 | AH64: 177.3488975 | AI64: 0 | AJ64: 25.2 | AK64: 0 | AL64: 2153.416701 | AM64: 12339.44093 | AN64: 0.5942724009 | AO64: 0.5942724009 | AS64: 43 | AT64: 2026-04-01 | AU64: 31 | AV64: 1308 | AW64: 82349.78464 | AX64: 214.1668636 | AY64: 1021.996361 | AZ64: 0 | BA64: 25.2 | BB64: 0 | BC64: 1261.363224 | BD64: 82135.61777 | BE64: 0.5942724009 | BF64: 0.5942724009 | BJ64: 43 | BK64: 2026-04-01 | BL64: 31 | BM64: 1308 | BN64: 82343.33191 | BO64: 34.03220483 | BP64: 1021.91628 | BQ64: 0 | BR64: 25.2 | BS64: 0 | BT64: 1081.148484 | BU64: 82309.2997 | BV64: 0.5942724009 | BW64: 0.5942724009 | CA64: 43 | CB64: 2026-04-01 | CC64: 31 | CD64: 1308 | CE64: 86502.9538 | CF64: 86.27032999 | CG64: 1073.538982 | CH64: 0 | CI64: 25.2 | CJ64: 0 | CK64: 1185.009312 | CL64: 86416.68347 | CM64: 0.5942724009 | CN64: 0.5942724009 | CR64: 43 | CS64: 2026-04-01 | CT64: 31 | CU64: 1308 | CV64: 86496.89021 | CW64: -82.96022332 | CX64: 1073.46373 | CY64: 0 | CZ64: 25.2 | DA64: 0 | DB64: 1015.703507 | DC64: 86579.85044 | DD64: 0.5942724009 | DE64: 0.5942724009
B65: 44 | C65: 2029-01-16 | D65: 2 | E65: 2029-01-16 | F65: 31 | G65: 1345 | H65: 12019.80008 | I65: 2343.069966 | J65: 149.1709054 | K65: 0 | L65: 0 | M65: 0 | N65: 2492.240871 | O65: 9676.730109 | P65: 0.5855880243 | Q65: 0.5855880243 | S65: =IFERROR((I65+J65+K65+L65+M65)*$J$12+('Simulador para calculos'!I65+'Simulador para calculos'!J65+'Simulador para calculos'!K65+'Simulador para calculos'!L65+'Simulador para calculos'!M65)*NOT($J$12),"") -> 2492.240871 | T65: 1345 | U65: =IFERROR((1+'Simulación Cliente'!$E$21)^(T65/360),"") -> 1.707684359 | V65: 1459.43 | AB65: 44 | AC65: 2026-05-01 | AD65: 30 | AE65: 1338 | AF65: 12339.44093 | AG65: 1980.048382 | AH65: 148.1683191 | AI65: 0 | AJ65: 25.2 | AK65: 0 | AL65: 2153.416701 | AM65: 10359.39255 | AN65: 0.5872212239 | AO65: 0.5872212239 | AS65: 44 | AT65: 2026-05-01 | AU65: 30 | AV65: 1338 | AW65: 82135.61777 | AX65: 249.9032719 | AY65: 986.2599525 | AZ65: 0 | BA65: 25.2 | BB65: 0 | BC65: 1261.363224 | BD65: 81885.7145 | BE65: 0.5872212239 | BF65: 0.5872212239 | BJ65: 44 | BK65: 2026-05-01 | BL65: 30 | BM65: 1338 | BN65: 82309.2997 | BO65: 67.60301126 | BP65: 988.3454731 | BQ65: 0 | BR65: 25.2 | BS65: 0 | BT65: 1081.148484 | BU65: 82241.69669 | BV65: 0.5872212239 | BW65: 0.5872212239 | CA65: 44 | CB65: 2026-05-01 | CC65: 30 | CD65: 1338 | CE65: 86416.68347 | CF65: 122.1436021 | CG65: 1037.66571 | CH65: 0 | CI65: 25.2 | CJ65: 0 | CK65: 1185.009312 | CL65: 86294.53987 | CM65: 0.5872212239 | CN65: 0.5872212239 | CR65: 44 | CS65: 2026-05-01 | CT65: 30 | CU65: 1338 | CV65: 86579.85044 | CW65: -49.12146307 | CX65: 1039.62497 | CY65: 0 | CZ65: 25.2 | DA65: 0 | DB65: 1015.703507 | DC65: 86628.9719 | DD65: 0.5872212239 | DE65: 0.5872212239
B66: 45 | C66: 2029-02-16 | D66: 5 | E66: 2029-02-16 | F66: 31 | G66: 1376 | H66: 9676.730109 | I66: 2372.148475 | J66: 120.0923961 | K66: 0 | L66: 0 | M66: 0 | N66: 2492.240871 | O66: 7304.581634 | P66: 0.5784097102 | Q66: 0.5784097102 | S66: =IFERROR((I66+J66+K66+L66+M66)*$J$12+('Simulador para calculos'!I66+'Simulador para calculos'!J66+'Simulador para calculos'!K66+'Simulador para calculos'!L66+'Simulador para calculos'!M66)*NOT($J$12),"") -> 2492.240871 | T66: 1376 | U66: =IFERROR((1+'Simulación Cliente'!$E$21)^(T66/360),"") -> 1.728877439 | V66: 1441.54 | AB66: 45 | AC66: 2026-06-01 | AD66: 31 | AE66: 1369 | AF66: 10359.39255 | AG66: 1999.65217 | AH66: 128.5645315 | AI66: 0 | AJ66: 25.2 | AK66: 0 | AL66: 2153.416701 | AM66: 8359.740378 | AN66: 0.5800228896 | AO66: 0.5800228896 | AS66: 45 | AT66: 2026-06-01 | AU66: 31 | AV66: 1369 | AW66: 81885.7145 | AX66: 219.9261742 | AY66: 1016.23705 | AZ66: 0 | BA66: 25.2 | BB66: 0 | BC66: 1261.363224 | BD66: 81665.78833 | BE66: 0.5800228896 | BF66: 0.5800228896 | BJ66: 45 | BK66: 2026-06-01 | BL66: 31 | BM66: 1369 | BN66: 82241.69669 | BO66: 35.29354172 | BP66: 1020.654943 | BQ66: 0 | BR66: 25.2 | BS66: 0 | BT66: 1081.148484 | BU66: 82206.40315 | BV66: 0.5800228896 | BW66: 0.5800228896 | CA66: 45 | CB66: 2026-06-01 | CC66: 31 | CD66: 1369 | CE66: 86294.53987 | CF66: 88.85683682 | CG66: 1070.952475 | CH66: 0 | CI66: 25.2 | CJ66: 0 | CK66: 1185.009312 | CL66: 86205.68303 | CM66: 0.5800228896 | CN66: 0.5800228896 | CR66: 45 | CS66: 2026-06-01 | CT66: 31 | CU66: 1369 | CV66: 86628.9719 | CW66: -84.59941404 | CX66: 1075.102921 | CY66: 0 | CZ66: 25.2 | DA66: 0 | DB66: 1015.703507 | DC66: 86713.57131 | DD66: 0.5800228896 | DE66: 0.5800228896
B67: 46 | C67: 2029-03-16 | D67: 5 | E67: 2029-03-16 | F67: 28 | G67: 1404 | H67: 7304.581634 | I67: 2410.409681 | J67: 81.83119026 | K67: 0 | L67: 0 | M67: 0 | N67: 2492.240871 | O67: 4894.171953 | P67: 0.5720017343 | Q67: 0.5720017343 | S67: =IFERROR((I67+J67+K67+L67+M67)*$J$12+('Simulador para calculos'!I67+'Simulador para calculos'!J67+'Simulador para calculos'!K67+'Simulador para calculos'!L67+'Simulador para calculos'!M67)*NOT($J$12),"") -> 2492.240871 | T67: 1404 | U67: =IFERROR((1+'Simulación Cliente'!$E$21)^(T67/360),"") -> 1.748245553 | V67: 1425.57 | AB67: 46 | AC67: 2026-07-01 | AD67: 30 | AE67: 1399 | AF67: 8359.740378 | AG67: 4181.252138 | AH67: 100.3812642 | AI67: 0 | AJ67: 25.2 | AK67: 0 | AL67: 4306.833402 | AM67: 4178.48824 | AN67: 1.146281573 | AO67: 0.5731407863 | AS67: 46 | AT67: 2026-07-01 | AU67: 30 | AV67: 1399 | AW67: 81665.78833 | AX67: 255.5448435 | AY67: 980.6183809 | AZ67: 0 | BA67: 25.2 | BB67: 0 | BC67: 1261.363224 | BD67: 81410.24348 | BE67: 0.5731407863 | BF67: 0.5731407863 | BJ67: 46 | BK67: 2026-07-01 | BL67: 30 | BM67: 1399 | BN67: 82206.40315 | BO67: 1149.987047 | BP67: 987.1099221 | BQ67: 0 | BR67: 25.2 | BS67: 0 | BT67: 2162.296969 | BU67: 81056.4161 | BV67: 1.146281573 | BW67: 0.5731407863 | CA67: 46 | CB67: 2026-07-01 | CC67: 30 | CD67: 1399 | CE67: 86205.68303 | CF67: 124.6772324 | CG67: 1035.13208 | CH67: 0 | CI67: 25.2 | CJ67: 0 | CK67: 1185.009312 | CL67: 86081.0058 | CM67: 0.5731407863 | CN67: 0.5731407863 | CR67: 46 | CS67: 2026-07-01 | CT67: 30 | CU67: 1399 | CV67: 86713.57131 | CW67: 964.9763637 | CX67: 1041.23065 | CY67: 0 | CZ67: 25.2 | DA67: 0 | DB67: 2031.407014 | DC67: 85748.59495 | DD67: 1.146281573 | DE67: 0.5731407863
B68: 47 | C68: 2029-04-16 | D68: 1 | E68: 2029-04-16 | F68: 31 | G68: 1435 | H68: 4894.171953 | I68: 2431.502086 | J68: 60.73878574 | K68: 0 | L68: 0 | M68: 0 | N68: 2492.240871 | O68: 2462.669867 | P68: 0.5649899651 | Q68: 0.5649899651 | S68: =IFERROR((I68+J68+K68+L68+M68)*$J$12+('Simulador para calculos'!I68+'Simulador para calculos'!J68+'Simulador para calculos'!K68+'Simulador para calculos'!L68+'Simulador para calculos'!M68)*NOT($J$12),"") -> 2492.240871 | T68: 1435 | U68: =IFERROR((1+'Simulación Cliente'!$E$21)^(T68/360),"") -> 1.769942014 | V68: 1408.09 | AB68: 47 | AC68: 2026-08-01 | AD68: 31 | AE68: 1430 | AF68: 4178.48824 | AG68: 2076.359859 | AH68: 51.85684205 | AI68: 0 | AJ68: 25.2 | AK68: 0 | AL68: 2153.416701 | AM68: 2102.128381 | AN68: 0.5661150542 | AO68: 0.5661150542 | AS68: 47 | AT68: 2026-08-01 | AU68: 31 | AV68: 1430 | AW68: 81410.24348 | AX68: 225.8269747 | AY68: 1010.33625 | AZ68: 0 | BA68: 25.2 | BB68: 0 | BC68: 1261.363224 | BD68: 81184.41651 | BE68: 0.5661150542 | BF68: 0.5661150542 | BJ68: 47 | BK68: 2026-08-01 | BL68: 31 | BM68: 1430 | BN68: 81056.4161 | BO68: 50.00338526 | BP68: 1005.945099 | BQ68: 0 | BR68: 25.2 | BS68: 0 | BT68: 1081.148484 | BU68: 81006.41272 | BV68: 0.5661150542 | BW68: 0.5661150542 | CA68: 47 | CB68: 2026-08-01 | CC68: 31 | CD68: 1430 | CE68: 86081.0058 | CF68: 91.50688675 | CG68: 1068.302425 | CH68: 0 | CI68: 25.2 | CJ68: 0 | CK68: 1185.009312 | CL68: 85989.49891 | CM68: 0.5661150542 | CN68: 0.5661150542 | CR68: 47 | CS68: 2026-08-01 | CT68: 31 | CU68: 1430 | CV68: 85748.59495 | CW68: -73.67355621 | CX68: 1064.177063 | CY68: 0 | CZ68: 25.2 | DA68: 0 | DB68: 1015.703507 | DC68: 85822.26851 | DD68: 0.5661150542 | DE68: 0.5661150542
B69: 48 | C69: 2029-05-16 | D69: 3 | E69: 2029-05-16 | F69: 30 | G69: 1465 | H69: 2462.669867 | I69: 2462.669867 | J69: 29.57100381 | K69: 0 | L69: 0 | M69: 0 | N69: 2492.240871 | O69: 0 | P69: 0.5582862309 | Q69: 0.5582862309 | S69: =IFERROR((I69+J69+K69+L69+M69)*$J$12+('Simulador para calculos'!I69+'Simulador para calculos'!J69+'Simulador para calculos'!K69+'Simulador para calculos'!L69+'Simulador para calculos'!M69)*NOT($J$12),"") -> 2492.240871 | T69: 1465 | U69: =IFERROR((1+'Simulación Cliente'!$E$21)^(T69/360),"") -> 1.79119493 | V69: 1391.38 | AB69: 48 | AC69: 2026-09-01 | AD69: 31 | AE69: 1461 | AF69: 2102.128381 | AG69: 2102.128381 | AH69: 26.08832026 | AI69: 0 | AJ69: 25.2 | AK69: 0 | AL69: 2153.416701 | AM69: 0 | AN69: 0.5591754456 | AO69: 0.5591754456 | AS69: 48 | AT69: 2026-09-01 | AU69: 31 | AV69: 1461 | AW69: 81184.41651 | AX69: 228.6295849 | AY69: 1007.533639 | AZ69: 0 | BA69: 25.2 | BB69: 0 | BC69: 1261.363224 | BD69: 80955.78692 | BE69: 0.5591754456 | BF69: 0.5591754456 | BJ69: 48 | BK69: 2026-09-01 | BL69: 31 | BM69: 1461 | BN69: 81006.41272 | BO69: 50.62394885 | BP69: 1005.324536 | BQ69: 0 | BR69: 25.2 | BS69: 0 | BT69: 1081.148484 | BU69: 80955.78877 | BV69: 0.5591754456 | BW69: 0.5591754456 | CA69: 48 | CB69: 2026-09-01 | CC69: 31 | CD69: 1461 | CE69: 85989.49891 | CF69: 92.6425267 | CG69: 1067.166785 | CH69: 0 | CI69: 25.2 | CJ69: 0 | CK69: 1185.009312 | CL69: 85896.85638 | CM69: 0.5591754456 | CN69: 0.5591754456 | CR69: 48 | CS69: 2026-09-01 | CT69: 31 | CU69: 1461 | CV69: 85822.26851 | CW69: -74.58787684 | CX69: 1065.091384 | CY69: 0 | CZ69: 25.2 | DA69: 0 | DB69: 1015.703507 | DC69: 85896.85638 | DD69: 0.5591754456 | DE69: 0.5591754456
B70: 49 | S70: =IFERROR((I70+J70+K70+L70+M70)*$J$12+('Simulador para calculos'!I70+'Simulador para calculos'!J70+'Simulador para calculos'!K70+'Simulador para calculos'!L70+'Simulador para calculos'!M70)*NOT($J$12),"") ->  | U70: =IFERROR((1+'Simulación Cliente'!$E$21)^(T70/360),"") ->  | AB70: 49 | AS70: 49 | AT70: 2026-10-01 | AU70: 30 | AV70: 1491 | AW70: 80955.78692 | AX70: 264.0703281 | AY70: 972.0928962 | AZ70: 0 | BA70: 25.2 | BB70: 0 | BC70: 1261.363224 | BD70: 80691.7166 | BE70: 0.552540702 | BF70: 0.552540702 | BJ70: 49 | BK70: 2026-10-01 | BL70: 30 | BM70: 1491 | BN70: 80955.78877 | BO70: 83.85556606 | BP70: 972.0929183 | BQ70: 0 | BR70: 25.2 | BS70: 0 | BT70: 1081.148484 | BU70: 80871.9332 | BV70: 0.552540702 | BW70: 0.552540702 | CA70: 49 | CB70: 2026-10-01 | CC70: 30 | CD70: 1491 | CE70: 85896.85638 | CF70: 128.3855304 | CG70: 1031.423782 | CH70: 0 | CI70: 25.2 | CJ70: 0 | CK70: 1185.009312 | CL70: 85768.47085 | CM70: 0.552540702 | CN70: 0.552540702 | CR70: 49 | CS70: 2026-10-01 | CT70: 30 | CU70: 1491 | CV70: 85896.85638 | CW70: -40.92027458 | CX70: 1031.423782 | CY70: 0 | CZ70: 25.2 | DA70: 0 | DB70: 1015.703507 | DC70: 85937.77666 | DD70: 0.552540702 | DE70: 0.552540702
B71: 50 | S71: =IFERROR((I71+J71+K71+L71+M71)*$J$12+('Simulador para calculos'!I71+'Simulador para calculos'!J71+'Simulador para calculos'!K71+'Simulador para calculos'!L71+'Simulador para calculos'!M71)*NOT($J$12),"") ->  | U71: =IFERROR((1+'Simulación Cliente'!$E$21)^(T71/360),"") ->  | AB71: 50 | AS71: 50 | AT71: 2026-11-01 | AU71: 31 | AV71: 1522 | AW71: 80691.7166 | AX71: 234.7442034 | AY71: 1001.419021 | AZ71: 0 | BA71: 25.2 | BB71: 0 | BC71: 1261.363224 | BD71: 80456.97239 | BE71: 0.5457674919 | BF71: 0.5457674919 | BJ71: 50 | BK71: 2026-11-01 | BL71: 31 | BM71: 1522 | BN71: 80871.9332 | BO71: 52.29289766 | BP71: 1003.655587 | BQ71: 0 | BR71: 25.2 | BS71: 0 | BT71: 1081.148484 | BU71: 80819.6403 | BV71: 0.5457674919 | BW71: 0.5457674919 | CA71: 50 | CB71: 2026-11-01 | CC71: 31 | CD71: 1522 | CE71: 85768.47085 | CF71: 95.38558026 | CG71: 1064.423732 | CH71: 0 | CI71: 25.2 | CJ71: 0 | CK71: 1185.009312 | CL71: 85673.08527 | CM71: 0.5457674919 | CN71: 0.5457674919 | CR71: 50 | CS71: 2026-11-01 | CT71: 31 | CU71: 1522 | CV71: 85937.77666 | CW71: -76.02138284 | CX71: 1066.52489 | CY71: 0 | CZ71: 25.2 | DA71: 0 | DB71: 1015.703507 | DC71: 86013.79804 | DD71: 0.5457674919 | DE71: 0.5457674919
B72: 51 | S72: =IFERROR((I72+J72+K72+L72+M72)*$J$12+('Simulador para calculos'!I72+'Simulador para calculos'!J72+'Simulador para calculos'!K72+'Simulador para calculos'!L72+'Simulador para calculos'!M72)*NOT($J$12),"") ->  | U72: =IFERROR((1+'Simulación Cliente'!$E$21)^(T72/360),"") ->  | AB72: 51 | AS72: 51 | AT72: 2026-12-01 | AU72: 30 | AV72: 1552 | AW72: 80456.97239 | AX72: 270.059944 | AY72: 966.1032804 | AZ72: 0 | BA72: 25.2 | BB72: 0 | BC72: 1261.363224 | BD72: 80186.91245 | BE72: 0.5392918367 | BF72: 0.5392918367 | BJ72: 51 | BK72: 2026-12-01 | BL72: 30 | BM72: 1552 | BN72: 80819.6403 | BO72: 1166.638881 | BP72: 970.4580883 | BQ72: 0 | BR72: 25.2 | BS72: 0 | BT72: 2162.296969 | BU72: 79653.00142 | BV72: 1.078583673 | BW72: 0.5392918367 | CA72: 51 | CB72: 2026-12-01 | CC72: 30 | CD72: 1552 | CE72: 85673.08527 | CF72: 131.0725071 | CG72: 1028.736805 | CH72: 0 | CI72: 25.2 | CJ72: 0 | CK72: 1185.009312 | CL72: 85542.01276 | CM72: 0.5392918367 | CN72: 0.5392918367 | CR72: 51 | CS72: 2026-12-01 | CT72: 30 | CU72: 1552 | CV72: 86013.79804 | CW72: 973.379032 | CX72: 1032.827982 | CY72: 0 | CZ72: 25.2 | DA72: 0 | DB72: 2031.407014 | DC72: 85040.41901 | DD72: 1.078583673 | DE72: 0.5392918367
B73: 52 | S73: =IFERROR((I73+J73+K73+L73+M73)*$J$12+('Simulador para calculos'!I73+'Simulador para calculos'!J73+'Simulador para calculos'!K73+'Simulador para calculos'!L73+'Simulador para calculos'!M73)*NOT($J$12),"") ->  | U73: =IFERROR((1+'Simulación Cliente'!$E$21)^(T73/360),"") ->  | AB73: 52 | AS73: 52 | AT73: 2027-01-01 | AU73: 31 | AV73: 1583 | AW73: 80186.91245 | AX73: 241.0090407 | AY73: 995.1541836 | AZ73: 0 | BA73: 25.2 | BB73: 0 | BC73: 1261.363224 | BD73: 79945.90341 | BE73: 0.5326810352 | BF73: 0.5326810352 | BJ73: 52 | BK73: 2027-01-01 | BL73: 31 | BM73: 1583 | BN73: 79653.00142 | BO73: 67.42036699 | BP73: 988.5281174 | BQ73: 0 | BR73: 25.2 | BS73: 0 | BT73: 1081.148484 | BU73: 79585.58106 | BV73: 0.5326810352 | BW73: 0.5326810352 | CA73: 52 | CB73: 2027-01-01 | CC73: 31 | CD73: 1583 | CE73: 85542.01276 | CF73: 98.19602284 | CG73: 1061.613289 | CH73: 0 | CI73: 25.2 | CJ73: 0 | CK73: 1185.009312 | CL73: 85443.81674 | CM73: 0.5326810352 | CN73: 0.5326810352 | CR73: 52 | CS73: 2027-01-01 | CT73: 31 | CU73: 1583 | CV73: 85040.41901 | CW73: -64.88478721 | CX73: 1055.388294 | CY73: 0 | CZ73: 25.2 | DA73: 0 | DB73: 1015.703507 | DC73: 85105.3038 | DD73: 0.5326810352 | DE73: 0.5326810352
B74: 53 | S74: =IFERROR((I74+J74+K74+L74+M74)*$J$12+('Simulador para calculos'!I74+'Simulador para calculos'!J74+'Simulador para calculos'!K74+'Simulador para calculos'!L74+'Simulador para calculos'!M74)*NOT($J$12),"") ->  | U74: =IFERROR((1+'Simulación Cliente'!$E$21)^(T74/360),"") ->  | AB74: 53 | AS74: 53 | AT74: 2027-02-01 | AU74: 31 | AV74: 1614 | AW74: 79945.90341 | AX74: 244.0000669 | AY74: 992.1631574 | AZ74: 0 | BA74: 25.2 | BB74: 0 | BC74: 1261.363224 | BD74: 79701.90334 | BE74: 0.5261512709 | BF74: 0.5261512709 | BJ74: 53 | BK74: 2027-02-01 | BL74: 31 | BM74: 1614 | BN74: 79585.58106 | BO74: 68.25708283 | BP74: 987.6914016 | BQ74: 0 | BR74: 25.2 | BS74: 0 | BT74: 1081.148484 | BU74: 79517.32397 | BV74: 0.5261512709 | BW74: 0.5261512709 | CA74: 53 | CB74: 2027-02-01 | CC74: 31 | CD74: 1614 | CE74: 85443.81674 | CF74: 99.41467786 | CG74: 1060.394634 | CH74: 0 | CI74: 25.2 | CJ74: 0 | CK74: 1185.009312 | CL74: 85344.40206 | CM74: 0.5261512709 | CN74: 0.5261512709 | CR74: 53 | CS74: 2027-02-01 | CT74: 31 | CU74: 1614 | CV74: 85105.3038 | CW74: -65.69003541 | CX74: 1056.193542 | CY74: 0 | CZ74: 25.2 | DA74: 0 | DB74: 1015.703507 | DC74: 85170.99383 | DD74: 0.5261512709 | DE74: 0.5261512709
B75: 54 | S75: =IFERROR((I75+J75+K75+L75+M75)*$J$12+('Simulador para calculos'!I75+'Simulador para calculos'!J75+'Simulador para calculos'!K75+'Simulador para calculos'!L75+'Simulador para calculos'!M75)*NOT($J$12),"") ->  | U75: =IFERROR((1+'Simulación Cliente'!$E$21)^(T75/360),"") ->  | AB75: 54 | AS75: 54 | AT75: 2027-03-01 | AU75: 28 | AV75: 1642 | AW75: 79701.90334 | AX75: 343.2850359 | AY75: 892.8781884 | AZ75: 0 | BA75: 25.2 | BB75: 0 | BC75: 1261.363224 | BD75: 79358.61831 | BE75: 0.520322246 | BF75: 0.520322246 | BJ75: 54 | BK75: 2027-03-01 | BL75: 28 | BM75: 1642 | BN75: 79517.32397 | BO75: 165.1380871 | BP75: 890.8103973 | BQ75: 0 | BR75: 25.2 | BS75: 0 | BT75: 1081.148484 | BU75: 79352.18589 | BV75: 0.520322246 | BW75: 0.520322246 | CA75: 54 | CB75: 2027-03-01 | CC75: 28 | CD75: 1642 | CE75: 85344.40206 | CF75: 203.7197846 | CG75: 956.0895275 | CH75: 0 | CI75: 25.2 | CJ75: 0 | CK75: 1185.009312 | CL75: 85140.68228 | CM75: 0.520322246 | CN75: 0.520322246 | CR75: 54 | CS75: 2027-03-01 | CT75: 28 | CU75: 1642 | CV75: 85170.99383 | CW75: 36.35662361 | CX75: 954.1468835 | CY75: 0 | CZ75: 25.2 | DA75: 0 | DB75: 1015.703507 | DC75: 85134.63721 | DD75: 0.520322246 | DE75: 0.520322246
B76: 55 | S76: =IFERROR((I76+J76+K76+L76+M76)*$J$12+('Simulador para calculos'!I76+'Simulador para calculos'!J76+'Simulador para calculos'!K76+'Simulador para calculos'!L76+'Simulador para calculos'!M76)*NOT($J$12),"") ->  | U76: =IFERROR((1+'Simulación Cliente'!$E$21)^(T76/360),"") ->  | AB76: 55 | AS76: 55 | AT76: 2027-04-01 | AU76: 31 | AV76: 1673 | AW76: 79358.61831 | AX76: 251.2885285 | AY76: 984.8746959 | AZ76: 0 | BA76: 25.2 | BB76: 0 | BC76: 1261.363224 | BD76: 79107.32978 | BE76: 0.5139439794 | BF76: 0.5139439794 | BJ76: 55 | BK76: 2027-04-01 | BL76: 31 | BM76: 1673 | BN76: 79352.18589 | BO76: 71.1536176 | BP76: 984.7948668 | BQ76: 0 | BR76: 25.2 | BS76: 0 | BT76: 1081.148484 | BU76: 79281.03227 | BV76: 0.5139439794 | BW76: 0.5139439794 | CA76: 55 | CB76: 2027-04-01 | CC76: 31 | CD76: 1673 | CE76: 85140.68228 | CF76: 103.1767073 | CG76: 1056.632605 | CH76: 0 | CI76: 25.2 | CJ76: 0 | CK76: 1185.009312 | CL76: 85037.50557 | CM76: 0.5139439794 | CN76: 0.5139439794 | CR76: 55 | CS76: 2027-04-01 | CT76: 31 | CU76: 1673 | CV76: 85134.63721 | CW76: -66.05407571 | CX76: 1056.557583 | CY76: 0 | CZ76: 25.2 | DA76: 0 | DB76: 1015.703507 | DC76: 85200.69128 | DD76: 0.5139439794 | DE76: 0.5139439794
B77: 56 | S77: =IFERROR((I77+J77+K77+L77+M77)*$J$12+('Simulador para calculos'!I77+'Simulador para calculos'!J77+'Simulador para calculos'!K77+'Simulador para calculos'!L77+'Simulador para calculos'!M77)*NOT($J$12),"") ->  | U77: =IFERROR((1+'Simulación Cliente'!$E$21)^(T77/360),"") ->  | AB77: 56 | AS77: 56 | AT77: 2027-05-01 | AU77: 30 | AV77: 1703 | AW77: 79107.32978 | AX77: 286.2660492 | AY77: 949.8971752 | AZ77: 0 | BA77: 25.2 | BB77: 0 | BC77: 1261.363224 | BD77: 78821.06373 | BE77: 0.5078459174 | BF77: 0.5078459174 | BJ77: 56 | BK77: 2027-05-01 | BL77: 30 | BM77: 1703 | BN77: 79281.03227 | BO77: 103.9655416 | BP77: 951.9829428 | BQ77: 0 | BR77: 25.2 | BS77: 0 | BT77: 1081.148484 | BU77: 79177.06673 | BV77: 0.5078459174 | BW77: 0.5078459174 | CA77: 56 | CB77: 2027-05-01 | CC77: 30 | CD77: 1703 | CE77: 85037.50557 | CF77: 138.7043581 | CG77: 1021.104954 | CH77: 0 | CI77: 25.2 | CJ77: 0 | CK77: 1185.009312 | CL77: 84898.80121 | CM77: 0.5078459174 | CN77: 0.5078459174 | CR77: 56 | CS77: 2027-05-01 | CT77: 30 | CU77: 1703 | CV77: 85200.69128 | CW77: -32.56093211 | CX77: 1023.064439 | CY77: 0 | CZ77: 25.2 | DA77: 0 | DB77: 1015.703507 | DC77: 85233.25221 | DD77: 0.5078459174 | DE77: 0.5078459174
B78: 57 | S78: =IFERROR((I78+J78+K78+L78+M78)*$J$12+('Simulador para calculos'!I78+'Simulador para calculos'!J78+'Simulador para calculos'!K78+'Simulador para calculos'!L78+'Simulador para calculos'!M78)*NOT($J$12),"") ->  | U78: =IFERROR((1+'Simulación Cliente'!$E$21)^(T78/360),"") ->  | AB78: 57 | AS78: 57 | AT78: 2027-06-01 | AU78: 31 | AV78: 1734 | AW78: 78821.06373 | AX78: 257.9598127 | AY78: 978.2034116 | AZ78: 0 | BA78: 25.2 | BB78: 0 | BC78: 1261.363224 | BD78: 78563.10392 | BE78: 0.5016205895 | BF78: 0.5016205895 | BJ78: 57 | BK78: 2027-06-01 | BL78: 31 | BM78: 1734 | BN78: 79177.06673 | BO78: 73.32692193 | BP78: 982.6215625 | BQ78: 0 | BR78: 25.2 | BS78: 0 | BT78: 1081.148484 | BU78: 79103.7398 | BV78: 0.5016205895 | BW78: 0.5016205895 | CA78: 57 | CB78: 2027-06-01 | CC78: 31 | CD78: 1734 | CE78: 84898.80121 | CF78: 106.1785557 | CG78: 1053.630756 | CH78: 0 | CI78: 25.2 | CJ78: 0 | CK78: 1185.009312 | CL78: 84792.62266 | CM78: 0.5016205895 | CN78: 0.5016205895 | CR78: 57 | CS78: 2027-06-01 | CT78: 31 | CU78: 1734 | CV78: 85233.25221 | CW78: -67.27793051 | CX78: 1057.781438 | CY78: 0 | CZ78: 25.2 | DA78: 0 | DB78: 1015.703507 | DC78: 85300.53015 | DD78: 0.5016205895 | DE78: 0.5016205895
B79: 58 | S79: =IFERROR((I79+J79+K79+L79+M79)*$J$12+('Simulador para calculos'!I79+'Simulador para calculos'!J79+'Simulador para calculos'!K79+'Simulador para calculos'!L79+'Simulador para calculos'!M79)*NOT($J$12),"") ->  | U79: =IFERROR((1+'Simulación Cliente'!$E$21)^(T79/360),"") ->  | AB79: 58 | AS79: 58 | AT79: 2027-07-01 | AU79: 30 | AV79: 1764 | AW79: 78563.10392 | AX79: 292.8009507 | AY79: 943.3622737 | AZ79: 0 | BA79: 25.2 | BB79: 0 | BC79: 1261.363224 | BD79: 78270.30296 | BE79: 0.4956687473 | BF79: 0.4956687473 | BJ79: 58 | BK79: 2027-07-01 | BL79: 30 | BM79: 1764 | BN79: 79103.7398 | BO79: 1187.242901 | BP79: 949.8540679 | BQ79: 0 | BR79: 25.2 | BS79: 0 | BT79: 2162.296969 | BU79: 77916.4969 | BV79: 0.9913374945 | BW79: 0.4956687473 | CA79: 58 | CB79: 2027-07-01 | CC79: 30 | CD79: 1764 | CE79: 84792.62266 | CF79: 141.644839 | CG79: 1018.164473 | CH79: 0 | CI79: 25.2 | CJ79: 0 | CK79: 1185.009312 | CL79: 84650.97782 | CM79: 0.4956687473 | CN79: 0.4956687473 | CR79: 58 | CS79: 2027-07-01 | CT79: 30 | CU79: 1764 | CV79: 85300.53015 | CW79: 981.9437397 | CX79: 1024.263274 | CY79: 0 | CZ79: 25.2 | DA79: 0 | DB79: 2031.407014 | DC79: 84318.58641 | DD79: 0.9913374945 | DE79: 0.4956687473
B80: 59 | S80: =IFERROR((I80+J80+K80+L80+M80)*$J$12+('Simulador para calculos'!I80+'Simulador para calculos'!J80+'Simulador para calculos'!K80+'Simulador para calculos'!L80+'Simulador para calculos'!M80)*NOT($J$12),"") ->  | U80: =IFERROR((1+'Simulación Cliente'!$E$21)^(T80/360),"") ->  | AB80: 59 | AS80: 59 | AT80: 2027-08-01 | AU80: 31 | AV80: 1795 | AW80: 78270.30296 | AX80: 264.7949914 | AY80: 971.3682329 | AZ80: 0 | BA80: 25.2 | BB80: 0 | BC80: 1261.363224 | BD80: 78005.50797 | BE80: 0.4895926907 | BF80: 0.4895926907 | BJ80: 59 | BK80: 2027-08-01 | BL80: 31 | BM80: 1795 | BN80: 77916.4969 | BO80: 88.97113736 | BP80: 966.977347 | BQ80: 0 | BR80: 25.2 | BS80: 0 | BT80: 1081.148484 | BU80: 77827.52577 | BV80: 0.4895926907 | BW80: 0.4895926907 | CA80: 59 | CB80: 2027-08-01 | CC80: 31 | CD80: 1795 | CE80: 84650.97782 | CF80: 109.254151 | CG80: 1050.555161 | CH80: 0 | CI80: 25.2 | CJ80: 0 | CK80: 1185.009312 | CL80: 84541.72367 | CM80: 0.4895926907 | CN80: 0.4895926907 | CR80: 59 | CS80: 2027-08-01 | CT80: 31 | CU80: 1795 | CV80: 84318.58641 | CW80: -55.92653315 | CX80: 1046.43004 | CY80: 0 | CZ80: 25.2 | DA80: 0 | DB80: 1015.703507 | DC80: 84374.51294 | DD80: 0.4895926907 | DE80: 0.4895926907
B81: 60 | S81: =IFERROR((I81+J81+K81+L81+M81)*$J$12+('Simulador para calculos'!I81+'Simulador para calculos'!J81+'Simulador para calculos'!K81+'Simulador para calculos'!L81+'Simulador para calculos'!M81)*NOT($J$12),"") ->  | U81: =IFERROR((1+'Simulación Cliente'!$E$21)^(T81/360),"") ->  | AB81: 60 | AS81: 60 | AT81: 2027-09-01 | AU81: 31 | AV81: 1826 | AW81: 78005.50797 | AX81: 268.0812115 | AY81: 968.0820128 | AZ81: 0 | BA81: 25.2 | BB81: 0 | BC81: 1261.363224 | BD81: 77737.42676 | BE81: 0.4835911163 | BF81: 0.4835911163 | BJ81: 60 | BK81: 2027-09-01 | BL81: 31 | BM81: 1826 | BN81: 77827.52577 | BO81: 90.07530756 | BP81: 965.8731768 | BQ81: 0 | BR81: 25.2 | BS81: 0 | BT81: 1081.148484 | BU81: 77737.45046 | BV81: 0.4835911163 | BW81: 0.4835911163 | CA81: 60 | CB81: 2027-09-01 | CC81: 31 | CD81: 1826 | CE81: 84541.72367 | CF81: 110.6100421 | CG81: 1049.19927 | CH81: 0 | CI81: 25.2 | CJ81: 0 | CK81: 1185.009312 | CL81: 84431.11363 | CM81: 0.4835911163 | CN81: 0.4835911163 | CR81: 60 | CS81: 2027-09-01 | CT81: 31 | CU81: 1826 | CV81: 84374.51294 | CW81: -56.62060555 | CX81: 1047.124113 | CY81: 0 | CZ81: 25.2 | DA81: 0 | DB81: 1015.703507 | DC81: 84431.13354 | DD81: 0.4835911163 | DE81: 0.4835911163
B82: 61 | S82: =IFERROR((I82+J82+K82+L82+M82)*$J$12+('Simulador para calculos'!I82+'Simulador para calculos'!J82+'Simulador para calculos'!K82+'Simulador para calculos'!L82+'Simulador para calculos'!M82)*NOT($J$12),"") ->  | U82: =IFERROR((1+'Simulación Cliente'!$E$21)^(T82/360),"") ->  | AB82: 61 | AS82: 61 | AT82: 2027-10-01 | AU82: 30 | AV82: 1856 | AW82: 77737.42676 | AX82: 302.7154352 | AY82: 933.4477892 | AZ82: 0 | BA82: 25.2 | BB82: 0 | BC82: 1261.363224 | BD82: 77434.71133 | BE82: 0.4778531979 | BF82: 0.4778531979 | BJ82: 61 | BK82: 2027-10-01 | BL82: 30 | BM82: 1856 | BN82: 77737.45046 | BO82: 122.5004107 | BP82: 933.4480737 | BQ82: 0 | BR82: 25.2 | BS82: 0 | BT82: 1081.148484 | BU82: 77614.95005 | BV82: 0.4778531979 | BW82: 0.4778531979 | CA82: 61 | CB82: 2027-10-01 | CC82: 30 | CD82: 1856 | CE82: 84431.11363 | CF82: 145.9857314 | CG82: 1013.823581 | CH82: 0 | CI82: 25.2 | CJ82: 0 | CK82: 1185.009312 | CL82: 84285.12789 | CM82: 0.4778531979 | CN82: 0.4778531979 | CR82: 61 | CS82: 2027-10-01 | CT82: 30 | CU82: 1856 | CV82: 84431.13354 | CW82: -23.32031276 | CX82: 1013.82382 | CY82: 0 | CZ82: 25.2 | DA82: 0 | DB82: 1015.703507 | DC82: 84454.45386 | DD82: 0.4778531979 | DE82: 0.4778531979
B83: 62 | S83: =IFERROR((I83+J83+K83+L83+M83)*$J$12+('Simulador para calculos'!I83+'Simulador para calculos'!J83+'Simulador para calculos'!K83+'Simulador para calculos'!L83+'Simulador para calculos'!M83)*NOT($J$12),"") ->  | U83: =IFERROR((1+'Simulación Cliente'!$E$21)^(T83/360),"") ->  | AB83: 62 | AS83: 62 | AT83: 2027-11-01 | AU83: 31 | AV83: 1887 | AW83: 77434.71133 | AX83: 275.1650442 | AY83: 960.9981801 | AZ83: 0 | BA83: 25.2 | BB83: 0 | BC83: 1261.363224 | BD83: 77159.54628 | BE83: 0.4719955297 | BF83: 0.4719955297 | BJ83: 62 | BK83: 2027-11-01 | BL83: 31 | BM83: 1887 | BN83: 77614.95005 | BO83: 92.71346395 | BP83: 963.2350204 | BQ83: 0 | BR83: 25.2 | BS83: 0 | BT83: 1081.148484 | BU83: 77522.23658 | BV83: 0.4719955297 | BW83: 0.4719955297 | CA83: 62 | CB83: 2027-11-01 | CC83: 31 | CD83: 1887 | CE83: 84285.12789 | CF83: 113.7945064 | CG83: 1046.014806 | CH83: 0 | CI83: 25.2 | CJ83: 0 | CK83: 1185.009312 | CL83: 84171.33339 | CM83: 0.4719955297 | CN83: 0.4719955297 | CR83: 62 | CS83: 2027-11-01 | CT83: 31 | CU83: 1887 | CV83: 84454.45386 | CW83: -57.61270684 | CX83: 1048.116214 | CY83: 0 | CZ83: 25.2 | DA83: 0 | DB83: 1015.703507 | DC83: 84512.06656 | DD83: 0.4719955297 | DE83: 0.4719955297
B84: 63 | S84: =IFERROR((I84+J84+K84+L84+M84)*$J$12+('Simulador para calculos'!I84+'Simulador para calculos'!J84+'Simulador para calculos'!K84+'Simulador para calculos'!L84+'Simulador para calculos'!M84)*NOT($J$12),"") ->  | U84: =IFERROR((1+'Simulación Cliente'!$E$21)^(T84/360),"") ->  | AB84: 63 | AS84: 63 | AT84: 2027-12-01 | AU84: 30 | AV84: 1917 | AW84: 77159.54628 | AX84: 309.6544513 | AY84: 926.5087731 | AZ84: 0 | BA84: 25.2 | BB84: 0 | BC84: 1261.363224 | BD84: 76849.89183 | BE84: 0.4663951956 | BF84: 0.4663951956 | BJ84: 63 | BK84: 2027-12-01 | BL84: 30 | BM84: 1917 | BN84: 77522.23658 | BO84: 1206.233119 | BP84: 930.8638498 | BQ84: 0 | BR84: 25.2 | BS84: 0 | BT84: 2162.296969 | BU84: 76316.00347 | BV84: 0.9327903912 | BW84: 0.4663951956 | CA84: 63 | CB84: 2027-12-01 | CC84: 30 | CD84: 1917 | CE84: 84171.33339 | CF84: 149.1050949 | CG84: 1010.704217 | CH84: 0 | CI84: 25.2 | CJ84: 0 | CK84: 1185.009312 | CL84: 84022.22829 | CM84: 0.4663951956 | CN84: 0.4663951956 | CR84: 63 | CS84: 2027-12-01 | CT84: 30 | CU84: 1917 | CV84: 84512.06656 | CW84: 991.4113748 | CX84: 1014.795639 | CY84: 0 | CZ84: 25.2 | DA84: 0 | DB84: 2031.407014 | DC84: 83520.65519 | DD84: 0.9327903912 | DE84: 0.4663951956
B85: 64 | S85: =IFERROR((I85+J85+K85+L85+M85)*$J$12+('Simulador para calculos'!I85+'Simulador para calculos'!J85+'Simulador para calculos'!K85+'Simulador para calculos'!L85+'Simulador para calculos'!M85)*NOT($J$12),"") ->  | U85: =IFERROR((1+'Simulación Cliente'!$E$21)^(T85/360),"") ->  | AB85: 64 | AS85: 64 | AT85: 2028-01-01 | AU85: 31 | AV85: 1948 | AW85: 76849.89183 | AX85: 282.4229065 | AY85: 953.7403178 | AZ85: 0 | BA85: 25.2 | BB85: 0 | BC85: 1261.363224 | BD85: 76567.46892 | BE85: 0.460677983 | BF85: 0.460677983 | BJ85: 64 | BK85: 2028-01-01 | BL85: 31 | BM85: 1948 | BN85: 76316.00347 | BO85: 108.8339515 | BP85: 947.1145329 | BQ85: 0 | BR85: 25.2 | BS85: 0 | BT85: 1081.148484 | BU85: 76207.16951 | BV85: 0.460677983 | BW85: 0.460677983 | CA85: 64 | CB85: 2028-01-01 | CC85: 31 | CD85: 1948 | CE85: 84022.22829 | CF85: 117.0572039 | CG85: 1042.752108 | CH85: 0 | CI85: 25.2 | CJ85: 0 | CK85: 1185.009312 | CL85: 83905.17109 | CM85: 0.460677983 | CN85: 0.460677983 | CR85: 64 | CS85: 2028-01-01 | CT85: 31 | CU85: 1948 | CV85: 83520.65519 | CW85: -46.02386245 | CX85: 1036.52737 | CY85: 0 | CZ85: 25.2 | DA85: 0 | DB85: 1015.703507 | DC85: 83566.67905 | DD85: 0.460677983 | DE85: 0.460677983
B86: 65 | M86: =IF(B86>C$6,"",C$15) ->  | P86: =IFERROR(IF(AND(MONTH(C86)=7,C$9=2),2/(1+C$11)^(G86/360),IF(AND(MONTH(C86)=12,C$10=2),2/(1+C$11)^(G86/360),1/(1+C$11)^(G86/360))),"") ->  | Q86: =IFERROR(1/(1+C$11)^(G86/360),"") ->  | S86: =IFERROR((I86+J86+K86+L86+M86)*$J$12+('Simulador para calculos'!I86+'Simulador para calculos'!J86+'Simulador para calculos'!K86+'Simulador para calculos'!L86+'Simulador para calculos'!M86)*NOT($J$12),"") ->  | T86: =G86 ->  | U86: =IFERROR((1+'Simulación Cliente'!$E$21)^(T86/360),"") ->  | AB86: 65 | AI86: =IF(AB86>AC$6,"",((1+AC$12)^(AD86/30)-1)*AF86) ->  | AJ86: =IF(AB86>AC$6,"",AC$4*AC$14) ->  | AK86: =IF(AB86>AC$6,"",AC$15) ->  | AL86: =IF(AB86>AC$6,"",IF(AB86=AC$6,AF86+AH86+AI86+AJ86+AK86,IF(AND(AC$9=2,MONTH(AC86)=7),2*AC$17,IF(AND(AC$10=2,MONTH(AC86)=12),2*AC$17,AC$17)))) ->  | AM86: =IF(AB86>AC$6,"",AF86-AG86) ->  | AS86: 65 | AT86: 2028-02-01 | AU86: 31 | AV86: 1979 | AW86: 76567.46892 | AX86: 285.9278966 | AY86: 950.2353277 | AZ86: =IF(AS86>AT$6,"",((1+AT$12)^(AU86/30)-1)*AW86) -> 0 | BA86: =IF(AS86>AT$6,"",AT$4*AT$14) -> 25.2 | BB86: =IF(AS86>AT$6,"",AT$15) -> 0 | BC86: =IF(AS86>AT$6,"",IF(AS86=AT$6,AW86+AY86+AZ86+BA86+BB86,IF(AND(AT$9=2,MONTH(AT86)=7),2*AT$17,IF(AND(AT$10=2,MONTH(AT86)=12),2*AT$17,AT$17)))) -> 1261.363224 | BD86: =IF(AS86>AT$6,"",AW86-AX86) -> 76281.54103 | BE86: 0.4550308538 | BF86: 0.4550308538 | BJ86: 65 | BK86: 2028-02-01 | BL86: 31 | BM86: 1979 | BN86: 76207.16951 | BO86: 110.1846278 | BP86: 945.7638566 | BQ86: =IF(BJ86>BK$6,"",((1+BK$12)^(BL86/30)-1)*BN86) -> 0 | BR86: =IF(BJ86>BK$6,"",BK$4*BK$14) -> 25.2 | BS86: =IF(BJ86>BK$6,"",BK$15) -> 0 | BT86: =IF(BJ86>BK$6,"",IF(BJ86=BK$6,BN86+BP86+BQ86+BR86+BS86,IF(AND(BK$9=2,MONTH(BK86)=7),2*BK$17,IF(AND(BK$10=2,MONTH(BK86)=12),2*BK$17,BK$17)))) -> 1081.148484 | BU86: =IF(BJ86>BK$6,"",BN86-BO86) -> 76096.98489 | BV86: 0.4550308538 | BW86: 0.4550308538 | CA86: 65 | CB86: 2028-02-01 | CC86: 31 | CD86: 1979 | CE86: 83905.17109 | CF86: 118.5099343 | CG86: 1041.299378 | CH86: =IF(CA86>CB$6,"",((1+CB$12)^(CC86/30)-1)*CE86) -> 0 | CI86: =IF(CA86>CB$6,"",CB$4*CB$14) -> 25.2 | CJ86: =IF(CA86>CB$6,"",CB$15) -> 0 | CK86: =IF(CA86>CB$6,"",IF(CA86=CB$6,CE86+CG86+CH86+CI86+CJ86,IF(AND(CB$9=2,MONTH(CB86)=7),2*CB$17,IF(AND(CB$10=2,MONTH(CB86)=12),2*CB$17,CB$17)))) -> 1185.009312 | CL86: =IF(CA86>CB$6,"",CE86-CF86) -> 83786.66116 | CM86: 0.4550308538 | CN86: 0.4550308538 | CR86: 65 | CS86: 2028-02-01 | CT86: 31 | CU86: 1979 | CV86: 83566.67905 | CW86: -46.59503844 | CX86: 1037.098546 | CY86: =IF(CR86>CS$6,"",((1+CS$12)^(CT86/30)-1)*CV86) -> 0 | CZ86: =IF(CR86>CS$6,"",CS$4*CS$14) -> 25.2 | DA86: =IF(CR86>CS$6,"",CS$15) -> 0 | DB86: =IF(CR86>CS$6,"",IF(CR86=CS$6,CV86+CX86+CY86+CZ86+DA86,IF(AND(CS$9=2,MONTH(CS86)=7),2*CS$17,IF(AND(CS$10=2,MONTH(CS86)=12),2*CS$17,CS$17)))) -> 1015.703507 | DC86: =IF(CR86>CS$6,"",CV86-CW86) -> 83613.27409 | DD86: 0.4550308538 | DE86: 0.4550308538
B87: 66 | D87: =IF(B87<=$C$6,WEEKDAY(C87,2),"") ->  | E87: =IF(D87=7,C87+1,C87) ->  | G87: =IFERROR(F87+G86,"") ->  | H87: =IF(B87>C$6,"",O86) ->  | I87: =IF(B87>C$6,"",N87-M87-L87-K87-J87) ->  | K87: =IF(B87>C$6,"",0) ->  | L87: =IF(B87>C$6,"",D$4*C$14) ->  | N87: =IF(B87>C$6,"",IF(B87=C$6,H87+J87+K87+L87+M87,IF(AND(C$9=2,MONTH(C87)=7),2*C$17,IF(AND(C$10=2,MONTH(C87)=12),2*C$17,C$17)))) ->  | O87: =IF(B87>C$6,"",H87-I87) ->  | S87: =IFERROR((I87+J87+K87+L87+M87)*$J$12+('Simulador para calculos'!I87+'Simulador para calculos'!J87+'Simulador para calculos'!K87+'Simulador para calculos'!L87+'Simulador para calculos'!M87)*NOT($J$12),"") ->  | U87: =IFERROR((1+'Simulación Cliente'!$E$21)^(T87/360),"") ->  | V87: =IFERROR(ROUND(S87/U87,2),"") ->  | AB87: 66 | AC87: =IF(AB87>AC$6,"",EDATE(AC$22,AB86)) ->  | AE87: =IFERROR(AD87+AE86,"") ->  | AF87: =IF(AB87>AC$6,"",AM86) ->  | AN87: =IFERROR(IF(AND(MONTH(AC87)=7,AC$9=2),2/(1+AC$13)^(AE87/360),IF(AND(MONTH(AC87)=12,AC$10=2),2/(1+AC$13)^(AE87/360),1/(1+AC$13)^(AE87/360))),"") ->  | AO87: =IFERROR(1/(1+AC$13)^(AE87/360),"") ->  | AS87: 66 | AT87: =IF(AS87>AT$6,"",EDATE(AT$22,AS86)) -> 2028-03-01 | AU87: 29 | AV87: =IFERROR(AU87+AV86,"") -> 2008 | AW87: =IF(AS87>AT$6,"",BD86) -> 76281.54103 | AX87: 350.9059462 | AY87: 885.2572781 | AZ87: 0 | BA87: 25.2 | BB87: 0 | BC87: 1261.363224 | BD87: 75930.63508 | BE87: =IFERROR(IF(AND(MONTH(AT87)=7,AT$9=2),2/(1+AT$13)^(AV87/360),IF(AND(MONTH(AT87)=12,AT$10=2),2/(1+AT$13)^(AV87/360),1/(1+AT$13)^(AV87/360))),"") -> 0.4498107412 | BF87: =IFERROR(1/(1+AT$13)^(AV87/360),"") -> 0.4498107412 | BJ87: 66 | BK87: =IF(BJ87>BK$6,"",EDATE(BK$22,BJ86)) -> 2028-03-01 | BL87: 29 | BM87: =IFERROR(BL87+BM86,"") -> 2008 | BN87: =IF(BJ87>BK$6,"",BU86) -> 76096.98489 | BO87: 172.8330045 | BP87: 883.1154799 | BQ87: 0 | BR87: 25.2 | BS87: 0 | BT87: 1081.148484 | BU87: 75924.15188 | BV87: =IFERROR(IF(AND(MONTH(BK87)=7,BK$9=2),2/(1+BK$13)^(BM87/360),IF(AND(MONTH(BK87)=12,BK$10=2),2/(1+BK$13)^(BM87/360),1/(1+BK$13)^(BM87/360))),"") -> 0.4498107412 | BW87: =IFERROR(1/(1+BK$13)^(BM87/360),"") -> 0.4498107412 | CA87: 66 | CB87: =IF(CA87>CB$6,"",EDATE(CB$22,CA86)) -> 2028-03-01 | CC87: 29 | CD87: =IFERROR(CC87+CD86,"") -> 2008 | CE87: =IF(CA87>CB$6,"",CL86) -> 83786.66116 | CF87: 187.4541315 | CG87: 972.3551805 | CH87: 0 | CI87: 25.2 | CJ87: 0 | CK87: 1185.009312 | CL87: 83599.20702 | CM87: =IFERROR(IF(AND(MONTH(CB87)=7,CB$9=2),2/(1+CB$13)^(CD87/360),IF(AND(MONTH(CB87)=12,CB$10=2),2/(1+CB$13)^(CD87/360),1/(1+CB$13)^(CD87/360))),"") -> 0.4498107412 | CN87: =IFERROR(1/(1+CB$13)^(CD87/360),"") -> 0.4498107412 | CR87: 66 | CS87: =IF(CR87>CS$6,"",EDATE(CS$22,CR86)) -> 2028-03-01 | CT87: 29 | CU87: =IFERROR(CT87+CU86,"") -> 2008 | CV87: =IF(CR87>CS$6,"",DC86) -> 83613.27409 | CW87: 20.16050614 | CX87: 970.3430009 | CY87: 0 | CZ87: 25.2 | DA87: 0 | DB87: 1015.703507 | DC87: 83593.11358 | DD87: =IFERROR(IF(AND(MONTH(CS87)=7,CS$9=2),2/(1+CS$13)^(CU87/360),IF(AND(MONTH(CS87)=12,CS$10=2),2/(1+CS$13)^(CU87/360),1/(1+CS$13)^(CU87/360))),"") -> 0.4498107412 | DE87: =IFERROR(1/(1+CS$13)^(CU87/360),"") -> 0.4498107412
B88: 67 | C88: =IF(B88>C$6,"",EDATE(C$22,B87)) ->  | F88: =IF(B88>C$6,"",E88-E87) ->  | J88: =IF(B88>C$6,"",((1+C$11)^(F88/360)-1)*H88) ->  | S88: =IFERROR((I88+J88+K88+L88+M88)*$J$12+('Simulador para calculos'!I88+'Simulador para calculos'!J88+'Simulador para calculos'!K88+'Simulador para calculos'!L88+'Simulador para calculos'!M88)*NOT($J$12),"") ->  | U88: =IFERROR((1+'Simulación Cliente'!$E$21)^(T88/360),"") ->  | AB88: 67 | AH88: =IF(AB88>AC$6,"",((1+AC$11)^(AD88/360)-1)*AF88) ->  | AS88: 67 | AT88: 2028-04-01 | AU88: 31 | AV88: 2039 | AW88: 75930.63508 | AX88: 293.8312794 | AY88: =IF(AS88>AT$6,"",((1+AT$11)^(AU88/360)-1)*AW88) -> 942.3319449 | AZ88: 0 | BA88: 25.2 | BB88: 0 | BC88: 1261.363224 | BD88: 75636.8038 | BE88: 0.4442968259 | BF88: 0.4442968259 | BJ88: 67 | BK88: 2028-04-01 | BL88: 31 | BM88: 2039 | BN88: 75924.15188 | BO88: 113.6969988 | BP88: =IF(BJ88>BK$6,"",((1+BK$11)^(BL88/360)-1)*BN88) -> 942.2514856 | BQ88: 0 | BR88: 25.2 | BS88: 0 | BT88: 1081.148484 | BU88: 75810.45488 | BV88: 0.4442968259 | BW88: 0.4442968259 | CA88: 67 | CB88: 2028-04-01 | CC88: 31 | CD88: 2039 | CE88: 83599.20702 | CF88: 122.3070804 | CG88: =IF(CA88>CB$6,"",((1+CB$11)^(CC88/360)-1)*CE88) -> 1037.502232 | CH88: 0 | CI88: 25.2 | CJ88: 0 | CK88: 1185.009312 | CL88: 83476.89994 | CM88: 0.4442968259 | CN88: 0.4442968259 | CR88: 67 | CS88: 2028-04-01 | CT88: 31 | CU88: 2039 | CV88: 83593.11358 | CW88: -46.92310239 | CX88: =IF(CR88>CS$6,"",((1+CS$11)^(CT88/360)-1)*CV88) -> 1037.426609 | CY88: 0 | CZ88: 25.2 | DA88: 0 | DB88: 1015.703507 | DC88: 83640.03669 | DD88: 0.4442968259 | DE88: 0.4442968259
B89: 68 | S89: =IFERROR((I89+J89+K89+L89+M89)*$J$12+('Simulador para calculos'!I89+'Simulador para calculos'!J89+'Simulador para calculos'!K89+'Simulador para calculos'!L89+'Simulador para calculos'!M89)*NOT($J$12),"") ->  | U89: =IFERROR((1+'Simulación Cliente'!$E$21)^(T89/360),"") ->  | AB89: 68 | AD89: =IF(AB89>AC$6,"",AC89-AC88) ->  | AG89: =IF(AB89>AC$6,"",AL89-AK89-AJ89-AI89-AH89) ->  | AS89: 68 | AT89: 2028-05-01 | AU89: =IF(AS89>AT$6,"",AT89-AT88) -> 30 | AV89: 2069 | AW89: 75636.8038 | AX89: =IF(AS89>AT$6,"",BC89-BB89-BA89-AZ89-AY89) -> 327.9390879 | AY89: 908.2241364 | AZ89: 0 | BA89: 25.2 | BB89: 0 | BC89: 1261.363224 | BD89: 75308.86471 | BE89: 0.4390251432 | BF89: 0.4390251432 | BJ89: 68 | BK89: 2028-05-01 | BL89: =IF(BJ89>BK$6,"",BK89-BK88) -> 30 | BM89: 2069 | BN89: 75810.45488 | BO89: =IF(BJ89>BK$6,"",BT89-BS89-BR89-BQ89-BP89) -> 145.6391977 | BP89: 910.3092867 | BQ89: 0 | BR89: 25.2 | BS89: 0 | BT89: 1081.148484 | BU89: 75664.81569 | BV89: 0.4390251432 | BW89: 0.4390251432 | CA89: 68 | CB89: 2028-05-01 | CC89: =IF(CA89>CB$6,"",CB89-CB88) -> 30 | CD89: 2069 | CE89: 83476.89994 | CF89: =IF(CA89>CB$6,"",CK89-CJ89-CI89-CH89-CG89) -> 157.4436442 | CG89: 1002.365668 | CH89: 0 | CI89: 25.2 | CJ89: 0 | CK89: 1185.009312 | CL89: 83319.4563 | CM89: 0.4390251432 | CN89: 0.4390251432 | CR89: 68 | CS89: 2028-05-01 | CT89: =IF(CR89>CS$6,"",CS89-CS88) -> 30 | CU89: 2069 | CV89: 83640.03669 | CW89: =IF(CR89>CS$6,"",DB89-DA89-CZ89-CY89-CX89) -> -13.8210581 | CX89: 1004.324565 | CY89: 0 | CZ89: 25.2 | DA89: 0 | DB89: 1015.703507 | DC89: 83653.85774 | DD89: 0.4390251432 | DE89: 0.4390251432
B90: 69 | S90: =IFERROR((I90+J90+K90+L90+M90)*$J$12+('Simulador para calculos'!I90+'Simulador para calculos'!J90+'Simulador para calculos'!K90+'Simulador para calculos'!L90+'Simulador para calculos'!M90)*NOT($J$12),"") ->  | U90: =IFERROR((1+'Simulación Cliente'!$E$21)^(T90/360),"") ->  | AB90: 69 | AS90: 69 | AT90: 2028-06-01 | AU90: 31 | AV90: 2100 | AW90: 75308.86471 | AX90: 301.547718 | AY90: 934.6155064 | AZ90: 0 | BA90: 25.2 | BB90: 0 | BC90: 1261.363224 | BD90: 75007.317 | BE90: 0.433643441 | BF90: 0.433643441 | BJ90: 69 | BK90: 2028-06-01 | BL90: 31 | BM90: 2100 | BN90: 75664.81569 | BO90: 116.9154729 | BP90: 939.0330115 | BQ90: 0 | BR90: 25.2 | BS90: 0 | BT90: 1081.148484 | BU90: 75547.90021 | BV90: 0.433643441 | BW90: 0.433643441 | CA90: 69 | CB90: 2028-06-01 | CC90: 31 | CD90: 2100 | CE90: 83319.4563 | CF90: 125.7789076 | CG90: 1034.030404 | CH90: 0 | CI90: 25.2 | CJ90: 0 | CK90: 1185.009312 | CL90: 83193.67739 | CM90: 0.433643441 | CN90: 0.433643441 | CR90: 69 | CS90: 2028-06-01 | CT90: 31 | CU90: 2100 | CV90: 83653.85774 | CW90: -47.67696363 | CX90: 1038.180471 | CY90: 0 | CZ90: 25.2 | DA90: 0 | DB90: 1015.703507 | DC90: 83701.53471 | DD90: 0.433643441 | DE90: 0.433643441
B91: 70 | S91: =IFERROR((I91+J91+K91+L91+M91)*$J$12+('Simulador para calculos'!I91+'Simulador para calculos'!J91+'Simulador para calculos'!K91+'Simulador para calculos'!L91+'Simulador para calculos'!M91)*NOT($J$12),"") ->  | U91: =IFERROR((1+'Simulación Cliente'!$E$21)^(T91/360),"") ->  | AB91: 70 | AS91: 70 | AT91: 2028-07-01 | AU91: 30 | AV91: 2130 | AW91: 75007.317 | AX91: 335.4977774 | AY91: 900.665447 | AZ91: 0 | BA91: 25.2 | BB91: 0 | BC91: 1261.363224 | BD91: 74671.81922 | BE91: 0.4284981631 | BF91: 0.4284981631 | BJ91: 70 | BK91: 2028-07-01 | BL91: 30 | BM91: 2130 | BN91: 75547.90021 | BO91: 1229.94036 | BP91: 907.1566087 | BQ91: 0 | BR91: 25.2 | BS91: 0 | BT91: 2162.296969 | BU91: 74317.95985 | BV91: 0.8569963261 | BW91: 0.4284981631 | CA91: 70 | CB91: 2028-07-01 | CC91: 30 | CD91: 2130 | CE91: 83193.67739 | CF91: 160.8444959 | CG91: 998.9648162 | CH91: 0 | CI91: 25.2 | CJ91: 0 | CK91: 1185.009312 | CL91: 83032.8329 | CM91: 0.4284981631 | CN91: 0.4284981631 | CR91: 70 | CS91: 2028-07-01 | CT91: 30 | CU91: 2130 | CV91: 83701.53471 | CW91: 1001.143999 | CX91: 1005.063015 | CY91: 0 | CZ91: 25.2 | DA91: 0 | DB91: 2031.407014 | DC91: 82700.39071 | DD91: 0.8569963261 | DE91: 0.4284981631
B92: 71 | S92: =IFERROR((I92+J92+K92+L92+M92)*$J$12+('Simulador para calculos'!I92+'Simulador para calculos'!J92+'Simulador para calculos'!K92+'Simulador para calculos'!L92+'Simulador para calculos'!M92)*NOT($J$12),"") ->  | U92: =IFERROR((1+'Simulación Cliente'!$E$21)^(T92/360),"") ->  | AB92: 71 | AS92: 71 | AT92: 2028-08-01 | AU92: 31 | AV92: 2161 | AW92: 74671.81922 | AX92: 309.4537274 | AY92: 926.7094969 | AZ92: 0 | BA92: 25.2 | BB92: 0 | BC92: 1261.363224 | BD92: 74362.36549 | BE92: 0.4232455037 | BF92: 0.4232455037 | BJ92: 71 | BK92: 2028-08-01 | BL92: 31 | BM92: 2161 | BN92: 74317.95985 | BO92: 133.6305349 | BP92: 922.3179495 | BQ92: 0 | BR92: 25.2 | BS92: 0 | BT92: 1081.148484 | BU92: 74184.32932 | BV92: 0.4232455037 | BW92: 0.4232455037 | CA92: 71 | CB92: 2028-08-01 | CC92: 31 | CD92: 2161 | CE92: 83032.8329 | CF92: 129.3360277 | CG92: 1030.473284 | CH92: 0 | CI92: 25.2 | CJ92: 0 | CK92: 1185.009312 | CL92: 82903.49687 | CM92: 0.4232455037 | CN92: 0.4232455037 | CR92: 71 | CS92: 2028-08-01 | CT92: 31 | CU92: 2161 | CV92: 82700.39071 | CW92: -35.84402631 | CX92: 1026.347533 | CY92: 0 | CZ92: 25.2 | DA92: 0 | DB92: 1015.703507 | DC92: 82736.23474 | DD92: 0.4232455037 | DE92: 0.4232455037
B93: 72 | S93: =IFERROR((I93+J93+K93+L93+M93)*$J$12+('Simulador para calculos'!I93+'Simulador para calculos'!J93+'Simulador para calculos'!K93+'Simulador para calculos'!L93+'Simulador para calculos'!M93)*NOT($J$12),"") ->  | U93: =IFERROR((1+'Simulación Cliente'!$E$21)^(T93/360),"") ->  | AB93: 72 | AS93: 72 | AT93: 2028-09-01 | AU93: 31 | AV93: 2192 | AW93: 74362.36549 | AX93: 313.2941817 | AY93: 922.8690426 | AZ93: 0 | BA93: 25.2 | BB93: 0 | BC93: 1261.363224 | BD93: 74049.07131 | BE93: 0.4180572331 | BF93: 0.4180572331 | BJ93: 72 | BK93: 2028-09-01 | BL93: 31 | BM93: 2192 | BN93: 74184.32932 | BO93: 135.2889475 | BP93: 920.6595369 | BQ93: 0 | BR93: 25.2 | BS93: 0 | BT93: 1081.148484 | BU93: 74049.04037 | BV93: 0.4180572331 | BW93: 0.4180572331 | CA93: 72 | CB93: 2028-09-01 | CC93: 31 | CD93: 2192 | CE93: 82903.49687 | CF93: 130.9411436 | CG93: 1028.868168 | CH93: 0 | CI93: 25.2 | CJ93: 0 | CK93: 1185.009312 | CL93: 82772.55572 | CM93: 0.4180572331 | CN93: 0.4180572331 | CR93: 72 | CS93: 2028-09-01 | CT93: 31 | CU93: 2192 | CV93: 82736.23474 | CW93: -36.28886614 | CX93: 1026.792373 | CY93: 0 | CZ93: 25.2 | DA93: 0 | DB93: 1015.703507 | DC93: 82772.5236 | DD93: 0.4180572331 | DE93: 0.4180572331
B94: 73 | S94: =IFERROR((I94+J94+K94+L94+M94)*$J$12+('Simulador para calculos'!I94+'Simulador para calculos'!J94+'Simulador para calculos'!K94+'Simulador para calculos'!L94+'Simulador para calculos'!M94)*NOT($J$12),"") ->  | U94: =IFERROR((1+'Simulación Cliente'!$E$21)^(T94/360),"") ->  | AB94: 73 | AS94: 73 | AT94: 2028-10-01 | AU94: 30 | AV94: 2222 | AW94: 74049.07131 | AX94: 347.0041052 | AY94: 889.1591191 | AZ94: 0 | BA94: 25.2 | BB94: 0 | BC94: 1261.363224 | BD94: 73702.0672 | BE94: 0.4130968891 | BF94: 0.4130968891 | BJ94: 73 | BK94: 2028-10-01 | BL94: 30 | BM94: 2222 | BN94: 74049.04037 | BO94: 166.7897368 | BP94: 889.1587476 | BQ94: 0 | BR94: 25.2 | BS94: 0 | BT94: 1081.148484 | BU94: 73882.25063 | BV94: 0.4130968891 | BW94: 0.4130968891 | CA94: 73 | CB94: 2028-10-01 | CC94: 30 | CD94: 2222 | CE94: 82772.55572 | CF94: 165.9011991 | CG94: 993.908113 | CH94: 0 | CI94: 25.2 | CJ94: 0 | CK94: 1185.009312 | CL94: 82606.65453 | CM94: 0.4130968891 | CN94: 0.4130968891 | CR94: 73 | CS94: 2028-10-01 | CT94: 30 | CU94: 2222 | CV94: 82772.5236 | CW94: -3.404220233 | CX94: 993.9077273 | CY94: 0 | CZ94: 25.2 | DA94: 0 | DB94: 1015.703507 | DC94: 82775.92782 | DD94: 0.4130968891 | DE94: 0.4130968891
B95: 74 | S95: =IFERROR((I95+J95+K95+L95+M95)*$J$12+('Simulador para calculos'!I95+'Simulador para calculos'!J95+'Simulador para calculos'!K95+'Simulador para calculos'!L95+'Simulador para calculos'!M95)*NOT($J$12),"") ->  | U95: =IFERROR((1+'Simulación Cliente'!$E$21)^(T95/360),"") ->  | AB95: 74 | AS95: 74 | AT95: 2028-11-01 | AU95: 31 | AV95: 2253 | AW95: 73702.0672 | AX95: 321.4887684 | AY95: 914.674456 | AZ95: 0 | BA95: 25.2 | BB95: 0 | BC95: 1261.363224 | BD95: 73380.57844 | BE95: 0.4080330232 | BF95: 0.4080330232 | BJ95: 74 | BK95: 2028-11-01 | BL95: 31 | BM95: 2253 | BN95: 73882.25063 | BO95: 139.0378743 | BP95: 916.9106101 | BQ95: 0 | BR95: 25.2 | BS95: 0 | BT95: 1081.148484 | BU95: 73743.21276 | BV95: 0.4080330232 | BW95: 0.4080330232 | CA95: 74 | CB95: 2028-11-01 | CC95: 31 | CD95: 2253 | CE95: 82606.65453 | CF95: 134.6250852 | CG95: 1025.184227 | CH95: 0 | CI95: 25.2 | CJ95: 0 | CK95: 1185.009312 | CL95: 82472.02944 | CM95: 0.4080330232 | CN95: 0.4080330232 | CR95: 74 | CS95: 2028-11-01 | CT95: 31 | CU95: 2253 | CV95: 82775.92782 | CW95: -36.78147447 | CX95: 1027.284982 | CY95: 0 | CZ95: 25.2 | DA95: 0 | DB95: 1015.703507 | DC95: 82812.7093 | DD95: 0.4080330232 | DE95: 0.4080330232
B96: 75 | S96: =IFERROR((I96+J96+K96+L96+M96)*$J$12+('Simulador para calculos'!I96+'Simulador para calculos'!J96+'Simulador para calculos'!K96+'Simulador para calculos'!L96+'Simulador para calculos'!M96)*NOT($J$12),"") ->  | U96: =IFERROR((1+'Simulación Cliente'!$E$21)^(T96/360),"") ->  | AB96: 75 | AS96: 75 | AT96: 2028-12-01 | AU96: 30 | AV96: 2283 | AW96: 73380.57844 | AX96: 355.0311679 | AY96: 881.1320565 | AZ96: 0 | BA96: 25.2 | BB96: 0 | BC96: 1261.363224 | BD96: 73025.54727 | BE96: 0.4031916187 | BF96: 0.4031916187 | BJ96: 75 | BK96: 2028-12-01 | BL96: 30 | BM96: 2283 | BN96: 73743.21276 | BO96: 1251.610508 | BP96: 885.4864611 | BQ96: 0 | BR96: 25.2 | BS96: 0 | BT96: 2162.296969 | BU96: 72491.60225 | BV96: 0.8063832375 | BW96: 0.4031916187 | CA96: 75 | CB96: 2028-12-01 | CC96: 30 | CD96: 2283 | CE96: 82472.02944 | CF96: 169.5098289 | CG96: 990.2994832 | CH96: 0 | CI96: 25.2 | CJ96: 0 | CK96: 1185.009312 | CL96: 82302.51961 | CM96: 0.4031916187 | CN96: 0.4031916187 | CR96: 75 | CS96: 2028-12-01 | CT96: 30 | CU96: 2283 | CV96: 82812.7093 | CW96: 1011.816749 | CX96: 994.3902651 | CY96: 0 | CZ96: 25.2 | DA96: 0 | DB96: 2031.407014 | DC96: 81800.89255 | DD96: 0.8063832375 | DE96: 0.4031916187
B97: 76 | S97: =IFERROR((I97+J97+K97+L97+M97)*$J$12+('Simulador para calculos'!I97+'Simulador para calculos'!J97+'Simulador para calculos'!K97+'Simulador para calculos'!L97+'Simulador para calculos'!M97)*NOT($J$12),"") ->  | U97: =IFERROR((1+'Simulación Cliente'!$E$21)^(T97/360),"") ->  | AB97: 76 | AS97: 76 | AT97: 2029-01-01 | AU97: 31 | AV97: 2314 | AW97: 73025.54727 | AX97: 329.8846727 | AY97: 906.2785516 | AZ97: 0 | BA97: 25.2 | BB97: 0 | BC97: 1261.363224 | BD97: 72695.6626 | BE97: 0.3982491746 | BF97: 0.3982491746 | BJ97: 76 | BK97: 2029-01-01 | BL97: 31 | BM97: 2314 | BN97: 72491.60225 | BO97: 156.2964208 | BP97: 899.6520636 | BQ97: 0 | BR97: 25.2 | BS97: 0 | BT97: 1081.148484 | BU97: 72335.30583 | BV97: 0.3982491746 | BW97: 0.3982491746 | CA97: 76 | CB97: 2029-01-01 | CC97: 31 | CD97: 2314 | CE97: 82302.51961 | CF97: 138.3995307 | CG97: 1021.409781 | CH97: 0 | CI97: 25.2 | CJ97: 0 | CK97: 1185.009312 | CL97: 82164.12008 | CM97: 0.3982491746 | CN97: 0.3982491746 | CR97: 76 | CS97: 2029-01-01 | CT97: 31 | CU97: 2314 | CV97: 81800.89255 | CW97: -24.68086599 | CX97: 1015.184373 | CY97: 0 | CZ97: 25.2 | DA97: 0 | DB97: 1015.703507 | DC97: 81825.57341 | DD97: 0.3982491746 | DE97: 0.3982491746
B98: 77 | S98: =IFERROR((I98+J98+K98+L98+M98)*$J$12+('Simulador para calculos'!I98+'Simulador para calculos'!J98+'Simulador para calculos'!K98+'Simulador para calculos'!L98+'Simulador para calculos'!M98)*NOT($J$12),"") ->  | U98: =IFERROR((1+'Simulación Cliente'!$E$21)^(T98/360),"") ->  | AB98: 77 | AS98: 77 | AT98: 2029-02-01 | AU98: 31 | AV98: 2345 | AW98: 72695.6626 | AX98: 333.9786838 | AY98: 902.1845405 | AZ98: 0 | BA98: 25.2 | BB98: 0 | BC98: 1261.363224 | BD98: 72361.68391 | BE98: 0.3933673165 | BF98: 0.3933673165 | BJ98: 77 | BK98: 2029-02-01 | BL98: 31 | BM98: 2345 | BN98: 72335.30583 | BO98: 158.2361268 | BP98: 897.7123576 | BQ98: 0 | BR98: 25.2 | BS98: 0 | BT98: 1081.148484 | BU98: 72177.0697 | BV98: 0.3933673165 | BW98: 0.3933673165 | CA98: 77 | CB98: 2029-02-01 | CC98: 31 | CD98: 2345 | CE98: 82164.12008 | CF98: 140.1171286 | CG98: 1019.692183 | CH98: 0 | CI98: 25.2 | CJ98: 0 | CK98: 1185.009312 | CL98: 82024.00295 | CM98: 0.3933673165 | CN98: 0.3933673165 | CR98: 77 | CS98: 2029-02-01 | CT98: 31 | CU98: 2345 | CV98: 81825.57341 | CW98: -24.98716619 | CX98: 1015.490673 | CY98: 0 | CZ98: 25.2 | DA98: 0 | DB98: 1015.703507 | DC98: 81850.56058 | DD98: 0.3933673165 | DE98: 0.3933673165
B99: 78 | S99: =IFERROR((I99+J99+K99+L99+M99)*$J$12+('Simulador para calculos'!I99+'Simulador para calculos'!J99+'Simulador para calculos'!K99+'Simulador para calculos'!L99+'Simulador para calculos'!M99)*NOT($J$12),"") ->  | U99: =IFERROR((1+'Simulación Cliente'!$E$21)^(T99/360),"") ->  | AB99: 78 | AS99: 78 | AT99: 2029-03-01 | AU99: 28 | AV99: 2373 | AW99: 72361.68391 | AX99: 425.5154665 | AY99: 810.6477579 | AZ99: 0 | BA99: 25.2 | BB99: 0 | BC99: 1261.363224 | BD99: 71936.16845 | BE99: 0.3890093533 | BF99: 0.3890093533 | BJ99: 78 | BK99: 2029-03-01 | BL99: 28 | BM99: 2373 | BN99: 72177.0697 | BO99: 247.368908 | BP99: 808.5795764 | BQ99: 0 | BR99: 25.2 | BS99: 0 | BT99: 1081.148484 | BU99: 71929.7008 | BV99: 0.3890093533 | BW99: 0.3890093533 | CA99: 78 | CB99: 2029-03-01 | CC99: 28 | CD99: 2373 | CE99: 82024.00295 | CF99: 240.9172895 | CG99: 918.8920226 | CH99: 0 | CI99: 25.2 | CJ99: 0 | CK99: 1185.009312 | CL99: 81783.08566 | CM99: 0.3890093533 | CN99: 0.3890093533 | CR99: 78 | CS99: 2029-03-01 | CT99: 28 | CU99: 2373 | CV99: 81850.56058 | CW99: 73.55451102 | CX99: 916.948996 | CY99: 0 | CZ99: 25.2 | DA99: 0 | DB99: 1015.703507 | DC99: 81777.00607 | DD99: 0.3890093533 | DE99: 0.3890093533
B100: 79 | S100: =IFERROR((I100+J100+K100+L100+M100)*$J$12+('Simulador para calculos'!I100+'Simulador para calculos'!J100+'Simulador para calculos'!K100+'Simulador para calculos'!L100+'Simulador para calculos'!M100)*NOT($J$12),"") ->  | U100: =IFERROR((1+'Simulación Cliente'!$E$21)^(T100/360),"") ->  | AB100: 79 | AS100: 79 | AT100: 2029-04-01 | AU100: 31 | AV100: 2404 | AW100: 71936.16845 | AX100: 343.404334 | AY100: 892.7588904 | AZ100: 0 | BA100: 25.2 | BB100: 0 | BC100: 1261.363224 | BD100: 71592.76411 | BE100: 0.3842407596 | BF100: 0.3842407596 | BJ100: 79 | BK100: 2029-04-01 | BL100: 31 | BM100: 2404 | BN100: 71929.7008 | BO100: 163.2698603 | BP100: 892.6786241 | BQ100: 0 | BR100: 25.2 | BS100: 0 | BT100: 1081.148484 | BU100: 71766.43093 | BV100: 0.3842407596 | BW100: 0.3842407596 | CA100: 79 | CB100: 2029-04-01 | CC100: 31 | CD100: 2404 | CE100: 81783.08566 | CF100: 144.8459301 | CG100: 1014.963382 | CH100: 0 | CI100: 25.2 | CJ100: 0 | CK100: 1185.009312 | CL100: 81638.23973 | CM100: 0.3842407596 | CN100: 0.3842407596 | CR100: 79 | CS100: 2029-04-01 | CT100: 31 | CU100: 2404 | CV100: 81777.00607 | CW100: -24.38442448 | CX100: 1014.887932 | CY100: 0 | CZ100: 25.2 | DA100: 0 | DB100: 1015.703507 | DC100: 81801.39049 | DD100: 0.3842407596 | DE100: 0.3842407596
B101: 80 | S101: =IFERROR((I101+J101+K101+L101+M101)*$J$12+('Simulador para calculos'!I101+'Simulador para calculos'!J101+'Simulador para calculos'!K101+'Simulador para calculos'!L101+'Simulador para calculos'!M101)*NOT($J$12),"") ->  | U101: =IFERROR((1+'Simulación Cliente'!$E$21)^(T101/360),"") ->  | AB101: 80 | AS101: 80 | AT101: 2029-05-01 | AU101: 30 | AV101: 2434 | AW101: 71592.76411 | AX101: 376.498708 | AY101: 859.6645163 | AZ101: 0 | BA101: 25.2 | BB101: 0 | BC101: 1261.363224 | BD101: 71216.2654 | BE101: 0.3796816558 | BF101: 0.3796816558 | BJ101: 80 | BK101: 2029-05-01 | BL101: 30 | BM101: 2434 | BN101: 71766.43093 | BO101: 194.1986287 | BP101: 861.7498557 | BQ101: 0 | BR101: 25.2 | BS101: 0 | BT101: 1081.148484 | BU101: 71572.23231 | BV101: 0.3796816558 | BW101: 0.3796816558 | CA101: 80 | CB101: 2029-05-01 | CC101: 30 | CD101: 2434 | CE101: 81638.23973 | CF101: 179.5217265 | CG101: 980.2875856 | CH101: 0 | CI101: 25.2 | CJ101: 0 | CK101: 1185.009312 | CL101: 81458.71801 | CM101: 0.3796816558 | CN101: 0.3796816558 | CR101: 80 | CS101: 2029-05-01 | CT101: 30 | CU101: 2434 | CV101: 81801.39049 | CW101: 8.256855918 | CX101: 982.2466511 | CY101: 0 | CZ101: 25.2 | DA101: 0 | DB101: 1015.703507 | DC101: 81793.13364 | DD101: 0.3796816558 | DE101: 0.3796816558
B102: 81 | S102: =IFERROR((I102+J102+K102+L102+M102)*$J$12+('Simulador para calculos'!I102+'Simulador para calculos'!J102+'Simulador para calculos'!K102+'Simulador para calculos'!L102+'Simulador para calculos'!M102)*NOT($J$12),"") ->  | U102: =IFERROR((1+'Simulación Cliente'!$E$21)^(T102/360),"") ->  | AB102: 81 | AS102: 81 | AT102: 2029-06-01 | AU102: 31 | AV102: 2465 | AW102: 71216.2654 | AX102: 352.3386413 | AY102: 883.824583 | AZ102: 0 | BA102: 25.2 | BB102: 0 | BC102: 1261.363224 | BD102: 70863.92676 | BE102: 0.3750274039 | BF102: 0.3750274039 | BJ102: 81 | BK102: 2029-06-01 | BL102: 31 | BM102: 2465 | BN102: 71572.23231 | BO102: 167.7061985 | BP102: 888.2422859 | BQ102: 0 | BR102: 25.2 | BS102: 0 | BT102: 1081.148484 | BU102: 71404.52611 | BV102: 0.3750274039 | BW102: 0.3750274039 | CA102: 81 | CB102: 2029-06-01 | CC102: 31 | CD102: 2465 | CE102: 81458.71801 | CF102: 148.8714727 | CG102: 1010.937839 | CH102: 0 | CI102: 25.2 | CJ102: 0 | CK102: 1185.009312 | CL102: 81309.84653 | CM102: 0.3750274039 | CN102: 0.3750274039 | CR102: 81 | CS102: 2029-06-01 | CT102: 31 | CU102: 2465 | CV102: 81793.13364 | CW102: -24.58457457 | CX102: 1015.088082 | CY102: 0 | CZ102: 25.2 | DA102: 0 | DB102: 1015.703507 | DC102: 81817.71821 | DD102: 0.3750274039 | DE102: 0.3750274039
B103: 82 | S103: =IFERROR((I103+J103+K103+L103+M103)*$J$12+('Simulador para calculos'!I103+'Simulador para calculos'!J103+'Simulador para calculos'!K103+'Simulador para calculos'!L103+'Simulador para calculos'!M103)*NOT($J$12),"") ->  | U103: =IFERROR((1+'Simulación Cliente'!$E$21)^(T103/360),"") ->  | AB103: 82 | AS103: 82 | AT103: 2029-07-01 | AU103: 30 | AV103: 2495 | AW103: 70863.92676 | AX103: 385.2503691 | AY103: 850.9128553 | AZ103: 0 | BA103: 25.2 | BB103: 0 | BC103: 1261.363224 | BD103: 70478.67639 | BE103: 0.3705776186 | BF103: 0.3705776186 | BJ103: 82 | BK103: 2029-07-01 | BL103: 30 | BM103: 2495 | BN103: 71404.52611 | BO103: 1279.692758 | BP103: 857.4042107 | BQ103: 0 | BR103: 25.2 | BS103: 0 | BT103: 2162.296969 | BU103: 70124.83335 | BV103: 0.7411552371 | BW103: 0.3705776186 | CA103: 82 | CB103: 2029-07-01 | CC103: 30 | CD103: 2495 | CE103: 81309.84653 | CF103: 183.4649739 | CG103: 976.3443382 | CH103: 0 | CI103: 25.2 | CJ103: 0 | CK103: 1185.009312 | CL103: 81126.38156 | CM103: 0.3705776186 | CN103: 0.3705776186 | CR103: 82 | CS103: 2029-07-01 | CT103: 30 | CU103: 2495 | CV103: 81817.71821 | CW103: 1023.764305 | CX103: 982.4427095 | CY103: 0 | CZ103: 25.2 | DA103: 0 | DB103: 2031.407014 | DC103: 80793.95391 | DD103: 0.7411552371 | DE103: 0.3705776186
B104: 83 | S104: =IFERROR((I104+J104+K104+L104+M104)*$J$12+('Simulador para calculos'!I104+'Simulador para calculos'!J104+'Simulador para calculos'!K104+'Simulador para calculos'!L104+'Simulador para calculos'!M104)*NOT($J$12),"") ->  | U104: =IFERROR((1+'Simulación Cliente'!$E$21)^(T104/360),"") ->  | AB104: 83 | AS104: 83 | AT104: 2029-08-01 | AU104: 31 | AV104: 2526 | AW104: 70478.67639 | AX104: 361.4924392 | AY104: 874.6707851 | AZ104: 0 | BA104: 25.2 | BB104: 0 | BC104: 1261.363224 | BD104: 70117.18395 | BE104: 0.3660349667 | BF104: 0.3660349667 | BJ104: 83 | BK104: 2029-08-01 | BL104: 31 | BM104: 2526 | BN104: 70124.83335 | BO104: 185.6690441 | BP104: 870.2794403 | BQ104: 0 | BR104: 25.2 | BS104: 0 | BT104: 1081.148484 | BU104: 69939.16431 | BV104: 0.3660349667 | BW104: 0.3660349667 | CA104: 83 | CB104: 2029-08-01 | CC104: 31 | CD104: 2526 | CE104: 81126.38156 | CF104: 152.9959114 | CG104: 1006.813401 | CH104: 0 | CI104: 25.2 | CJ104: 0 | CK104: 1185.009312 | CL104: 80973.38565 | CM104: 0.3660349667 | CN104: 0.3660349667 | CR104: 83 | CS104: 2029-08-01 | CT104: 31 | CU104: 2526 | CV104: 80793.95391 | CW104: -12.18432298 | CX104: 1002.68783 | CY104: 0 | CZ104: 25.2 | DA104: 0 | DB104: 1015.703507 | DC104: 80806.13823 | DD104: 0.3660349667 | DE104: 0.3660349667
B105: 84 | S105: =IFERROR((I105+J105+K105+L105+M105)*$J$12+('Simulador para calculos'!I105+'Simulador para calculos'!J105+'Simulador para calculos'!K105+'Simulador para calculos'!L105+'Simulador para calculos'!M105)*NOT($J$12),"") ->  | U105: =IFERROR((1+'Simulación Cliente'!$E$21)^(T105/360),"") ->  | AB105: 84 | AS105: 84 | AT105: 2029-09-01 | AU105: 31 | AV105: 2557 | AW105: 70117.18395 | AX105: 365.9787164 | AY105: 870.184508 | AZ105: 0 | BA105: 25.2 | BB105: 0 | BC105: 1261.363224 | BD105: 69751.20524 | BE105: 0.361548 | BF105: 0.361548 | BJ105: 84 | BK105: 2029-09-01 | BL105: 31 | BM105: 2557 | BN105: 69939.16431 | BO105: 187.9732771 | BP105: 867.9752073 | BQ105: 0 | BR105: 25.2 | BS105: 0 | BT105: 1081.148484 | BU105: 69751.19103 | BV105: 0.361548 | BW105: 0.361548 | CA105: 84 | CB105: 2029-09-01 | CC105: 31 | CD105: 2557 | CE105: 80973.38565 | CF105: 154.8946567 | CG105: 1004.914655 | CH105: 0 | CI105: 25.2 | CJ105: 0 | CK105: 1185.009312 | CL105: 80818.49099 | CM105: 0.361548 | CN105: 0.361548 | CR105: 84 | CS105: 2029-09-01 | CT105: 31 | CU105: 2557 | CV105: 80806.13823 | CW105: -12.33553568 | CX105: 1002.839043 | CY105: 0 | CZ105: 25.2 | DA105: 0 | DB105: 1015.703507 | DC105: 80818.47377 | DD105: 0.361548 | DE105: 0.361548
B106: 85 | S106: =IFERROR((I106+J106+K106+L106+M106)*$J$12+('Simulador para calculos'!I106+'Simulador para calculos'!J106+'Simulador para calculos'!K106+'Simulador para calculos'!L106+'Simulador para calculos'!M106)*NOT($J$12),"") ->  | U106: =IFERROR((1+'Simulación Cliente'!$E$21)^(T106/360),"") ->  | AB106: 85 | AS106: 85 | AT106: 2029-10-01 | AU106: 30 | AV106: 2587 | AW106: 69751.20524 | AX106: 398.6115966 | AY106: 837.5516277 | AZ106: 0 | BA106: 25.2 | BB106: 0 | BC106: 1261.363224 | BD106: 69352.59364 | BE106: 0.3572581509 | BF106: 0.3572581509 | BJ106: 85 | BK106: 2029-10-01 | BL106: 30 | BM106: 2587 | BN106: 69751.19103 | BO106: 218.3970273 | BP106: 837.5514571 | BQ106: 0 | BR106: 25.2 | BS106: 0 | BT106: 1081.148484 | BU106: 69532.794 | BV106: 0.3572581509 | BW106: 0.3572581509 | CA106: 85 | CB106: 2029-10-01 | CC106: 30 | CD106: 2587 | CE106: 80818.49099 | CF106: 189.3650244 | CG106: 970.4442877 | CH106: 0 | CI106: 25.2 | CJ106: 0 | CK106: 1185.009312 | CL106: 80629.12597 | CM106: 0.3572581509 | CN106: 0.3572581509 | CR106: 85 | CS106: 2029-10-01 | CT106: 30 | CU106: 2587 | CV106: 80818.47377 | CW106: 20.05942624 | CX106: 970.4440808 | CY106: 0 | CZ106: 25.2 | DA106: 0 | DB106: 1015.703507 | DC106: 80798.41434 | DD106: 0.3572581509 | DE106: 0.3572581509
B107: 86 | S107: =IFERROR((I107+J107+K107+L107+M107)*$J$12+('Simulador para calculos'!I107+'Simulador para calculos'!J107+'Simulador para calculos'!K107+'Simulador para calculos'!L107+'Simulador para calculos'!M107)*NOT($J$12),"") ->  | U107: =IFERROR((1+'Simulación Cliente'!$E$21)^(T107/360),"") ->  | AB107: 86 | AS107: 86 | AT107: 2029-11-01 | AU107: 31 | AV107: 2618 | AW107: 69352.59364 | AX107: 375.4676121 | AY107: 860.6956123 | AZ107: 0 | BA107: 25.2 | BB107: 0 | BC107: 1261.363224 | BD107: 68977.12603 | BE107: 0.3528787731 | BF107: 0.3528787731 | BJ107: 86 | BK107: 2029-11-01 | BL107: 31 | BM107: 2618 | BN107: 69532.794 | BO107: 193.0165079 | BP107: 862.9319765 | BQ107: 0 | BR107: 25.2 | BS107: 0 | BT107: 1081.148484 | BU107: 69339.77749 | BV107: 0.3528787731 | BW107: 0.3528787731 | CA107: 86 | CB107: 2029-11-01 | CC107: 31 | CD107: 2618 | CE107: 80629.12597 | CF107: 159.1670679 | CG107: 1000.642244 | CH107: 0 | CI107: 25.2 | CJ107: 0 | CK107: 1185.009312 | CL107: 80469.9589 | CM107: 0.3528787731 | CN107: 0.3528787731 | CR107: 86 | CS107: 2029-11-01 | CT107: 31 | CU107: 2618 | CV107: 80798.41434 | CW107: -12.23967887 | CX107: 1002.743186 | CY107: 0 | CZ107: 25.2 | DA107: 0 | DB107: 1015.703507 | DC107: 80810.65402 | DD107: 0.3528787731 | DE107: 0.3528787731
B108: 87 | S108: =IFERROR((I108+J108+K108+L108+M108)*$J$12+('Simulador para calculos'!I108+'Simulador para calculos'!J108+'Simulador para calculos'!K108+'Simulador para calculos'!L108+'Simulador para calculos'!M108)*NOT($J$12),"") ->  | U108: =IFERROR((1+'Simulación Cliente'!$E$21)^(T108/360),"") ->  | AB108: 87 | AS108: 87 | AT108: 2029-12-01 | AU108: 30 | AV108: 2648 | AW108: 68977.12603 | AX108: 407.9065084 | AY108: 828.2567159 | AZ108: 0 | BA108: 25.2 | BB108: 0 | BC108: 1261.363224 | BD108: 68569.21952 | BE108: 0.3486917863 | BF108: 0.3486917863 | BJ108: 87 | BK108: 2029-12-01 | BL108: 30 | BM108: 2648 | BN108: 69339.77749 | BO108: 1304.485642 | BP108: 832.6113263 | BQ108: 0 | BR108: 25.2 | BS108: 0 | BT108: 2162.296969 | BU108: 68035.29185 | BV108: 0.6973835726 | BW108: 0.3486917863 | CA108: 87 | CB108: 2029-12-01 | CC108: 30 | CD108: 2648 | CE108: 80469.9589 | CF108: 193.5500936 | CG108: 966.2592185 | CH108: 0 | CI108: 25.2 | CJ108: 0 | CK108: 1185.009312 | CL108: 80276.40881 | CM108: 0.3486917863 | CN108: 0.3486917863 | CR108: 87 | CS108: 2029-12-01 | CT108: 30 | CU108: 2648 | CV108: 80810.65402 | CW108: 1035.85683 | CX108: 970.3501836 | CY108: 0 | CZ108: 25.2 | DA108: 0 | DB108: 2031.407014 | DC108: 79774.79719 | DD108: 0.6973835726 | DE108: 0.3486917863
B109: 88 | S109: =IFERROR((I109+J109+K109+L109+M109)*$J$12+('Simulador para calculos'!I109+'Simulador para calculos'!J109+'Simulador para calculos'!K109+'Simulador para calculos'!L109+'Simulador para calculos'!M109)*NOT($J$12),"") ->  | U109: =IFERROR((1+'Simulación Cliente'!$E$21)^(T109/360),"") ->  | AB109: 88 | AS109: 88 | AT109: 2030-01-01 | AU109: 31 | AV109: 2679 | AW109: 68569.21952 | AX109: 385.1896229 | AY109: 850.9736014 | AZ109: 0 | BA109: 25.2 | BB109: 0 | BC109: 1261.363224 | BD109: 68184.0299 | BE109: 0.3444174175 | BF109: 0.3444174175 | BJ109: 88 | BK109: 2030-01-01 | BL109: 31 | BM109: 2679 | BN109: 68035.29185 | BO109: 211.6011557 | BP109: 844.3473286 | BQ109: 0 | BR109: 25.2 | BS109: 0 | BT109: 1081.148484 | BU109: 67823.69069 | BV109: 0.3444174175 | BW109: 0.3444174175 | CA109: 88 | CB109: 2030-01-01 | CC109: 31 | CD109: 2679 | CE109: 80276.40881 | CF109: 163.5444401 | CG109: 996.264872 | CH109: 0 | CI109: 25.2 | CJ109: 0 | CK109: 1185.009312 | CL109: 80112.86437 | CM109: 0.3444174175 | CN109: 0.3444174175 | CR109: 88 | CS109: 2030-01-01 | CT109: 31 | CU109: 2679 | CV109: 79774.79719 | CW109: 0.463851666 | CX109: 990.0396554 | CY109: 0 | CZ109: 25.2 | DA109: 0 | DB109: 1015.703507 | DC109: 79774.33334 | DD109: 0.3444174175 | DE109: 0.3444174175
B110: 89 | S110: =IFERROR((I110+J110+K110+L110+M110)*$J$12+('Simulador para calculos'!I110+'Simulador para calculos'!J110+'Simulador para calculos'!K110+'Simulador para calculos'!L110+'Simulador para calculos'!M110)*NOT($J$12),"") ->  | U110: =IFERROR((1+'Simulación Cliente'!$E$21)^(T110/360),"") ->  | AB110: 89 | AS110: 89 | AT110: 2030-02-01 | AU110: 31 | AV110: 2710 | AW110: 68184.0299 | AX110: 389.9699924 | AY110: 846.193232 | AZ110: 0 | BA110: 25.2 | BB110: 0 | BC110: 1261.363224 | BD110: 67794.0599 | BE110: 0.3401954453 | BF110: 0.3401954453 | BJ110: 89 | BK110: 2030-02-01 | BL110: 31 | BM110: 2710 | BN110: 67823.69069 | BO110: 214.2272174 | BP110: 841.721267 | BQ110: 0 | BR110: 25.2 | BS110: 0 | BT110: 1081.148484 | BU110: 67609.46348 | BV110: 0.3401954453 | BW110: 0.3401954453 | CA110: 89 | CB110: 2030-02-01 | CC110: 31 | CD110: 2710 | CE110: 80112.86437 | CF110: 165.5740971 | CG110: 994.2352149 | CH110: 0 | CI110: 25.2 | CJ110: 0 | CK110: 1185.009312 | CL110: 79947.29027 | CM110: 0.3401954453 | CN110: 0.3401954453 | CR110: 89 | CS110: 2030-02-01 | CT110: 31 | CU110: 2710 | CV110: 79774.33334 | CW110: 0.4696082653 | CX110: 990.0338988 | CY110: 0 | CZ110: 25.2 | DA110: 0 | DB110: 1015.703507 | DC110: 79773.86373 | DD110: 0.3401954453 | DE110: 0.3401954453
B111: 90 | S111: =IFERROR((I111+J111+K111+L111+M111)*$J$12+('Simulador para calculos'!I111+'Simulador para calculos'!J111+'Simulador para calculos'!K111+'Simulador para calculos'!L111+'Simulador para calculos'!M111)*NOT($J$12),"") ->  | U111: =IFERROR((1+'Simulación Cliente'!$E$21)^(T111/360),"") ->  | AB111: 90 | AS111: 90 | AT111: 2030-03-01 | AU111: 28 | AV111: 2738 | AW111: 67794.0599 | AX111: 476.685284 | AY111: 759.4779404 | AZ111: 0 | BA111: 25.2 | BB111: 0 | BC111: 1261.363224 | BD111: 67317.37462 | BE111: 0.3364265524 | BF111: 0.3364265524 | BJ111: 90 | BK111: 2030-03-01 | BL111: 28 | BM111: 2738 | BN111: 67609.46348 | BO111: 298.5385263 | BP111: 757.4099581 | BQ111: 0 | BR111: 25.2 | BS111: 0 | BT111: 1081.148484 | BU111: 67310.92495 | BV111: 0.3364265524 | BW111: 0.3364265524 | CA111: 90 | CB111: 2030-03-01 | CC111: 28 | CD111: 2738 | CE111: 79947.29027 | CF111: 264.1821224 | CG111: 895.6271897 | CH111: 0 | CI111: 25.2 | CJ111: 0 | CK111: 1185.009312 | CL111: 79683.10815 | CM111: 0.3364265524 | CN111: 0.3364265524 | CR111: 90 | CS111: 2030-03-01 | CT111: 28 | CU111: 2738 | CV111: 79773.86373 | CW111: 96.8191665 | CX111: 893.6843406 | CY111: 0 | CZ111: 25.2 | DA111: 0 | DB111: 1015.703507 | DC111: 79677.04456 | DD111: 0.3364265524 | DE111: 0.3364265524
B112: 91 | S112: =IFERROR((I112+J112+K112+L112+M112)*$J$12+('Simulador para calculos'!I112+'Simulador para calculos'!J112+'Simulador para calculos'!K112+'Simulador para calculos'!L112+'Simulador para calculos'!M112)*NOT($J$12),"") ->  | U112: =IFERROR((1+'Simulación Cliente'!$E$21)^(T112/360),"") ->  | AB112: 91 | AS112: 91 | AT112: 2030-04-01 | AU112: 31 | AV112: 2769 | AW112: 67317.37462 | AX112: 400.7255583 | AY112: 835.437666 | AZ112: 0 | BA112: 25.2 | BB112: 0 | BC112: 1261.363224 | BD112: 66916.64906 | BE112: 0.3323025346 | BF112: 0.3323025346 | BJ112: 91 | BK112: 2030-04-01 | BL112: 31 | BM112: 2769 | BN112: 67310.92495 | BO112: 220.5908615 | BP112: 835.3576229 | BQ112: 0 | BR112: 25.2 | BS112: 0 | BT112: 1081.148484 | BU112: 67090.33409 | BV112: 0.3323025346 | BW112: 0.3323025346 | CA112: 91 | CB112: 2030-04-01 | CC112: 31 | CD112: 2769 | CE112: 79683.10815 | CF112: 170.9075572 | CG112: 988.9017548 | CH112: 0 | CI112: 25.2 | CJ112: 0 | CK112: 1185.009312 | CL112: 79512.20059 | CM112: 0.3323025346 | CN112: 0.3323025346 | CR112: 91 | CS112: 2030-04-01 | CT112: 31 | CU112: 2769 | CV112: 79677.04456 | CW112: 1.67700394 | CX112: 988.8265031 | CY112: 0 | CZ112: 25.2 | DA112: 0 | DB112: 1015.703507 | DC112: 79675.36756 | DD112: 0.3323025346 | DE112: 0.3323025346
B113: 92 | S113: =IFERROR((I113+J113+K113+L113+M113)*$J$12+('Simulador para calculos'!I113+'Simulador para calculos'!J113+'Simulador para calculos'!K113+'Simulador para calculos'!L113+'Simulador para calculos'!M113)*NOT($J$12),"") ->  | U113: =IFERROR((1+'Simulación Cliente'!$E$21)^(T113/360),"") ->  | AB113: 92 | AS113: 92 | AT113: 2030-05-01 | AU113: 30 | AV113: 2799 | AW113: 66916.64906 | AX113: 432.6481001 | AY113: 803.5151243 | AZ113: 0 | BA113: 25.2 | BB113: 0 | BC113: 1261.363224 | BD113: 66484.00096 | BE113: 0.3283596896 | BF113: 0.3283596896 | BJ113: 92 | BK113: 2030-05-01 | BL113: 30 | BM113: 2799 | BN113: 67090.33409 | BO113: 250.3478022 | BP113: 805.6006822 | BQ113: 0 | BR113: 25.2 | BS113: 0 | BT113: 1081.148484 | BU113: 66839.98629 | BV113: 0.3283596896 | BW113: 0.3283596896 | CA113: 92 | CB113: 2030-05-01 | CC113: 30 | CD113: 2799 | CE113: 79512.20059 | CF113: 205.0505692 | CG113: 954.7587429 | CH113: 0 | CI113: 25.2 | CJ113: 0 | CK113: 1185.009312 | CL113: 79307.15002 | CM113: 0.3283596896 | CN113: 0.3283596896 | CR113: 92 | CS113: 2030-05-01 | CT113: 30 | CU113: 2799 | CV113: 79675.36756 | CW113: 33.78550398 | CX113: 956.7180031 | CY113: 0 | CZ113: 25.2 | DA113: 0 | DB113: 1015.703507 | DC113: 79641.58205 | DD113: 0.3283596896 | DE113: 0.3283596896
B114: 93 | S114: =IFERROR((I114+J114+K114+L114+M114)*$J$12+('Simulador para calculos'!I114+'Simulador para calculos'!J114+'Simulador para calculos'!K114+'Simulador para calculos'!L114+'Simulador para calculos'!M114)*NOT($J$12),"") ->  | U114: =IFERROR((1+'Simulación Cliente'!$E$21)^(T114/360),"") ->  | AB114: 93 | AS114: 93 | AT114: 2030-06-01 | AU114: 31 | AV114: 2830 | AW114: 66484.00096 | AX114: 411.068085 | AY114: 825.0951394 | AZ114: 0 | BA114: 25.2 | BB114: 0 | BC114: 1261.363224 | BD114: 66072.93288 | BE114: 0.3243345578 | BF114: 0.3243345578 | BJ114: 93 | BK114: 2030-06-01 | BL114: 31 | BM114: 2830 | BN114: 66839.98629 | BO114: 226.4354135 | BP114: 829.5130708 | BQ114: 0 | BR114: 25.2 | BS114: 0 | BT114: 1081.148484 | BU114: 66613.55087 | BV114: 0.3243345578 | BW114: 0.3243345578 | CA114: 93 | CB114: 2030-06-01 | CC114: 31 | CD114: 2830 | CE114: 79307.15002 | CF114: 175.5733598 | CG114: 984.2359523 | CH114: 0 | CI114: 25.2 | CJ114: 0 | CK114: 1185.009312 | CL114: 79131.57666 | CM114: 0.3243345578 | CN114: 0.3243345578 | CR114: 93 | CS114: 2030-06-01 | CT114: 31 | CU114: 2830 | CV114: 79641.58205 | CW114: 2.117108965 | CX114: 988.3863981 | CY114: 0 | CZ114: 25.2 | DA114: 0 | DB114: 1015.703507 | DC114: 79639.46494 | DD114: 0.3243345578 | DE114: 0.3243345578
B115: 94 | S115: =IFERROR((I115+J115+K115+L115+M115)*$J$12+('Simulador para calculos'!I115+'Simulador para calculos'!J115+'Simulador para calculos'!K115+'Simulador para calculos'!L115+'Simulador para calculos'!M115)*NOT($J$12),"") ->  | U115: =IFERROR((1+'Simulación Cliente'!$E$21)^(T115/360),"") ->  | AB115: 94 | AS115: 94 | AT115: 2030-07-01 | AU115: 30 | AV115: 2860 | AW115: 66072.93288 | AX115: 442.7791919 | AY115: 793.3840325 | AZ115: 0 | BA115: 25.2 | BB115: 0 | BC115: 1261.363224 | BD115: 65630.15369 | BE115: 0.3204862546 | BF115: 0.3204862546 | BJ115: 94 | BK115: 2030-07-01 | BL115: 30 | BM115: 2860 | BN115: 66613.55087 | BO115: 1337.221357 | BP115: 799.8756118 | BQ115: 0 | BR115: 25.2 | BS115: 0 | BT115: 2162.296969 | BU115: 65276.32952 | BV115: 0.6409725092 | BW115: 0.3204862546 | CA115: 94 | CB115: 2030-07-01 | CC115: 30 | CD115: 2860 | CE115: 79131.57666 | CF115: 209.6209876 | CG115: 950.1883245 | CH115: 0 | CI115: 25.2 | CJ115: 0 | CK115: 1185.009312 | CL115: 78921.95567 | CM115: 0.3204862546 | CN115: 0.3204862546 | CR115: 94 | CS115: 2030-07-01 | CT115: 30 | CU115: 2860 | CV115: 79639.46494 | CW115: 1049.920119 | CX115: 956.2868952 | CY115: 0 | CZ115: 25.2 | DA115: 0 | DB115: 2031.407014 | DC115: 78589.54483 | DD115: 0.6409725092 | DE115: 0.3204862546
B116: 95 | S116: =IFERROR((I116+J116+K116+L116+M116)*$J$12+('Simulador para calculos'!I116+'Simulador para calculos'!J116+'Simulador para calculos'!K116+'Simulador para calculos'!L116+'Simulador para calculos'!M116)*NOT($J$12),"") ->  | U116: =IFERROR((1+'Simulación Cliente'!$E$21)^(T116/360),"") ->  | AB116: 95 | AS116: 95 | AT116: 2030-08-01 | AU116: 31 | AV116: 2891 | AW116: 65630.15369 | AX116: 421.6646981 | AY116: 814.4985262 | AZ116: 0 | BA116: 25.2 | BB116: 0 | BC116: 1261.363224 | BD116: 65208.48899 | BE116: 0.3165576377 | BF116: 0.3165576377 | BJ116: 95 | BK116: 2030-08-01 | BL116: 31 | BM116: 2891 | BN116: 65276.32952 | BO116: 245.8410688 | BP116: 810.1074156 | BQ116: 0 | BR116: 25.2 | BS116: 0 | BT116: 1081.148484 | BU116: 65030.48845 | BV116: 0.3165576377 | BW116: 0.3165576377 | CA116: 95 | CB116: 2030-08-01 | CC116: 31 | CD116: 2891 | CE116: 78921.95567 | CF116: 180.3537879 | CG116: 979.4555242 | CH116: 0 | CI116: 25.2 | CJ116: 0 | CK116: 1185.009312 | CL116: 78741.60188 | CM116: 0.3165576377 | CN116: 0.3165576377 | CR116: 95 | CS116: 2030-08-01 | CT116: 31 | CU116: 2891 | CV116: 78589.54483 | CW116: 15.17334491 | CX116: 975.3301622 | CY116: 0 | CZ116: 25.2 | DA116: 0 | DB116: 1015.703507 | DC116: 78574.37148 | DD116: 0.3165576377 | DE116: 0.3165576377
B117: 96 | S117: =IFERROR((I117+J117+K117+L117+M117)*$J$12+('Simulador para calculos'!I117+'Simulador para calculos'!J117+'Simulador para calculos'!K117+'Simulador para calculos'!L117+'Simulador para calculos'!M117)*NOT($J$12),"") ->  | U117: =IFERROR((1+'Simulación Cliente'!$E$21)^(T117/360),"") ->  | AB117: 96 | AS117: 96 | AT117: 2030-09-01 | AU117: 31 | AV117: 2922 | AW117: 65208.48899 | AX117: 426.897739 | AY117: 809.2654854 | AZ117: 0 | BA117: 25.2 | BB117: 0 | BC117: 1261.363224 | BD117: 64781.59125 | BE117: 0.312677179 | BF117: 0.312677179 | BJ117: 96 | BK117: 2030-09-01 | BL117: 31 | BM117: 2922 | BN117: 65030.48845 | BO117: 248.8920625 | BP117: 807.0564219 | BQ117: 0 | BR117: 25.2 | BS117: 0 | BT117: 1081.148484 | BU117: 64781.59639 | BV117: 0.312677179 | BW117: 0.312677179 | CA117: 96 | CB117: 2030-09-01 | CC117: 31 | CD117: 2922 | CE117: 78741.60188 | CF117: 182.5920562 | CG117: 977.2172559 | CH117: 0 | CI117: 25.2 | CJ117: 0 | CK117: 1185.009312 | CL117: 78559.00983 | CM117: 0.312677179 | CN117: 0.312677179 | CR117: 96 | CS117: 2030-09-01 | CT117: 31 | CU117: 2922 | CV117: 78574.37148 | CW117: 15.36165267 | CX117: 975.1418544 | CY117: 0 | CZ117: 25.2 | DA117: 0 | DB117: 1015.703507 | DC117: 78559.00983 | DD117: 0.312677179 | DE117: 0.312677179
B118: 97 | S118: =IFERROR((I118+J118+K118+L118+M118)*$J$12+('Simulador para calculos'!I118+'Simulador para calculos'!J118+'Simulador para calculos'!K118+'Simulador para calculos'!L118+'Simulador para calculos'!M118)*NOT($J$12),"") ->  | U118: =IFERROR((1+'Simulación Cliente'!$E$21)^(T118/360),"") ->  | AB118: 97 | AS118: 97 | AT118: 2030-10-01 | AU118: 30 | AV118: 2952 | AW118: 64781.59125 | AX118: 458.2852363 | AY118: 777.8779881 | AZ118: 0 | BA118: 25.2 | BB118: 0 | BC118: 1261.363224 | BD118: 64323.30601 | BE118: 0.3089671933 | BF118: 0.3089671933 | BJ118: 97 | BK118: 2030-10-01 | BL118: 30 | BM118: 2952 | BN118: 64781.59639 | BO118: 278.0704346 | BP118: 777.8780498 | BQ118: 0 | BR118: 25.2 | BS118: 0 | BT118: 1081.148484 | BU118: 64503.52595 | BV118: 0.3089671933 | BW118: 0.3089671933 | CA118: 97 | CB118: 2030-10-01 | CC118: 30 | CD118: 2952 | CE118: 78559.00983 | CF118: 216.496199 | CG118: 943.3131131 | CH118: 0 | CI118: 25.2 | CJ118: 0 | CK118: 1185.009312 | CL118: 78342.51363 | CM118: 0.3089671933 | CN118: 0.3089671933 | CR118: 97 | CS118: 2030-10-01 | CT118: 30 | CU118: 2952 | CV118: 78559.00983 | CW118: 47.19039398 | CX118: 943.3131131 | CY118: 0 | CZ118: 25.2 | DA118: 0 | DB118: 1015.703507 | DC118: 78511.81943 | DD118: 0.3089671933 | DE118: 0.3089671933
B119: 98 | S119: =IFERROR((I119+J119+K119+L119+M119)*$J$12+('Simulador para calculos'!I119+'Simulador para calculos'!J119+'Simulador para calculos'!K119+'Simulador para calculos'!L119+'Simulador para calculos'!M119)*NOT($J$12),"") ->  | U119: =IFERROR((1+'Simulación Cliente'!$E$21)^(T119/360),"") ->  | AB119: 98 | AS119: 98 | AT119: 2030-11-01 | AU119: 31 | AV119: 2983 | AW119: 64323.30601 | AX119: 437.8832417 | AY119: 798.2799827 | AZ119: 0 | BA119: 25.2 | BB119: 0 | BC119: 1261.363224 | BD119: 63885.42277 | BE119: 0.3051797805 | BF119: 0.3051797805 | BJ119: 98 | BK119: 2030-11-01 | BL119: 31 | BM119: 2983 | BN119: 64503.52595 | BO119: 255.4318945 | BP119: 800.5165899 | BQ119: 0 | BR119: 25.2 | BS119: 0 | BT119: 1081.148484 | BU119: 64248.09406 | BV119: 0.3051797805 | BW119: 0.3051797805 | CA119: 98 | CB119: 2030-11-01 | CC119: 31 | CD119: 2983 | CE119: 78342.51363 | CF119: 187.5449137 | CG119: 972.2643984 | CH119: 0 | CI119: 25.2 | CJ119: 0 | CK119: 1185.009312 | CL119: 78154.96872 | CM119: 0.3051797805 | CN119: 0.3051797805 | CR119: 98 | CS119: 2030-11-01 | CT119: 31 | CU119: 2983 | CV119: 78511.81943 | CW119: 16.13795056 | CX119: 974.3655565 | CY119: 0 | CZ119: 25.2 | DA119: 0 | DB119: 1015.703507 | DC119: 78495.68148 | DD119: 0.3051797805 | DE119: 0.3051797805
B120: 99 | S120: =IFERROR((I120+J120+K120+L120+M120)*$J$12+('Simulador para calculos'!I120+'Simulador para calculos'!J120+'Simulador para calculos'!K120+'Simulador para calculos'!L120+'Simulador para calculos'!M120)*NOT($J$12),"") ->  | U120: =IFERROR((1+'Simulación Cliente'!$E$21)^(T120/360),"") ->  | AB120: 99 | AS120: 99 | AT120: 2030-12-01 | AU120: 30 | AV120: 3013 | AW120: 63885.42277 | AX120: 469.0461595 | AY120: 767.1170648 | AZ120: 0 | BA120: 25.2 | BB120: 0 | BC120: 1261.363224 | BD120: 63416.37661 | BE120: 0.3015587531 | BF120: 0.3015587531 | BJ120: 99 | BK120: 2030-12-01 | BL120: 30 | BM120: 3013 | BN120: 64248.09406 | BO120: 1365.625056 | BP120: 771.4719132 | BQ120: 0 | BR120: 25.2 | BS120: 0 | BT120: 2162.296969 | BU120: 62882.469 | BV120: 0.6031175063 | BW120: 0.3015587531 | CA120: 99 | CB120: 2030-12-01 | CC120: 30 | CD120: 3013 | CE120: 78154.96872 | CF120: 221.3478039 | CG120: 938.4615082 | CH120: 0 | CI120: 25.2 | CJ120: 0 | CK120: 1185.009312 | CL120: 77933.62091 | CM120: 0.3015587531 | CN120: 0.3015587531 | CR120: 99 | CS120: 2030-12-01 | CT120: 30 | CU120: 3013 | CV120: 78495.68148 | CW120: 1063.654329 | CX120: 942.5526853 | CY120: 0 | CZ120: 25.2 | DA120: 0 | DB120: 2031.407014 | DC120: 77432.02715 | DD120: 0.6031175063 | DE120: 0.3015587531
B121: 100 | S121: =IFERROR((I121+J121+K121+L121+M121)*$J$12+('Simulador para calculos'!I121+'Simulador para calculos'!J121+'Simulador para calculos'!K121+'Simulador para calculos'!L121+'Simulador para calculos'!M121)*NOT($J$12),"") ->  | U121: =IFERROR((1+'Simulación Cliente'!$E$21)^(T121/360),"") ->  | AB121: 100 | AS121: 100 | AT121: 2031-01-01 | AU121: 31 | AV121: 3044 | AW121: 63416.37661 | AX121: 449.1386269 | AY121: 787.0245975 | AZ121: 0 | BA121: 25.2 | BB121: 0 | BC121: 1261.363224 | BD121: 62967.23798 | BE121: 0.2978621553 | BF121: 0.2978621553 | BJ121: 100 | BK121: 2031-01-01 | BL121: 31 | BM121: 3044 | BN121: 62882.469 | BO121: 275.5499107 | BP121: 780.3985737 | BQ121: 0 | BR121: 25.2 | BS121: 0 | BT121: 1081.148484 | BU121: 62606.91909 | BV121: 0.2978621553 | BW121: 0.2978621553 | CA121: 100 | CB121: 2031-01-01 | CC121: 31 | CD121: 3044 | CE121: 77933.62091 | CF121: 192.6194487 | CG121: 967.1898634 | CH121: 0 | CI121: 25.2 | CJ121: 0 | CK121: 1185.009312 | CL121: 77741.00146 | CM121: 0.2978621553 | CN121: 0.2978621553 | CR121: 100 | CS121: 2031-01-01 | CT121: 31 | CU121: 3044 | CV121: 77432.02715 | CW121: 29.53863867 | CX121: 960.9648684 | CY121: 0 | CZ121: 25.2 | DA121: 0 | DB121: 1015.703507 | DC121: 77402.48852 | DD121: 0.2978621553 | DE121: 0.2978621553
B122: 101 | S122: =IFERROR((I122+J122+K122+L122+M122)*$J$12+('Simulador para calculos'!I122+'Simulador para calculos'!J122+'Simulador para calculos'!K122+'Simulador para calculos'!L122+'Simulador para calculos'!M122)*NOT($J$12),"") ->  | U122: =IFERROR((1+'Simulación Cliente'!$E$21)^(T122/360),"") ->  | AB122: 101 | AS122: 101 | AT122: 2031-02-01 | AU122: 31 | AV122: 3075 | AW122: 62967.23798 | AX122: 454.712631 | AY122: 781.4505933 | AZ122: 0 | BA122: 25.2 | BB122: 0 | BC122: 1261.363224 | BD122: 62512.52535 | BE122: 0.2942108714 | BF122: 0.2942108714 | BJ122: 101 | BK122: 2031-02-01 | BL122: 31 | BM122: 3075 | BN122: 62606.91909 | BO122: 278.969604 | BP122: 776.9788804 | BQ122: 0 | BR122: 25.2 | BS122: 0 | BT122: 1081.148484 | BU122: 62327.94949 | BV122: 0.2942108714 | BW122: 0.2942108714 | CA122: 101 | CB122: 2031-02-01 | CC122: 31 | CD122: 3075 | CE122: 77741.00146 | CF122: 195.0099392 | CG122: 964.7993729 | CH122: 0 | CI122: 25.2 | CJ122: 0 | CK122: 1185.009312 | CL122: 77545.99152 | CM122: 0.2942108714 | CN122: 0.2942108714 | CR122: 101 | CS122: 2031-02-01 | CT122: 31 | CU122: 3075 | CV122: 77402.48852 | CW122: 29.90522592 | CX122: 960.5982811 | CY122: 0 | CZ122: 25.2 | DA122: 0 | DB122: 1015.703507 | DC122: 77372.58329 | DD122: 0.2942108714 | DE122: 0.2942108714
B123: 102 | S123: =IFERROR((I123+J123+K123+L123+M123)*$J$12+('Simulador para calculos'!I123+'Simulador para calculos'!J123+'Simulador para calculos'!K123+'Simulador para calculos'!L123+'Simulador para calculos'!M123)*NOT($J$12),"") ->  | U123: =IFERROR((1+'Simulación Cliente'!$E$21)^(T123/360),"") ->  | AB123: 102 | AS123: 102 | AT123: 2031-03-01 | AU123: 28 | AV123: 3103 | AW123: 62512.52535 | AX123: 535.8528421 | AY123: 700.3103822 | AZ123: 0 | BA123: 25.2 | BB123: 0 | BC123: 1261.363224 | BD123: 61976.67251 | BE123: 0.2909514238 | BF123: 0.2909514238 | BJ123: 102 | BK123: 2031-03-01 | BL123: 28 | BM123: 3103 | BN123: 62327.94949 | BO123: 357.7058541 | BP123: 698.2426303 | BQ123: 0 | BR123: 25.2 | BS123: 0 | BT123: 1081.148484 | BU123: 61970.24363 | BV123: 0.2909514238 | BW123: 0.2909514238 | CA123: 102 | CB123: 2031-03-01 | CC123: 28 | CD123: 3103 | CE123: 77545.99152 | CF123: 291.0832023 | CG123: 868.7261098 | CH123: 0 | CI123: 25.2 | CJ123: 0 | CK123: 1185.009312 | CL123: 77254.90832 | CM123: 0.2909514238 | CN123: 0.2909514238 | CR123: 102 | CS123: 2031-03-01 | CT123: 28 | CU123: 3103 | CV123: 77372.58329 | CW123: 123.7200414 | CX123: 866.7834657 | CY123: 0 | CZ123: 25.2 | DA123: 0 | DB123: 1015.703507 | DC123: 77248.86325 | DD123: 0.2909514238 | DE123: 0.2909514238
B124: 103 | S124: =IFERROR((I124+J124+K124+L124+M124)*$J$12+('Simulador para calculos'!I124+'Simulador para calculos'!J124+'Simulador para calculos'!K124+'Simulador para calculos'!L124+'Simulador para calculos'!M124)*NOT($J$12),"") ->  | U124: =IFERROR((1+'Simulación Cliente'!$E$21)^(T124/360),"") ->  | AB124: 103 | AS124: 103 | AT124: 2031-04-01 | AU124: 31 | AV124: 3134 | AW124: 61976.67251 | AX124: 467.005976 | AY124: 769.1572484 | AZ124: 0 | BA124: 25.2 | BB124: 0 | BC124: 1261.363224 | BD124: 61509.66654 | BE124: 0.2873848537 | BF124: 0.2873848537 | BJ124: 103 | BK124: 2031-04-01 | BL124: 31 | BM124: 3134 | BN124: 61970.24363 | BO124: 286.8710212 | BP124: 769.0774632 | BQ124: 0 | BR124: 25.2 | BS124: 0 | BT124: 1081.148484 | BU124: 61683.37261 | BV124: 0.2873848537 | BW124: 0.2873848537 | CA124: 103 | CB124: 2031-04-01 | CC124: 31 | CD124: 3134 | CE124: 77254.90832 | CF124: 201.0425648 | CG124: 958.7667472 | CH124: 0 | CI124: 25.2 | CJ124: 0 | CK124: 1185.009312 | CL124: 77053.86576 | CM124: 0.2873848537 | CN124: 0.2873848537 | CR124: 103 | CS124: 2031-04-01 | CT124: 31 | CU124: 3134 | CV124: 77248.86325 | CW124: 31.81178177 | CX124: 958.6917253 | CY124: 0 | CZ124: 25.2 | DA124: 0 | DB124: 1015.703507 | DC124: 77217.05147 | DD124: 0.2873848537 | DE124: 0.2873848537
B125: 104 | S125: =IFERROR((I125+J125+K125+L125+M125)*$J$12+('Simulador para calculos'!I125+'Simulador para calculos'!J125+'Simulador para calculos'!K125+'Simulador para calculos'!L125+'Simulador para calculos'!M125)*NOT($J$12),"") ->  | U125: =IFERROR((1+'Simulación Cliente'!$E$21)^(T125/360),"") ->  | AB125: 104 | AS125: 104 | AT125: 2031-05-01 | AU125: 30 | AV125: 3164 | AW125: 61509.66654 | AX125: 497.5735304 | AY125: 738.5896939 | AZ125: 0 | BA125: 25.2 | BB125: 0 | BC125: 1261.363224 | BD125: 61012.093 | BE125: 0.2839749672 | BF125: 0.2839749672 | BJ125: 104 | BK125: 2031-05-01 | BL125: 30 | BM125: 3164 | BN125: 61683.37261 | BO125: 315.2729798 | BP125: 740.6755046 | BQ125: 0 | BR125: 25.2 | BS125: 0 | BT125: 1081.148484 | BU125: 61368.09963 | BV125: 0.2839749672 | BW125: 0.2839749672 | CA125: 104 | CB125: 2031-05-01 | CC125: 30 | CD125: 3164 | CE125: 77053.86576 | CF125: 234.5695192 | CG125: 925.2397929 | CH125: 0 | CI125: 25.2 | CJ125: 0 | CK125: 1185.009312 | CL125: 76819.29624 | CM125: 0.2839749672 | CN125: 0.2839749672 | CR125: 104 | CS125: 2031-05-01 | CT125: 30 | CU125: 3164 | CV125: 77217.05147 | CW125: 63.30422894 | CX125: 927.1992781 | CY125: 0 | CZ125: 25.2 | DA125: 0 | DB125: 1015.703507 | DC125: 77153.74724 | DD125: 0.2839749672 | DE125: 0.2839749672
B126: 105 | S126: =IFERROR((I126+J126+K126+L126+M126)*$J$12+('Simulador para calculos'!I126+'Simulador para calculos'!J126+'Simulador para calculos'!K126+'Simulador para calculos'!L126+'Simulador para calculos'!M126)*NOT($J$12),"") ->  | U126: =IFERROR((1+'Simulación Cliente'!$E$21)^(T126/360),"") ->  | AB126: 105 | AS126: 105 | AT126: 2031-06-01 | AU126: 31 | AV126: 3195 | AW126: 61012.093 | AX126: 478.9768238 | AY126: 757.1864005 | AZ126: 0 | BA126: 25.2 | BB126: 0 | BC126: 1261.363224 | BD126: 60533.11618 | BE126: 0.2804939167 | BF126: 0.2804939167 | BJ126: 105 | BK126: 2031-06-01 | BL126: 31 | BM126: 3195 | BN126: 61368.09963 | BO126: 294.343888 | BP126: 761.6045964 | BQ126: 0 | BR126: 25.2 | BS126: 0 | BT126: 1081.148484 | BU126: 61073.75574 | BV126: 0.2804939167 | BW126: 0.2804939167 | CA126: 105 | CB126: 2031-06-01 | CC126: 31 | CD126: 3195 | CE126: 76819.29624 | CF126: 206.4486987 | CG126: 953.3606133 | CH126: 0 | CI126: 25.2 | CJ126: 0 | CK126: 1185.009312 | CL126: 76612.84754 | CM126: 0.2804939167 | CN126: 0.2804939167 | CR126: 105 | CS126: 2031-06-01 | CT126: 31 | CU126: 3195 | CV126: 77153.74724 | CW126: 32.99221251 | CX126: 957.5112946 | CY126: 0 | CZ126: 25.2 | DA126: 0 | DB126: 1015.703507 | DC126: 77120.75503 | DD126: 0.2804939167 | DE126: 0.2804939167
B127: 106 | S127: =IFERROR((I127+J127+K127+L127+M127)*$J$12+('Simulador para calculos'!I127+'Simulador para calculos'!J127+'Simulador para calculos'!K127+'Simulador para calculos'!L127+'Simulador para calculos'!M127)*NOT($J$12),"") ->  | U127: =IFERROR((1+'Simulación Cliente'!$E$21)^(T127/360),"") ->  | AB127: 106 | AS127: 106 | AT127: 2031-07-01 | AU127: 30 | AV127: 3225 | AW127: 60533.11618 | AX127: 509.2996552 | AY127: 726.8635691 | AZ127: 0 | BA127: 25.2 | BB127: 0 | BC127: 1261.363224 | BD127: 60023.81653 | BE127: 0.2771657926 | BF127: 0.2771657926 | BJ127: 106 | BK127: 2031-07-01 | BL127: 30 | BM127: 3225 | BN127: 61073.75574 | BO127: 1403.741561 | BP127: 733.3554074 | BQ127: 0 | BR127: 25.2 | BS127: 0 | BT127: 2162.296969 | BU127: 59670.01418 | BV127: 0.5543315853 | BW127: 0.2771657926 | CA127: 106 | CB127: 2031-07-01 | CC127: 30 | CD127: 3225 | CE127: 76612.84754 | CF127: 239.8651342 | CG127: 919.9441779 | CH127: 0 | CI127: 25.2 | CJ127: 0 | CK127: 1185.009312 | CL127: 76372.9824 | CM127: 0.2771657926 | CN127: 0.2771657926 | CR127: 106 | CS127: 2031-07-01 | CT127: 30 | CU127: 3225 | CV127: 77120.75503 | CW127: 1080.164035 | CX127: 926.0429792 | CY127: 0 | CZ127: 25.2 | DA127: 0 | DB127: 2031.407014 | DC127: 76040.59099 | DD127: 0.5543315853 | DE127: 0.2771657926
B128: 107 | S128: =IFERROR((I128+J128+K128+L128+M128)*$J$12+('Simulador para calculos'!I128+'Simulador para calculos'!J128+'Simulador para calculos'!K128+'Simulador para calculos'!L128+'Simulador para calculos'!M128)*NOT($J$12),"") ->  | U128: =IFERROR((1+'Simulación Cliente'!$E$21)^(T128/360),"") ->  | AB128: 107 | AS128: 107 | AT128: 2031-08-01 | AU128: 31 | AV128: 3256 | AW128: 60023.81653 | AX128: 491.2417614 | AY128: 744.921463 | AZ128: 0 | BA128: 25.2 | BB128: 0 | BC128: 1261.363224 | BD128: 59532.57476 | BE128: 0.273768211 | BF128: 0.273768211 | BJ128: 107 | BK128: 2031-08-01 | BL128: 31 | BM128: 3256 | BN128: 59670.01418 | BO128: 315.4178612 | BP128: 740.5306232 | BQ128: 0 | BR128: 25.2 | BS128: 0 | BT128: 1081.148484 | BU128: 59354.59632 | BV128: 0.273768211 | BW128: 0.273768211 | CA128: 107 | CB128: 2031-08-01 | CC128: 31 | CD128: 3256 | CE128: 76372.9824 | CF128: 211.987646 | CG128: 947.8216661 | CH128: 0 | CI128: 25.2 | CJ128: 0 | CK128: 1185.009312 | CL128: 76160.99476 | CM128: 0.273768211 | CN128: 0.273768211 | CR128: 107 | CS128: 2031-08-01 | CT128: 31 | CU128: 3256 | CV128: 76040.59099 | CW128: 46.80696186 | CX128: 943.6965452 | CY128: 0 | CZ128: 25.2 | DA128: 0 | DB128: 1015.703507 | DC128: 75993.78403 | DD128: 0.273768211 | DE128: 0.273768211
B129: 108 | S129: =IFERROR((I129+J129+K129+L129+M129)*$J$12+('Simulador para calculos'!I129+'Simulador para calculos'!J129+'Simulador para calculos'!K129+'Simulador para calculos'!L129+'Simulador para calculos'!M129)*NOT($J$12),"") ->  | U129: =IFERROR((1+'Simulación Cliente'!$E$21)^(T129/360),"") ->  | AB129: 108 | AS129: 108 | AT129: 2031-09-01 | AU129: 31 | AV129: 3287 | AW129: 59532.57476 | AX129: 497.3382836 | AY129: 738.8249407 | AZ129: 0 | BA129: 25.2 | BB129: 0 | BC129: 1261.363224 | BD129: 59035.23648 | BE129: 0.270412278 | BF129: 0.270412278 | BJ129: 108 | BK129: 2031-09-01 | BL129: 31 | BM129: 3287 | BN129: 59354.59632 | BO129: 319.3323329 | BP129: 736.6161515 | BQ129: 0 | BR129: 25.2 | BS129: 0 | BT129: 1081.148484 | BU129: 59035.26399 | BV129: 0.270412278 | BW129: 0.270412278 | CA129: 108 | CB129: 2031-09-01 | CC129: 31 | CD129: 3287 | CE129: 76160.99476 | CF129: 214.6185042 | CG129: 945.1908079 | CH129: 0 | CI129: 25.2 | CJ129: 0 | CK129: 1185.009312 | CL129: 75946.37625 | CM129: 0.270412278 | CN129: 0.270412278 | CR129: 108 | CS129: 2031-09-01 | CT129: 31 | CU129: 3287 | CV129: 75993.78403 | CW129: 47.38785645 | CX129: 943.1156506 | CY129: 0 | CZ129: 25.2 | DA129: 0 | DB129: 1015.703507 | DC129: 75946.39617 | DD129: 0.270412278 | DE129: 0.270412278
B130: 109 | S130: =IFERROR((I130+J130+K130+L130+M130)*$J$12+('Simulador para calculos'!I130+'Simulador para calculos'!J130+'Simulador para calculos'!K130+'Simulador para calculos'!L130+'Simulador para calculos'!M130)*NOT($J$12),"") ->  | U130: =IFERROR((1+'Simulación Cliente'!$E$21)^(T130/360),"") ->  | AB130: 109 | AS130: 109 | AT130: 2031-10-01 | AU130: 30 | AV130: 3317 | AW130: 59035.23648 | AX130: 527.285747 | AY130: 708.8774773 | AZ130: 0 | BA130: 25.2 | BB130: 0 | BC130: 1261.363224 | BD130: 58507.95073 | BE130: 0.2672037749 | BF130: 0.2672037749 | BJ130: 109 | BK130: 2031-10-01 | BL130: 30 | BM130: 3317 | BN130: 59035.26399 | BO130: 347.0706768 | BP130: 708.8778076 | BQ130: 0 | BR130: 25.2 | BS130: 0 | BT130: 1081.148484 | BU130: 58688.19331 | BV130: 0.2672037749 | BW130: 0.2672037749 | CA130: 109 | CB130: 2031-10-01 | CC130: 30 | CD130: 3317 | CE130: 75946.37625 | CF130: 247.8679222 | CG130: 911.9413899 | CH130: 0 | CI130: 25.2 | CJ130: 0 | CK130: 1185.009312 | CL130: 75698.50833 | CM130: 0.2672037749 | CN130: 0.2672037749 | CR130: 109 | CS130: 2031-10-01 | CT130: 30 | CU130: 3317 | CV130: 75946.39617 | CW130: 78.56187799 | CX130: 911.9416291 | CY130: 0 | CZ130: 25.2 | DA130: 0 | DB130: 1015.703507 | DC130: 75867.83429 | DD130: 0.2672037749 | DE130: 0.2672037749
B131: 110 | S131: =IFERROR((I131+J131+K131+L131+M131)*$J$12+('Simulador para calculos'!I131+'Simulador para calculos'!J131+'Simulador para calculos'!K131+'Simulador para calculos'!L131+'Simulador para calculos'!M131)*NOT($J$12),"") ->  | U131: =IFERROR((1+'Simulación Cliente'!$E$21)^(T131/360),"") ->  | AB131: 110 | AS131: 110 | AT131: 2031-11-01 | AU131: 31 | AV131: 3348 | AW131: 58507.95073 | AX131: 510.0543099 | AY131: 726.1089144 | AZ131: 0 | BA131: 25.2 | BB131: 0 | BC131: 1261.363224 | BD131: 57997.89642 | BE131: 0.2639283107 | BF131: 0.2639283107 | BJ131: 110 | BK131: 2031-11-01 | BL131: 31 | BM131: 3348 | BN131: 58688.19331 | BO131: 327.6026818 | BP131: 728.3458026 | BQ131: 0 | BR131: 25.2 | BS131: 0 | BT131: 1081.148484 | BU131: 58360.59063 | BV131: 0.2639283107 | BW131: 0.2639283107 | CA131: 110 | CB131: 2031-11-01 | CC131: 31 | CD131: 3348 | CE131: 75698.50833 | CF131: 220.3581603 | CG131: 939.4511518 | CH131: 0 | CI131: 25.2 | CJ131: 0 | CK131: 1185.009312 | CL131: 75478.15017 | CM131: 0.2639283107 | CN131: 0.2639283107 | CR131: 110 | CS131: 2031-11-01 | CT131: 31 | CU131: 3348 | CV131: 75867.83429 | CW131: 48.950947 | CX131: 941.5525601 | CY131: 0 | CZ131: 25.2 | DA131: 0 | DB131: 1015.703507 | DC131: 75818.88335 | DD131: 0.2639283107 | DE131: 0.2639283107
B132: 111 | S132: =IFERROR((I132+J132+K132+L132+M132)*$J$12+('Simulador para calculos'!I132+'Simulador para calculos'!J132+'Simulador para calculos'!K132+'Simulador para calculos'!L132+'Simulador para calculos'!M132)*NOT($J$12),"") ->  | U132: =IFERROR((1+'Simulación Cliente'!$E$21)^(T132/360),"") ->  | AB132: 111 | AS132: 111 | AT132: 2031-12-01 | AU132: 30 | AV132: 3378 | AW132: 57997.89642 | AX132: 539.7418164 | AY132: 696.4214079 | AZ132: 0 | BA132: 25.2 | BB132: 0 | BC132: 1261.363224 | BD132: 57458.15461 | BE132: 0.2607967413 | BF132: 0.2607967413 | BJ132: 111 | BK132: 2031-12-01 | BL132: 30 | BM132: 3378 | BN132: 58360.59063 | BO132: 1436.320437 | BP132: 700.7765315 | BQ132: 0 | BR132: 25.2 | BS132: 0 | BT132: 2162.296969 | BU132: 56924.27019 | BV132: 0.5215934827 | BW132: 0.2607967413 | CA132: 111 | CB132: 2031-12-01 | CC132: 30 | CD132: 3378 | CE132: 75478.15017 | CF132: 253.490241 | CG132: 906.319071 | CH132: 0 | CI132: 25.2 | CJ132: 0 | CK132: 1185.009312 | CL132: 75224.65993 | CM132: 0.2607967413 | CN132: 0.2607967413 | CR132: 111 | CS132: 2031-12-01 | CT132: 30 | CU132: 3378 | CV132: 75818.88335 | CW132: 1095.796521 | CX132: 910.4104932 | CY132: 0 | CZ132: 25.2 | DA132: 0 | DB132: 2031.407014 | DC132: 74723.08683 | DD132: 0.5215934827 | DE132: 0.2607967413
B133: 112 | S133: =IFERROR((I133+J133+K133+L133+M133)*$J$12+('Simulador para calculos'!I133+'Simulador para calculos'!J133+'Simulador para calculos'!K133+'Simulador para calculos'!L133+'Simulador para calculos'!M133)*NOT($J$12),"") ->  | U133: =IFERROR((1+'Simulación Cliente'!$E$21)^(T133/360),"") ->  | AB133: 112 | AS133: 112 | AT133: 2032-01-01 | AU133: 31 | AV133: 3409 | AW133: 57458.15461 | AX133: 523.0827329 | AY133: 713.0804915 | AZ133: 0 | BA133: 25.2 | BB133: 0 | BC133: 1261.363224 | BD133: 56935.07187 | BE133: 0.2575998165 | BF133: 0.2575998165 | BJ133: 112 | BK133: 2032-01-01 | BL133: 31 | BM133: 3409 | BN133: 56924.27019 | BO133: 349.4937289 | BP133: 706.4547555 | BQ133: 0 | BR133: 25.2 | BS133: 0 | BT133: 1081.148484 | BU133: 56574.77646 | BV133: 0.2575998165 | BW133: 0.2575998165 | CA133: 112 | CB133: 2032-01-01 | CC133: 31 | CD133: 3409 | CE133: 75224.65993 | CF133: 226.2388234 | CG133: 933.5704887 | CH133: 0 | CI133: 25.2 | CJ133: 0 | CK133: 1185.009312 | CL133: 74998.42111 | CM133: 0.2575998165 | CN133: 0.2575998165 | CR133: 112 | CS133: 2032-01-01 | CT133: 31 | CU133: 3409 | CV133: 74723.08683 | CW133: 63.15775703 | CX133: 927.34575 | CY133: 0 | CZ133: 25.2 | DA133: 0 | DB133: 1015.703507 | DC133: 74659.92907 | DD133: 0.2575998165 | DE133: 0.2575998165
B134: 113 | S134: =IFERROR((I134+J134+K134+L134+M134)*$J$12+('Simulador para calculos'!I134+'Simulador para calculos'!J134+'Simulador para calculos'!K134+'Simulador para calculos'!L134+'Simulador para calculos'!M134)*NOT($J$12),"") ->  | U134: =IFERROR((1+'Simulación Cliente'!$E$21)^(T134/360),"") ->  | AB134: 113 | AS134: 113 | AT134: 2032-02-01 | AU134: 31 | AV134: 3440 | AW134: 56935.07187 | AX134: 529.5744153 | AY134: 706.5888091 | AZ134: 0 | BA134: 25.2 | BB134: 0 | BC134: 1261.363224 | BD134: 56405.49746 | BE134: 0.2544420805 | BF134: 0.2544420805 | BJ134: 113 | BK134: 2032-02-01 | BL134: 31 | BM134: 3440 | BN134: 56574.77646 | BO134: 353.8310968 | BP134: 702.1173875 | BQ134: 0 | BR134: 25.2 | BS134: 0 | BT134: 1081.148484 | BU134: 56220.94537 | BV134: 0.2544420805 | BW134: 0.2544420805 | CA134: 113 | CB134: 2032-02-01 | CC134: 31 | CD134: 3440 | CE134: 74998.42111 | CF134: 229.0465448 | CG134: 930.7627673 | CH134: 0 | CI134: 25.2 | CJ134: 0 | CK134: 1185.009312 | CL134: 74769.37456 | CM134: 0.2544420805 | CN134: 0.2544420805 | CR134: 113 | CS134: 2032-02-01 | CT134: 31 | CU134: 3440 | CV134: 74659.92907 | CW134: 63.94157205 | CX134: 926.561935 | CY134: 0 | CZ134: 25.2 | DA134: 0 | DB134: 1015.703507 | DC134: 74595.9875 | DD134: 0.2544420805 | DE134: 0.2544420805
B135: 114 | S135: =IFERROR((I135+J135+K135+L135+M135)*$J$12+('Simulador para calculos'!I135+'Simulador para calculos'!J135+'Simulador para calculos'!K135+'Simulador para calculos'!L135+'Simulador para calculos'!M135)*NOT($J$12),"") ->  | U135: =IFERROR((1+'Simulación Cliente'!$E$21)^(T135/360),"") ->  | AB135: 114 | AS135: 114 | AT135: 2032-03-01 | AU135: 29 | AV135: 3469 | AW135: 56405.49746 | AX135: 581.570036 | AY135: 654.5931883 | AZ135: 0 | BA135: 25.2 | BB135: 0 | BC135: 1261.363224 | BD135: 55823.92742 | BE135: 0.2515231217 | BF135: 0.2515231217 | BJ135: 114 | BK135: 2032-03-01 | BL135: 29 | BM135: 3469 | BN135: 56220.94537 | BO135: 403.4970473 | BP135: 652.4514371 | BQ135: 0 | BR135: 25.2 | BS135: 0 | BT135: 1081.148484 | BU135: 55817.44832 | BV135: 0.2515231217 | BW135: 0.2515231217 | CA135: 114 | CB135: 2032-03-01 | CC135: 29 | CD135: 3469 | CE135: 74769.37456 | CF135: 292.1009239 | CG135: 867.7083882 | CH135: 0 | CI135: 25.2 | CJ135: 0 | CK135: 1185.009312 | CL135: 74477.27364 | CM135: 0.2515231217 | CN135: 0.2515231217 | CR135: 114 | CS135: 2032-03-01 | CT135: 29 | CU135: 3469 | CV135: 74595.9875 | CW135: 124.8072985 | CX135: 865.6962086 | CY135: 0 | CZ135: 25.2 | DA135: 0 | DB135: 1015.703507 | DC135: 74471.1802 | DD135: 0.2515231217 | DE135: 0.2515231217
B136: 115 | S136: =IFERROR((I136+J136+K136+L136+M136)*$J$12+('Simulador para calculos'!I136+'Simulador para calculos'!J136+'Simulador para calculos'!K136+'Simulador para calculos'!L136+'Simulador para calculos'!M136)*NOT($J$12),"") ->  | U136: =IFERROR((1+'Simulación Cliente'!$E$21)^(T136/360),"") ->  | AB136: 115 | AS136: 115 | AT136: 2032-04-01 | AU136: 31 | AV136: 3500 | AW136: 55823.92742 | AX136: 543.3641974 | AY136: 692.799027 | AZ136: 0 | BA136: 25.2 | BB136: 0 | BC136: 1261.363224 | BD136: 55280.56323 | BE136: 0.2484398756 | BF136: 0.2484398756 | BJ136: 115 | BK136: 2032-04-01 | BL136: 31 | BM136: 3500 | BN136: 55817.44832 | BO136: 363.2298659 | BP136: 692.7186185 | BQ136: 0 | BR136: 25.2 | BS136: 0 | BT136: 1081.148484 | BU136: 55454.21845 | BV136: 0.2484398756 | BW136: 0.2484398756 | CA136: 115 | CB136: 2032-04-01 | CC136: 31 | CD136: 3500 | CE136: 74477.27364 | CF136: 235.5142098 | CG136: 924.2951023 | CH136: 0 | CI136: 25.2 | CJ136: 0 | CK136: 1185.009312 | CL136: 74241.75943 | CM136: 0.2484398756 | CN136: 0.2484398756 | CR136: 115 | CS136: 2032-04-01 | CT136: 31 | CU136: 3500 | CV136: 74471.1802 | CW136: 66.28402698 | CX136: 924.2194801 | CY136: 0 | CZ136: 25.2 | DA136: 0 | DB136: 1015.703507 | DC136: 74404.89617 | DD136: 0.2484398756 | DE136: 0.2484398756
B137: 116 | S137: =IFERROR((I137+J137+K137+L137+M137)*$J$12+('Simulador para calculos'!I137+'Simulador para calculos'!J137+'Simulador para calculos'!K137+'Simulador para calculos'!L137+'Simulador para calculos'!M137)*NOT($J$12),"") ->  | U137: =IFERROR((1+'Simulación Cliente'!$E$21)^(T137/360),"") ->  | AB137: 116 | AS137: 116 | AT137: 2032-05-01 | AU137: 30 | AV137: 3530 | AW137: 55280.56323 | AX137: 572.3707414 | AY137: 663.7924829 | AZ137: 0 | BA137: 25.2 | BB137: 0 | BC137: 1261.363224 | BD137: 54708.19248 | BE137: 0.2454920801 | BF137: 0.2454920801 | BJ137: 116 | BK137: 2032-05-01 | BL137: 30 | BM137: 3530 | BN137: 55454.21845 | BO137: 390.0708014 | BP137: 665.877683 | BQ137: 0 | BR137: 25.2 | BS137: 0 | BT137: 1081.148484 | BU137: 55064.14765 | BV137: 0.2454920801 | BW137: 0.2454920801 | CA137: 116 | CB137: 2032-05-01 | CC137: 30 | CD137: 3530 | CE137: 74241.75943 | CF137: 268.3364516 | CG137: 891.4728605 | CH137: 0 | CI137: 25.2 | CJ137: 0 | CK137: 1185.009312 | CL137: 73973.42298 | CM137: 0.2454920801 | CN137: 0.2454920801 | CR137: 116 | CS137: 2032-05-01 | CT137: 30 | CU137: 3530 | CV137: 74404.89617 | CW137: 97.07174933 | CX137: 893.4317577 | CY137: 0 | CZ137: 25.2 | DA137: 0 | DB137: 1015.703507 | DC137: 74307.82442 | DD137: 0.2454920801 | DE137: 0.2454920801
B138: 117 | S138: =IFERROR((I138+J138+K138+L138+M138)*$J$12+('Simulador para calculos'!I138+'Simulador para calculos'!J138+'Simulador para calculos'!K138+'Simulador para calculos'!L138+'Simulador para calculos'!M138)*NOT($J$12),"") ->  | U138: =IFERROR((1+'Simulación Cliente'!$E$21)^(T138/360),"") ->  | AB138: 117 | AS138: 117 | AT138: 2032-06-01 | AU138: 31 | AV138: 3561 | AW138: 54708.19248 | AX138: 557.2109494 | AY138: 678.952275 | AZ138: 0 | BA138: 25.2 | BB138: 0 | BC138: 1261.363224 | BD138: 54150.98153 | BE138: 0.2424827643 | BF138: 0.2424827643 | BJ138: 117 | BK138: 2032-06-01 | BL138: 31 | BM138: 3561 | BN138: 55064.14765 | BO138: 372.5786522 | BP138: 683.3698322 | BQ138: 0 | BR138: 25.2 | BS138: 0 | BT138: 1081.148484 | BU138: 54691.569 | BV138: 0.2424827643 | BW138: 0.2424827643 | CA138: 117 | CB138: 2032-06-01 | CC138: 31 | CD138: 3561 | CE138: 73973.42298 | CF138: 241.7672139 | CG138: 918.0420982 | CH138: 0 | CI138: 25.2 | CJ138: 0 | CK138: 1185.009312 | CL138: 73731.65576 | CM138: 0.2424827643 | CN138: 0.2424827643 | CR138: 117 | CS138: 2032-06-01 | CT138: 31 | CU138: 3561 | CV138: 74307.82442 | CW138: 68.31134265 | CX138: 922.1921644 | CY138: 0 | CZ138: 25.2 | DA138: 0 | DB138: 1015.703507 | DC138: 74239.51308 | DD138: 0.2424827643 | DE138: 0.2424827643
B139: 118 | S139: =IFERROR((I139+J139+K139+L139+M139)*$J$12+('Simulador para calculos'!I139+'Simulador para calculos'!J139+'Simulador para calculos'!K139+'Simulador para calculos'!L139+'Simulador para calculos'!M139)*NOT($J$12),"") ->  | U139: =IFERROR((1+'Simulación Cliente'!$E$21)^(T139/360),"") ->  | AB139: 118 | AS139: 118 | AT139: 2032-07-01 | AU139: 30 | AV139: 3591 | AW139: 54150.98153 | AX139: 585.9344208 | AY139: 650.2288036 | AZ139: 0 | BA139: 25.2 | BB139: 0 | BC139: 1261.363224 | BD139: 53565.04711 | BE139: 0.2396056513 | BF139: 0.2396056513 | BJ139: 118 | BK139: 2032-07-01 | BL139: 30 | BM139: 3591 | BN139: 54691.569 | BO139: 1480.376953 | BP139: 656.7200163 | BQ139: 0 | BR139: 25.2 | BS139: 0 | BT139: 2162.296969 | BU139: 53211.19205 | BV139: 0.4792113026 | BW139: 0.2396056513 | CA139: 118 | CB139: 2032-07-01 | CC139: 30 | CD139: 3591 | CE139: 73731.65576 | CF139: 274.461624 | CG139: 885.3476881 | CH139: 0 | CI139: 25.2 | CJ139: 0 | CK139: 1185.009312 | CL139: 73457.19414 | CM139: 0.2396056513 | CN139: 0.2396056513 | CR139: 118 | CS139: 2032-07-01 | CT139: 30 | CU139: 3591 | CV139: 74239.51308 | CW139: 1114.761127 | CX139: 891.445887 | CY139: 0 | CZ139: 25.2 | DA139: 0 | DB139: 2031.407014 | DC139: 73124.75195 | DD139: 0.4792113026 | DE139: 0.2396056513
B140: 119 | S140: =IFERROR((I140+J140+K140+L140+M140)*$J$12+('Simulador para calculos'!I140+'Simulador para calculos'!J140+'Simulador para calculos'!K140+'Simulador para calculos'!L140+'Simulador para calculos'!M140)*NOT($J$12),"") ->  | U140: =IFERROR((1+'Simulación Cliente'!$E$21)^(T140/360),"") ->  | AB140: 119 | AS140: 119 | AT140: 2032-08-01 | AU140: 31 | AV140: 3622 | AW140: 53565.04711 | AX140: 571.3978767 | AY140: 664.7653477 | AZ140: 0 | BA140: 25.2 | BB140: 0 | BC140: 1261.363224 | BD140: 52993.64924 | BE140: 0.2366684932 | BF140: 0.2366684932 | BJ140: 119 | BK140: 2032-08-01 | BL140: 31 | BM140: 3622 | BN140: 53211.19205 | BO140: 395.5746308 | BP140: 660.3738536 | BQ140: 0 | BR140: 25.2 | BS140: 0 | BT140: 1081.148484 | BU140: 52815.61742 | BV140: 0.2366684932 | BW140: 0.2366684932 | CA140: 119 | CB140: 2032-08-01 | CC140: 31 | CD140: 3622 | CE140: 73457.19414 | CF140: 248.1738365 | CG140: 911.6354756 | CH140: 0 | CI140: 25.2 | CJ140: 0 | CK140: 1185.009312 | CL140: 73209.0203 | CM140: 0.2366684932 | CN140: 0.2366684932 | CR140: 119 | CS140: 2032-08-01 | CT140: 31 | CU140: 3622 | CV140: 73124.75195 | CW140: 82.99378249 | CX140: 907.5097246 | CY140: 0 | CZ140: 25.2 | DA140: 0 | DB140: 1015.703507 | DC140: 73041.75817 | DD140: 0.2366684932 | DE140: 0.2366684932
B141: 120 | S141: =IFERROR((I141+J141+K141+L141+M141)*$J$12+('Simulador para calculos'!I141+'Simulador para calculos'!J141+'Simulador para calculos'!K141+'Simulador para calculos'!L141+'Simulador para calculos'!M141)*NOT($J$12),"") ->  | U141: =IFERROR((1+'Simulación Cliente'!$E$21)^(T141/360),"") ->  | AB141: 120 | AS141: 120 | AT141: 2032-09-01 | AU141: 31 | AV141: 3653 | AW141: 52993.64924 | AX141: 578.4891709 | AY141: 657.6740534 | AZ141: 0 | BA141: 25.2 | BB141: 0 | BC141: 1261.363224 | BD141: 52415.16007 | BE141: 0.2337673396 | BF141: 0.2337673396 | BJ141: 120 | BK141: 2032-09-01 | BL141: 31 | BM141: 3653 | BN141: 52815.61742 | BO141: 400.4838827 | BP141: 655.4646017 | BQ141: 0 | BR141: 25.2 | BS141: 0 | BT141: 1081.148484 | BU141: 52415.13353 | BV141: 0.2337673396 | BW141: 0.2337673396 | CA141: 120 | CB141: 2032-09-01 | CC141: 31 | CD141: 3653 | CE141: 73209.0203 | CF141: 251.2537809 | CG141: 908.5555312 | CH141: 0 | CI141: 25.2 | CJ141: 0 | CK141: 1185.009312 | CL141: 72957.76652 | CM141: 0.2337673396 | CN141: 0.2337673396 | CR141: 120 | CS141: 2032-09-01 | CT141: 31 | CU141: 3653 | CV141: 73041.75817 | CW141: 84.02377114 | CX141: 906.4797359 | CY141: 0 | CZ141: 25.2 | DA141: 0 | DB141: 1015.703507 | DC141: 72957.7344 | DD141: 0.2337673396 | DE141: 0.2337673396
B142: 121 | S142: =IFERROR((I142+J142+K142+L142+M142)*$J$12+('Simulador para calculos'!I142+'Simulador para calculos'!J142+'Simulador para calculos'!K142+'Simulador para calculos'!L142+'Simulador para calculos'!M142)*NOT($J$12),"") ->  | U142: =IFERROR((1+'Simulación Cliente'!$E$21)^(T142/360),"") ->  | AB142: 121 | AS142: 121 | AT142: 2032-10-01 | AU142: 30 | AV142: 3683 | AW142: 52415.16007 | AX142: 606.7776463 | AY142: 629.3855781 | AZ142: 0 | BA142: 25.2 | BB142: 0 | BC142: 1261.363224 | BD142: 51808.38242 | BE142: 0.2309936371 | BF142: 0.2309936371 | BJ142: 121 | BK142: 2032-10-01 | BL142: 30 | BM142: 3683 | BN142: 52415.13353 | BO142: 426.5632249 | BP142: 629.3852595 | BQ142: 0 | BR142: 25.2 | BS142: 0 | BT142: 1081.148484 | BU142: 51988.57031 | BV142: 0.2309936371 | BW142: 0.2309936371 | CA142: 121 | CB142: 2032-10-01 | CC142: 30 | CD142: 3683 | CE142: 72957.76652 | CF142: 283.7542547 | CG142: 876.0550574 | CH142: 0 | CI142: 25.2 | CJ142: 0 | CK142: 1185.009312 | CL142: 72674.01227 | CM142: 0.2309936371 | CN142: 0.2309936371 | CR142: 121 | CS142: 2032-10-01 | CT142: 30 | CU142: 3683 | CV142: 72957.7344 | CW142: 114.4488354 | CX142: 876.0546716 | CY142: 0 | CZ142: 25.2 | DA142: 0 | DB142: 1015.703507 | DC142: 72843.28556 | DD142: 0.2309936371 | DE142: 0.2309936371
B143: 122 | S143: =IFERROR((I143+J143+K143+L143+M143)*$J$12+('Simulador para calculos'!I143+'Simulador para calculos'!J143+'Simulador para calculos'!K143+'Simulador para calculos'!L143+'Simulador para calculos'!M143)*NOT($J$12),"") ->  | U143: =IFERROR((1+'Simulación Cliente'!$E$21)^(T143/360),"") ->  | AB143: 122 | AS143: 122 | AT143: 2032-11-01 | AU143: 31 | AV143: 3714 | AW143: 51808.38242 | AX143: 593.1988435 | AY143: 642.9643808 | AZ143: 0 | BA143: 25.2 | BB143: 0 | BC143: 1261.363224 | BD143: 51215.18358 | BE143: 0.2281620476 | BF143: 0.2281620476 | BJ143: 122 | BK143: 2032-11-01 | BL143: 31 | BM143: 3714 | BN143: 51988.57031 | BO143: 410.7478941 | BP143: 645.2005903 | BQ143: 0 | BR143: 25.2 | BS143: 0 | BT143: 1081.148484 | BU143: 51577.82241 | BV143: 0.2281620476 | BW143: 0.2281620476 | CA143: 122 | CB143: 2032-11-01 | CC143: 31 | CD143: 3714 | CE143: 72674.01227 | CF143: 257.8934615 | CG143: 901.9158506 | CH143: 0 | CI143: 25.2 | CJ143: 0 | CK143: 1185.009312 | CL143: 72416.11881 | CM143: 0.2281620476 | CN143: 0.2281620476 | CR143: 122 | CS143: 2032-11-01 | CT143: 31 | CU143: 3714 | CV143: 72843.28556 | CW143: 86.48690182 | CX143: 904.0166052 | CY143: 0 | CZ143: 25.2 | DA143: 0 | DB143: 1015.703507 | DC143: 72756.79866 | DD143: 0.2281620476 | DE143: 0.2281620476
B144: 123 | S144: =IFERROR((I144+J144+K144+L144+M144)*$J$12+('Simulador para calculos'!I144+'Simulador para calculos'!J144+'Simulador para calculos'!K144+'Simulador para calculos'!L144+'Simulador para calculos'!M144)*NOT($J$12),"") ->  | U144: =IFERROR((1+'Simulación Cliente'!$E$21)^(T144/360),"") ->  | AB144: 123 | AS144: 123 | AT144: 2032-12-01 | AU144: 30 | AV144: 3744 | AW144: 51215.18358 | AX144: 621.1866053 | AY144: 614.976619 | AZ144: 0 | BA144: 25.2 | BB144: 0 | BC144: 1261.363224 | BD144: 50593.99697 | BE144: 0.2254548531 | BF144: 0.2254548531 | BJ144: 123 | BK144: 2032-12-01 | BL144: 30 | BM144: 3744 | BN144: 51577.82241 | BO144: 1517.765891 | BP144: 619.3310778 | BQ144: 0 | BR144: 25.2 | BS144: 0 | BT144: 2162.296969 | BU144: 50060.05652 | BV144: 0.4509097062 | BW144: 0.2254548531 | CA144: 123 | CB144: 2032-12-01 | CC144: 30 | CD144: 3744 | CE144: 72416.11881 | CF144: 290.2581986 | CG144: 869.5511135 | CH144: 0 | CI144: 25.2 | CJ144: 0 | CK144: 1185.009312 | CL144: 72125.86061 | CM144: 0.2254548531 | CN144: 0.2254548531 | CR144: 123 | CS144: 2032-12-01 | CT144: 30 | CU144: 3744 | CV144: 72756.79866 | CW144: 1132.565119 | CX144: 873.6418954 | CY144: 0 | CZ144: 25.2 | DA144: 0 | DB144: 2031.407014 | DC144: 71624.23354 | DD144: 0.4509097062 | DE144: 0.2254548531
B145: 124 | S145: =IFERROR((I145+J145+K145+L145+M145)*$J$12+('Simulador para calculos'!I145+'Simulador para calculos'!J145+'Simulador para calculos'!K145+'Simulador para calculos'!L145+'Simulador para calculos'!M145)*NOT($J$12),"") ->  | U145: =IFERROR((1+'Simulación Cliente'!$E$21)^(T145/360),"") ->  | AB145: 124 | AS145: 124 | AT145: 2033-01-01 | AU145: 31 | AV145: 3775 | AW145: 50593.99697 | AX145: 608.269891 | AY145: 627.8933334 | AZ145: 0 | BA145: 25.2 | BB145: 0 | BC145: 1261.363224 | BD145: 49985.72708 | BE145: 0.2226911597 | BF145: 0.2226911597 | BJ145: 124 | BK145: 2033-01-01 | BL145: 31 | BM145: 3775 | BN145: 50060.05652 | BO145: 434.6815824 | BP145: 621.266902 | BQ145: 0 | BR145: 25.2 | BS145: 0 | BT145: 1081.148484 | BU145: 49625.37494 | BV145: 0.2226911597 | BW145: 0.2226911597 | CA145: 124 | CB145: 2033-01-01 | CC145: 31 | CD145: 3775 | CE145: 72125.86061 | CF145: 264.6962601 | CG145: 895.113052 | CH145: 0 | CI145: 25.2 | CJ145: 0 | CK145: 1185.009312 | CL145: 71861.16435 | CM145: 0.2226911597 | CN145: 0.2226911597 | CR145: 124 | CS145: 2033-01-01 | CT145: 31 | CU145: 3775 | CV145: 71624.23354 | CW145: 101.6158634 | CX145: 888.8876437 | CY145: 0 | CZ145: 25.2 | DA145: 0 | DB145: 1015.703507 | DC145: 71522.61768 | DD145: 0.2226911597 | DE145: 0.2226911597
B146: 125 | S146: =IFERROR((I146+J146+K146+L146+M146)*$J$12+('Simulador para calculos'!I146+'Simulador para calculos'!J146+'Simulador para calculos'!K146+'Simulador para calculos'!L146+'Simulador para calculos'!M146)*NOT($J$12),"") ->  | U146: =IFERROR((1+'Simulación Cliente'!$E$21)^(T146/360),"") ->  | AB146: 125 | AS146: 125 | AT146: 2033-02-01 | AU146: 31 | AV146: 3806 | AW146: 49985.72708 | AX146: 615.8187828 | AY146: 620.3444416 | AZ146: 0 | BA146: 25.2 | BB146: 0 | BC146: 1261.363224 | BD146: 49369.9083 | BE146: 0.2199613445 | BF146: 0.2199613445 | BJ146: 125 | BK146: 2033-02-01 | BL146: 31 | BM146: 3806 | BN146: 49625.37494 | BO146: 440.0761684 | BP146: 615.872316 | BQ146: 0 | BR146: 25.2 | BS146: 0 | BT146: 1081.148484 | BU146: 49185.29877 | BV146: 0.2199613445 | BW146: 0.2199613445 | CA146: 125 | CB146: 2033-02-01 | CC146: 31 | CD146: 3806 | CE146: 71861.16435 | CF146: 267.9812549 | CG146: 891.8280572 | CH146: 0 | CI146: 25.2 | CJ146: 0 | CK146: 1185.009312 | CL146: 71593.18309 | CM146: 0.2199613445 | CN146: 0.2199613445 | CR146: 125 | CS146: 2033-02-01 | CT146: 31 | CU146: 3806 | CV146: 71522.61768 | CW146: 102.8769601 | CX146: 887.6265469 | CY146: 0 | CZ146: 25.2 | DA146: 0 | DB146: 1015.703507 | DC146: 71419.74072 | DD146: 0.2199613445 | DE146: 0.2199613445
B147: 126 | S147: =IFERROR((I147+J147+K147+L147+M147)*$J$12+('Simulador para calculos'!I147+'Simulador para calculos'!J147+'Simulador para calculos'!K147+'Simulador para calculos'!L147+'Simulador para calculos'!M147)*NOT($J$12),"") ->  | U147: =IFERROR((1+'Simulación Cliente'!$E$21)^(T147/360),"") ->  | AB147: 126 | AS147: 126 | AT147: 2033-03-01 | AU147: 28 | AV147: 3834 | AW147: 49369.9083 | AX147: 683.0859146 | AY147: 553.0773098 | AZ147: 0 | BA147: 25.2 | BB147: 0 | BC147: 1261.363224 | BD147: 48686.82238 | BE147: 0.2175244785 | BF147: 0.2175244785 | BJ147: 126 | BK147: 2033-03-01 | BL147: 28 | BM147: 3834 | BN147: 49185.29877 | BO147: 504.9393036 | BP147: 551.0091808 | BQ147: 0 | BR147: 25.2 | BS147: 0 | BT147: 1081.148484 | BU147: 48680.35947 | BV147: 0.2175244785 | BW147: 0.2175244785 | CA147: 126 | CB147: 2033-03-01 | CC147: 28 | CD147: 3834 | CE147: 71593.18309 | CF147: 357.7708545 | CG147: 802.0384576 | CH147: 0 | CI147: 25.2 | CJ147: 0 | CK147: 1185.009312 | CL147: 71235.41224 | CM147: 0.2175244785 | CN147: 0.2175244785 | CR147: 126 | CS147: 2033-03-01 | CT147: 28 | CU147: 3834 | CV147: 71419.74072 | CW147: 190.408076 | CX147: 800.0954311 | CY147: 0 | CZ147: 25.2 | DA147: 0 | DB147: 1015.703507 | DC147: 71229.33264 | DD147: 0.2175244785 | DE147: 0.2175244785
B148: 127 | S148: =IFERROR((I148+J148+K148+L148+M148)*$J$12+('Simulador para calculos'!I148+'Simulador para calculos'!J148+'Simulador para calculos'!K148+'Simulador para calculos'!L148+'Simulador para calculos'!M148)*NOT($J$12),"") ->  | U148: =IFERROR((1+'Simulación Cliente'!$E$21)^(T148/360),"") ->  | AB148: 127 | AS148: 127 | AT148: 2033-04-01 | AU148: 31 | AV148: 3865 | AW148: 48686.82238 | AX148: 631.9387505 | AY148: 604.2244738 | AZ148: 0 | BA148: 25.2 | BB148: 0 | BC148: 1261.363224 | BD148: 48054.88363 | BE148: 0.214857998 | BF148: 0.214857998 | BJ148: 127 | BK148: 2033-04-01 | BL148: 31 | BM148: 3865 | BN148: 48680.35947 | BO148: 451.8042181 | BP148: 604.1442663 | BQ148: 0 | BR148: 25.2 | BS148: 0 | BT148: 1081.148484 | BU148: 48228.55525 | BV148: 0.214857998 | BW148: 0.214857998 | CA148: 127 | CB148: 2033-04-01 | CC148: 31 | CD148: 3865 | CE148: 71235.41224 | CF148: 275.7471086 | CG148: 884.0622035 | CH148: 0 | CI148: 25.2 | CJ148: 0 | CK148: 1185.009312 | CL148: 70959.66513 | CM148: 0.214857998 | CN148: 0.214857998 | CR148: 127 | CS148: 2033-04-01 | CT148: 31 | CU148: 3865 | CV148: 71229.33264 | CW148: 106.516754 | CX148: 883.9867531 | CY148: 0 | CZ148: 25.2 | DA148: 0 | DB148: 1015.703507 | DC148: 71122.81589 | DD148: 0.214857998 | DE148: 0.214857998
B149: 128 | S149: =IFERROR((I149+J149+K149+L149+M149)*$J$12+('Simulador para calculos'!I149+'Simulador para calculos'!J149+'Simulador para calculos'!K149+'Simulador para calculos'!L149+'Simulador para calculos'!M149)*NOT($J$12),"") ->  | U149: =IFERROR((1+'Simulación Cliente'!$E$21)^(T149/360),"") ->  | AB149: 128 | AS149: 128 | AT149: 2033-05-01 | AU149: 30 | AV149: 3895 | AW149: 48054.88363 | AX149: 659.1345426 | AY149: 577.0286817 | AZ149: 0 | BA149: 25.2 | BB149: 0 | BC149: 1261.363224 | BD149: 47395.74909 | BE149: 0.2123086591 | BF149: 0.2123086591 | BJ149: 128 | BK149: 2033-05-01 | BL149: 30 | BM149: 3895 | BN149: 48228.55525 | BO149: 476.8344058 | BP149: 579.1140786 | BQ149: 0 | BR149: 25.2 | BS149: 0 | BT149: 1081.148484 | BU149: 47751.72085 | BV149: 0.2123086591 | BW149: 0.2123086591 | CA149: 128 | CB149: 2033-05-01 | CC149: 30 | CD149: 3895 | CE149: 70959.66513 | CF149: 307.7468591 | CG149: 852.062453 | CH149: 0 | CI149: 25.2 | CJ149: 0 | CK149: 1185.009312 | CL149: 70651.91827 | CM149: 0.2123086591 | CN149: 0.2123086591 | CR149: 128 | CS149: 2033-05-01 | CT149: 30 | CU149: 3895 | CV149: 71122.81589 | CW149: 136.4819885 | CX149: 854.0215185 | CY149: 0 | CZ149: 25.2 | DA149: 0 | DB149: 1015.703507 | DC149: 70986.3339 | DD149: 0.2123086591 | DE149: 0.2123086591
B150: 129 | M150: =IF(B150>C$6,"",C$15) ->  | P150: =IFERROR(IF(AND(MONTH(C150)=7,C$9=2),2/(1+C$11)^(G150/360),IF(AND(MONTH(C150)=12,C$10=2),2/(1+C$11)^(G150/360),1/(1+C$11)^(G150/360))),"") ->  | Q150: =IFERROR(1/(1+C$11)^(G150/360),"") ->  | S150: =IFERROR((I150+J150+K150+L150+M150)*$J$12+('Simulador para calculos'!I150+'Simulador para calculos'!J150+'Simulador para calculos'!K150+'Simulador para calculos'!L150+'Simulador para calculos'!M150)*NOT($J$12),"") ->  | T150: =G150 ->  | U150: =IFERROR((1+'Simulación Cliente'!$E$21)^(T150/360),"") ->  | AB150: 129 | AI150: =IF(AB150>AC$6,"",((1+AC$12)^(AD150/30)-1)*AF150) ->  | AJ150: =IF(AB150>AC$6,"",AC$4*AC$14) ->  | AK150: =IF(AB150>AC$6,"",AC$15) ->  | AL150: =IF(AB150>AC$6,"",IF(AB150=AC$6,AF150+AH150+AI150+AJ150+AK150,IF(AND(AC$9=2,MONTH(AC150)=7),2*AC$17,IF(AND(AC$10=2,MONTH(AC150)=12),2*AC$17,AC$17)))) ->  | AM150: =IF(AB150>AC$6,"",AF150-AG150) ->  | AS150: 129 | AT150: 2033-06-01 | AU150: 31 | AV150: 3926 | AW150: 47395.74909 | AX150: 647.9615272 | AY150: 588.2016972 | AZ150: =IF(AS150>AT$6,"",((1+AT$12)^(AU150/30)-1)*AW150) -> 0 | BA150: =IF(AS150>AT$6,"",AT$4*AT$14) -> 25.2 | BB150: =IF(AS150>AT$6,"",AT$15) -> 0 | BC150: =IF(AS150>AT$6,"",IF(AS150=AT$6,AW150+AY150+AZ150+BA150+BB150,IF(AND(AT$9=2,MONTH(AT150)=7),2*AT$17,IF(AND(AT$10=2,MONTH(AT150)=12),2*AT$17,AT$17)))) -> 1261.363224 | BD150: =IF(AS150>AT$6,"",AW150-AX150) -> 46747.78756 | BE150: 0.2097061157 | BF150: 0.2097061157 | BJ150: 129 | BK150: 2033-06-01 | BL150: 31 | BM150: 3926 | BN150: 47751.72085 | BO150: 463.3290241 | BP150: 592.6194602 | BQ150: =IF(BJ150>BK$6,"",((1+BK$12)^(BL150/30)-1)*BN150) -> 0 | BR150: =IF(BJ150>BK$6,"",BK$4*BK$14) -> 25.2 | BS150: =IF(BJ150>BK$6,"",BK$15) -> 0 | BT150: =IF(BJ150>BK$6,"",IF(BJ150=BK$6,BN150+BP150+BQ150+BR150+BS150,IF(AND(BK$9=2,MONTH(BK150)=7),2*BK$17,IF(AND(BK$10=2,MONTH(BK150)=12),2*BK$17,BK$17)))) -> 1081.148484 | BU150: =IF(BJ150>BK$6,"",BN150-BO150) -> 47288.39182 | BV150: 0.2097061157 | BW150: 0.2097061157 | CA150: 129 | CB150: 2033-06-01 | CC150: 31 | CD150: 3926 | CE150: 70651.91827 | CF150: 282.9885205 | CG150: 876.8207916 | CH150: =IF(CA150>CB$6,"",((1+CB$12)^(CC150/30)-1)*CE150) -> 0 | CI150: =IF(CA150>CB$6,"",CB$4*CB$14) -> 25.2 | CJ150: =IF(CA150>CB$6,"",CB$15) -> 0 | CK150: =IF(CA150>CB$6,"",IF(CA150=CB$6,CE150+CG150+CH150+CI150+CJ150,IF(AND(CB$9=2,MONTH(CB150)=7),2*CB$17,IF(AND(CB$10=2,MONTH(CB150)=12),2*CB$17,CB$17)))) -> 1185.009312 | CL150: =IF(CA150>CB$6,"",CE150-CF150) -> 70368.92975 | CM150: 0.2097061157 | CN150: 0.2097061157 | CR150: 129 | CS150: 2033-06-01 | CT150: 31 | CU150: 3926 | CV150: 70986.3339 | CW150: 109.5324732 | CX150: 880.9710338 | CY150: =IF(CR150>CS$6,"",((1+CS$12)^(CT150/30)-1)*CV150) -> 0 | CZ150: =IF(CR150>CS$6,"",CS$4*CS$14) -> 25.2 | DA150: =IF(CR150>CS$6,"",CS$15) -> 0 | DB150: =IF(CR150>CS$6,"",IF(CR150=CS$6,CV150+CX150+CY150+CZ150+DA150,IF(AND(CS$9=2,MONTH(CS150)=7),2*CS$17,IF(AND(CS$10=2,MONTH(CS150)=12),2*CS$17,CS$17)))) -> 1015.703507 | DC150: =IF(CR150>CS$6,"",CV150-CW150) -> 70876.80143 | DD150: 0.2097061157 | DE150: 0.2097061157
B151: 130 | D151: =IF(B151<=$C$6,WEEKDAY(C151,2),"") ->  | E151: =IF(D151=7,C151+1,C151) ->  | G151: =IFERROR(F151+G150,"") ->  | H151: =IF(B151>C$6,"",O150) ->  | I151: =IF(B151>C$6,"",N151-M151-L151-K151-J151) ->  | K151: =IF(B151>C$6,"",0) ->  | L151: =IF(B151>C$6,"",D$4*C$14) ->  | N151: =IF(B151>C$6,"",IF(B151=C$6,H151+J151+K151+L151+M151,IF(AND(C$9=2,MONTH(C151)=7),2*C$17,IF(AND(C$10=2,MONTH(C151)=12),2*C$17,C$17)))) ->  | O151: =IF(B151>C$6,"",H151-I151) ->  | S151: =IFERROR((I151+J151+K151+L151+M151)*$J$12+('Simulador para calculos'!I151+'Simulador para calculos'!J151+'Simulador para calculos'!K151+'Simulador para calculos'!L151+'Simulador para calculos'!M151)*NOT($J$12),"") ->  | U151: =IFERROR((1+'Simulación Cliente'!$E$21)^(T151/360),"") ->  | V151: =IFERROR(ROUND(S151/U151,2),"") ->  | AB151: 130 | AC151: =IF(AB151>AC$6,"",EDATE(AC$22,AB150)) ->  | AE151: =IFERROR(AD151+AE150,"") ->  | AF151: =IF(AB151>AC$6,"",AM150) ->  | AN151: =IFERROR(IF(AND(MONTH(AC151)=7,AC$9=2),2/(1+AC$13)^(AE151/360),IF(AND(MONTH(AC151)=12,AC$10=2),2/(1+AC$13)^(AE151/360),1/(1+AC$13)^(AE151/360))),"") ->  | AO151: =IFERROR(1/(1+AC$13)^(AE151/360),"") ->  | AS151: 130 | AT151: =IF(AS151>AT$6,"",EDATE(AT$22,AS150)) -> 2033-07-01 | AU151: 30 | AV151: =IFERROR(AU151+AV150,"") -> 3956 | AW151: =IF(AS151>AT$6,"",BD150) -> 46747.78756 | AX151: 674.8297616 | AY151: 561.3334627 | AZ151: 0 | BA151: 25.2 | BB151: 0 | BC151: 1261.363224 | BD151: 46072.9578 | BE151: =IFERROR(IF(AND(MONTH(AT151)=7,AT$9=2),2/(1+AT$13)^(AV151/360),IF(AND(MONTH(AT151)=12,AT$10=2),2/(1+AT$13)^(AV151/360),1/(1+AT$13)^(AV151/360))),"") -> 0.207217905 | BF151: =IFERROR(1/(1+AT$13)^(AV151/360),"") -> 0.207217905 | BJ151: 130 | BK151: =IF(BJ151>BK$6,"",EDATE(BK$22,BJ150)) -> 2033-07-01 | BL151: 30 | BM151: =IFERROR(BL151+BM150,"") -> 3956 | BN151: =IF(BJ151>BK$6,"",BU150) -> 47288.39182 | BO151: 1569.272092 | BP151: 567.8248771 | BQ151: 0 | BR151: 25.2 | BS151: 0 | BT151: 2162.296969 | BU151: 45719.11973 | BV151: =IFERROR(IF(AND(MONTH(BK151)=7,BK$9=2),2/(1+BK$13)^(BM151/360),IF(AND(MONTH(BK151)=12,BK$10=2),2/(1+BK$13)^(BM151/360),1/(1+BK$13)^(BM151/360))),"") -> 0.41443581 | BW151: =IFERROR(1/(1+BK$13)^(BM151/360),"") -> 0.207217905 | CA151: 130 | CB151: =IF(CA151>CB$6,"",EDATE(CB$22,CA150)) -> 2033-07-01 | CC151: 30 | CD151: =IFERROR(CC151+CD150,"") -> 3956 | CE151: =IF(CA151>CB$6,"",CL150) -> 70368.92975 | CF151: 314.840233 | CG151: 844.9690791 | CH151: 0 | CI151: 25.2 | CJ151: 0 | CK151: 1185.009312 | CL151: 70054.08952 | CM151: =IFERROR(IF(AND(MONTH(CB151)=7,CB$9=2),2/(1+CB$13)^(CD151/360),IF(AND(MONTH(CB151)=12,CB$10=2),2/(1+CB$13)^(CD151/360),1/(1+CB$13)^(CD151/360))),"") -> 0.207217905 | CN151: =IFERROR(1/(1+CB$13)^(CD151/360),"") -> 0.207217905 | CR151: 130 | CS151: =IF(CR151>CS$6,"",EDATE(CS$22,CR150)) -> 2033-07-01 | CT151: 30 | CU151: =IFERROR(CT151+CU150,"") -> 3956 | CV151: =IF(CR151>CS$6,"",DC150) -> 70876.80143 | CW151: 1155.139564 | CX151: 851.0674504 | CY151: 0 | CZ151: 25.2 | DA151: 0 | DB151: 2031.407014 | DC151: 69721.66186 | DD151: =IFERROR(IF(AND(MONTH(CS151)=7,CS$9=2),2/(1+CS$13)^(CU151/360),IF(AND(MONTH(CS151)=12,CS$10=2),2/(1+CS$13)^(CU151/360),1/(1+CS$13)^(CU151/360))),"") -> 0.41443581 | DE151: =IFERROR(1/(1+CS$13)^(CU151/360),"") -> 0.207217905
B152: 131 | C152: =IF(B152>C$6,"",EDATE(C$22,B151)) ->  | F152: =IF(B152>C$6,"",E152-E151) ->  | J152: =IF(B152>C$6,"",((1+C$11)^(F152/360)-1)*H152) ->  | S152: =IFERROR((I152+J152+K152+L152+M152)*$J$12+('Simulador para calculos'!I152+'Simulador para calculos'!J152+'Simulador para calculos'!K152+'Simulador para calculos'!L152+'Simulador para calculos'!M152)*NOT($J$12),"") ->  | U152: =IFERROR((1+'Simulación Cliente'!$E$21)^(T152/360),"") ->  | AB152: 131 | AH152: =IF(AB152>AC$6,"",((1+AC$11)^(AD152/360)-1)*AF152) ->  | AS152: 131 | AT152: 2033-08-01 | AU152: 31 | AV152: 3987 | AW152: 46072.9578 | AX152: 664.3779379 | AY152: =IF(AS152>AT$6,"",((1+AT$11)^(AU152/360)-1)*AW152) -> 571.7852865 | AZ152: 0 | BA152: 25.2 | BB152: 0 | BC152: 1261.363224 | BD152: 45408.57986 | BE152: 0.2046777656 | BF152: 0.2046777656 | BJ152: 131 | BK152: 2033-08-01 | BL152: 31 | BM152: 3987 | BN152: 45719.11973 | BO152: 488.5544811 | BP152: =IF(BJ152>BK$6,"",((1+BK$11)^(BL152/360)-1)*BN152) -> 567.3940033 | BQ152: 0 | BR152: 25.2 | BS152: 0 | BT152: 1081.148484 | BU152: 45230.56525 | BV152: 0.2046777656 | BW152: 0.2046777656 | CA152: 131 | CB152: 2033-08-01 | CC152: 31 | CD152: 3987 | CE152: 70054.08952 | CF152: 290.4078333 | CG152: =IF(CA152>CB$6,"",((1+CB$11)^(CC152/360)-1)*CE152) -> 869.4014788 | CH152: 0 | CI152: 25.2 | CJ152: 0 | CK152: 1185.009312 | CL152: 69763.68168 | CM152: 0.2046777656 | CN152: 0.2046777656 | CR152: 131 | CS152: 2033-08-01 | CT152: 31 | CU152: 3987 | CV152: 69721.66186 | CW152: 125.2275989 | CX152: =IF(CR152>CS$6,"",((1+CS$11)^(CT152/360)-1)*CV152) -> 865.2759082 | CY152: 0 | CZ152: 25.2 | DA152: 0 | DB152: 1015.703507 | DC152: 69596.43426 | DD152: 0.2046777656 | DE152: 0.2046777656
B153: 132 | S153: =IFERROR((I153+J153+K153+L153+M153)*$J$12+('Simulador para calculos'!I153+'Simulador para calculos'!J153+'Simulador para calculos'!K153+'Simulador para calculos'!L153+'Simulador para calculos'!M153)*NOT($J$12),"") ->  | U153: =IFERROR((1+'Simulación Cliente'!$E$21)^(T153/360),"") ->  | AB153: 132 | AD153: =IF(AB153>AC$6,"",AC153-AC152) ->  | AG153: =IF(AB153>AC$6,"",AL153-AK153-AJ153-AI153-AH153) ->  | AS153: 132 | AT153: 2033-09-01 | AU153: =IF(AS153>AT$6,"",AT153-AT152) -> 31 | AV153: 4018 | AW153: 45408.57986 | AX153: =IF(AS153>AT$6,"",BC153-BB153-BA153-AZ153-AY153) -> 672.6231547 | AY153: 563.5400696 | AZ153: 0 | BA153: 25.2 | BB153: 0 | BC153: 1261.363224 | BD153: 44735.95671 | BE153: 0.202168764 | BF153: 0.202168764 | BJ153: 132 | BK153: 2033-09-01 | BL153: =IF(BJ153>BK$6,"",BK153-BK152) -> 31 | BM153: 4018 | BN153: 45230.56525 | BO153: =IF(BJ153>BK$6,"",BT153-BS153-BR153-BQ153-BP153) -> 494.617653 | BP153: 561.3308314 | BQ153: 0 | BR153: 25.2 | BS153: 0 | BT153: 1081.148484 | BU153: 44735.9476 | BV153: 0.202168764 | BW153: 0.202168764 | CA153: 132 | CB153: 2033-09-01 | CC153: =IF(CA153>CB$6,"",CB153-CB152) -> 31 | CD153: 4018 | CE153: 69763.68168 | CF153: =IF(CA153>CB$6,"",CK153-CJ153-CI153-CH153-CG153) -> 294.0119198 | CG153: 865.7973923 | CH153: 0 | CI153: 25.2 | CJ153: 0 | CK153: 1185.009312 | CL153: 69469.66976 | CM153: 0.202168764 | CN153: 0.202168764 | CR153: 132 | CS153: 2033-09-01 | CT153: =IF(CR153>CS$6,"",CS153-CS152) -> 31 | CU153: 4018 | CV153: 69596.43426 | CW153: =IF(CR153>CS$6,"",DB153-DA153-CZ153-CY153-CX153) -> 126.7817274 | CX153: 863.7217796 | CY153: 0 | CZ153: 25.2 | DA153: 0 | DB153: 1015.703507 | DC153: 69469.65254 | DD153: 0.202168764 | DE153: 0.202168764
B154: 133 | S154: =IFERROR((I154+J154+K154+L154+M154)*$J$12+('Simulador para calculos'!I154+'Simulador para calculos'!J154+'Simulador para calculos'!K154+'Simulador para calculos'!L154+'Simulador para calculos'!M154)*NOT($J$12),"") ->  | U154: =IFERROR((1+'Simulación Cliente'!$E$21)^(T154/360),"") ->  | AB154: 133 | AS154: 133 | AT154: 2033-10-01 | AU154: 30 | AV154: 4048 | AW154: 44735.95671 | AX154: 698.9872253 | AY154: 537.1759991 | AZ154: 0 | BA154: 25.2 | BB154: 0 | BC154: 1261.363224 | BD154: 44036.96948 | BE154: 0.1997699857 | BF154: 0.1997699857 | BJ154: 133 | BK154: 2033-10-01 | BL154: 30 | BM154: 4048 | BN154: 44735.9476 | BO154: 518.7725948 | BP154: 537.1758896 | BQ154: 0 | BR154: 25.2 | BS154: 0 | BT154: 1081.148484 | BU154: 44217.175 | BV154: 0.1997699857 | BW154: 0.1997699857 | CA154: 133 | CB154: 2033-10-01 | CC154: 30 | CD154: 4048 | CE154: 69469.66976 | CF154: 325.6382782 | CG154: 834.1710339 | CH154: 0 | CI154: 25.2 | CJ154: 0 | CK154: 1185.009312 | CL154: 69144.03148 | CM154: 0.1997699857 | CN154: 0.1997699857 | CR154: 133 | CS154: 2033-10-01 | CT154: 30 | CU154: 4048 | CV154: 69469.65254 | CW154: 156.33268 | CX154: 834.1708271 | CY154: 0 | CZ154: 25.2 | DA154: 0 | DB154: 1015.703507 | DC154: 69313.31986 | DD154: 0.1997699857 | DE154: 0.1997699857
B155: 134 | S155: =IFERROR((I155+J155+K155+L155+M155)*$J$12+('Simulador para calculos'!I155+'Simulador para calculos'!J155+'Simulador para calculos'!K155+'Simulador para calculos'!L155+'Simulador para calculos'!M155)*NOT($J$12),"") ->  | U155: =IFERROR((1+'Simulación Cliente'!$E$21)^(T155/360),"") ->  | AB155: 134 | AS155: 134 | AT155: 2033-11-01 | AU155: 31 | AV155: 4079 | AW155: 44036.96948 | AX155: 689.6454314 | AY155: 546.5177929 | AZ155: 0 | BA155: 25.2 | BB155: 0 | BC155: 1261.363224 | BD155: 43347.32405 | BE155: 0.1973211452 | BF155: 0.1973211452 | BJ155: 134 | BK155: 2033-11-01 | BL155: 31 | BM155: 4079 | BN155: 44217.175 | BO155: 507.1942632 | BP155: 548.7542212 | BQ155: 0 | BR155: 25.2 | BS155: 0 | BT155: 1081.148484 | BU155: 43709.98074 | BV155: 0.1973211452 | BW155: 0.1973211452 | CA155: 134 | CB155: 2033-11-01 | CC155: 31 | CD155: 4079 | CE155: 69144.03148 | CF155: 301.7020461 | CG155: 858.1072659 | CH155: 0 | CI155: 25.2 | CJ155: 0 | CK155: 1185.009312 | CL155: 68842.32944 | CM155: 0.1973211452 | CN155: 0.1973211452 | CR155: 134 | CS155: 2033-11-01 | CT155: 31 | CU155: 4079 | CV155: 69313.31986 | CW155: 130.2952994 | CX155: 860.2082077 | CY155: 0 | CZ155: 25.2 | DA155: 0 | DB155: 1015.703507 | DC155: 69183.02456 | DD155: 0.1973211452 | DE155: 0.1973211452
B156: 135 | S156: =IFERROR((I156+J156+K156+L156+M156)*$J$12+('Simulador para calculos'!I156+'Simulador para calculos'!J156+'Simulador para calculos'!K156+'Simulador para calculos'!L156+'Simulador para calculos'!M156)*NOT($J$12),"") ->  | U156: =IFERROR((1+'Simulación Cliente'!$E$21)^(T156/360),"") ->  | AB156: 135 | AS156: 135 | AT156: 2033-12-01 | AU156: 30 | AV156: 4109 | AW156: 43347.32405 | AX156: 715.6615112 | AY156: 520.5017131 | AZ156: 0 | BA156: 25.2 | BB156: 0 | BC156: 1261.363224 | BD156: 42631.66254 | BE156: 0.194979885 | BF156: 0.194979885 | BJ156: 135 | BK156: 2033-12-01 | BL156: 30 | BM156: 4109 | BN156: 43709.98074 | BO156: 1612.240583 | BP156: 524.8563862 | BQ156: 0 | BR156: 25.2 | BS156: 0 | BT156: 2162.296969 | BU156: 42097.74015 | BV156: 0.38995977 | BW156: 0.194979885 | CA156: 135 | CB156: 2033-12-01 | CC156: 30 | CD156: 4109 | CE156: 68842.32944 | CF156: 333.1711933 | CG156: 826.6381188 | CH156: 0 | CI156: 25.2 | CJ156: 0 | CK156: 1185.009312 | CL156: 68509.15825 | CM156: 0.194979885 | CN156: 0.194979885 | CR156: 135 | CS156: 2033-12-01 | CT156: 30 | CU156: 4109 | CV156: 69183.02456 | CW156: 1175.47793 | CX156: 830.7290839 | CY156: 0 | CZ156: 25.2 | DA156: 0 | DB156: 2031.407014 | DC156: 68007.54663 | DD156: 0.38995977 | DE156: 0.194979885
B157: 136 | S157: =IFERROR((I157+J157+K157+L157+M157)*$J$12+('Simulador para calculos'!I157+'Simulador para calculos'!J157+'Simulador para calculos'!K157+'Simulador para calculos'!L157+'Simulador para calculos'!M157)*NOT($J$12),"") ->  | U157: =IFERROR((1+'Simulación Cliente'!$E$21)^(T157/360),"") ->  | AB157: 136 | AS157: 136 | AT157: 2034-01-01 | AU157: 31 | AV157: 4140 | AW157: 42631.66254 | AX157: 707.0858969 | AY157: 529.0773274 | AZ157: 0 | BA157: 25.2 | BB157: 0 | BC157: 1261.363224 | BD157: 41924.57664 | BE157: 0.1925897629 | BF157: 0.1925897629 | BJ157: 136 | BK157: 2034-01-01 | BL157: 31 | BM157: 4140 | BN157: 42097.74015 | BO157: 533.4973642 | BP157: 522.4511202 | BQ157: 0 | BR157: 25.2 | BS157: 0 | BT157: 1081.148484 | BU157: 41564.24279 | BV157: 0.1925897629 | BW157: 0.1925897629 | CA157: 136 | CB157: 2034-01-01 | CC157: 31 | CD157: 4140 | CE157: 68509.15825 | CF157: 309.581097 | CG157: 850.2282151 | CH157: 0 | CI157: 25.2 | CJ157: 0 | CK157: 1185.009312 | CL157: 68199.57715 | CM157: 0.1925897629 | CN157: 0.1925897629 | CR157: 136 | CS157: 2034-01-01 | CT157: 31 | CU157: 4140 | CV157: 68007.54663 | CW157: 146.5005086 | CX157: 844.0029985 | CY157: 0 | CZ157: 25.2 | DA157: 0 | DB157: 1015.703507 | DC157: 67861.04612 | DD157: 0.1925897629 | DE157: 0.1925897629
B158: 137 | S158: =IFERROR((I158+J158+K158+L158+M158)*$J$12+('Simulador para calculos'!I158+'Simulador para calculos'!J158+'Simulador para calculos'!K158+'Simulador para calculos'!L158+'Simulador para calculos'!M158)*NOT($J$12),"") ->  | U158: =IFERROR((1+'Simulación Cliente'!$E$21)^(T158/360),"") ->  | AB158: 137 | AS158: 137 | AT158: 2034-02-01 | AU158: 31 | AV158: 4171 | AW158: 41924.57664 | AX158: 715.861138 | AY158: 520.3020863 | AZ158: 0 | BA158: 25.2 | BB158: 0 | BC158: 1261.363224 | BD158: 41208.71551 | BE158: 0.1902289397 | BF158: 0.1902289397 | BJ158: 137 | BK158: 2034-02-01 | BL158: 31 | BM158: 4171 | BN158: 41564.24279 | BO158: 540.1182967 | BP158: 515.8301877 | BQ158: 0 | BR158: 25.2 | BS158: 0 | BT158: 1081.148484 | BU158: 41024.12449 | BV158: 0.1902289397 | BW158: 0.1902289397 | CA158: 137 | CB158: 2034-02-01 | CC158: 31 | CD158: 4171 | CE158: 68199.57715 | CF158: 313.423132 | CG158: 846.3861801 | CH158: 0 | CI158: 25.2 | CJ158: 0 | CK158: 1185.009312 | CL158: 67886.15402 | CM158: 0.1902289397 | CN158: 0.1902289397 | CR158: 137 | CS158: 2034-02-01 | CT158: 31 | CU158: 4171 | CV158: 67861.04612 | CW158: 148.3186431 | CX158: 842.1848639 | CY158: 0 | CZ158: 25.2 | DA158: 0 | DB158: 1015.703507 | DC158: 67712.72748 | DD158: 0.1902289397 | DE158: 0.1902289397
B159: 138 | S159: =IFERROR((I159+J159+K159+L159+M159)*$J$12+('Simulador para calculos'!I159+'Simulador para calculos'!J159+'Simulador para calculos'!K159+'Simulador para calculos'!L159+'Simulador para calculos'!M159)*NOT($J$12),"") ->  | U159: =IFERROR((1+'Simulación Cliente'!$E$21)^(T159/360),"") ->  | AB159: 138 | AS159: 138 | AT159: 2034-03-01 | AU159: 28 | AV159: 4199 | AW159: 41208.71551 | AX159: 774.5134807 | AY159: 461.6497437 | AZ159: 0 | BA159: 25.2 | BB159: 0 | BC159: 1261.363224 | BD159: 40434.20202 | BE159: 0.1881214674 | BF159: 0.1881214674 | BJ159: 138 | BK159: 2034-03-01 | BL159: 28 | BM159: 4199 | BN159: 41024.12449 | BO159: 596.3666623 | BP159: 459.5818221 | BQ159: 0 | BR159: 25.2 | BS159: 0 | BT159: 1081.148484 | BU159: 40427.75783 | BV159: 0.1881214674 | BW159: 0.1881214674 | CA159: 138 | CB159: 2034-03-01 | CC159: 28 | CD159: 4199 | CE159: 67886.15402 | CF159: 399.299667 | CG159: 760.509645 | CH159: 0 | CI159: 25.2 | CJ159: 0 | CK159: 1185.009312 | CL159: 67486.85435 | CM159: 0.1881214674 | CN159: 0.1881214674 | CR159: 138 | CS159: 2034-03-01 | CT159: 28 | CU159: 4199 | CV159: 67712.72748 | CW159: 231.9367112 | CX159: 758.5667959 | CY159: 0 | CZ159: 25.2 | DA159: 0 | DB159: 1015.703507 | DC159: 67480.79076 | DD159: 0.1881214674 | DE159: 0.1881214674
B160: 139 | S160: =IFERROR((I160+J160+K160+L160+M160)*$J$12+('Simulador para calculos'!I160+'Simulador para calculos'!J160+'Simulador para calculos'!K160+'Simulador para calculos'!L160+'Simulador para calculos'!M160)*NOT($J$12),"") ->  | U160: =IFERROR((1+'Simulación Cliente'!$E$21)^(T160/360),"") ->  | AB160: 139 | AS160: 139 | AT160: 2034-04-01 | AU160: 31 | AV160: 4230 | AW160: 40434.20202 | AX160: 734.3573301 | AY160: 501.8058942 | AZ160: 0 | BA160: 25.2 | BB160: 0 | BC160: 1261.363224 | BD160: 39699.84469 | BE160: 0.1858154179 | BF160: 0.1858154179 | BJ160: 139 | BK160: 2034-04-01 | BL160: 31 | BM160: 4230 | BN160: 40427.75783 | BO160: 554.2225654 | BP160: 501.725919 | BQ160: 0 | BR160: 25.2 | BS160: 0 | BT160: 1081.148484 | BU160: 39873.53527 | BV160: 0.1858154179 | BW160: 0.1858154179 | CA160: 139 | CB160: 2034-04-01 | CC160: 31 | CD160: 4230 | CE160: 67486.85435 | CF160: 322.2683295 | CG160: 837.5409826 | CH160: 0 | CI160: 25.2 | CJ160: 0 | CK160: 1185.009312 | CL160: 67164.58602 | CM160: 0.1858154179 | CN160: 0.1858154179 | CR160: 139 | CS160: 2034-04-01 | CT160: 31 | CU160: 4230 | CV160: 67480.79076 | CW160: 153.0377762 | CX160: 837.4657309 | CY160: 0 | CZ160: 25.2 | DA160: 0 | DB160: 1015.703507 | DC160: 67327.75299 | DD160: 0.1858154179 | DE160: 0.1858154179
B161: 140 | S161: =IFERROR((I161+J161+K161+L161+M161)*$J$12+('Simulador para calculos'!I161+'Simulador para calculos'!J161+'Simulador para calculos'!K161+'Simulador para calculos'!L161+'Simulador para calculos'!M161)*NOT($J$12),"") ->  | U161: =IFERROR((1+'Simulación Cliente'!$E$21)^(T161/360),"") ->  | AB161: 140 | AS161: 140 | AT161: 2034-05-01 | AU161: 30 | AV161: 4260 | AW161: 39699.84469 | AX161: 759.4593533 | AY161: 476.703871 | AZ161: 0 | BA161: 25.2 | BB161: 0 | BC161: 1261.363224 | BD161: 38940.38534 | BE161: 0.1836106758 | BF161: 0.1836106758 | BJ161: 140 | BK161: 2034-05-01 | BL161: 30 | BM161: 4260 | BN161: 39873.53527 | BO161: 577.1589889 | BP161: 478.7894955 | BQ161: 0 | BR161: 25.2 | BS161: 0 | BT161: 1081.148484 | BU161: 39296.37628 | BV161: 0.1836106758 | BW161: 0.1836106758 | CA161: 140 | CB161: 2034-05-01 | CC161: 30 | CD161: 4260 | CE161: 67164.58602 | CF161: 353.3170349 | CG161: 806.4922772 | CH161: 0 | CI161: 25.2 | CJ161: 0 | CK161: 1185.009312 | CL161: 66811.26899 | CM161: 0.1836106758 | CN161: 0.1836106758 | CR161: 140 | CS161: 2034-05-01 | CT161: 30 | CU161: 4260 | CV161: 67327.75299 | CW161: 182.0519697 | CX161: 808.4515374 | CY161: 0 | CZ161: 25.2 | DA161: 0 | DB161: 1015.703507 | DC161: 67145.70102 | DD161: 0.1836106758 | DE161: 0.1836106758
B162: 141 | S162: =IFERROR((I162+J162+K162+L162+M162)*$J$12+('Simulador para calculos'!I162+'Simulador para calculos'!J162+'Simulador para calculos'!K162+'Simulador para calculos'!L162+'Simulador para calculos'!M162)*NOT($J$12),"") ->  | U162: =IFERROR((1+'Simulación Cliente'!$E$21)^(T162/360),"") ->  | AB162: 141 | AS162: 141 | AT162: 2034-06-01 | AU162: 31 | AV162: 4291 | AW162: 38940.38534 | AX162: 752.8962397 | AY162: 483.2669846 | AZ162: 0 | BA162: 25.2 | BB162: 0 | BC162: 1261.363224 | BD162: 38187.4891 | BE162: 0.1813599209 | BF162: 0.1813599209 | BJ162: 141 | BK162: 2034-06-01 | BL162: 31 | BM162: 4291 | BN162: 39296.37628 | BO162: 568.2634987 | BP162: 487.6849857 | BQ162: 0 | BR162: 25.2 | BS162: 0 | BT162: 1081.148484 | BU162: 38728.11278 | BV162: 0.1813599209 | BW162: 0.1813599209 | CA162: 141 | CB162: 2034-06-01 | CC162: 31 | CD162: 4291 | CE162: 66811.26899 | CF162: 330.6526353 | CG162: 829.1566767 | CH162: 0 | CI162: 25.2 | CJ162: 0 | CK162: 1185.009312 | CL162: 66480.61635 | CM162: 0.1813599209 | CN162: 0.1813599209 | CR162: 141 | CS162: 2034-06-01 | CT162: 31 | CU162: 4291 | CV162: 67145.70102 | CW162: 157.1963845 | CX162: 833.3071226 | CY162: 0 | CZ162: 25.2 | DA162: 0 | DB162: 1015.703507 | DC162: 66988.50463 | DD162: 0.1813599209 | DE162: 0.1813599209
B163: 142 | S163: =IFERROR((I163+J163+K163+L163+M163)*$J$12+('Simulador para calculos'!I163+'Simulador para calculos'!J163+'Simulador para calculos'!K163+'Simulador para calculos'!L163+'Simulador para calculos'!M163)*NOT($J$12),"") ->  | U163: =IFERROR((1+'Simulación Cliente'!$E$21)^(T163/360),"") ->  | AB163: 142 | AS163: 142 | AT163: 2034-07-01 | AU163: 30 | AV163: 4321 | AW163: 38187.4891 | AX163: 777.6192673 | AY163: 458.543957 | AZ163: 0 | BA163: 25.2 | BB163: 0 | BC163: 1261.363224 | BD163: 37409.86983 | BE163: 0.1792080442 | BF163: 0.1792080442 | BJ163: 142 | BK163: 2034-07-01 | BL163: 30 | BM163: 4321 | BN163: 38728.11278 | BO163: 1672.061364 | BP163: 465.0356046 | BQ163: 0 | BR163: 25.2 | BS163: 0 | BT163: 2162.296969 | BU163: 37056.05141 | BV163: 0.3584160885 | BW163: 0.1792080442 | CA163: 142 | CB163: 2034-07-01 | CC163: 30 | CD163: 4321 | CE163: 66480.61635 | CF163: 361.5299383 | CG163: 798.2793738 | CH163: 0 | CI163: 25.2 | CJ163: 0 | CK163: 1185.009312 | CL163: 66119.08641 | CM163: 0.1792080442 | CN163: 0.1792080442 | CR163: 142 | CS163: 2034-07-01 | CT163: 30 | CU163: 4321 | CV163: 66988.50463 | CW163: 1201.82907 | CX163: 804.3779445 | CY163: 0 | CZ163: 25.2 | DA163: 0 | DB163: 2031.407014 | DC163: 65786.67556 | DD163: 0.3584160885 | DE163: 0.1792080442
B164: 143 | S164: =IFERROR((I164+J164+K164+L164+M164)*$J$12+('Simulador para calculos'!I164+'Simulador para calculos'!J164+'Simulador para calculos'!K164+'Simulador para calculos'!L164+'Simulador para calculos'!M164)*NOT($J$12),"") ->  | U164: =IFERROR((1+'Simulación Cliente'!$E$21)^(T164/360),"") ->  | AB164: 143 | AS164: 143 | AT164: 2034-08-01 | AU164: 31 | AV164: 4352 | AW164: 37409.86983 | AX164: 771.8905976 | AY164: 464.2726268 | AZ164: 0 | BA164: 25.2 | BB164: 0 | BC164: 1261.363224 | BD164: 36637.97924 | BE164: 0.1770112581 | BF164: 0.1770112581 | BJ164: 143 | BK164: 2034-08-01 | BL164: 31 | BM164: 4352 | BN164: 37056.05141 | BO164: 596.0668969 | BP164: 459.8815875 | BQ164: 0 | BR164: 25.2 | BS164: 0 | BT164: 1081.148484 | BU164: 36459.98452 | BV164: 0.1770112581 | BW164: 0.1770112581 | CA164: 143 | CB164: 2034-08-01 | CC164: 31 | CD164: 4352 | CE164: 66119.08641 | CF164: 339.2429198 | CG164: 820.5663923 | CH164: 0 | CI164: 25.2 | CJ164: 0 | CK164: 1185.009312 | CL164: 65779.84349 | CM164: 0.1770112581 | CN164: 0.1770112581 | CR164: 143 | CS164: 2034-08-01 | CT164: 31 | CU164: 4352 | CV164: 65786.67556 | CW164: 174.0624768 | CX164: 816.4410303 | CY164: 0 | CZ164: 25.2 | DA164: 0 | DB164: 1015.703507 | DC164: 65612.61309 | DD164: 0.1770112581 | DE164: 0.1770112581
B165: 144 | S165: =IFERROR((I165+J165+K165+L165+M165)*$J$12+('Simulador para calculos'!I165+'Simulador para calculos'!J165+'Simulador para calculos'!K165+'Simulador para calculos'!L165+'Simulador para calculos'!M165)*NOT($J$12),"") ->  | U165: =IFERROR((1+'Simulación Cliente'!$E$21)^(T165/360),"") ->  | AB165: 144 | AS165: 144 | AT165: 2034-09-01 | AU165: 31 | AV165: 4383 | AW165: 36637.97924 | AX165: 781.470093 | AY165: 454.6931314 | AZ165: 0 | BA165: 25.2 | BB165: 0 | BC165: 1261.363224 | BD165: 35856.50914 | BE165: 0.1748414009 | BF165: 0.1748414009 | BJ165: 144 | BK165: 2034-09-01 | BL165: 31 | BM165: 4383 | BN165: 36459.98452 | BO165: 603.4643443 | BP165: 452.4841401 | BQ165: 0 | BR165: 25.2 | BS165: 0 | BT165: 1081.148484 | BU165: 35856.52017 | BV165: 0.1748414009 | BW165: 0.1748414009 | CA165: 144 | CB165: 2034-09-01 | CC165: 31 | CD165: 4383 | CE165: 65779.84349 | CF165: 343.4530708 | CG165: 816.3562413 | CH165: 0 | CI165: 25.2 | CJ165: 0 | CK165: 1185.009312 | CL165: 65436.39042 | CM165: 0.1748414009 | CN165: 0.1748414009 | CR165: 144 | CS165: 2034-09-01 | CT165: 31 | CU165: 4383 | CV165: 65612.61309 | CW165: 176.2226672 | CX165: 814.2808398 | CY165: 0 | CZ165: 25.2 | DA165: 0 | DB165: 1015.703507 | DC165: 65436.39042 | DD165: 0.1748414009 | DE165: 0.1748414009
B166: 145 | S166: =IFERROR((I166+J166+K166+L166+M166)*$J$12+('Simulador para calculos'!I166+'Simulador para calculos'!J166+'Simulador para calculos'!K166+'Simulador para calculos'!L166+'Simulador para calculos'!M166)*NOT($J$12),"") ->  | U166: =IFERROR((1+'Simulación Cliente'!$E$21)^(T166/360),"") ->  | AB166: 145 | AS166: 145 | AT166: 2034-10-01 | AU166: 30 | AV166: 4413 | AW166: 35856.50914 | AX166: 805.6089781 | AY166: 430.5542463 | AZ166: 0 | BA166: 25.2 | BB166: 0 | BC166: 1261.363224 | BD166: 35050.90017 | BE166: 0.172766868 | BF166: 0.172766868 | BJ166: 145 | BK166: 2034-10-01 | BL166: 30 | BM166: 4413 | BN166: 35856.52017 | BO166: 625.3941057 | BP166: 430.5543787 | BQ166: 0 | BR166: 25.2 | BS166: 0 | BT166: 1081.148484 | BU166: 35231.12607 | BV166: 0.172766868 | BW166: 0.172766868 | CA166: 145 | CB166: 2034-10-01 | CC166: 30 | CD166: 4413 | CE166: 65436.39042 | CF166: 374.0686912 | CG166: 785.7406209 | CH166: 0 | CI166: 25.2 | CJ166: 0 | CK166: 1185.009312 | CL166: 65062.32173 | CM166: 0.172766868 | CN166: 0.172766868 | CR166: 145 | CS166: 2034-10-01 | CT166: 30 | CU166: 4413 | CV166: 65436.39042 | CW166: 204.7628862 | CX166: 785.7406209 | CY166: 0 | CZ166: 25.2 | DA166: 0 | DB166: 1015.703507 | DC166: 65231.62753 | DD166: 0.172766868 | DE166: 0.172766868
B167: 146 | S167: =IFERROR((I167+J167+K167+L167+M167)*$J$12+('Simulador para calculos'!I167+'Simulador para calculos'!J167+'Simulador para calculos'!K167+'Simulador para calculos'!L167+'Simulador para calculos'!M167)*NOT($J$12),"") ->  | U167: =IFERROR((1+'Simulación Cliente'!$E$21)^(T167/360),"") ->  | AB167: 146 | AS167: 146 | AT167: 2034-11-01 | AU167: 31 | AV167: 4444 | AW167: 35050.90017 | AX167: 801.1664291 | AY167: 434.9967953 | AZ167: 0 | BA167: 25.2 | BB167: 0 | BC167: 1261.363224 | BD167: 34249.73374 | BE167: 0.1706490398 | BF167: 0.1706490398 | BJ167: 146 | BK167: 2034-11-01 | BL167: 31 | BM167: 4444 | BN167: 35231.12607 | BO167: 618.7150079 | BP167: 437.2334765 | BQ167: 0 | BR167: 25.2 | BS167: 0 | BT167: 1081.148484 | BU167: 34612.41106 | BV167: 0.1706490398 | BW167: 0.1706490398 | CA167: 146 | CB167: 2034-11-01 | CC167: 31 | CD167: 4444 | CE167: 65062.32173 | CF167: 352.3578254 | CG167: 807.4514866 | CH167: 0 | CI167: 25.2 | CJ167: 0 | CK167: 1185.009312 | CL167: 64709.9639 | CM167: 0.1706490398 | CN167: 0.1706490398 | CR167: 146 | CS167: 2034-11-01 | CT167: 31 | CU167: 4444 | CV167: 65231.62753 | CW167: 180.9508623 | CX167: 809.5526447 | CY167: 0 | CZ167: 25.2 | DA167: 0 | DB167: 1015.703507 | DC167: 65050.67667 | DD167: 0.1706490398 | DE167: 0.1706490398
B168: 147 | S168: =IFERROR((I168+J168+K168+L168+M168)*$J$12+('Simulador para calculos'!I168+'Simulador para calculos'!J168+'Simulador para calculos'!K168+'Simulador para calculos'!L168+'Simulador para calculos'!M168)*NOT($J$12),"") ->  | U168: =IFERROR((1+'Simulación Cliente'!$E$21)^(T168/360),"") ->  | AB168: 147 | AS168: 147 | AT168: 2034-12-01 | AU168: 30 | AV168: 4474 | AW168: 34249.73374 | AX168: 824.902657 | AY168: 411.2605674 | AZ168: 0 | BA168: 25.2 | BB168: 0 | BC168: 1261.363224 | BD168: 33424.83108 | BE168: 0.1686242502 | BF168: 0.1686242502 | BJ168: 147 | BK168: 2034-12-01 | BL168: 30 | BM168: 4474 | BN168: 34612.41106 | BO168: 1721.481481 | BP168: 415.6154883 | BQ168: 0 | BR168: 25.2 | BS168: 0 | BT168: 2162.296969 | BU168: 32890.92958 | BV168: 0.3372485004 | BW168: 0.1686242502 | CA168: 147 | CB168: 2034-12-01 | CC168: 30 | CD168: 4474 | CE168: 64709.9639 | CF168: 382.7914037 | CG168: 777.0179083 | CH168: 0 | CI168: 25.2 | CJ168: 0 | CK168: 1185.009312 | CL168: 64327.1725 | CM168: 0.1686242502 | CN168: 0.1686242502 | CR168: 147 | CS168: 2034-12-01 | CT168: 30 | CU168: 4474 | CV168: 65050.67667 | CW168: 1225.097929 | CX168: 781.1090854 | CY168: 0 | CZ168: 25.2 | DA168: 0 | DB168: 2031.407014 | DC168: 63825.57874 | DD168: 0.3372485004 | DE168: 0.1686242502
B169: 148 | S169: =IFERROR((I169+J169+K169+L169+M169)*$J$12+('Simulador para calculos'!I169+'Simulador para calculos'!J169+'Simulador para calculos'!K169+'Simulador para calculos'!L169+'Simulador para calculos'!M169)*NOT($J$12),"") ->  | U169: =IFERROR((1+'Simulación Cliente'!$E$21)^(T169/360),"") ->  | AB169: 148 | AS169: 148 | AT169: 2035-01-01 | AU169: 31 | AV169: 4505 | AW169: 33424.83108 | AX169: 821.3466481 | AY169: 414.8165763 | AZ169: 0 | BA169: 25.2 | BB169: 0 | BC169: 1261.363224 | BD169: 32603.48443 | BE169: 0.1665572034 | BF169: 0.1665572034 | BJ169: 148 | BK169: 2035-01-01 | BL169: 31 | BM169: 4505 | BN169: 32890.92958 | BO169: 647.7578561 | BP169: 408.1906283 | BQ169: 0 | BR169: 25.2 | BS169: 0 | BT169: 1081.148484 | BU169: 32243.17172 | BV169: 0.1665572034 | BW169: 0.1665572034 | CA169: 148 | CB169: 2035-01-01 | CC169: 31 | CD169: 4505 | CE169: 64327.1725 | CF169: 361.4813446 | CG169: 798.3279675 | CH169: 0 | CI169: 25.2 | CJ169: 0 | CK169: 1185.009312 | CL169: 63965.69116 | CM169: 0.1665572034 | CN169: 0.1665572034 | CR169: 148 | CS169: 2035-01-01 | CT169: 31 | CU169: 4505 | CV169: 63825.57874 | CW169: 198.4005345 | CX169: 792.1029725 | CY169: 0 | CZ169: 25.2 | DA169: 0 | DB169: 1015.703507 | DC169: 63627.17821 | DD169: 0.1665572034 | DE169: 0.1665572034
B170: 149 | S170: =IFERROR((I170+J170+K170+L170+M170)*$J$12+('Simulador para calculos'!I170+'Simulador para calculos'!J170+'Simulador para calculos'!K170+'Simulador para calculos'!L170+'Simulador para calculos'!M170)*NOT($J$12),"") ->  | U170: =IFERROR((1+'Simulación Cliente'!$E$21)^(T170/360),"") ->  | AB170: 149 | AS170: 149 | AT170: 2035-02-01 | AU170: 31 | AV170: 4536 | AW170: 32603.48443 | AX170: 831.5399144 | AY170: 404.62331 | AZ170: 0 | BA170: 25.2 | BB170: 0 | BC170: 1261.363224 | BD170: 31771.94452 | BE170: 0.1645154951 | BF170: 0.1645154951 | BJ170: 149 | BK170: 2035-02-01 | BL170: 31 | BM170: 4536 | BN170: 32243.17172 | BO170: 655.7968106 | BP170: 400.1516738 | BQ170: 0 | BR170: 25.2 | BS170: 0 | BT170: 1081.148484 | BU170: 31587.37491 | BV170: 0.1645154951 | BW170: 0.1645154951 | CA170: 149 | CB170: 2035-02-01 | CC170: 31 | CD170: 4536 | CE170: 63965.69116 | CF170: 365.967484 | CG170: 793.841828 | CH170: 0 | CI170: 25.2 | CJ170: 0 | CK170: 1185.009312 | CL170: 63599.72367 | CM170: 0.1645154951 | CN170: 0.1645154951 | CR170: 149 | CS170: 2035-02-01 | CT170: 31 | CU170: 4536 | CV170: 63627.17821 | CW170: 200.8627708 | CX170: 789.6407363 | CY170: 0 | CZ170: 25.2 | DA170: 0 | DB170: 1015.703507 | DC170: 63426.31544 | DD170: 0.1645154951 | DE170: 0.1645154951
B171: 150 | S171: =IFERROR((I171+J171+K171+L171+M171)*$J$12+('Simulador para calculos'!I171+'Simulador para calculos'!J171+'Simulador para calculos'!K171+'Simulador para calculos'!L171+'Simulador para calculos'!M171)*NOT($J$12),"") ->  | U171: =IFERROR((1+'Simulación Cliente'!$E$21)^(T171/360),"") ->  | AB171: 150 | AS171: 150 | AT171: 2035-03-01 | AU171: 28 | AV171: 4564 | AW171: 31771.94452 | AX171: 880.2309934 | AY171: 355.9322309 | AZ171: 0 | BA171: 25.2 | BB171: 0 | BC171: 1261.363224 | BD171: 30891.71352 | BE171: 0.162692892 | BF171: 0.162692892 | BJ171: 150 | BK171: 2035-03-01 | BL171: 28 | BM171: 4564 | BN171: 31587.37491 | BO171: 702.0839353 | BP171: 353.8645491 | BQ171: 0 | BR171: 25.2 | BS171: 0 | BT171: 1081.148484 | BU171: 30885.29098 | BV171: 0.162692892 | BW171: 0.162692892 | CA171: 150 | CB171: 2035-03-01 | CC171: 28 | CD171: 4564 | CE171: 63599.72367 | CF171: 447.3193504 | CG171: 712.4899617 | CH171: 0 | CI171: 25.2 | CJ171: 0 | CK171: 1185.009312 | CL171: 63152.40432 | CM171: 0.162692892 | CN171: 0.162692892 | CR171: 150 | CS171: 2035-03-01 | CT171: 28 | CU171: 4564 | CV171: 63426.31544 | CW171: 279.9561895 | CX171: 710.5473176 | CY171: 0 | CZ171: 25.2 | DA171: 0 | DB171: 1015.703507 | DC171: 63146.35925 | DD171: 0.162692892 | DE171: 0.162692892
B172: 151 | S172: =IFERROR((I172+J172+K172+L172+M172)*$J$12+('Simulador para calculos'!I172+'Simulador para calculos'!J172+'Simulador para calculos'!K172+'Simulador para calculos'!L172+'Simulador para calculos'!M172)*NOT($J$12),"") ->  | U172: =IFERROR((1+'Simulación Cliente'!$E$21)^(T172/360),"") ->  | AB172: 151 | AS172: 151 | AT172: 2035-04-01 | AU172: 31 | AV172: 4595 | AW172: 30891.71352 | AX172: 852.7837299 | AY172: 383.3794944 | AZ172: 0 | BA172: 25.2 | BB172: 0 | BC172: 1261.363224 | BD172: 30038.92979 | BE172: 0.1606985537 | BF172: 0.1606985537 | BJ172: 151 | BK172: 2035-04-01 | BL172: 31 | BM172: 4595 | BN172: 30885.29098 | BO172: 672.6486966 | BP172: 383.2997878 | BQ172: 0 | BR172: 25.2 | BS172: 0 | BT172: 1081.148484 | BU172: 30212.64228 | BV172: 0.1606985537 | BW172: 0.1606985537 | CA172: 151 | CB172: 2035-04-01 | CC172: 31 | CD172: 4595 | CE172: 63152.40432 | CF172: 376.0607246 | CG172: 783.7485875 | CH172: 0 | CI172: 25.2 | CJ172: 0 | CK172: 1185.009312 | CL172: 62776.3436 | CM172: 0.1606985537 | CN172: 0.1606985537 | CR172: 151 | CS172: 2035-04-01 | CT172: 31 | CU172: 4595 | CV172: 63146.35925 | CW172: 206.8299415 | CX172: 783.6735655 | CY172: 0 | CZ172: 25.2 | DA172: 0 | DB172: 1015.703507 | DC172: 62939.52931 | DD172: 0.1606985537 | DE172: 0.1606985537
B173: 152 | S173: =IFERROR((I173+J173+K173+L173+M173)*$J$12+('Simulador para calculos'!I173+'Simulador para calculos'!J173+'Simulador para calculos'!K173+'Simulador para calculos'!L173+'Simulador para calculos'!M173)*NOT($J$12),"") ->  | U173: =IFERROR((1+'Simulación Cliente'!$E$21)^(T173/360),"") ->  | AB173: 152 | AS173: 152 | AT173: 2035-05-01 | AU173: 30 | AV173: 4625 | AW173: 30038.92979 | AX173: 875.4647324 | AY173: 360.698492 | AZ173: 0 | BA173: 25.2 | BB173: 0 | BC173: 1261.363224 | BD173: 29163.46506 | BE173: 0.1587918288 | BF173: 0.1587918288 | BJ173: 152 | BK173: 2035-05-01 | BL173: 30 | BM173: 4625 | BN173: 30212.64228 | BO173: 693.1641048 | BP173: 362.7843796 | BQ173: 0 | BR173: 25.2 | BS173: 0 | BT173: 1081.148484 | BU173: 29519.47818 | BV173: 0.1587918288 | BW173: 0.1587918288 | CA173: 152 | CB173: 2035-05-01 | CC173: 30 | CD173: 4625 | CE173: 62776.3436 | CF173: 406.0097385 | CG173: 753.7995736 | CH173: 0 | CI173: 25.2 | CJ173: 0 | CK173: 1185.009312 | CL173: 62370.33386 | CM173: 0.1587918288 | CN173: 0.1587918288 | CR173: 152 | CS173: 2035-05-01 | CT173: 30 | CU173: 4625 | CV173: 62939.52931 | CW173: 234.7444483 | CX173: 755.7590588 | CY173: 0 | CZ173: 25.2 | DA173: 0 | DB173: 1015.703507 | DC173: 62704.78486 | DD173: 0.1587918288 | DE173: 0.1587918288
B174: 153 | S174: =IFERROR((I174+J174+K174+L174+M174)*$J$12+('Simulador para calculos'!I174+'Simulador para calculos'!J174+'Simulador para calculos'!K174+'Simulador para calculos'!L174+'Simulador para calculos'!M174)*NOT($J$12),"") ->  | U174: =IFERROR((1+'Simulación Cliente'!$E$21)^(T174/360),"") ->  | AB174: 153 | AS174: 153 | AT174: 2035-06-01 | AU174: 31 | AV174: 4656 | AW174: 29163.46506 | AX174: 874.2320391 | AY174: 361.9311853 | AZ174: 0 | BA174: 25.2 | BB174: 0 | BC174: 1261.363224 | BD174: 28289.23302 | BE174: 0.1568453108 | BF174: 0.1568453108 | BJ174: 153 | BK174: 2035-06-01 | BL174: 31 | BM174: 4656 | BN174: 29519.47818 | BO174: 689.5990228 | BP174: 366.3494616 | BQ174: 0 | BR174: 25.2 | BS174: 0 | BT174: 1081.148484 | BU174: 28829.87915 | BV174: 0.1568453108 | BW174: 0.1568453108 | CA174: 153 | CB174: 2035-06-01 | CC174: 31 | CD174: 4656 | CE174: 62370.33386 | CF174: 385.7665565 | CG174: 774.0427556 | CH174: 0 | CI174: 25.2 | CJ174: 0 | CK174: 1185.009312 | CL174: 61984.5673 | CM174: 0.1568453108 | CN174: 0.1568453108 | CR174: 153 | CS174: 2035-06-01 | CT174: 31 | CU174: 4656 | CV174: 62704.78486 | CW174: 212.3100703 | CX174: 778.1934368 | CY174: 0 | CZ174: 25.2 | DA174: 0 | DB174: 1015.703507 | DC174: 62492.47479 | DD174: 0.1568453108 | DE174: 0.1568453108
B175: 154 | S175: =IFERROR((I175+J175+K175+L175+M175)*$J$12+('Simulador para calculos'!I175+'Simulador para calculos'!J175+'Simulador para calculos'!K175+'Simulador para calculos'!L175+'Simulador para calculos'!M175)*NOT($J$12),"") ->  | U175: =IFERROR((1+'Simulación Cliente'!$E$21)^(T175/360),"") ->  | AB175: 154 | AS175: 154 | AT175: 2035-07-01 | AU175: 30 | AV175: 4686 | AW175: 28289.23302 | AX175: 896.4745683 | AY175: 339.6886561 | AZ175: 0 | BA175: 25.2 | BB175: 0 | BC175: 1261.363224 | BD175: 27392.75845 | BE175: 0.1549843056 | BF175: 0.1549843056 | BJ175: 154 | BK175: 2035-07-01 | BL175: 30 | BM175: 4686 | BN175: 28829.87915 | BO175: 1790.916396 | BP175: 346.1805732 | BQ175: 0 | BR175: 25.2 | BS175: 0 | BT175: 2162.296969 | BU175: 27038.96276 | BV175: 0.3099686112 | BW175: 0.1549843056 | CA175: 154 | CB175: 2035-07-01 | CC175: 30 | CD175: 4686 | CE175: 61984.5673 | CF175: 415.5171517 | CG175: 744.2921604 | CH175: 0 | CI175: 25.2 | CJ175: 0 | CK175: 1185.009312 | CL175: 61569.05015 | CM175: 0.1549843056 | CN175: 0.1549843056 | CR175: 154 | CS175: 2035-07-01 | CT175: 30 | CU175: 4686 | CV175: 62492.47479 | CW175: 1255.816052 | CX175: 750.3909617 | CY175: 0 | CZ175: 25.2 | DA175: 0 | DB175: 2031.407014 | DC175: 61236.65874 | DD175: 0.3099686112 | DE175: 0.1549843056
B176: 155 | S176: =IFERROR((I176+J176+K176+L176+M176)*$J$12+('Simulador para calculos'!I176+'Simulador para calculos'!J176+'Simulador para calculos'!K176+'Simulador para calculos'!L176+'Simulador para calculos'!M176)*NOT($J$12),"") ->  | U176: =IFERROR((1+'Simulación Cliente'!$E$21)^(T176/360),"") ->  | AB176: 155 | AS176: 155 | AT176: 2035-08-01 | AU176: 31 | AV176: 4717 | AW176: 27392.75845 | AX176: 896.2072721 | AY176: 339.9559522 | AZ176: 0 | BA176: 25.2 | BB176: 0 | BC176: 1261.363224 | BD176: 26496.55118 | BE176: 0.1530844614 | BF176: 0.1530844614 | BJ176: 155 | BK176: 2035-08-01 | BL176: 31 | BM176: 4717 | BN176: 27038.96276 | BO176: 720.3832894 | BP176: 335.565195 | BQ176: 0 | BR176: 25.2 | BS176: 0 | BT176: 1081.148484 | BU176: 26318.57947 | BV176: 0.1530844614 | BW176: 0.1530844614 | CA176: 155 | CB176: 2035-08-01 | CC176: 31 | CD176: 4717 | CE176: 61569.05015 | CF176: 395.7108331 | CG176: 764.098479 | CH176: 0 | CI176: 25.2 | CJ176: 0 | CK176: 1185.009312 | CL176: 61173.33932 | CM176: 0.1530844614 | CN176: 0.1530844614 | CR176: 155 | CS176: 2035-08-01 | CT176: 31 | CU176: 4717 | CV176: 61236.65874 | CW176: 230.5301489 | CX176: 759.9733581 | CY176: 0 | CZ176: 25.2 | DA176: 0 | DB176: 1015.703507 | DC176: 61006.12859 | DD176: 0.1530844614 | DE176: 0.1530844614
B177: 156 | S177: =IFERROR((I177+J177+K177+L177+M177)*$J$12+('Simulador para calculos'!I177+'Simulador para calculos'!J177+'Simulador para calculos'!K177+'Simulador para calculos'!L177+'Simulador para calculos'!M177)*NOT($J$12),"") ->  | U177: =IFERROR((1+'Simulación Cliente'!$E$21)^(T177/360),"") ->  | AB177: 156 | AS177: 156 | AT177: 2035-09-01 | AU177: 31 | AV177: 4748 | AW177: 26496.55118 | AX177: 907.3295911 | AY177: 328.8336333 | AZ177: 0 | BA177: 25.2 | BB177: 0 | BC177: 1261.363224 | BD177: 25589.22159 | BE177: 0.151207906 | BF177: 0.151207906 | BJ177: 156 | BK177: 2035-09-01 | BL177: 31 | BM177: 4748 | BN177: 26318.57947 | BO177: 729.3235569 | BP177: 326.6249275 | BQ177: 0 | BR177: 25.2 | BS177: 0 | BT177: 1081.148484 | BU177: 25589.25591 | BV177: 0.151207906 | BW177: 0.151207906 | CA177: 156 | CB177: 2035-09-01 | CC177: 31 | CD177: 4748 | CE177: 61173.33932 | CF177: 400.6217753 | CG177: 759.1875368 | CH177: 0 | CI177: 25.2 | CJ177: 0 | CK177: 1185.009312 | CL177: 60772.71754 | CM177: 0.151207906 | CN177: 0.151207906 | CR177: 156 | CS177: 2035-09-01 | CT177: 31 | CU177: 4748 | CV177: 61006.12859 | CW177: 233.3911275 | CX177: 757.1123795 | CY177: 0 | CZ177: 25.2 | DA177: 0 | DB177: 1015.703507 | DC177: 60772.73746 | DD177: 0.151207906 | DE177: 0.151207906
B178: 157 | S178: =IFERROR((I178+J178+K178+L178+M178)*$J$12+('Simulador para calculos'!I178+'Simulador para calculos'!J178+'Simulador para calculos'!K178+'Simulador para calculos'!L178+'Simulador para calculos'!M178)*NOT($J$12),"") ->  | U178: =IFERROR((1+'Simulación Cliente'!$E$21)^(T178/360),"") ->  | AB178: 157 | AS178: 157 | AT178: 2035-10-01 | AU178: 30 | AV178: 4778 | AW178: 25589.22159 | AX178: 928.8954987 | AY178: 307.2677257 | AZ178: 0 | BA178: 25.2 | BB178: 0 | BC178: 1261.363224 | BD178: 24660.32609 | BE178: 0.1494137899 | BF178: 0.1494137899 | BJ178: 157 | BK178: 2035-10-01 | BL178: 30 | BM178: 4778 | BN178: 25589.25591 | BO178: 748.6803466 | BP178: 307.2681378 | BQ178: 0 | BR178: 25.2 | BS178: 0 | BT178: 1081.148484 | BU178: 24840.57556 | BV178: 0.1494137899 | BW178: 0.1494137899 | CA178: 157 | CB178: 2035-10-01 | CC178: 30 | CD178: 4778 | CE178: 60772.71754 | CF178: 430.0686814 | CG178: 729.7406307 | CH178: 0 | CI178: 25.2 | CJ178: 0 | CK178: 1185.009312 | CL178: 60342.64886 | CM178: 0.1494137899 | CN178: 0.1494137899 | CR178: 157 | CS178: 2035-10-01 | CT178: 30 | CU178: 4778 | CV178: 60772.73746 | CW178: 260.7626372 | CX178: 729.7408698 | CY178: 0 | CZ178: 25.2 | DA178: 0 | DB178: 1015.703507 | DC178: 60511.97482 | DD178: 0.1494137899 | DE178: 0.1494137899
B179: 158 | S179: =IFERROR((I179+J179+K179+L179+M179)*$J$12+('Simulador para calculos'!I179+'Simulador para calculos'!J179+'Simulador para calculos'!K179+'Simulador para calculos'!L179+'Simulador para calculos'!M179)*NOT($J$12),"") ->  | U179: =IFERROR((1+'Simulación Cliente'!$E$21)^(T179/360),"") ->  | AB179: 158 | AS179: 158 | AT179: 2035-11-01 | AU179: 31 | AV179: 4809 | AW179: 24660.32609 | AX179: 930.1179368 | AY179: 306.0452876 | AZ179: 0 | BA179: 25.2 | BB179: 0 | BC179: 1261.363224 | BD179: 23730.20816 | BE179: 0.1475822307 | BF179: 0.1475822307 | BJ179: 158 | BK179: 2035-11-01 | BL179: 31 | BM179: 4809 | BN179: 24840.57556 | BO179: 747.6662231 | BP179: 308.2822613 | BQ179: 0 | BR179: 25.2 | BS179: 0 | BT179: 1081.148484 | BU179: 24092.90934 | BV179: 0.1475822307 | BW179: 0.1475822307 | CA179: 158 | CB179: 2035-11-01 | CC179: 31 | CD179: 4809 | CE179: 60342.64886 | CF179: 410.9310023 | CG179: 748.8783098 | CH179: 0 | CI179: 25.2 | CJ179: 0 | CK179: 1185.009312 | CL179: 59931.71786 | CM179: 0.1475822307 | CN179: 0.1475822307 | CR179: 158 | CS179: 2035-11-01 | CT179: 31 | CU179: 4809 | CV179: 60511.97482 | CW179: 239.523789 | CX179: 750.9797181 | CY179: 0 | CZ179: 25.2 | DA179: 0 | DB179: 1015.703507 | DC179: 60272.45103 | DD179: 0.1475822307 | DE179: 0.1475822307
B180: 159 | S180: =IFERROR((I180+J180+K180+L180+M180)*$J$12+('Simulador para calculos'!I180+'Simulador para calculos'!J180+'Simulador para calculos'!K180+'Simulador para calculos'!L180+'Simulador para calculos'!M180)*NOT($J$12),"") ->  | U180: =IFERROR((1+'Simulación Cliente'!$E$21)^(T180/360),"") ->  | AB180: 159 | AS180: 159 | AT180: 2035-12-01 | AU180: 30 | AV180: 4839 | AW180: 23730.20816 | AX180: 951.2179765 | AY180: 284.9452479 | AZ180: 0 | BA180: 25.2 | BB180: 0 | BC180: 1261.363224 | BD180: 22778.99018 | BE180: 0.1458311341 | BF180: 0.1458311341 | BJ180: 159 | BK180: 2035-12-01 | BL180: 30 | BM180: 4839 | BN180: 24092.90934 | BO180: 1847.796513 | BP180: 289.3004553 | BQ180: 0 | BR180: 25.2 | BS180: 0 | BT180: 2162.296969 | BU180: 22245.11283 | BV180: 0.2916622681 | BW180: 0.1458311341 | CA180: 159 | CB180: 2035-12-01 | CC180: 30 | CD180: 4839 | CE180: 59931.71786 | CF180: 440.1671543 | CG180: 719.6421578 | CH180: 0 | CI180: 25.2 | CJ180: 0 | CK180: 1185.009312 | CL180: 59491.5507 | CM180: 0.1458311341 | CN180: 0.1458311341 | CR180: 159 | CS180: 2035-12-01 | CT180: 30 | CU180: 4839 | CV180: 60272.45103 | CW180: 1282.473434 | CX180: 723.7335799 | CY180: 0 | CZ180: 25.2 | DA180: 0 | DB180: 2031.407014 | DC180: 58989.9776 | DD180: 0.2916622681 | DE180: 0.1458311341
B181: 160 | S181: =IFERROR((I181+J181+K181+L181+M181)*$J$12+('Simulador para calculos'!I181+'Simulador para calculos'!J181+'Simulador para calculos'!K181+'Simulador para calculos'!L181+'Simulador para calculos'!M181)*NOT($J$12),"") ->  | U181: =IFERROR((1+'Simulación Cliente'!$E$21)^(T181/360),"") ->  | AB181: 160 | AS181: 160 | AT181: 2036-01-01 | AU181: 31 | AV181: 4870 | AW181: 22778.99018 | AX181: 953.4661272 | AY181: 282.6970971 | AZ181: 0 | BA181: 25.2 | BB181: 0 | BC181: 1261.363224 | BD181: 21825.52405 | BE181: 0.1440434922 | BF181: 0.1440434922 | BJ181: 160 | BK181: 2036-01-01 | BL181: 31 | BM181: 4870 | BN181: 22245.11283 | BO181: 779.8770356 | BP181: 276.0714488 | BQ181: 0 | BR181: 25.2 | BS181: 0 | BT181: 1081.148484 | BU181: 21465.23579 | BV181: 0.1440434922 | BW181: 0.1440434922 | CA181: 160 | CB181: 2036-01-01 | CC181: 31 | CD181: 4870 | CE181: 59491.5507 | CF181: 421.4934976 | CG181: 738.3158144 | CH181: 0 | CI181: 25.2 | CJ181: 0 | CK181: 1185.009312 | CL181: 59070.05721 | CM181: 0.1440434922 | CN181: 0.1440434922 | CR181: 160 | CS181: 2036-01-01 | CT181: 31 | CU181: 4870 | CV181: 58989.9776 | CW181: 258.4124313 | CX181: 732.0910758 | CY181: 0 | CZ181: 25.2 | DA181: 0 | DB181: 1015.703507 | DC181: 58731.56517 | DD181: 0.1440434922 | DE181: 0.1440434922
B182: 161 | S182: =IFERROR((I182+J182+K182+L182+M182)*$J$12+('Simulador para calculos'!I182+'Simulador para calculos'!J182+'Simulador para calculos'!K182+'Simulador para calculos'!L182+'Simulador para calculos'!M182)*NOT($J$12),"") ->  | U182: =IFERROR((1+'Simulación Cliente'!$E$21)^(T182/360),"") ->  | AB182: 161 | AS182: 161 | AT182: 2036-02-01 | AU182: 31 | AV182: 4901 | AW182: 21825.52405 | AX182: 965.2990533 | AY182: 270.8641711 | AZ182: 0 | BA182: 25.2 | BB182: 0 | BC182: 1261.363224 | BD182: 20860.225 | BE182: 0.1422777637 | BF182: 0.1422777637 | BJ182: 161 | BK182: 2036-02-01 | BL182: 31 | BM182: 4901 | BN182: 21465.23579 | BO182: 789.5556461 | BP182: 266.3928383 | BQ182: 0 | BR182: 25.2 | BS182: 0 | BT182: 1081.148484 | BU182: 20675.68015 | BV182: 0.1422777637 | BW182: 0.1422777637 | CA182: 161 | CB182: 2036-02-01 | CC182: 31 | CD182: 4901 | CE182: 59070.05721 | CF182: 426.7244138 | CG182: 733.0848983 | CH182: 0 | CI182: 25.2 | CJ182: 0 | CK182: 1185.009312 | CL182: 58643.33279 | CM182: 0.1422777637 | CN182: 0.1422777637 | CR182: 161 | CS182: 2036-02-01 | CT182: 31 | CU182: 4901 | CV182: 58731.56517 | CW182: 261.619441 | CX182: 728.884066 | CY182: 0 | CZ182: 25.2 | DA182: 0 | DB182: 1015.703507 | DC182: 58469.94573 | DD182: 0.1422777637 | DE182: 0.1422777637
B183: 162 | S183: =IFERROR((I183+J183+K183+L183+M183)*$J$12+('Simulador para calculos'!I183+'Simulador para calculos'!J183+'Simulador para calculos'!K183+'Simulador para calculos'!L183+'Simulador para calculos'!M183)*NOT($J$12),"") ->  | U183: =IFERROR((1+'Simulación Cliente'!$E$21)^(T183/360),"") ->  | AB183: 162 | AS183: 162 | AT183: 2036-03-01 | AU183: 29 | AV183: 4930 | AW183: 20860.225 | AX183: 994.0775801 | AY183: 242.0856442 | AZ183: 0 | BA183: 25.2 | BB183: 0 | BC183: 1261.363224 | BD183: 19866.14742 | BE183: 0.1406455537 | BF183: 0.1406455537 | BJ183: 162 | BK183: 2036-03-01 | BL183: 29 | BM183: 4930 | BN183: 20675.68015 | BO183: 816.0045073 | BP183: 239.9439771 | BQ183: 0 | BR183: 25.2 | BS183: 0 | BT183: 1081.148484 | BU183: 19859.67564 | BV183: 0.1406455537 | BW183: 0.1406455537 | CA183: 162 | CB183: 2036-03-01 | CC183: 29 | CD183: 4930 | CE183: 58643.33279 | CF183: 479.2457515 | CG183: 680.5635606 | CH183: 0 | CI183: 25.2 | CJ183: 0 | CK183: 1185.009312 | CL183: 58164.08704 | CM183: 0.1406455537 | CN183: 0.1406455537 | CR183: 162 | CS183: 2036-03-01 | CT183: 29 | CU183: 4930 | CV183: 58469.94573 | CW183: 311.9521261 | CX183: 678.551381 | CY183: 0 | CZ183: 25.2 | DA183: 0 | DB183: 1015.703507 | DC183: 58157.9936 | DD183: 0.1406455537 | DE183: 0.1406455537
B184: 163 | S184: =IFERROR((I184+J184+K184+L184+M184)*$J$12+('Simulador para calculos'!I184+'Simulador para calculos'!J184+'Simulador para calculos'!K184+'Simulador para calculos'!L184+'Simulador para calculos'!M184)*NOT($J$12),"") ->  | U184: =IFERROR((1+'Simulación Cliente'!$E$21)^(T184/360),"") ->  | AB184: 163 | AS184: 163 | AT184: 2036-04-01 | AU184: 31 | AV184: 4961 | AW184: 19866.14742 | AX184: 989.6157628 | AY184: 246.5474616 | AZ184: 0 | BA184: 25.2 | BB184: 0 | BC184: 1261.363224 | BD184: 18876.53166 | BE184: 0.1389214782 | BF184: 0.1389214782 | BJ184: 163 | BK184: 2036-04-01 | BL184: 31 | BM184: 4961 | BN184: 19859.67564 | BO184: 809.4813404 | BP184: 246.467144 | BQ184: 0 | BR184: 25.2 | BS184: 0 | BT184: 1081.148484 | BU184: 19050.1943 | BV184: 0.1389214782 | BW184: 0.1389214782 | CA184: 163 | CB184: 2036-04-01 | CC184: 31 | CD184: 4961 | CE184: 58164.08704 | CF184: 437.9678945 | CG184: 721.8414176 | CH184: 0 | CI184: 25.2 | CJ184: 0 | CK184: 1185.009312 | CL184: 57726.11915 | CM184: 0.1389214782 | CN184: 0.1389214782 | CR184: 163 | CS184: 2036-04-01 | CT184: 31 | CU184: 4961 | CV184: 58157.9936 | CW184: 268.7377117 | CX184: 721.7657954 | CY184: 0 | CZ184: 25.2 | DA184: 0 | DB184: 1015.703507 | DC184: 57889.25589 | DD184: 0.1389214782 | DE184: 0.1389214782
B185: 164 | S185: =IFERROR((I185+J185+K185+L185+M185)*$J$12+('Simulador para calculos'!I185+'Simulador para calculos'!J185+'Simulador para calculos'!K185+'Simulador para calculos'!L185+'Simulador para calculos'!M185)*NOT($J$12),"") ->  | U185: =IFERROR((1+'Simulación Cliente'!$E$21)^(T185/360),"") ->  | AB185: 164 | AS185: 164 | AT185: 2036-05-01 | AU185: 30 | AV185: 4991 | AW185: 18876.53166 | AX185: 1009.499473 | AY185: 226.663751 | AZ185: 0 | BA185: 25.2 | BB185: 0 | BC185: 1261.363224 | BD185: 17867.03218 | BE185: 0.1372731433 | BF185: 0.1372731433 | BJ185: 164 | BK185: 2036-05-01 | BL185: 30 | BM185: 4991 | BN185: 19050.1943 | BO185: 827.1994443 | BP185: 228.7490401 | BQ185: 0 | BR185: 25.2 | BS185: 0 | BT185: 1081.148484 | BU185: 18222.99485 | BV185: 0.1372731433 | BW185: 0.1372731433 | CA185: 164 | CB185: 2036-05-01 | CC185: 30 | CD185: 4991 | CE185: 57726.11915 | CF185: 466.6513245 | CG185: 693.1579876 | CH185: 0 | CI185: 25.2 | CJ185: 0 | CK185: 1185.009312 | CL185: 57259.46782 | CM185: 0.1372731433 | CN185: 0.1372731433 | CR185: 164 | CS185: 2036-05-01 | CT185: 30 | CU185: 4991 | CV185: 57889.25589 | CW185: 295.3866222 | CX185: 695.1168848 | CY185: 0 | CZ185: 25.2 | DA185: 0 | DB185: 1015.703507 | DC185: 57593.86927 | DD185: 0.1372731433 | DE185: 0.1372731433
B186: 165 | S186: =IFERROR((I186+J186+K186+L186+M186)*$J$12+('Simulador para calculos'!I186+'Simulador para calculos'!J186+'Simulador para calculos'!K186+'Simulador para calculos'!L186+'Simulador para calculos'!M186)*NOT($J$12),"") ->  | U186: =IFERROR((1+'Simulación Cliente'!$E$21)^(T186/360),"") ->  | AB186: 165 | AS186: 165 | AT186: 2036-06-01 | AU186: 31 | AV186: 5022 | AW186: 17867.03218 | AX186: 1014.425645 | AY186: 221.7375789 | AZ186: 0 | BA186: 25.2 | BB186: 0 | BC186: 1261.363224 | BD186: 16852.60654 | BE186: 0.1355904078 | BF186: 0.1355904078 | BJ186: 165 | BK186: 2036-06-01 | BL186: 31 | BM186: 5022 | BN186: 18222.99485 | BO186: 829.7932551 | BP186: 226.1552292 | BQ186: 0 | BR186: 25.2 | BS186: 0 | BT186: 1081.148484 | BU186: 17393.2016 | BV186: 0.1355904078 | BW186: 0.1355904078 | CA186: 165 | CB186: 2036-06-01 | CC186: 31 | CD186: 5022 | CE186: 57259.46782 | CF186: 449.1946093 | CG186: 710.6147028 | CH186: 0 | CI186: 25.2 | CJ186: 0 | CK186: 1185.009312 | CL186: 56810.27321 | CM186: 0.1355904078 | CN186: 0.1355904078 | CR186: 165 | CS186: 2036-06-01 | CT186: 31 | CU186: 5022 | CV186: 57593.86927 | CW186: 275.7387381 | CX186: 714.764769 | CY186: 0 | CZ186: 25.2 | DA186: 0 | DB186: 1015.703507 | DC186: 57318.13053 | DD186: 0.1355904078 | DE186: 0.1355904078
B187: 166 | S187: =IFERROR((I187+J187+K187+L187+M187)*$J$12+('Simulador para calculos'!I187+'Simulador para calculos'!J187+'Simulador para calculos'!K187+'Simulador para calculos'!L187+'Simulador para calculos'!M187)*NOT($J$12),"") ->  | U187: =IFERROR((1+'Simulación Cliente'!$E$21)^(T187/360),"") ->  | AB187: 166 | AS187: 166 | AT187: 2036-07-01 | AU187: 30 | AV187: 5052 | AW187: 16852.60654 | AX187: 1033.802161 | AY187: 202.361063 | AZ187: 0 | BA187: 25.2 | BB187: 0 | BC187: 1261.363224 | BD187: 15818.80438 | BE187: 0.1339815968 | BF187: 0.1339815968 | BJ187: 166 | BK187: 2036-07-01 | BL187: 30 | BM187: 5052 | BN187: 17393.2016 | BO187: 1928.244602 | BP187: 208.8523669 | BQ187: 0 | BR187: 25.2 | BS187: 0 | BT187: 2162.296969 | BU187: 15464.957 | BV187: 0.2679631937 | BW187: 0.1339815968 | CA187: 166 | CB187: 2036-07-01 | CC187: 30 | CD187: 5052 | CE187: 56810.27321 | CF187: 477.6485288 | CG187: 682.1607833 | CH187: 0 | CI187: 25.2 | CJ187: 0 | CK187: 1185.009312 | CL187: 56332.62468 | CM187: 0.1339815968 | CN187: 0.1339815968 | CR187: 166 | CS187: 2036-07-01 | CT187: 30 | CU187: 5052 | CV187: 57318.13053 | CW187: 1317.948032 | CX187: 688.2589822 | CY187: 0 | CZ187: 25.2 | DA187: 0 | DB187: 2031.407014 | DC187: 56000.1825 | DD187: 0.2679631937 | DE187: 0.1339815968
B188: 167 | S188: =IFERROR((I188+J188+K188+L188+M188)*$J$12+('Simulador para calculos'!I188+'Simulador para calculos'!J188+'Simulador para calculos'!K188+'Simulador para calculos'!L188+'Simulador para calculos'!M188)*NOT($J$12),"") ->  | U188: =IFERROR((1+'Simulación Cliente'!$E$21)^(T188/360),"") ->  | AB188: 167 | AS188: 167 | AT188: 2036-08-01 | AU188: 31 | AV188: 5083 | AW188: 15818.80438 | AX188: 1039.845036 | AY188: 196.318188 | AZ188: 0 | BA188: 25.2 | BB188: 0 | BC188: 1261.363224 | BD188: 14778.95934 | BE188: 0.1323392101 | BF188: 0.1323392101 | BJ188: 167 | BK188: 2036-08-01 | BL188: 31 | BM188: 5083 | BN188: 15464.957 | BO188: 864.021695 | BP188: 191.9267894 | BQ188: 0 | BR188: 25.2 | BS188: 0 | BT188: 1081.148484 | BU188: 14600.9353 | BV188: 0.1323392101 | BW188: 0.1323392101 | CA188: 167 | CB188: 2036-08-01 | CC188: 31 | CD188: 5083 | CE188: 56332.62468 | CF188: 460.6971326 | CG188: 699.1121795 | CH188: 0 | CI188: 25.2 | CJ188: 0 | CK188: 1185.009312 | CL188: 55871.92755 | CM188: 0.1323392101 | CN188: 0.1323392101 | CR188: 167 | CS188: 2036-08-01 | CT188: 31 | CU188: 5083 | CV188: 56000.1825 | CW188: 295.5170786 | CX188: 694.9864285 | CY188: 0 | CZ188: 25.2 | DA188: 0 | DB188: 1015.703507 | DC188: 55704.66542 | DD188: 0.1323392101 | DE188: 0.1323392101
B189: 168 | S189: =IFERROR((I189+J189+K189+L189+M189)*$J$12+('Simulador para calculos'!I189+'Simulador para calculos'!J189+'Simulador para calculos'!K189+'Simulador para calculos'!L189+'Simulador para calculos'!M189)*NOT($J$12),"") ->  | U189: =IFERROR((1+'Simulación Cliente'!$E$21)^(T189/360),"") ->  | AB189: 168 | AS189: 168 | AT189: 2036-09-01 | AU189: 31 | AV189: 5114 | AW189: 14778.95934 | AX189: 1052.749962 | AY189: 183.4132624 | AZ189: 0 | BA189: 25.2 | BB189: 0 | BC189: 1261.363224 | BD189: 13726.20938 | BE189: 0.1307169563 | BF189: 0.1307169563 | BJ189: 168 | BK189: 2036-09-01 | BL189: 31 | BM189: 5114 | BN189: 14600.9353 | BO189: 874.7445771 | BP189: 181.2039073 | BQ189: 0 | BR189: 25.2 | BS189: 0 | BT189: 1081.148484 | BU189: 13726.19073 | BV189: 0.1307169563 | BW189: 0.1307169563 | CA189: 168 | CB189: 2036-09-01 | CC189: 31 | CD189: 5114 | CE189: 55871.92755 | CF189: 466.4145828 | CG189: 693.3947293 | CH189: 0 | CI189: 25.2 | CJ189: 0 | CK189: 1185.009312 | CL189: 55405.51297 | CM189: 0.1307169563 | CN189: 0.1307169563 | CR189: 168 | CS189: 2036-09-01 | CT189: 31 | CU189: 5114 | CV189: 55704.66542 | CW189: 299.184573 | CX189: 691.318934 | CY189: 0 | CZ189: 25.2 | DA189: 0 | DB189: 1015.703507 | DC189: 55405.48085 | DD189: 0.1307169563 | DE189: 0.1307169563
B190: 169 | S190: =IFERROR((I190+J190+K190+L190+M190)*$J$12+('Simulador para calculos'!I190+'Simulador para calculos'!J190+'Simulador para calculos'!K190+'Simulador para calculos'!L190+'Simulador para calculos'!M190)*NOT($J$12),"") ->  | U190: =IFERROR((1+'Simulación Cliente'!$E$21)^(T190/360),"") ->  | AB190: 169 | AS190: 169 | AT190: 2036-10-01 | AU190: 30 | AV190: 5144 | AW190: 13726.20938 | AX190: 1071.343004 | AY190: 164.8202202 | AZ190: 0 | BA190: 25.2 | BB190: 0 | BC190: 1261.363224 | BD190: 12654.86637 | BE190: 0.1291659699 | BF190: 0.1291659699 | BJ190: 169 | BK190: 2036-10-01 | BL190: 30 | BM190: 5144 | BN190: 13726.19073 | BO190: 891.1284882 | BP190: 164.8199962 | BQ190: 0 | BR190: 25.2 | BS190: 0 | BT190: 1081.148484 | BU190: 12835.06224 | BV190: 0.1291659699 | BW190: 0.1291659699 | CA190: 169 | CB190: 2036-10-01 | CC190: 30 | CD190: 5144 | CE190: 55405.51297 | CF190: 494.51647 | CG190: 665.2928421 | CH190: 0 | CI190: 25.2 | CJ190: 0 | CK190: 1185.009312 | CL190: 54910.9965 | CM190: 0.1291659699 | CN190: 0.1291659699 | CR190: 169 | CS190: 2036-10-01 | CT190: 30 | CU190: 5144 | CV190: 55405.48085 | CW190: 325.2110507 | CX190: 665.2924564 | CY190: 0 | CZ190: 25.2 | DA190: 0 | DB190: 1015.703507 | DC190: 55080.2698 | DD190: 0.1291659699 | DE190: 0.1291659699
B191: 170 | S191: =IFERROR((I191+J191+K191+L191+M191)*$J$12+('Simulador para calculos'!I191+'Simulador para calculos'!J191+'Simulador para calculos'!K191+'Simulador para calculos'!L191+'Simulador para calculos'!M191)*NOT($J$12),"") ->  | U191: =IFERROR((1+'Simulación Cliente'!$E$21)^(T191/360),"") ->  | AB191: 170 | AS191: 170 | AT191: 2036-11-01 | AU191: 31 | AV191: 5175 | AW191: 12654.86637 | AX191: 1079.110872 | AY191: 157.0523522 | AZ191: 0 | BA191: 25.2 | BB191: 0 | BC191: 1261.363224 | BD191: 11575.7555 | BE191: 0.1275826146 | BF191: 0.1275826146 | BJ191: 170 | BK191: 2036-11-01 | BL191: 31 | BM191: 5175 | BN191: 12835.06224 | BO191: 896.6598238 | BP191: 159.2886606 | BQ191: 0 | BR191: 25.2 | BS191: 0 | BT191: 1081.148484 | BU191: 11938.40241 | BV191: 0.1275826146 | BW191: 0.1275826146 | CA191: 170 | CB191: 2036-11-01 | CC191: 31 | CD191: 5175 | CE191: 54910.9965 | CF191: 478.3401518 | CG191: 681.4691603 | CH191: 0 | CI191: 25.2 | CJ191: 0 | CK191: 1185.009312 | CL191: 54432.65635 | CM191: 0.1275826146 | CN191: 0.1275826146 | CR191: 170 | CS191: 2036-11-01 | CT191: 31 | CU191: 5175 | CV191: 55080.2698 | CW191: 306.9335921 | CX191: 683.5699149 | CY191: 0 | CZ191: 25.2 | DA191: 0 | DB191: 1015.703507 | DC191: 54773.3362 | DD191: 0.1275826146 | DE191: 0.1275826146
B192: 171 | S192: =IFERROR((I192+J192+K192+L192+M192)*$J$12+('Simulador para calculos'!I192+'Simulador para calculos'!J192+'Simulador para calculos'!K192+'Simulador para calculos'!L192+'Simulador para calculos'!M192)*NOT($J$12),"") ->  | U192: =IFERROR((1+'Simulación Cliente'!$E$21)^(T192/360),"") ->  | AB192: 171 | AS192: 171 | AT192: 2036-12-01 | AU192: 30 | AV192: 5205 | AW192: 11575.7555 | AX192: 1097.165012 | AY192: 138.9982127 | AZ192: 0 | BA192: 25.2 | BB192: 0 | BC192: 1261.363224 | BD192: 10478.59049 | BE192: 0.126068818 | BF192: 0.126068818 | BJ192: 171 | BK192: 2036-12-01 | BL192: 30 | BM192: 5205 | BN192: 11938.40241 | BO192: 1993.7442 | BP192: 143.3527685 | BQ192: 0 | BR192: 25.2 | BS192: 0 | BT192: 2162.296969 | BU192: 9944.658213 | BV192: 0.2521376359 | BW192: 0.126068818 | CA192: 171 | CB192: 2036-12-01 | CC192: 30 | CD192: 5205 | CE192: 54432.65635 | CF192: 506.1982416 | CG192: 653.6110705 | CH192: 0 | CI192: 25.2 | CJ192: 0 | CK192: 1185.009312 | CL192: 53926.45811 | CM192: 0.126068818 | CN192: 0.126068818 | CR192: 171 | CS192: 2036-12-01 | CT192: 30 | CU192: 5205 | CV192: 54773.3362 | CW192: 1348.505162 | CX192: 657.7018524 | CY192: 0 | CZ192: 25.2 | DA192: 0 | DB192: 2031.407014 | DC192: 53424.83104 | DD192: 0.2521376359 | DE192: 0.126068818
B193: 172 | S193: =IFERROR((I193+J193+K193+L193+M193)*$J$12+('Simulador para calculos'!I193+'Simulador para calculos'!J193+'Simulador para calculos'!K193+'Simulador para calculos'!L193+'Simulador para calculos'!M193)*NOT($J$12),"") ->  | U193: =IFERROR((1+'Simulación Cliente'!$E$21)^(T193/360),"") ->  | AB193: 172 | AS193: 172 | AT193: 2037-01-01 | AU193: 31 | AV193: 5236 | AW193: 10478.59049 | AX193: 1106.119395 | AY193: 130.0438294 | AZ193: 0 | BA193: 25.2 | BB193: 0 | BC193: 1261.363224 | BD193: 9372.471094 | BE193: 0.1245234285 | BF193: 0.1245234285 | BJ193: 172 | BK193: 2037-01-01 | BL193: 31 | BM193: 5236 | BN193: 9944.658213 | BO193: 932.5309849 | BP193: 123.4174995 | BQ193: 0 | BR193: 25.2 | BS193: 0 | BT193: 1081.148484 | BU193: 9012.127228 | BV193: 0.1245234285 | BW193: 0.1245234285 | CA193: 172 | CB193: 2037-01-01 | CC193: 31 | CD193: 5236 | CE193: 53926.45811 | CF193: 490.5586981 | CG193: 669.250614 | CH193: 0 | CI193: 25.2 | CJ193: 0 | CK193: 1185.009312 | CL193: 53435.89941 | CM193: 0.1245234285 | CN193: 0.1245234285 | CR193: 172 | CS193: 2037-01-01 | CT193: 31 | CU193: 5236 | CV193: 53424.83104 | CW193: 327.4783014 | CX193: 663.0252057 | CY193: 0 | CZ193: 25.2 | DA193: 0 | DB193: 1015.703507 | DC193: 53097.35274 | DD193: 0.1245234285 | DE193: 0.1245234285
B194: 173 | S194: =IFERROR((I194+J194+K194+L194+M194)*$J$12+('Simulador para calculos'!I194+'Simulador para calculos'!J194+'Simulador para calculos'!K194+'Simulador para calculos'!L194+'Simulador para calculos'!M194)*NOT($J$12),"") ->  | U194: =IFERROR((1+'Simulación Cliente'!$E$21)^(T194/360),"") ->  | AB194: 173 | AS194: 173 | AT194: 2037-02-01 | AU194: 31 | AV194: 5267 | AW194: 9372.471094 | AX194: 1119.846814 | AY194: 116.3164104 | AZ194: 0 | BA194: 25.2 | BB194: 0 | BC194: 1261.363224 | BD194: 8252.62428 | BE194: 0.1229969828 | BF194: 0.1229969828 | BJ194: 173 | BK194: 2037-02-01 | BL194: 31 | BM194: 5267 | BN194: 9012.127228 | BO194: 944.1040968 | BP194: 111.8443876 | BQ194: 0 | BR194: 25.2 | BS194: 0 | BT194: 1081.148484 | BU194: 8068.023131 | BV194: 0.1229969828 | BW194: 0.1229969828 | CA194: 173 | CB194: 2037-02-01 | CC194: 31 | CD194: 5267 | CE194: 53435.89941 | CF194: 496.6467432 | CG194: 663.1625689 | CH194: 0 | CI194: 25.2 | CJ194: 0 | CK194: 1185.009312 | CL194: 52939.25266 | CM194: 0.1229969828 | CN194: 0.1229969828 | CR194: 173 | CS194: 2037-02-01 | CT194: 31 | CU194: 5267 | CV194: 53097.35274 | CW194: 331.5424484 | CX194: 658.9610587 | CY194: 0 | CZ194: 25.2 | DA194: 0 | DB194: 1015.703507 | DC194: 52765.81029 | DD194: 0.1229969828 | DE194: 0.1229969828
B195: 174 | S195: =IFERROR((I195+J195+K195+L195+M195)*$J$12+('Simulador para calculos'!I195+'Simulador para calculos'!J195+'Simulador para calculos'!K195+'Simulador para calculos'!L195+'Simulador para calculos'!M195)*NOT($J$12),"") ->  | U195: =IFERROR((1+'Simulación Cliente'!$E$21)^(T195/360),"") ->  | AB195: 174 | AS195: 174 | AT195: 2037-03-01 | AU195: 28 | AV195: 5295 | AW195: 8252.62428 | AX195: 1143.711377 | AY195: 92.45184755 | AZ195: 0 | BA195: 25.2 | BB195: 0 | BC195: 1261.363224 | BD195: 7108.912903 | BE195: 0.1216343472 | BF195: 0.1216343472 | BJ195: 174 | BK195: 2037-03-01 | BL195: 28 | BM195: 5295 | BN195: 8068.023131 | BO195: 965.564672 | BP195: 90.38381238 | BQ195: 0 | BR195: 25.2 | BS195: 0 | BT195: 1081.148484 | BU195: 7102.458459 | BV195: 0.1216343472 | BW195: 0.1216343472 | CA195: 174 | CB195: 2037-03-01 | CC195: 28 | CD195: 5295 | CE195: 52939.25266 | CF195: 566.7456331 | CG195: 593.063679 | CH195: 0 | CI195: 25.2 | CJ195: 0 | CK195: 1185.009312 | CL195: 52372.50703 | CM195: 0.1216343472 | CN195: 0.1216343472 | CR195: 174 | CS195: 2037-03-01 | CT195: 28 | CU195: 5295 | CV195: 52765.81029 | CW195: 399.3828546 | CX195: 591.1206524 | CY195: 0 | CZ195: 25.2 | DA195: 0 | DB195: 1015.703507 | DC195: 52366.42744 | DD195: 0.1216343472 | DE195: 0.1216343472
B196: 175 | S196: =IFERROR((I196+J196+K196+L196+M196)*$J$12+('Simulador para calculos'!I196+'Simulador para calculos'!J196+'Simulador para calculos'!K196+'Simulador para calculos'!L196+'Simulador para calculos'!M196)*NOT($J$12),"") ->  | U196: =IFERROR((1+'Simulación Cliente'!$E$21)^(T196/360),"") ->  | AB196: 175 | AS196: 175 | AT196: 2037-04-01 | AU196: 31 | AV196: 5326 | AW196: 7108.912903 | AX196: 1147.938548 | AY196: 88.22467658 | AZ196: 0 | BA196: 25.2 | BB196: 0 | BC196: 1261.363224 | BD196: 5960.974356 | BE196: 0.1201433168 | BF196: 0.1201433168 | BJ196: 175 | BK196: 2037-04-01 | BL196: 31 | BM196: 5326 | BN196: 7102.458459 | BO196: 967.8039102 | BP196: 88.14457414 | BQ196: 0 | BR196: 25.2 | BS196: 0 | BT196: 1081.148484 | BU196: 6134.654549 | BV196: 0.1201433168 | BW196: 0.1201433168 | CA196: 175 | CB196: 2037-04-01 | CC196: 31 | CD196: 5326 | CE196: 52372.50703 | CF196: 509.8439014 | CG196: 649.9654106 | CH196: 0 | CI196: 25.2 | CJ196: 0 | CK196: 1185.009312 | CL196: 51862.66313 | CM196: 0.1201433168 | CN196: 0.1201433168 | CR196: 175 | CS196: 2037-04-01 | CT196: 31 | CU196: 5326 | CV196: 52366.42744 | CW196: 340.6135468 | CX196: 649.8899603 | CY196: 0 | CZ196: 25.2 | DA196: 0 | DB196: 1015.703507 | DC196: 52025.81389 | DD196: 0.1201433168 | DE196: 0.1201433168
B197: 176 | S197: =IFERROR((I197+J197+K197+L197+M197)*$J$12+('Simulador para calculos'!I197+'Simulador para calculos'!J197+'Simulador para calculos'!K197+'Simulador para calculos'!L197+'Simulador para calculos'!M197)*NOT($J$12),"") ->  | U197: =IFERROR((1+'Simulación Cliente'!$E$21)^(T197/360),"") ->  | AB197: 176 | AS197: 176 | AT197: 2037-05-01 | AU197: 30 | AV197: 5356 | AW197: 5960.974356 | AX197: 1164.585626 | AY197: 71.57759866 | AZ197: 0 | BA197: 25.2 | BB197: 0 | BC197: 1261.363224 | BD197: 4796.38873 | BE197: 0.1187177891 | BF197: 0.1187177891 | BJ197: 176 | BK197: 2037-05-01 | BL197: 30 | BM197: 5356 | BN197: 6134.654549 | BO197: 982.2853859 | BP197: 73.66309852 | BQ197: 0 | BR197: 25.2 | BS197: 0 | BT197: 1081.148484 | BU197: 5152.369163 | BV197: 0.1187177891 | BW197: 0.1187177891 | CA197: 176 | CB197: 2037-05-01 | CC197: 30 | CD197: 5356 | CE197: 51862.66313 | CF197: 537.0579521 | CG197: 622.75136 | CH197: 0 | CI197: 25.2 | CJ197: 0 | CK197: 1185.009312 | CL197: 51325.60518 | CM197: 0.1187177891 | CN197: 0.1187177891 | CR197: 176 | CS197: 2037-05-01 | CT197: 30 | CU197: 5356 | CV197: 52025.81389 | CW197: 365.7930815 | CX197: 624.7104256 | CY197: 0 | CZ197: 25.2 | DA197: 0 | DB197: 1015.703507 | DC197: 51660.02081 | DD197: 0.1187177891 | DE197: 0.1187177891
B198: 177 | S198: =IFERROR((I198+J198+K198+L198+M198)*$J$12+('Simulador para calculos'!I198+'Simulador para calculos'!J198+'Simulador para calculos'!K198+'Simulador para calculos'!L198+'Simulador para calculos'!M198)*NOT($J$12),"") ->  | U198: =IFERROR((1+'Simulación Cliente'!$E$21)^(T198/360),"") ->  | AB198: 177 | AS198: 177 | AT198: 2037-06-01 | AU198: 31 | AV198: 5387 | AW198: 4796.38873 | AX198: 1176.637971 | AY198: 59.52525375 | AZ198: 0 | BA198: 25.2 | BB198: 0 | BC198: 1261.363224 | BD198: 3619.750759 | BE198: 0.1172625107 | BF198: 0.1172625107 | BJ198: 177 | BK198: 2037-06-01 | BL198: 31 | BM198: 5387 | BN198: 5152.369163 | BO198: 992.0053599 | BP198: 63.94312453 | BQ198: 0 | BR198: 25.2 | BS198: 0 | BT198: 1081.148484 | BU198: 4160.363803 | BV198: 0.1172625107 | BW198: 0.1172625107 | CA198: 177 | CB198: 2037-06-01 | CC198: 31 | CD198: 5387 | CE198: 51325.60518 | CF198: 522.8364052 | CG198: 636.9729069 | CH198: 0 | CI198: 25.2 | CJ198: 0 | CK198: 1185.009312 | CL198: 50802.76877 | CM198: 0.1172625107 | CN198: 0.1172625107 | CR198: 177 | CS198: 2037-06-01 | CT198: 31 | CU198: 5387 | CV198: 51660.02081 | CW198: 349.3803579 | CX198: 641.1231492 | CY198: 0 | CZ198: 25.2 | DA198: 0 | DB198: 1015.703507 | DC198: 51310.64045 | DD198: 0.1172625107 | DE198: 0.1172625107
B199: 178 | S199: =IFERROR((I199+J199+K199+L199+M199)*$J$12+('Simulador para calculos'!I199+'Simulador para calculos'!J199+'Simulador para calculos'!K199+'Simulador para calculos'!L199+'Simulador para calculos'!M199)*NOT($J$12),"") ->  | U199: =IFERROR((1+'Simulación Cliente'!$E$21)^(T199/360),"") ->  | AB199: 178 | AS199: 178 | AT199: 2037-07-01 | AU199: 30 | AV199: 5417 | AW199: 3619.750759 | AX199: 1192.698339 | AY199: 43.46488538 | AZ199: 0 | BA199: 25.2 | BB199: 0 | BC199: 1261.363224 | BD199: 2427.05242 | BE199: 0.1158711644 | BF199: 0.1158711644 | BJ199: 178 | BK199: 2037-07-01 | BL199: 30 | BM199: 5417 | BN199: 4160.363803 | BO199: 2087.140564 | BP199: 49.95640525 | BQ199: 0 | BR199: 25.2 | BS199: 0 | BT199: 2162.296969 | BU199: 2073.22324 | BV199: 0.2317423288 | BW199: 0.1158711644 | CA199: 178 | CB199: 2037-07-01 | CC199: 30 | CD199: 5417 | CE199: 50802.76877 | CF199: 549.7848468 | CG199: 610.0244653 | CH199: 0 | CI199: 25.2 | CJ199: 0 | CK199: 1185.009312 | CL199: 50252.98393 | CM199: 0.1158711644 | CN199: 0.1158711644 | CR199: 178 | CS199: 2037-07-01 | CT199: 30 | CU199: 5417 | CV199: 51310.64045 | CW199: 1390.084177 | CX199: 616.1228366 | CY199: 0 | CZ199: 25.2 | DA199: 0 | DB199: 2031.407014 | DC199: 49920.55627 | DD199: 0.2317423288 | DE199: 0.1158711644
B200: 179 | S200: =IFERROR((I200+J200+K200+L200+M200)*$J$12+('Simulador para calculos'!I200+'Simulador para calculos'!J200+'Simulador para calculos'!K200+'Simulador para calculos'!L200+'Simulador para calculos'!M200)*NOT($J$12),"") ->  | U200: =IFERROR((1+'Simulación Cliente'!$E$21)^(T200/360),"") ->  | AB200: 179 | AS200: 179 | AT200: 2037-08-01 | AU200: 31 | AV200: 5448 | AW200: 2427.05242 | AX200: 1206.042457 | AY200: 30.12076779 | AZ200: 0 | BA200: 25.2 | BB200: 0 | BC200: 1261.363224 | BD200: 1221.009964 | BE200: 0.1144507808 | BF200: 0.1144507808 | BJ200: 179 | BK200: 2037-08-01 | BL200: 31 | BM200: 5448 | BN200: 2073.22324 | BO200: 1030.218889 | BP200: 25.72959499 | BQ200: 0 | BR200: 25.2 | BS200: 0 | BT200: 1081.148484 | BU200: 1043.00435 | BV200: 0.1144507808 | BW200: 0.1144507808 | CA200: 179 | CB200: 2037-08-01 | CC200: 31 | CD200: 5448 | CE200: 50252.98393 | CF200: 536.1480977 | CG200: 623.6612143 | CH200: 0 | CI200: 25.2 | CJ200: 0 | CK200: 1185.009312 | CL200: 49716.83583 | CM200: 0.1144507808 | CN200: 0.1144507808 | CR200: 179 | CS200: 2037-08-01 | CT200: 31 | CU200: 5448 | CV200: 49920.55627 | CW200: 370.9678633 | CX200: 619.5356437 | CY200: 0 | CZ200: 25.2 | DA200: 0 | DB200: 1015.703507 | DC200: 49549.58841 | DD200: 0.1144507808 | DE200: 0.1144507808
B201: 180 | S201: =IFERROR((I201+J201+K201+L201+M201)*$J$12+('Simulador para calculos'!I201+'Simulador para calculos'!J201+'Simulador para calculos'!K201+'Simulador para calculos'!L201+'Simulador para calculos'!M201)*NOT($J$12),"") ->  | U201: =IFERROR((1+'Simulación Cliente'!$E$21)^(T201/360),"") ->  | AB201: 180 | AS201: 180 | AT201: 2037-09-01 | AU201: 31 | AV201: 5479 | AW201: 1221.009964 | AX201: 1221.009964 | AY201: 15.15326051 | AZ201: 0 | BA201: 25.2 | BB201: 0 | BC201: 1261.363224 | BD201: 0 | BE201: 0.1130478087 | BF201: 0.1130478087 | BJ201: 180 | BK201: 2037-09-01 | BL201: 31 | BM201: 5479 | BN201: 1043.00435 | BO201: 1043.00435 | BP201: 12.94413404 | BQ201: 0 | BR201: 25.2 | BS201: 0 | BT201: 1081.148484 | BU201: 0 | BV201: 0.1130478087 | BW201: 0.1130478087 | CA201: 180 | CB201: 2037-09-01 | CC201: 31 | CD201: 5479 | CE201: 49716.83583 | CF201: 542.801927 | CG201: 617.0073851 | CH201: 0 | CI201: 25.2 | CJ201: 0 | CK201: 1185.009312 | CL201: 49174.0339 | CM201: 0.1130478087 | CN201: 0.1130478087 | CR201: 180 | CS201: 2037-09-01 | CT201: 31 | CU201: 5479 | CV201: 49549.58841 | CW201: 375.5717346 | CX201: 614.9317725 | CY201: 0 | CZ201: 25.2 | DA201: 0 | DB201: 1015.703507 | DC201: 49174.01668 | DD201: 0.1130478087 | DE201: 0.1130478087
B202: 181 | S202: =IFERROR((I202+J202+K202+L202+M202)*$J$12+('Simulador para calculos'!I202+'Simulador para calculos'!J202+'Simulador para calculos'!K202+'Simulador para calculos'!L202+'Simulador para calculos'!M202)*NOT($J$12),"") ->  | U202: =IFERROR((1+'Simulación Cliente'!$E$21)^(T202/360),"") ->  | AB202: 181 | AS202: 181 | BJ202: 181 | CA202: 181 | CB202: 2037-10-01 | CC202: 30 | CD202: 5509 | CE202: 49174.0339 | CF202: 569.3422084 | CG202: 590.4671037 | CH202: 0 | CI202: 25.2 | CJ202: 0 | CK202: 1185.009312 | CL202: 48604.69169 | CM202: 0.1117064708 | CN202: 0.1117064708 | CR202: 181 | CS202: 2037-10-01 | CT202: 30 | CU202: 5509 | CV202: 49174.01668 | CW202: 400.0366102 | CX202: 590.4668969 | CY202: 0 | CZ202: 25.2 | DA202: 0 | DB202: 1015.703507 | DC202: 48773.98006 | DD202: 0.1117064708 | DE202: 0.1117064708
... 179 more rows

Sheet Simulador para calculos (hidden)
B1: simulacion con Cuota simple | X1: simulacion con CD | AO1: simulacion a 180 | BF1: simulacion a 180 con CD | BW1: simulacion a 240 | CN1: simulacion a 240 con CD
B3: MAF | C3: ='Simulación Cliente'!E9+I8 -> 90000 | X3: MAF | Y3: =+'Simulación Cliente'!$E$10 -> 90000 | AO3: MAF | AP3: =+'Simulación Cliente'!$E$10 -> 90000 | BF3: MAF | BG3: =+'Simulación Cliente'!$E$10 -> 90000 | BW3: MAF | BX3: =+'Simulación Cliente'!$E$10 -> 90000 | CN3: MAF | CO3: =+'Simulación Cliente'!$E$10 -> 90000
B4: Monto del Bien | C4: =+'Simulación Cliente'!$E$19 -> 0 | D4: =C4*J12 -> 0 | X4: Monto del Bien | Y4: =+'Simulación Cliente'!$E$7 -> 90000 | AO4: Monto del Bien | AP4: =+'Simulación Cliente'!$E$7 -> 90000 | BF4: Monto del Bien | BG4: =+'Simulación Cliente'!$E$7 -> 90000 | BW4: Monto del Bien | BX4: =+'Simulación Cliente'!$E$7 -> 90000 | CN4: Monto del Bien | CO4: =+'Simulación Cliente'!$E$7 -> 90000
B5: Moneda | C5: Soles | E5: Suma de Prima Mensual | F5: =SUM(K22:K381) -> 0 | H5: Ultima fecha pago | I5: =MAX(C22:C381) -> 2029-05-16 | X5: Moneda | Y5: Soles | AO5: Moneda | AP5: Soles | BF5: Moneda | BG5: Soles | BW5: Moneda | BX5: Soles | CN5: Moneda | CO5: Soles
B6: Plazo | C6: =+'Simulación Cliente'!$E$17 -> 48 | E6: VPN - Valor Presente | F6: =NPV(F7,K22:K381) -> 0 | H6: Cuotas de seguro | I6: =RESTAMESES(C7,I5) -> 48 | X6: Plazo | Y6: =+'Simulación Cliente'!$E$17 -> 48 | AO6: Plazo | AP6: 180 | BF6: Plazo | BG6: 180 | BW6: Plazo | BX6: 240 | CN6: Plazo | CO6: 240
B7: Fecha de Desembolso | C7: ='Simulación Cliente'!E12 -> 2025-05-12 | E7: Tasa de Actualización | F7: 0.002871 | H7: Seguro mensual | I7: =C14*C4 -> 0 | X7: Fecha de Desembolso | Y7: 2022-09-01 | AO7: Fecha de Desembolso | AP7: 2022-09-01 | BF7: Fecha de Desembolso | BG7: 2022-09-01 | BW7: Fecha de Desembolso | BX7: 2022-09-01 | CN7: Fecha de Desembolso | CO7: 2022-09-01
B8: Fecha de 1er Pago | C8: ='Simulación Cliente'!E13 -> 2025-06-16 | H8: Total Prima Única | I8: =I7*I6*NOT(J12) -> 0 | X8: Fecha de 1er Pago | Y8: 2022-10-01 | AO8: Fecha de 1er Pago | AP8: 2022-10-01 | BF8: Fecha de 1er Pago | BG8: 2022-10-01 | BW8: Fecha de 1er Pago | BX8: 2022-10-01 | CN8: Fecha de 1er Pago | CO8: 2022-10-01
B9: Cuota Julio | C9: 1 | X9: Cuota Julio | Y9: 2 | AO9: Cuota Julio | AP9: 1 | BF9: Cuota Julio | BG9: 2 | BW9: Cuota Julio | BX9: 1 | CN9: Cuota Julio | CO9: 2
B10: Cuota Diciembre | C10: 1 | E10: Monto inicial | F10: =C3 -> 90000 | X10: Cuota Diciembre | Y10: 2 | AO10: Cuota Diciembre | AP10: 1 | BF10: Cuota Diciembre | BG10: 2 | BW10: Cuota Diciembre | BX10: 1 | CN10: Cuota Diciembre | CO10: 2
B11: TEA | C11: =+'Simulación Cliente'!$E$20 -> 0.154 | E11: Monto adicional de Desgravamen / Vida | F11: =F6 -> 0 | H11: seg desg | I11: seg vida | J11: Seg bien mensual | K11: NO | X11: TEA | Y11: =+'Simulación Cliente'!$E$20 -> 0.154 | AO11: TEA | AP11: =+'Simulación Cliente'!$E$20 -> 0.154 | BF11: TEA | BG11: =+'Simulación Cliente'!$E$20 -> 0.154 | BW11: TEA | BX11: =+'Simulación Cliente'!$E$20 -> 0.154 | CN11: TEA | CO11: =+'Simulación Cliente'!$E$20 -> 0.154
B12: Seguro de Desgravamen | C12: =+'Simulación Cliente'!$F$18 -> 0 | E12: Prima de Seguro de Desgravamen / Vida | F12: =F11/F10 -> 0 | H12: =NOT(OR('Simulación Cliente'!$E$18='Simulación Cliente'!$Q$20,'Simulación Cliente'!$E$18='Simulación Cliente'!$Q$21)) -> TRUE | I12: =OR('Simulación Cliente'!$E$18='Simulación Cliente'!$Q$20,'Simulación Cliente'!$E$18='Simulación Cliente'!$Q$21) -> FALSE | J12: =K11="SI" -> FALSE | X12: Seguro de Desgravamen | Y12: =+'Simulación Cliente'!$F$18 -> 0 | AO12: Seguro de Desgravamen | AP12: =+'Simulación Cliente'!$F$18 -> 0 | BF12: Seguro de Desgravamen | BG12: =+'Simulación Cliente'!$F$18 -> 0 | BW12: Seguro de Desgravamen | BX12: =+'Simulación Cliente'!$F$18 -> 0 | CN12: Seguro de Desgravamen | CO12: =+'Simulación Cliente'!$F$18 -> 0
B13: TEA Total | C13: =(1+(((1+C11)^(30/360)-1)+C12*H12+C16))^12-1 -> 0.154 | E13: MAF Inicial | F13: =F10+F11 -> 90000 | X13: TCEA | Y13: =(1+(((1+Y11)^(30/360)-1)+Y12+Y16))^12-1 -> 0.154 | AO13: TCEA | AP13: =(1+(((1+AP11)^(30/360)-1)+AP12+AP16))^12-1 -> 0.154 | BF13: TCEA | BG13: =(1+(((1+BG11)^(30/360)-1)+BG12+BG16))^12-1 -> 0.154 | BW13: TCEA | BX13: =(1+(((1+BX11)^(30/360)-1)+BX12+BX16))^12-1 -> 0.154 | CN13: TCEA | CO13: =(1+(((1+CO11)^(30/360)-1)+CO12+CO16))^12-1 -> 0.154
B14: Seguro del Bien | C14: =+'Simulación Cliente'!$F$19 -> 0.00028 | X14: Seguro del Bien | Y14: =+'Simulación Cliente'!$F$19 -> 0.00028 | AO14: Seguro del Bien | AP14: =+'Simulación Cliente'!$F$19 -> 0.00028 | BF14: Seguro del Bien | BG14: =+'Simulación Cliente'!$F$19 -> 0.00028 | BW14: Seguro del Bien | BX14: =+'Simulación Cliente'!$F$19 -> 0.00028 | CN14: Seguro del Bien | CO14: =+'Simulación Cliente'!$F$19 -> 0.00028
B15: Portes | X15: Portes | Y15: =+'Simulación Cliente'!$E$19 -> 0 | AO15: Portes | AP15: =+'Simulación Cliente'!$E$19 -> 0 | BF15: Portes | BG15: =+'Simulación Cliente'!$E$19 -> 0 | BW15: Portes | BX15: =+'Simulación Cliente'!$E$19 -> 0 | CN15: Portes | CO15: =+'Simulación Cliente'!$E$19 -> 0
B16: % Portes | C16: =C15/C3 -> 0 | X16: % Portes | Y16: =Y15/Y3 -> 0 | AO16: % Portes | AP16: =AP15/AP3 -> 0 | BF16: % Portes | BG16: =BG15/BG3 -> 0 | BW16: % Portes | BX16: =BX15/BX3 -> 0 | CN16: % Portes | CO16: =CO15/CO3 -> 0
B17: VALOR CUOTA | C17: =(C3+(C14*D4)*Q20)/P20 -> 2492.240871 | X17: VALOR CUOTA | Y17: =(Y3+(Y14*Y4)*AK20)/AJ20 -> 2153.416701 | AO17: VALOR CUOTA | AP17: =(AP3+(AP14*AP4)*BB20)/BA20 -> 1261.363224 | BF17: VALOR CUOTA | BG17: =(BG3+(BG14*BG4)*BS20)/BR20 -> 1081.148484 | BW17: VALOR CUOTA | BX17: =(BX3+(BX14*BX4)*CJ20)/CI20 -> 1185.009312 | CN17: VALOR CUOTA | CO17: =(CO3+(CO14*CO4)*DA20)/CZ20 -> 1015.703507
P20: =SUM(P22:P381) -> 36.11207931 | Q20: =SUM(Q22:Q381) -> 36.11207931 | AJ20: =SUM(AJ22:AJ381) -> 42.21750543 | AK20: =SUM(AK22:AK381) -> 36.18576486 | BA20: =SUM(BA22:BA381) -> 72.80591934 | BB20: =SUM(BB22:BB381) -> 72.80591934 | BR20: =SUM(BR22:BR381) -> 84.94181002 | BS20: =SUM(BS22:BS381) -> 72.80591934 | CI20: =SUM(CI22:CI381) -> 77.59896309 | CJ20: =SUM(CJ22:CJ381) -> 77.59896309 | CZ20: =SUM(CZ22:CZ381) -> 90.53379577 | DA20: =SUM(DA22:DA381) -> 77.59896309
B21: N° Cuota | C21: Fecha de pago Simul | D21: Día | E21: Fecha Pago | F21: Días | G21: Dias Acumulados | H21: Saldo Inicial | I21: Amortización | J21: Interés | K21: Seguro Desgravamen | L21: Seguro del Bien | M21: Portes | N21: VALOR CUOTA | O21: Saldo Final | P21: Factor Cronograma | Q21: Factor Cronograma 2 | X21: N° Cuota | Y21: Fecha de pago | Z21: Días | AA21: Dias Acumulados | AB21: Saldo Inicial | AC21: Amortización | AD21: Interés | AE21: Seguro Desgravamen | AF21: Seguro del Bien | AG21: Portes | AH21: VALOR CUOTA | AI21: Saldo Final | AJ21: Factor Cronograma | AK21: Factor Cronograma 2 | AO21: N° Cuota | AP21: Fecha de pago | AQ21: Días | AR21: Dias Acumulados | AS21: Saldo Inicial | AT21: Amortización | AU21: Interés | AV21: Seguro Desgravamen | AW21: Seguro del Bien | AX21: Portes | AY21: VALOR CUOTA | AZ21: Saldo Final | BA21: Factor Cronograma | BB21: Factor Cronograma 2 | BF21: N° Cuota | BG21: Fecha de pago | BH21: Días | BI21: Dias Acumulados | BJ21: Saldo Inicial | BK21: Amortización | BL21: Interés | BM21: Seguro Desgravamen | BN21: Seguro del Bien | BO21: Portes | BP21: VALOR CUOTA | BQ21: Saldo Final | BR21: Factor Cronograma | BS21: Factor Cronograma 2 | BW21: N° Cuota | BX21: Fecha de pago | BY21: Días | BZ21: Dias Acumulados | CA21: Saldo Inicial | CB21: Amortización | CC21: Interés | CD21: Seguro Desgravamen | CE21: Seguro del Bien | CF21: Portes | CG21: VALOR CUOTA | CH21: Saldo Final | CI21: Factor Cronograma | CJ21: Factor Cronograma 2 | CN21: N° Cuota | CO21: Fecha de pago | CP21: Días | CQ21: Dias Acumulados | CR21: Saldo Inicial | CS21: Amortización | CT21: Interés | CU21: Seguro Desgravamen | CV21: Seguro del Bien | CW21: Portes | CX21: VALOR CUOTA | CY21: Saldo Final | CZ21: Factor Cronograma | DA21: Factor Cronograma 2
B22: 1 | C22: =C8 -> 2025-06-16 | D22: =IF(B22<=$C$6,WEEKDAY(C22,2),"") -> 1 | E22: =IF(D22=7,C22+1,C22) -> 2025-06-16 | F22: =E22-C7 -> 35 | G22: =F22 -> 35 | H22: =C3 -> 90000 | I22: =IF(B22>C$6,"",N22-M22-L22-K22-J22) -> 1230.174817 | J22: =IF(B22>C$6,"",((1+C$11)^(F22/360)-1)*H22) -> 1262.066054 | K22: =IF(B22>C$6,"",((1+C$12)^(F22/30)-1)*H22*$H$12) -> 0 | L22: =IF(B22>C$6,"",D$4*C$14) -> 0 | M22: =IF(B22>C$6,"",C$15) -> 0 | N22: =IF(B22>C$6,"",IF(B22=C$6,H22+J22+K22+L22+M22,IF(AND(C$9=2,MONTH(C22)=7),2*C$17,IF(AND(C$10=2,MONTH(C22)=12),2*C$17,C$17)))) -> 2492.240871 | O22: =IF(B22>C$6,"",H22-I22) -> 88769.82518 | P22: =IFERROR(IF(AND(MONTH(C22)=7,C$9=2),2/(1+C$13)^(G22/360),IF(AND(MONTH(C22)=12,C$10=2),2/(1+C$13)^(G22/360),1/(1+C$13)^(G22/360))),"") -> 0.9861709678 | Q22: =IFERROR(1/(1+C$13)^(G22/360),"") -> 0.9861709678 | X22: 1 | Y22: =Y8 -> 2022-10-01 | Z22: =Y22-Y7 -> 30 | AA22: =Z22 -> 30 | AB22: =Y3 -> 90000 | AC22: =IF(X22>Y$6,"",AH22-AG22-AF22-AE22-AD22) -> 1047.523597 | AD22: =IF(X22>Y$6,"",((1+Y$11)^(Z22/360)-1)*AB22) -> 1080.693104 | AE22: =IF(X22>Y$6,"",((1+Y$12)^(Z22/30)-1)*AB22) -> 0 | AF22: =IF(X22>Y$6,"",Y$4*Y$14) -> 25.2 | AG22: =IF(X22>Y$6,"",Y$15) -> 0 | AH22: =IF(X22>Y$6,"",IF(X22=Y$6,AB22+AD22+AE22+AF22+AG22,IF(AND(Y$9=2,MONTH(Y22)=7),2*Y$17,IF(AND(Y$10=2,MONTH(Y22)=12),2*Y$17,Y$17)))) -> 2153.416701 | AI22: =IF(X22>Y$6,"",AB22-AC22) -> 88952.4764 | AJ22: =IFERROR(IF(AND(MONTH(Y22)=7,Y$9=2),2/(1+Y$13)^(AA22/360),IF(AND(MONTH(Y22)=12,Y$10=2),2/(1+Y$13)^(AA22/360),1/(1+Y$13)^(AA22/360))),"") -> 0.9881347729 | AK22: =IFERROR(1/(1+Y$13)^(AA22/360),"") -> 0.9881347729 | AO22: 1 | AP22: =AP8 -> 2022-10-01 | AQ22: =AP22-AP7 -> 30 | AR22: =AQ22 -> 30 | AS22: =AP3 -> 90000 | AT22: =IF(AO22>AP$6,"",AY22-AX22-AW22-AV22-AU22) -> 155.4701203 | AU22: =IF(AO22>AP$6,"",((1+AP$11)^(AQ22/360)-1)*AS22) -> 1080.693104 | AV22: =IF(AO22>AP$6,"",((1+AP$12)^(AQ22/30)-1)*AS22) -> 0 | AW22: =IF(AO22>AP$6,"",AP$4*AP$14) -> 25.2 | AX22: =IF(AO22>AP$6,"",AP$15) -> 0 | AY22: =IF(AO22>AP$6,"",IF(AO22=AP$6,AS22+AU22+AV22+AW22+AX22,IF(AND(AP$9=2,MONTH(AP22)=7),2*AP$17,IF(AND(AP$10=2,MONTH(AP22)=12),2*AP$17,AP$17)))) -> 1261.363224 | AZ22: =IF(AO22>AP$6,"",AS22-AT22) -> 89844.52988 | BA22: =IFERROR(IF(AND(MONTH(AP22)=7,AP$9=2),2/(1+AP$13)^(AR22/360),IF(AND(MONTH(AP22)=12,AP$10=2),2/(1+AP$13)^(AR22/360),1/(1+AP$13)^(AR22/360))),"") -> 0.9881347729 | BB22: =IFERROR(1/(1+AP$13)^(AR22/360),"") -> 0.9881347729 | BF22: 1 | BG22: =BG8 -> 2022-10-01 | BH22: =BG22-BG7 -> 30 | BI22: =BH22 -> 30 | BJ22: =BG3 -> 90000 | BK22: =IF(BF22>BG$6,"",BP22-BO22-BN22-BM22-BL22) -> -24.74461961 | BL22: =IF(BF22>BG$6,"",((1+BG$11)^(BH22/360)-1)*BJ22) -> 1080.693104 | BM22: =IF(BF22>BG$6,"",((1+BG$12)^(BH22/30)-1)*BJ22) -> 0 | BN22: =IF(BF22>BG$6,"",BG$4*BG$14) -> 25.2 | BO22: =IF(BF22>BG$6,"",BG$15) -> 0 | BP22: =IF(BF22>BG$6,"",IF(BF22=BG$6,BJ22+BL22+BM22+BN22+BO22,IF(AND(BG$9=2,MONTH(BG22)=7),2*BG$17,IF(AND(BG$10=2,MONTH(BG22)=12),2*BG$17,BG$17)))) -> 1081.148484 | BQ22: =IF(BF22>BG$6,"",BJ22-BK22) -> 90024.74462 | BR22: =IFERROR(IF(AND(MONTH(BG22)=7,BG$9=2),2/(1+BG$13)^(BI22/360),IF(AND(MONTH(BG22)=12,BG$10=2),2/(1+BG$13)^(BI22/360),1/(1+BG$13)^(BI22/360))),"") -> 0.9881347729 | BS22: =IFERROR(1/(1+BG$13)^(BI22/360),"") -> 0.9881347729 | BW22: 1 | BX22: =BX8 -> 2022-10-01 | BY22: =BX22-BX7 -> 30 | BZ22: =BY22 -> 30 | CA22: =BX3 -> 90000 | CB22: =IF(BW22>BX$6,"",CG22-CF22-CE22-CD22-CC22) -> 79.11620807 | CC22: =IF(BW22>BX$6,"",((1+BX$11)^(BY22/360)-1)*CA22) -> 1080.693104 | CD22: =IF(BW22>BX$6,"",((1+BX$12)^(BY22/30)-1)*CA22) -> 0 | CE22: =IF(BW22>BX$6,"",BX$4*BX$14) -> 25.2 | CF22: =IF(BW22>BX$6,"",BX$15) -> 0 | CG22: =IF(BW22>BX$6,"",IF(BW22=BX$6,CA22+CC22+CD22+CE22+CF22,IF(AND(BX$9=2,MONTH(BX22)=7),2*BX$17,IF(AND(BX$10=2,MONTH(BX22)=12),2*BX$17,BX$17)))) -> 1185.009312 | CH22: =IF(BW22>BX$6,"",CA22-CB22) -> 89920.88379 | CI22: =IFERROR(IF(AND(MONTH(BX22)=7,BX$9=2),2/(1+BX$13)^(BZ22/360),IF(AND(MONTH(BX22)=12,BX$10=2),2/(1+BX$13)^(BZ22/360),1/(1+BX$13)^(BZ22/360))),"") -> 0.9881347729 | CJ22: =IFERROR(1/(1+BX$13)^(BZ22/360),"") -> 0.9881347729 | CN22: 1 | CO22: =CO8 -> 2022-10-01 | CP22: =CO22-CO7 -> 30 | CQ22: =CP22 -> 30 | CR22: =CO3 -> 90000 | CS22: =IF(CN22>CO$6,"",CX22-CW22-CV22-CU22-CT22) -> -90.18959694 | CT22: =IF(CN22>CO$6,"",((1+CO$11)^(CP22/360)-1)*CR22) -> 1080.693104 | CU22: =IF(CN22>CO$6,"",((1+CO$12)^(CP22/30)-1)*CR22) -> 0 | CV22: =IF(CN22>CO$6,"",CO$4*CO$14) -> 25.2 | CW22: =IF(CN22>CO$6,"",CO$15) -> 0 | CX22: =IF(CN22>CO$6,"",IF(CN22=CO$6,CR22+CT22+CU22+CV22+CW22,IF(AND(CO$9=2,MONTH(CO22)=7),2*CO$17,IF(AND(CO$10=2,MONTH(CO22)=12),2*CO$17,CO$17)))) -> 1015.703507 | CY22: =IF(CN22>CO$6,"",CR22-CS22) -> 90090.1896 | CZ22: =IFERROR(IF(AND(MONTH(CO22)=7,CO$9=2),2/(1+CO$13)^(CQ22/360),IF(AND(MONTH(CO22)=12,CO$10=2),2/(1+CO$13)^(CQ22/360),1/(1+CO$13)^(CQ22/360))),"") -> 0.9881347729 | DA22: =IFERROR(1/(1+CO$13)^(CQ22/360),"") -> 0.9881347729
